Workbook

Sheet Info
C7: File name | D7: Front end Program Operațional Infrastructură Mare
C8: Author | D8: Cambridge Econometrics
C9: Client | D9: Ministerul Investițiilor și Proiectelor Europene
C10: Project | D10: Evaluarea progresului în îndeplinirea indicatorilor din cadrul de performanță – Tema E
C12: Version | D12: 4
C13: Authorised for release by
C14: Last revised | D14: 2021-07-27
C15: Status | D15: Completed
C16: Source | D16: SMIS
C18: Purpose | D18: To provide forecasts on indicators relating to the Large Infrastructure Operational Programme.
C22: Sheets in this file:
D24: Info | F24: This documentation sheet
D25: Projections | F25: Summary projection results
D26: Achievement_finalised | F26: Results for finalised projects in SMIS
D27: Achievement_to_date_ongoing | F27: Results for ongoing projects in SMIS
D28: Achievement_forecast_ongoing | F28: Forecasts for ongoing projects
D29: Project_characteristics | F29: Project characteristics and project pipline
D30: Achievement_forecast_future | F30: Forecasts for future projects

Sheet Projections
H2: As percentage of target (%) | J2: Total | N2: Finalised | P2: Ongoing | R2: New
C3: PA | D3: PI | E3: Indicator | F3: Region | G3: Target | H3: 2022 | I3: =+H3+1 -> 2023 | J3: 2022 | K3: =+J3+1 -> 2023 | L3: 2020 | M3: 2021 | N3: =+M3+1 -> 2022 | O3: =+N3+1 -> 2023 | P3: 2022 | Q3: =+P3+1 -> 2023 | R3: 2022 | S3: =+R3+1 -> 2023
C4: 1 | D4: All | E4: CO12a | F4: All | G4: 140 | H4: =J4/$G4*100 -> 129.2984175 | I4: =K4/$G4*100 -> 212.2904384 | J4: =N4+P4+R4 -> 181.0177845 | K4: =O4+Q4+S4 -> 297.2066138 | L4: =SUMIFS(Achievement_finalised!G:G,Achievement_finalised!$D:$D,Projections!$E4,Achievement_finalised!$E:$E,Projections!$F4,Achievement_finalised!$B:$B,Projections!$C4) -> 0 | M4: =SUMIFS(Achievement_finalised!H:H,Achievement_finalised!$D:$D,Projections!$E4,Achievement_finalised!$E:$E,Projections!$F4,Achievement_finalised!$B:$B,Projections!$C4) -> 0 | N4: =SUMIFS(Achievement_finalised!I:I,Achievement_finalised!$D:$D,Projections!$E4,Achievement_finalised!$E:$E,Projections!$F4,Achievement_finalised!$B:$B,Projections!$C4) -> 0 | O4: =SUMIFS(Achievement_finalised!J:J,Achievement_finalised!$D:$D,Projections!$E4,Achievement_finalised!$E:$E,Projections!$F4,Achievement_finalised!$B:$B,Projections!$C4) -> 0 | P4: =SUMIFS(Achievement_forecast_ongoing!I:I,Achievement_forecast_ongoing!$E:$E,Projections!$E4,Achievement_forecast_ongoing!$F:$F,Projections!$F4,Achievement_forecast_ongoing!$C:$C,Projections!$C4) -> 181.0177845 | Q4: =SUMIFS(Achievement_forecast_ongoing!J:J,Achievement_forecast_ongoing!$E:$E,Projections!$E4,Achievement_forecast_ongoing!$F:$F,Projections!$F4,Achievement_forecast_ongoing!$C:$C,Projections!$C4) -> 297.2066138 | R4: =SUMIFS(Achievement_forecasts_future!I:I,Achievement_forecasts_future!$B:$B,Projections!$C4,Achievement_forecasts_future!$D:$D,Projections!$E4,Achievement_forecasts_future!$E:$E,Projections!$F4) -> 0 | S4: =SUMIFS(Achievement_forecasts_future!J:J,Achievement_forecasts_future!$B:$B,Projections!$C4,Achievement_forecasts_future!$D:$D,Projections!$E4,Achievement_forecasts_future!$E:$E,Projections!$F4) -> 0
C5: 1 | D5: All | E5: CO13a | F5: All | G5: 200 | H5: =J5/$G5*100 -> 26.7644156 | I5: =K5/$G5*100 -> 57.04297656 | J5: =N5+P5+R5 -> 53.5288312 | K5: =O5+Q5+S5 -> 114.0859531 | L5: =SUMIFS(Achievement_finalised!G:G,Achievement_finalised!$D:$D,Projections!$E5,Achievement_finalised!$E:$E,Projections!$F5,Achievement_finalised!$B:$B,Projections!$C5) -> 37.728 | M5: =$L5 -> 37.728 | N5: =$L5 -> 37.728 | O5: =$L5 -> 37.728 | P5: =SUMIFS(Achievement_forecast_ongoing!I:I,Achievement_forecast_ongoing!$E:$E,Projections!$E5,Achievement_forecast_ongoing!$F:$F,Projections!$F5,Achievement_forecast_ongoing!$C:$C,Projections!$C5) -> 15.8008312 | Q5: =SUMIFS(Achievement_forecast_ongoing!J:J,Achievement_forecast_ongoing!$E:$E,Projections!$E5,Achievement_forecast_ongoing!$F:$F,Projections!$F5,Achievement_forecast_ongoing!$C:$C,Projections!$C5) -> 76.35795313 | R5: =SUMIFS(Achievement_forecasts_future!I:I,Achievement_forecasts_future!$B:$B,Projections!$C5,Achievement_forecasts_future!$D:$D,Projections!$E5,Achievement_forecasts_future!$E:$E,Projections!$F5) -> 0 | S5: =SUMIFS(Achievement_forecasts_future!J:J,Achievement_forecasts_future!$B:$B,Projections!$C5,Achievement_forecasts_future!$D:$D,Projections!$E5,Achievement_forecasts_future!$E:$E,Projections!$F5) -> 0
C6: 1 | D6: All | E6: F | F6: All | G6: =4005006259*G48 -> 1.971544431e+10 | H6: =J6/$G6*100 -> 10.50144334 | I6: =K6/$G6*100 -> 53.14205627 | J6: =N6+P6+R6 -> 2070406214 | K6: =O6+Q6+S6 -> 1.047719251e+10 | L6: =SUMIFS(Achievement_finalised!G:G,Achievement_finalised!$D:$D,Projections!$E6,Achievement_finalised!$E:$E,Projections!$F6,Achievement_finalised!$B:$B,Projections!$C6) -> 779639295.6 | M6: =$L6 -> 779639295.6 | N6: =$L6 -> 779639295.6 | O6: =$L6 -> 779639295.6 | P6: =SUMIFS(Achievement_forecast_ongoing!I:I,Achievement_forecast_ongoing!$E:$E,Projections!$E6,Achievement_forecast_ongoing!$F:$F,Projections!$F6,Achievement_forecast_ongoing!$C:$C,Projections!$C6) -> 1183832997 | Q6: =SUMIFS(Achievement_forecast_ongoing!J:J,Achievement_forecast_ongoing!$E:$E,Projections!$E6,Achievement_forecast_ongoing!$F:$F,Projections!$F6,Achievement_forecast_ongoing!$C:$C,Projections!$C6) -> 9458768823 | R6: =SUMIFS(Achievement_forecasts_future!I:I,Achievement_forecasts_future!$B:$B,Projections!$C6,Achievement_forecasts_future!$D:$D,Projections!$E6,Achievement_forecasts_future!$E:$E,Projections!$F6) -> 106933921.2 | S6: =SUMIFS(Achievement_forecasts_future!J:J,Achievement_forecasts_future!$B:$B,Projections!$C6,Achievement_forecasts_future!$D:$D,Projections!$E6,Achievement_forecasts_future!$E:$E,Projections!$F6) -> 238784390.4
C7: 1 | D7: All | E7: 2S10 | F7: All | G7: 140 | H7: =J7/$G7*100 -> 0 | I7: =K7/$G7*100 -> 0 | J7: =N7+P7+R7 -> 0 | K7: =O7+Q7+S7 -> 0 | L7: =SUMIFS(Achievement_finalised!G:G,Achievement_finalised!$D:$D,Projections!$E7,Achievement_finalised!$E:$E,Projections!$F7,Achievement_finalised!$B:$B,Projections!$C7) -> 0 | M7: 0 | N7: =$L7 -> 0 | O7: =$L7 -> 0 | P7: =SUMIFS(Achievement_forecast_ongoing!I:I,Achievement_forecast_ongoing!$E:$E,Projections!$E7,Achievement_forecast_ongoing!$F:$F,Projections!$F7,Achievement_forecast_ongoing!$C:$C,Projections!$C7) -> 0 | Q7: =SUMIFS(Achievement_forecast_ongoing!J:J,Achievement_forecast_ongoing!$E:$E,Projections!$E7,Achievement_forecast_ongoing!$F:$F,Projections!$F7,Achievement_forecast_ongoing!$C:$C,Projections!$C7) -> 0 | R7: =SUMIFS(Achievement_forecasts_future!I:I,Achievement_forecasts_future!$B:$B,Projections!$C7,Achievement_forecasts_future!$D:$D,Projections!$E7,Achievement_forecasts_future!$E:$E,Projections!$F7) -> 0 | S7: =SUMIFS(Achievement_forecasts_future!J:J,Achievement_forecasts_future!$B:$B,Projections!$C7,Achievement_forecasts_future!$D:$D,Projections!$E7,Achievement_forecasts_future!$E:$E,Projections!$F7) -> 0
C8: 1 | D8: All | E8: 2S9 | F8: All | G8: 200 | H8: =J8/$G8*100 -> 0 | I8: =K8/$G8*100 -> 0 | J8: =N8+P8+R8 -> 0 | K8: =O8+Q8+S8 -> 0 | L8: =SUMIFS(Achievement_finalised!G:G,Achievement_finalised!$D:$D,Projections!$E8,Achievement_finalised!$E:$E,Projections!$F8,Achievement_finalised!$B:$B,Projections!$C8) -> 0 | M8: 0 | N8: =$L8 -> 0 | O8: =$L8 -> 0 | P8: =SUMIFS(Achievement_forecast_ongoing!I:I,Achievement_forecast_ongoing!$E:$E,Projections!$E8,Achievement_forecast_ongoing!$F:$F,Projections!$F8,Achievement_forecast_ongoing!$C:$C,Projections!$C8) -> 0 | Q8: =SUMIFS(Achievement_forecast_ongoing!J:J,Achievement_forecast_ongoing!$E:$E,Projections!$E8,Achievement_forecast_ongoing!$F:$F,Projections!$F8,Achievement_forecast_ongoing!$C:$C,Projections!$C8) -> 0 | R8: =SUMIFS(Achievement_forecasts_future!I:I,Achievement_forecasts_future!$B:$B,Projections!$C8,Achievement_forecasts_future!$D:$D,Projections!$E8,Achievement_forecasts_future!$E:$E,Projections!$F8) -> 0 | S8: =SUMIFS(Achievement_forecasts_future!J:J,Achievement_forecasts_future!$B:$B,Projections!$C8,Achievement_forecasts_future!$D:$D,Projections!$E8,Achievement_forecasts_future!$E:$E,Projections!$F8) -> 0
C9: 2 | D9: All | E9: CO13a | F9: Less developed | G9: 179 | H9: =J9/$G9*100 -> 30.62060221 | I9: =K9/$G9*100 -> 49.94609945 | J9: =N9+P9+R9 -> 54.81087796 | K9: =O9+Q9+S9 -> 89.40351802 | L9: =SUMIFS(Achievement_finalised!G:G,Achievement_finalised!$D:$D,Projections!$E9,Achievement_finalised!$E:$E,Projections!$F9,Achievement_finalised!$B:$B,Projections!$C9) -> 13.632 | M9: 13.632 | N9: =$L9 -> 13.632 | O9: =$L9 -> 13.632 | P9: =SUMIFS(Achievement_forecast_ongoing!I:I,Achievement_forecast_ongoing!$E:$E,Projections!$E9,Achievement_forecast_ongoing!$F:$F,Projections!$F9,Achievement_forecast_ongoing!$C:$C,Projections!$C9) -> 41.17887796 | Q9: =SUMIFS(Achievement_forecast_ongoing!J:J,Achievement_forecast_ongoing!$E:$E,Projections!$E9,Achievement_forecast_ongoing!$F:$F,Projections!$F9,Achievement_forecast_ongoing!$C:$C,Projections!$C9) -> 75.77151802 | R9: =SUMIFS(Achievement_forecasts_future!I:I,Achievement_forecasts_future!$B:$B,Projections!$C9,Achievement_forecasts_future!$D:$D,Projections!$E9,Achievement_forecasts_future!$E:$E,Projections!$F9) -> 0 | S9: =SUMIFS(Achievement_forecasts_future!J:J,Achievement_forecasts_future!$B:$B,Projections!$C9,Achievement_forecasts_future!$D:$D,Projections!$E9,Achievement_forecasts_future!$E:$E,Projections!$F9) -> 0
C10: 2 | D10: All | E10: F | F10: Less developed | G10: =1297335242*G48 -> 6386392196 | H10: =J10/$G10*100 -> 17.15838435 | I10: =K10/$G10*100 -> 40.24801876 | J10: =N10+P10+R10 -> 1095801719 | K10: =O10+Q10+S10 -> 2570396329 | L10: =SUMIFS(Achievement_finalised!G:G,Achievement_finalised!$D:$D,Projections!$E10,Achievement_finalised!$E:$E,Projections!$F10,Achievement_finalised!$B:$B,Projections!$C10) -> 305049533.6 | M10: 305049533.6 | N10: =$L10 -> 305049533.6 | O10: =$L10 -> 305049533.6 | P10: =SUMIFS(Achievement_forecast_ongoing!I:I,Achievement_forecast_ongoing!$E:$E,Projections!$E10,Achievement_forecast_ongoing!$F:$F,Projections!$F10,Achievement_forecast_ongoing!$C:$C,Projections!$C10) -> 790752185.6 | Q10: =SUMIFS(Achievement_forecast_ongoing!J:J,Achievement_forecast_ongoing!$E:$E,Projections!$E10,Achievement_forecast_ongoing!$F:$F,Projections!$F10,Achievement_forecast_ongoing!$C:$C,Projections!$C10) -> 2265346796 | R10: =SUMIFS(Achievement_forecasts_future!I:I,Achievement_forecasts_future!$B:$B,Projections!$C10,Achievement_forecasts_future!$D:$D,Projections!$E10,Achievement_forecasts_future!$E:$E,Projections!$F10) -> 0 | S10: =SUMIFS(Achievement_forecasts_future!J:J,Achievement_forecasts_future!$B:$B,Projections!$C10,Achievement_forecasts_future!$D:$D,Projections!$E10,Achievement_forecasts_future!$E:$E,Projections!$F10) -> 0
C11: 2 | D11: All | E11: 2S9 | F11: Less developed | G11: 140 | H11: =J11/$G11*100 -> 0 | I11: =K11/$G11*100 -> 0 | J11: =N11+P11+R11 -> 0 | K11: =O11+Q11+S11 -> 0 | L11: =SUMIFS(Achievement_finalised!G:G,Achievement_finalised!$D:$D,Projections!$E11,Achievement_finalised!$E:$E,Projections!$F11,Achievement_finalised!$B:$B,Projections!$C11) -> 0 | M11: 0 | N11: =$L11 -> 0 | O11: =$L11 -> 0 | P11: =SUMIFS(Achievement_forecast_ongoing!I:I,Achievement_forecast_ongoing!$E:$E,Projections!$E11,Achievement_forecast_ongoing!$F:$F,Projections!$F11,Achievement_forecast_ongoing!$C:$C,Projections!$C11) -> 0 | Q11: =SUMIFS(Achievement_forecast_ongoing!J:J,Achievement_forecast_ongoing!$E:$E,Projections!$E11,Achievement_forecast_ongoing!$F:$F,Projections!$F11,Achievement_forecast_ongoing!$C:$C,Projections!$C11) -> 0 | R11: =SUMIFS(Achievement_forecasts_future!I:I,Achievement_forecasts_future!$B:$B,Projections!$C11,Achievement_forecasts_future!$D:$D,Projections!$E11,Achievement_forecasts_future!$E:$E,Projections!$F11) -> 0 | S11: =SUMIFS(Achievement_forecasts_future!J:J,Achievement_forecasts_future!$B:$B,Projections!$C11,Achievement_forecasts_future!$D:$D,Projections!$E11,Achievement_forecasts_future!$E:$E,Projections!$F11) -> 0
C12: 3 | D12: All | E12: CO17 | F12: All | G12: 1300000 | H12: =J12/$G12*100 -> 79.77549544 | I12: =K12/$G12*100 -> 90.70053479 | J12: =N12+P12+R12 -> 1037081.441 | K12: =O12+Q12+S12 -> 1179106.952 | L12: =SUMIFS(Achievement_finalised!G:G,Achievement_finalised!$D:$D,Projections!$E12,Achievement_finalised!$E:$E,Projections!$F12,Achievement_finalised!$B:$B,Projections!$C12) -> 934132 | M12: 934132 | N12: =$L12 -> 934132 | O12: =$L12 -> 934132 | P12: =SUMIFS(Achievement_forecast_ongoing!I:I,Achievement_forecast_ongoing!$E:$E,Projections!$E12,Achievement_forecast_ongoing!$F:$F,Projections!$F12,Achievement_forecast_ongoing!$C:$C,Projections!$C12) -> 102949.4407 | Q12: =SUMIFS(Achievement_forecast_ongoing!J:J,Achievement_forecast_ongoing!$E:$E,Projections!$E12,Achievement_forecast_ongoing!$F:$F,Projections!$F12,Achievement_forecast_ongoing!$C:$C,Projections!$C12) -> 244974.9522 | R12: =SUMIFS(Achievement_forecasts_future!I:I,Achievement_forecasts_future!$B:$B,Projections!$C12,Achievement_forecasts_future!$D:$D,Projections!$E12,Achievement_forecasts_future!$E:$E,Projections!$F12) -> 0 | S12: =SUMIFS(Achievement_forecasts_future!J:J,Achievement_forecasts_future!$B:$B,Projections!$C12,Achievement_forecasts_future!$D:$D,Projections!$E12,Achievement_forecasts_future!$E:$E,Projections!$F12) -> 0
C13: 3 | D13: All | E13: CO18 | F13: All | G13: 2851330 | H13: =J13/$G13*100 -> 16.27906941 | I13: =K13/$G13*100 -> 19.66319339 | J13: =N13+P13+R13 -> 464169.9899 | K13: =O13+Q13+S13 -> 560662.5322 | L13: =SUMIFS(Achievement_finalised!G:G,Achievement_finalised!$D:$D,Projections!$E13,Achievement_finalised!$E:$E,Projections!$F13,Achievement_finalised!$B:$B,Projections!$C13) -> 332539 | M13: 332539 | N13: =$L13 -> 332539 | O13: =$L13 -> 332539 | P13: =SUMIFS(Achievement_forecast_ongoing!I:I,Achievement_forecast_ongoing!$E:$E,Projections!$E13,Achievement_forecast_ongoing!$F:$F,Projections!$F13,Achievement_forecast_ongoing!$C:$C,Projections!$C13) -> 131630.9899 | Q13: =SUMIFS(Achievement_forecast_ongoing!J:J,Achievement_forecast_ongoing!$E:$E,Projections!$E13,Achievement_forecast_ongoing!$F:$F,Projections!$F13,Achievement_forecast_ongoing!$C:$C,Projections!$C13) -> 228123.5322 | R13: =SUMIFS(Achievement_forecasts_future!I:I,Achievement_forecasts_future!$B:$B,Projections!$C13,Achievement_forecasts_future!$D:$D,Projections!$E13,Achievement_forecasts_future!$E:$E,Projections!$F13) -> 0 | S13: =SUMIFS(Achievement_forecasts_future!J:J,Achievement_forecasts_future!$B:$B,Projections!$C13,Achievement_forecasts_future!$D:$D,Projections!$E13,Achievement_forecasts_future!$E:$E,Projections!$F13) -> 0
C14: 3 | D14: All | E14: CO19 | F14: All | G14: 1938904 | H14: =J14/$G14*100 -> 29.84690899 | I14: =K14/$G14*100 -> 36.88740119 | J14: =N14+P14+R14 -> 578702.9123 | K14: =O14+Q14+S14 -> 715211.2972 | L14: =SUMIFS(Achievement_finalised!G:G,Achievement_finalised!$D:$D,Projections!$E14,Achievement_finalised!$E:$E,Projections!$F14,Achievement_finalised!$B:$B,Projections!$C14) -> 351400 | M14: 351400 | N14: =$L14 -> 351400 | O14: =$L14 -> 351400 | P14: =SUMIFS(Achievement_forecast_ongoing!I:I,Achievement_forecast_ongoing!$E:$E,Projections!$E14,Achievement_forecast_ongoing!$F:$F,Projections!$F14,Achievement_forecast_ongoing!$C:$C,Projections!$C14) -> 227302.9123 | Q14: =SUMIFS(Achievement_forecast_ongoing!J:J,Achievement_forecast_ongoing!$E:$E,Projections!$E14,Achievement_forecast_ongoing!$F:$F,Projections!$F14,Achievement_forecast_ongoing!$C:$C,Projections!$C14) -> 363811.2972 | R14: =SUMIFS(Achievement_forecasts_future!I:I,Achievement_forecasts_future!$B:$B,Projections!$C14,Achievement_forecasts_future!$D:$D,Projections!$E14,Achievement_forecasts_future!$E:$E,Projections!$F14) -> 0 | S14: =SUMIFS(Achievement_forecasts_future!J:J,Achievement_forecasts_future!$B:$B,Projections!$C14,Achievement_forecasts_future!$D:$D,Projections!$E14,Achievement_forecasts_future!$E:$E,Projections!$F14) -> 0
C15: 3 | D15: All | E15: F | F15: All | G15: =2991110336*G48 -> 1.472433885e+10 | H15: =J15/$G15*100 -> 13.41302129 | I15: =K15/$G15*100 -> 28.11505111 | J15: =N15+P15+R15 -> 1974978705 | K15: =O15+Q15+S15 -> 4139755394 | L15: =SUMIFS(Achievement_finalised!G:G,Achievement_finalised!$D:$D,Projections!$E15,Achievement_finalised!$E:$E,Projections!$F15,Achievement_finalised!$B:$B,Projections!$C15) -> 1360169667 | M15: 1360169667 | N15: =$L15 -> 1360169667 | O15: =$L15 -> 1360169667 | P15: =SUMIFS(Achievement_forecast_ongoing!I:I,Achievement_forecast_ongoing!$E:$E,Projections!$E15,Achievement_forecast_ongoing!$F:$F,Projections!$F15,Achievement_forecast_ongoing!$C:$C,Projections!$C15) -> 593873044.1 | Q15: =SUMIFS(Achievement_forecast_ongoing!J:J,Achievement_forecast_ongoing!$E:$E,Projections!$E15,Achievement_forecast_ongoing!$F:$F,Projections!$F15,Achievement_forecast_ongoing!$C:$C,Projections!$C15) -> 2734402041 | R15: =SUMIFS(Achievement_forecasts_future!I:I,Achievement_forecasts_future!$B:$B,Projections!$C15,Achievement_forecasts_future!$D:$D,Projections!$E15,Achievement_forecasts_future!$E:$E,Projections!$F15) -> 20935994.39 | S15: =SUMIFS(Achievement_forecasts_future!J:J,Achievement_forecasts_future!$B:$B,Projections!$C15,Achievement_forecasts_future!$D:$D,Projections!$E15,Achievement_forecasts_future!$E:$E,Projections!$F15) -> 45183686.38
C16: 3 | D16: All | E16: 2S34 | F16: All | G16: 1870000 | H16: =J16/$G16*100 -> 0 | I16: =K16/$G16*100 -> 0 | J16: =N16+P16+R16 -> 0 | K16: =O16+Q16+S16 -> 0 | L16: =SUMIFS(Achievement_finalised!G:G,Achievement_finalised!$D:$D,Projections!$E16,Achievement_finalised!$E:$E,Projections!$F16,Achievement_finalised!$B:$B,Projections!$C16) -> 0 | M16: 0 | N16: =$L16 -> 0 | O16: =$L16 -> 0 | P16: =SUMIFS(Achievement_forecast_ongoing!I:I,Achievement_forecast_ongoing!$E:$E,Projections!$E16,Achievement_forecast_ongoing!$F:$F,Projections!$F16,Achievement_forecast_ongoing!$C:$C,Projections!$C16) -> 0 | Q16: =SUMIFS(Achievement_forecast_ongoing!J:J,Achievement_forecast_ongoing!$E:$E,Projections!$E16,Achievement_forecast_ongoing!$F:$F,Projections!$F16,Achievement_forecast_ongoing!$C:$C,Projections!$C16) -> 0 | R16: =SUMIFS(Achievement_forecasts_future!I:I,Achievement_forecasts_future!$B:$B,Projections!$C16,Achievement_forecasts_future!$D:$D,Projections!$E16,Achievement_forecasts_future!$E:$E,Projections!$F16) -> 0 | S16: =SUMIFS(Achievement_forecasts_future!J:J,Achievement_forecasts_future!$B:$B,Projections!$C16,Achievement_forecasts_future!$D:$D,Projections!$E16,Achievement_forecasts_future!$E:$E,Projections!$F16) -> 0
C17: 3 | D17: All | E17: 2S35 | F17: All | G17: 3300000 | H17: =J17/$G17*100 -> 0 | I17: =K17/$G17*100 -> 0 | J17: =N17+P17+R17 -> 0 | K17: =O17+Q17+S17 -> 0 | L17: =SUMIFS(Achievement_finalised!G:G,Achievement_finalised!$D:$D,Projections!$E17,Achievement_finalised!$E:$E,Projections!$F17,Achievement_finalised!$B:$B,Projections!$C17) -> 0 | M17: 0 | N17: =$L17 -> 0 | O17: =$L17 -> 0 | P17: =SUMIFS(Achievement_forecast_ongoing!I:I,Achievement_forecast_ongoing!$E:$E,Projections!$E17,Achievement_forecast_ongoing!$F:$F,Projections!$F17,Achievement_forecast_ongoing!$C:$C,Projections!$C17) -> 0 | Q17: =SUMIFS(Achievement_forecast_ongoing!J:J,Achievement_forecast_ongoing!$E:$E,Projections!$E17,Achievement_forecast_ongoing!$F:$F,Projections!$F17,Achievement_forecast_ongoing!$C:$C,Projections!$C17) -> 0 | R17: =SUMIFS(Achievement_forecasts_future!I:I,Achievement_forecasts_future!$B:$B,Projections!$C17,Achievement_forecasts_future!$D:$D,Projections!$E17,Achievement_forecasts_future!$E:$E,Projections!$F17) -> 0 | S17: =SUMIFS(Achievement_forecasts_future!J:J,Achievement_forecasts_future!$B:$B,Projections!$C17,Achievement_forecasts_future!$D:$D,Projections!$E17,Achievement_forecasts_future!$E:$E,Projections!$F17) -> 0
C18: 4 | D18: All | E18: CO23 | F18: Less developed | G18: 48686 | H18: =J18/$G18*100 -> 9.673889888 | I18: =K18/$G18*100 -> 105.9941439 | J18: =N18+P18+R18 -> 4709.830031 | K18: =O18+Q18+S18 -> 51604.30892 | L18: =SUMIFS(Achievement_finalised!G:G,Achievement_finalised!$D:$D,Projections!$E18,Achievement_finalised!$E:$E,Projections!$F18,Achievement_finalised!$B:$B,Projections!$C18) -> 46 | M18: 46 | N18: =$L18 -> 46 | O18: =$L18 -> 46 | P18: =SUMIFS(Achievement_forecast_ongoing!I:I,Achievement_forecast_ongoing!$E:$E,Projections!$E18,Achievement_forecast_ongoing!$F:$F,Projections!$F18,Achievement_forecast_ongoing!$C:$C,Projections!$C18) -> 4663.830031 | Q18: =SUMIFS(Achievement_forecast_ongoing!J:J,Achievement_forecast_ongoing!$E:$E,Projections!$E18,Achievement_forecast_ongoing!$F:$F,Projections!$F18,Achievement_forecast_ongoing!$C:$C,Projections!$C18) -> 51558.30892 | R18: =SUMIFS(Achievement_forecasts_future!I:I,Achievement_forecasts_future!$B:$B,Projections!$C18,Achievement_forecasts_future!$D:$D,Projections!$E18,Achievement_forecasts_future!$E:$E,Projections!$F18) -> 0 | S18: =SUMIFS(Achievement_forecasts_future!J:J,Achievement_forecasts_future!$B:$B,Projections!$C18,Achievement_forecasts_future!$D:$D,Projections!$E18,Achievement_forecasts_future!$E:$E,Projections!$F18) -> 0
C19: 4 | D19: All | E19: F | F19: Less developed | G19: =297346684*G48 -> 1463748521 | H19: =J19/$G19*100 -> 28.79944747 | I19: =K19/$G19*100 -> 40.66972723 | J19: =N19+P19+R19 -> 421551486.4 | K19: =O19+Q19+S19 -> 595302530.9 | L19: =SUMIFS(Achievement_finalised!G:G,Achievement_finalised!$D:$D,Projections!$E19,Achievement_finalised!$E:$E,Projections!$F19,Achievement_finalised!$B:$B,Projections!$C19) -> 169252418.5 | M19: 169252418.5 | N19: =$L19 -> 169252418.5 | O19: =$L19 -> 169252418.5 | P19: =SUMIFS(Achievement_forecast_ongoing!I:I,Achievement_forecast_ongoing!$E:$E,Projections!$E19,Achievement_forecast_ongoing!$F:$F,Projections!$F19,Achievement_forecast_ongoing!$C:$C,Projections!$C19) -> 252299068 | Q19: =SUMIFS(Achievement_forecast_ongoing!J:J,Achievement_forecast_ongoing!$E:$E,Projections!$E19,Achievement_forecast_ongoing!$F:$F,Projections!$F19,Achievement_forecast_ongoing!$C:$C,Projections!$C19) -> 426050112.5 | R19: =SUMIFS(Achievement_forecasts_future!I:I,Achievement_forecasts_future!$B:$B,Projections!$C19,Achievement_forecasts_future!$D:$D,Projections!$E19,Achievement_forecasts_future!$E:$E,Projections!$F19) -> 0 | S19: =SUMIFS(Achievement_forecasts_future!J:J,Achievement_forecasts_future!$B:$B,Projections!$C19,Achievement_forecasts_future!$D:$D,Projections!$E19,Achievement_forecasts_future!$E:$E,Projections!$F19) -> 0
C20: 4 | D20: All | E20: 2S45 | F20: Less developed | G20: 70 | H20: =J20/$G20*100 -> 0 | I20: =K20/$G20*100 -> 0 | J20: =N20+P20+R20 -> 0 | K20: =O20+Q20+S20 -> 0 | L20: =SUMIFS(Achievement_finalised!G:G,Achievement_finalised!$D:$D,Projections!$E20,Achievement_finalised!$E:$E,Projections!$F20,Achievement_finalised!$B:$B,Projections!$C20) -> 0 | M20: 0 | N20: =$L20 -> 0 | O20: =$L20 -> 0 | P20: =SUMIFS(Achievement_forecast_ongoing!I:I,Achievement_forecast_ongoing!$E:$E,Projections!$E20,Achievement_forecast_ongoing!$F:$F,Projections!$F20,Achievement_forecast_ongoing!$C:$C,Projections!$C20) -> 0 | Q20: =SUMIFS(Achievement_forecast_ongoing!J:J,Achievement_forecast_ongoing!$E:$E,Projections!$E20,Achievement_forecast_ongoing!$F:$F,Projections!$F20,Achievement_forecast_ongoing!$C:$C,Projections!$C20) -> 0 | R20: =SUMIFS(Achievement_forecasts_future!I:I,Achievement_forecasts_future!$B:$B,Projections!$C20,Achievement_forecasts_future!$D:$D,Projections!$E20,Achievement_forecasts_future!$E:$E,Projections!$F20) -> 0 | S20: =SUMIFS(Achievement_forecasts_future!J:J,Achievement_forecasts_future!$B:$B,Projections!$C20,Achievement_forecasts_future!$D:$D,Projections!$E20,Achievement_forecasts_future!$E:$E,Projections!$F20) -> 0
C21: 4 | D21: All | E21: 2S46 | F21: Less developed | G21: 60000 | H21: =J21/$G21*100 -> 0 | I21: =K21/$G21*100 -> 0 | J21: =N21+P21+R21 -> 0 | K21: =O21+Q21+S21 -> 0 | L21: =SUMIFS(Achievement_finalised!G:G,Achievement_finalised!$D:$D,Projections!$E21,Achievement_finalised!$E:$E,Projections!$F21,Achievement_finalised!$B:$B,Projections!$C21) -> 0 | M21: 0 | N21: =$L21 -> 0 | O21: =$L21 -> 0 | P21: =SUMIFS(Achievement_forecast_ongoing!I:I,Achievement_forecast_ongoing!$E:$E,Projections!$E21,Achievement_forecast_ongoing!$F:$F,Projections!$F21,Achievement_forecast_ongoing!$C:$C,Projections!$C21) -> 0 | Q21: =SUMIFS(Achievement_forecast_ongoing!J:J,Achievement_forecast_ongoing!$E:$E,Projections!$E21,Achievement_forecast_ongoing!$F:$F,Projections!$F21,Achievement_forecast_ongoing!$C:$C,Projections!$C21) -> 0 | R21: =SUMIFS(Achievement_forecasts_future!I:I,Achievement_forecasts_future!$B:$B,Projections!$C21,Achievement_forecasts_future!$D:$D,Projections!$E21,Achievement_forecasts_future!$E:$E,Projections!$F21) -> 0 | S21: =SUMIFS(Achievement_forecasts_future!J:J,Achievement_forecasts_future!$B:$B,Projections!$C21,Achievement_forecasts_future!$D:$D,Projections!$E21,Achievement_forecasts_future!$E:$E,Projections!$F21) -> 0
C22: 4 | D22: All | E22: 2S38 | F22: Less developed | G22: 57 | H22: =J22/$G22*100 -> 32.56117843 | I22: =K22/$G22*100 -> 32.56117843 | J22: =N22+P22+R22 -> 18.5598717 | K22: =O22+Q22+S22 -> 18.5598717 | L22: =SUMIFS(Achievement_finalised!G:G,Achievement_finalised!$D:$D,Projections!$E22,Achievement_finalised!$E:$E,Projections!$F22,Achievement_finalised!$B:$B,Projections!$C22) -> 6 | M22: 6 | N22: =$L22 -> 6 | O22: =$L22 -> 6 | P22: =SUMIFS(Achievement_forecast_ongoing!I:I,Achievement_forecast_ongoing!$E:$E,Projections!$E22,Achievement_forecast_ongoing!$F:$F,Projections!$F22,Achievement_forecast_ongoing!$C:$C,Projections!$C22) -> 12.5598717 | Q22: =SUMIFS(Achievement_forecast_ongoing!J:J,Achievement_forecast_ongoing!$E:$E,Projections!$E22,Achievement_forecast_ongoing!$F:$F,Projections!$F22,Achievement_forecast_ongoing!$C:$C,Projections!$C22) -> 12.5598717 | R22: =SUMIFS(Achievement_forecasts_future!I:I,Achievement_forecasts_future!$B:$B,Projections!$C22,Achievement_forecasts_future!$D:$D,Projections!$E22,Achievement_forecasts_future!$E:$E,Projections!$F22) -> 0 | S22: =SUMIFS(Achievement_forecasts_future!J:J,Achievement_forecasts_future!$B:$B,Projections!$C22,Achievement_forecasts_future!$D:$D,Projections!$E22,Achievement_forecasts_future!$E:$E,Projections!$F22) -> 0
C23: 5 | D23: All | E23: CO20 | F23: All | G23: 4200000 | H23: =J23/$G23*100 -> 0 | I23: =K23/$G23*100 -> 0 | J23: =N23+P23+R23 -> 0 | K23: =O23+Q23+S23 -> 0 | L23: =SUMIFS(Achievement_finalised!G:G,Achievement_finalised!$D:$D,Projections!$E23,Achievement_finalised!$E:$E,Projections!$F23,Achievement_finalised!$B:$B,Projections!$C23) -> 0 | M23: 0 | N23: =$L23 -> 0 | O23: =$L23 -> 0 | P23: =SUMIFS(Achievement_forecast_ongoing!I:I,Achievement_forecast_ongoing!$E:$E,Projections!$E23,Achievement_forecast_ongoing!$F:$F,Projections!$F23,Achievement_forecast_ongoing!$C:$C,Projections!$C23) -> 0 | Q23: =SUMIFS(Achievement_forecast_ongoing!J:J,Achievement_forecast_ongoing!$E:$E,Projections!$E23,Achievement_forecast_ongoing!$F:$F,Projections!$F23,Achievement_forecast_ongoing!$C:$C,Projections!$C23) -> 0 | R23: =SUMIFS(Achievement_forecasts_future!I:I,Achievement_forecasts_future!$B:$B,Projections!$C23,Achievement_forecasts_future!$D:$D,Projections!$E23,Achievement_forecasts_future!$E:$E,Projections!$F23) -> 0 | S23: =SUMIFS(Achievement_forecasts_future!J:J,Achievement_forecasts_future!$B:$B,Projections!$C23,Achievement_forecasts_future!$D:$D,Projections!$E23,Achievement_forecasts_future!$E:$E,Projections!$F23) -> 0
C24: 5 | D24: All | E24: F | F24: All | G24: =574468085*G48 -> 2827934042 | H24: =J24/$G24*100 -> 22.65403929 | I24: =K24/$G24*100 -> 169.6294356 | J24: =N24+P24+R24 -> 640641288.9 | K24: =O24+Q24+S24 -> 4797008555 | L24: =SUMIFS(Achievement_finalised!G:G,Achievement_finalised!$D:$D,Projections!$E24,Achievement_finalised!$E:$E,Projections!$F24,Achievement_finalised!$B:$B,Projections!$C24) -> 185753164.2 | M24: 185753164.2 | N24: =$L24 -> 185753164.2 | O24: =$L24 -> 185753164.2 | P24: =SUMIFS(Achievement_forecast_ongoing!I:I,Achievement_forecast_ongoing!$E:$E,Projections!$E24,Achievement_forecast_ongoing!$F:$F,Projections!$F24,Achievement_forecast_ongoing!$C:$C,Projections!$C24) -> 288198741 | Q24: =SUMIFS(Achievement_forecast_ongoing!J:J,Achievement_forecast_ongoing!$E:$E,Projections!$E24,Achievement_forecast_ongoing!$F:$F,Projections!$F24,Achievement_forecast_ongoing!$C:$C,Projections!$C24) -> 4171575965 | R24: =SUMIFS(Achievement_forecasts_future!I:I,Achievement_forecasts_future!$B:$B,Projections!$C24,Achievement_forecasts_future!$D:$D,Projections!$E24,Achievement_forecasts_future!$E:$E,Projections!$F24) -> 166689383.8 | S24: =SUMIFS(Achievement_forecasts_future!J:J,Achievement_forecasts_future!$B:$B,Projections!$C24,Achievement_forecasts_future!$D:$D,Projections!$E24,Achievement_forecasts_future!$E:$E,Projections!$F24) -> 439679425.1
C25: 5 | D25: All | E25: 2S51 | F25: All | G25: 120000 | H25: =J25/$G25*100 -> 0 | I25: =K25/$G25*100 -> 0 | J25: =N25+P25+R25 -> 0 | K25: =O25+Q25+S25 -> 0 | L25: =SUMIFS(Achievement_finalised!G:G,Achievement_finalised!$D:$D,Projections!$E25,Achievement_finalised!$E:$E,Projections!$F25,Achievement_finalised!$B:$B,Projections!$C25) -> 0 | M25: 0 | N25: =$L25 -> 0 | O25: =$L25 -> 0 | P25: =SUMIFS(Achievement_forecast_ongoing!I:I,Achievement_forecast_ongoing!$E:$E,Projections!$E25,Achievement_forecast_ongoing!$F:$F,Projections!$F25,Achievement_forecast_ongoing!$C:$C,Projections!$C25) -> 0 | Q25: =SUMIFS(Achievement_forecast_ongoing!J:J,Achievement_forecast_ongoing!$E:$E,Projections!$E25,Achievement_forecast_ongoing!$F:$F,Projections!$F25,Achievement_forecast_ongoing!$C:$C,Projections!$C25) -> 0 | R25: =SUMIFS(Achievement_forecasts_future!I:I,Achievement_forecasts_future!$B:$B,Projections!$C25,Achievement_forecasts_future!$D:$D,Projections!$E25,Achievement_forecasts_future!$E:$E,Projections!$F25) -> 0 | S25: =SUMIFS(Achievement_forecasts_future!J:J,Achievement_forecasts_future!$B:$B,Projections!$C25,Achievement_forecasts_future!$D:$D,Projections!$E25,Achievement_forecasts_future!$E:$E,Projections!$F25) -> 0
C26: 5 | D26: All | E26: 2S52 | F26: All | G26: 20 | H26: =J26/$G26*100 -> 0 | I26: =K26/$G26*100 -> 0 | J26: =N26+P26+R26 -> 0 | K26: =O26+Q26+S26 -> 0 | L26: =SUMIFS(Achievement_finalised!G:G,Achievement_finalised!$D:$D,Projections!$E26,Achievement_finalised!$E:$E,Projections!$F26,Achievement_finalised!$B:$B,Projections!$C26) -> 0 | M26: 0 | N26: =$L26 -> 0 | O26: =$L26 -> 0 | P26: =SUMIFS(Achievement_forecast_ongoing!I:I,Achievement_forecast_ongoing!$E:$E,Projections!$E26,Achievement_forecast_ongoing!$F:$F,Projections!$F26,Achievement_forecast_ongoing!$C:$C,Projections!$C26) -> 0 | Q26: =SUMIFS(Achievement_forecast_ongoing!J:J,Achievement_forecast_ongoing!$E:$E,Projections!$E26,Achievement_forecast_ongoing!$F:$F,Projections!$F26,Achievement_forecast_ongoing!$C:$C,Projections!$C26) -> 0 | R26: =SUMIFS(Achievement_forecasts_future!I:I,Achievement_forecasts_future!$B:$B,Projections!$C26,Achievement_forecasts_future!$D:$D,Projections!$E26,Achievement_forecasts_future!$E:$E,Projections!$F26) -> 0 | S26: =SUMIFS(Achievement_forecasts_future!J:J,Achievement_forecasts_future!$B:$B,Projections!$C26,Achievement_forecasts_future!$D:$D,Projections!$E26,Achievement_forecasts_future!$E:$E,Projections!$F26) -> 0
C27: 5 | D27: All | E27: 2S48 | F27: All | G27: 20 | H27: =J27/$G27*100 -> 0 | I27: =K27/$G27*100 -> 72.75174642 | J27: =N27+P27+R27 -> 0 | K27: =O27+Q27+S27 -> 14.55034928 | L27: =SUMIFS(Achievement_finalised!G:G,Achievement_finalised!$D:$D,Projections!$E27,Achievement_finalised!$E:$E,Projections!$F27,Achievement_finalised!$B:$B,Projections!$C27) -> 0 | M27: 0 | N27: =$L27 -> 0 | O27: =$L27 -> 0 | P27: =SUMIFS(Achievement_forecast_ongoing!I:I,Achievement_forecast_ongoing!$E:$E,Projections!$E27,Achievement_forecast_ongoing!$F:$F,Projections!$F27,Achievement_forecast_ongoing!$C:$C,Projections!$C27) -> 0 | Q27: =SUMIFS(Achievement_forecast_ongoing!J:J,Achievement_forecast_ongoing!$E:$E,Projections!$E27,Achievement_forecast_ongoing!$F:$F,Projections!$F27,Achievement_forecast_ongoing!$C:$C,Projections!$C27) -> 14.55034928 | R27: =SUMIFS(Achievement_forecasts_future!I:I,Achievement_forecasts_future!$B:$B,Projections!$C27,Achievement_forecasts_future!$D:$D,Projections!$E27,Achievement_forecasts_future!$E:$E,Projections!$F27) -> 0 | S27: =SUMIFS(Achievement_forecasts_future!J:J,Achievement_forecasts_future!$B:$B,Projections!$C27,Achievement_forecasts_future!$D:$D,Projections!$E27,Achievement_forecasts_future!$E:$E,Projections!$F27) -> 0
C28: 6 | D28: All | E28: CO30 | F28: Less developed | G28: 26 | H28: =J28/$G28*100 -> 0 | I28: =K28/$G28*100 -> 0 | J28: =N28+P28+R28 -> 0 | K28: =O28+Q28+S28 -> 0 | L28: =SUMIFS(Achievement_finalised!G:G,Achievement_finalised!$D:$D,Projections!$E28,Achievement_finalised!$E:$E,Projections!$F28,Achievement_finalised!$B:$B,Projections!$C28) -> 0 | M28: 0 | N28: =$L28 -> 0 | O28: =$L28 -> 0 | P28: =SUMIFS(Achievement_forecast_ongoing!I:I,Achievement_forecast_ongoing!$E:$E,Projections!$E28,Achievement_forecast_ongoing!$F:$F,Projections!$F28,Achievement_forecast_ongoing!$C:$C,Projections!$C28) -> 0 | Q28: =SUMIFS(Achievement_forecast_ongoing!J:J,Achievement_forecast_ongoing!$E:$E,Projections!$E28,Achievement_forecast_ongoing!$F:$F,Projections!$F28,Achievement_forecast_ongoing!$C:$C,Projections!$C28) -> 0 | R28: =SUMIFS(Achievement_forecasts_future!I:I,Achievement_forecasts_future!$B:$B,Projections!$C28,Achievement_forecasts_future!$D:$D,Projections!$E28,Achievement_forecasts_future!$E:$E,Projections!$F28) -> 0 | S28: =SUMIFS(Achievement_forecasts_future!J:J,Achievement_forecasts_future!$B:$B,Projections!$C28,Achievement_forecasts_future!$D:$D,Projections!$E28,Achievement_forecasts_future!$E:$E,Projections!$F28) -> 0
C29: 6 | D29: All | E29: F | F29: Less developed | G29: =124105883*G48 -> 610936030.2 | H29: =J29/$G29*100 -> 17.17557286 | I29: =K29/$G29*100 -> 17.17557286 | J29: =N29+P29+R29 -> 104931763 | K29: =O29+Q29+S29 -> 104931763 | L29: =SUMIFS(Achievement_finalised!G:G,Achievement_finalised!$D:$D,Projections!$E29,Achievement_finalised!$E:$E,Projections!$F29,Achievement_finalised!$B:$B,Projections!$C29) -> 28882327.49 | M29: 28882327.49 | N29: =$L29 -> 28882327.49 | O29: =$L29 -> 28882327.49 | P29: =SUMIFS(Achievement_forecast_ongoing!I:I,Achievement_forecast_ongoing!$E:$E,Projections!$E29,Achievement_forecast_ongoing!$F:$F,Projections!$F29,Achievement_forecast_ongoing!$C:$C,Projections!$C29) -> 76049435.49 | Q29: =SUMIFS(Achievement_forecast_ongoing!J:J,Achievement_forecast_ongoing!$E:$E,Projections!$E29,Achievement_forecast_ongoing!$F:$F,Projections!$F29,Achievement_forecast_ongoing!$C:$C,Projections!$C29) -> 76049435.49 | R29: =SUMIFS(Achievement_forecasts_future!I:I,Achievement_forecasts_future!$B:$B,Projections!$C29,Achievement_forecasts_future!$D:$D,Projections!$E29,Achievement_forecasts_future!$E:$E,Projections!$F29) -> 0 | S29: =SUMIFS(Achievement_forecasts_future!J:J,Achievement_forecasts_future!$B:$B,Projections!$C29,Achievement_forecasts_future!$D:$D,Projections!$E29,Achievement_forecasts_future!$E:$E,Projections!$F29) -> 0
C30: 6 | D30: All | E30: 2S58 | F30: Less developed | G30: 20 | H30: =J30/$G30*100 -> 0 | I30: =K30/$G30*100 -> 0 | J30: =N30+P30+R30 -> 0 | K30: =O30+Q30+S30 -> 0 | L30: =SUMIFS(Achievement_finalised!G:G,Achievement_finalised!$D:$D,Projections!$E30,Achievement_finalised!$E:$E,Projections!$F30,Achievement_finalised!$B:$B,Projections!$C30) -> 0 | M30: 0 | N30: =$L30 -> 0 | O30: =$L30 -> 0 | P30: =SUMIFS(Achievement_forecast_ongoing!I:I,Achievement_forecast_ongoing!$E:$E,Projections!$E30,Achievement_forecast_ongoing!$F:$F,Projections!$F30,Achievement_forecast_ongoing!$C:$C,Projections!$C30) -> 0 | Q30: =SUMIFS(Achievement_forecast_ongoing!J:J,Achievement_forecast_ongoing!$E:$E,Projections!$E30,Achievement_forecast_ongoing!$F:$F,Projections!$F30,Achievement_forecast_ongoing!$C:$C,Projections!$C30) -> 0 | R30: =SUMIFS(Achievement_forecasts_future!I:I,Achievement_forecasts_future!$B:$B,Projections!$C30,Achievement_forecasts_future!$D:$D,Projections!$E30,Achievement_forecasts_future!$E:$E,Projections!$F30) -> 0 | S30: =SUMIFS(Achievement_forecasts_future!J:J,Achievement_forecasts_future!$B:$B,Projections!$C30,Achievement_forecasts_future!$D:$D,Projections!$E30,Achievement_forecasts_future!$E:$E,Projections!$F30) -> 0
C31: 6 | D31: All | E31: 2S59 | F31: Less developed | G31: 60 | H31: =J31/$G31*100 -> 0 | I31: =K31/$G31*100 -> 0 | J31: =N31+P31+R31 -> 0 | K31: =O31+Q31+S31 -> 0 | L31: =SUMIFS(Achievement_finalised!G:G,Achievement_finalised!$D:$D,Projections!$E31,Achievement_finalised!$E:$E,Projections!$F31,Achievement_finalised!$B:$B,Projections!$C31) -> 0 | M31: 0 | N31: =$L31 -> 0 | O31: =$L31 -> 0 | P31: =SUMIFS(Achievement_forecast_ongoing!I:I,Achievement_forecast_ongoing!$E:$E,Projections!$E31,Achievement_forecast_ongoing!$F:$F,Projections!$F31,Achievement_forecast_ongoing!$C:$C,Projections!$C31) -> 0 | Q31: =SUMIFS(Achievement_forecast_ongoing!J:J,Achievement_forecast_ongoing!$E:$E,Projections!$E31,Achievement_forecast_ongoing!$F:$F,Projections!$F31,Achievement_forecast_ongoing!$C:$C,Projections!$C31) -> 0 | R31: =SUMIFS(Achievement_forecasts_future!I:I,Achievement_forecasts_future!$B:$B,Projections!$C31,Achievement_forecasts_future!$D:$D,Projections!$E31,Achievement_forecasts_future!$E:$E,Projections!$F31) -> 0 | S31: =SUMIFS(Achievement_forecasts_future!J:J,Achievement_forecasts_future!$B:$B,Projections!$C31,Achievement_forecasts_future!$D:$D,Projections!$E31,Achievement_forecasts_future!$E:$E,Projections!$F31) -> 0
C32: 6 | D32: All | E32: 2S60 | F32: Less developed | G32: 50 | H32: =J32/$G32*100 -> 0 | I32: =K32/$G32*100 -> 0 | J32: =N32+P32+R32 -> 0 | K32: =O32+Q32+S32 -> 0 | L32: =SUMIFS(Achievement_finalised!G:G,Achievement_finalised!$D:$D,Projections!$E32,Achievement_finalised!$E:$E,Projections!$F32,Achievement_finalised!$B:$B,Projections!$C32) -> 0 | M32: 0 | N32: =$L32 -> 0 | O32: =$L32 -> 0 | P32: =SUMIFS(Achievement_forecast_ongoing!I:I,Achievement_forecast_ongoing!$E:$E,Projections!$E32,Achievement_forecast_ongoing!$F:$F,Projections!$F32,Achievement_forecast_ongoing!$C:$C,Projections!$C32) -> 0 | Q32: =SUMIFS(Achievement_forecast_ongoing!J:J,Achievement_forecast_ongoing!$E:$E,Projections!$E32,Achievement_forecast_ongoing!$F:$F,Projections!$F32,Achievement_forecast_ongoing!$C:$C,Projections!$C32) -> 0 | R32: =SUMIFS(Achievement_forecasts_future!I:I,Achievement_forecasts_future!$B:$B,Projections!$C32,Achievement_forecasts_future!$D:$D,Projections!$E32,Achievement_forecasts_future!$E:$E,Projections!$F32) -> 0 | S32: =SUMIFS(Achievement_forecasts_future!J:J,Achievement_forecasts_future!$B:$B,Projections!$C32,Achievement_forecasts_future!$D:$D,Projections!$E32,Achievement_forecasts_future!$E:$E,Projections!$F32) -> 0
C33: 7 | D33: All | E33: F | F33: Less developed | G33: =151309262*G48 -> 744850104 | H33: =J33/$G33*100 -> 50.7745784 | I33: =K33/$G33*100 -> 52.54970593 | J33: =N33+P33+R33 -> 378194500.1 | K33: =O33+Q33+S33 -> 391416539.3 | L33: =SUMIFS(Achievement_finalised!G:G,Achievement_finalised!$D:$D,Projections!$E33,Achievement_finalised!$E:$E,Projections!$F33,Achievement_finalised!$B:$B,Projections!$C33) -> 147386220.6 | M33: 147386220.6 | N33: =$L33 -> 147386220.6 | O33: =$L33 -> 147386220.6 | P33: =SUMIFS(Achievement_forecast_ongoing!I:I,Achievement_forecast_ongoing!$E:$E,Projections!$E33,Achievement_forecast_ongoing!$F:$F,Projections!$F33,Achievement_forecast_ongoing!$C:$C,Projections!$C33) -> 227684096.8 | Q33: =SUMIFS(Achievement_forecast_ongoing!J:J,Achievement_forecast_ongoing!$E:$E,Projections!$E33,Achievement_forecast_ongoing!$F:$F,Projections!$F33,Achievement_forecast_ongoing!$C:$C,Projections!$C33) -> 227684096.8 | R33: =SUMIFS(Achievement_forecasts_future!I:I,Achievement_forecasts_future!$B:$B,Projections!$C33,Achievement_forecasts_future!$D:$D,Projections!$E33,Achievement_forecasts_future!$E:$E,Projections!$F33) -> 3124182.639 | S33: =SUMIFS(Achievement_forecasts_future!J:J,Achievement_forecasts_future!$B:$B,Projections!$C33,Achievement_forecasts_future!$D:$D,Projections!$E33,Achievement_forecasts_future!$E:$E,Projections!$F33) -> 16346221.84
C34: 7 | D34: All | E34: F | F34: More developed | G34: =117647060*G48 -> 579141182.3 | H34: =J34/$G34*100 -> 14.98205922 | I34: =K34/$G34*100 -> 15.80136458 | J34: =N34+P34+R34 -> 86767274.88 | K34: =O34+Q34+S34 -> 91512209.62 | L34: =SUMIFS(Achievement_finalised!G:G,Achievement_finalised!$D:$D,Projections!$E34,Achievement_finalised!$E:$E,Projections!$F34,Achievement_finalised!$B:$B,Projections!$C34) -> 0 | M34: 0 | N34: =$L34 -> 0 | O34: =$L34 -> 0 | P34: =SUMIFS(Achievement_forecast_ongoing!I:I,Achievement_forecast_ongoing!$E:$E,Projections!$E34,Achievement_forecast_ongoing!$F:$F,Projections!$F34,Achievement_forecast_ongoing!$C:$C,Projections!$C34) -> 85646113.27 | Q34: =SUMIFS(Achievement_forecast_ongoing!J:J,Achievement_forecast_ongoing!$E:$E,Projections!$E34,Achievement_forecast_ongoing!$F:$F,Projections!$F34,Achievement_forecast_ongoing!$C:$C,Projections!$C34) -> 85646113.27 | R34: =SUMIFS(Achievement_forecasts_future!I:I,Achievement_forecasts_future!$B:$B,Projections!$C34,Achievement_forecasts_future!$D:$D,Projections!$E34,Achievement_forecasts_future!$E:$E,Projections!$F34) -> 1121161.609 | S34: =SUMIFS(Achievement_forecasts_future!J:J,Achievement_forecasts_future!$B:$B,Projections!$C34,Achievement_forecasts_future!$D:$D,Projections!$E34,Achievement_forecasts_future!$E:$E,Projections!$F34) -> 5866096.354
C35: 7 | D35: All | E35: 2S62 | F35: Less developed | G35: 210 | H35: =J35/$G35*100 -> 42.63415639 | I35: =K35/$G35*100 -> 42.63415639 | J35: =N35+P35+R35 -> 89.53172841 | K35: =O35+Q35+S35 -> 89.53172841 | L35: =SUMIFS(Achievement_finalised!G:G,Achievement_finalised!$D:$D,Projections!$E35,Achievement_finalised!$E:$E,Projections!$F35,Achievement_finalised!$B:$B,Projections!$C35) -> 41.312 | M35: 41.312 | N35: =$L35 -> 41.312 | O35: =$L35 -> 41.312 | P35: =SUMIFS(Achievement_forecast_ongoing!I:I,Achievement_forecast_ongoing!$E:$E,Projections!$E35,Achievement_forecast_ongoing!$F:$F,Projections!$F35,Achievement_forecast_ongoing!$C:$C,Projections!$C35) -> 48.21972841 | Q35: =SUMIFS(Achievement_forecast_ongoing!J:J,Achievement_forecast_ongoing!$E:$E,Projections!$E35,Achievement_forecast_ongoing!$F:$F,Projections!$F35,Achievement_forecast_ongoing!$C:$C,Projections!$C35) -> 48.21972841 | R35: =SUMIFS(Achievement_forecasts_future!I:I,Achievement_forecasts_future!$B:$B,Projections!$C35,Achievement_forecasts_future!$D:$D,Projections!$E35,Achievement_forecasts_future!$E:$E,Projections!$F35) -> 0 | S35: =SUMIFS(Achievement_forecasts_future!J:J,Achievement_forecasts_future!$B:$B,Projections!$C35,Achievement_forecasts_future!$D:$D,Projections!$E35,Achievement_forecasts_future!$E:$E,Projections!$F35) -> 0
C36: 7 | D36: All | E36: 2S62 | F36: More developed | G36: 133 | H36: =J36/$G36*100 -> 0 | I36: =K36/$G36*100 -> 0 | J36: =N36+P36+R36 -> 0 | K36: =O36+Q36+S36 -> 0 | L36: =SUMIFS(Achievement_finalised!G:G,Achievement_finalised!$D:$D,Projections!$E36,Achievement_finalised!$E:$E,Projections!$F36,Achievement_finalised!$B:$B,Projections!$C36) -> 0 | M36: 0 | N36: =$L36 -> 0 | O36: =$L36 -> 0 | P36: =SUMIFS(Achievement_forecast_ongoing!I:I,Achievement_forecast_ongoing!$E:$E,Projections!$E36,Achievement_forecast_ongoing!$F:$F,Projections!$F36,Achievement_forecast_ongoing!$C:$C,Projections!$C36) -> 0 | Q36: =SUMIFS(Achievement_forecast_ongoing!J:J,Achievement_forecast_ongoing!$E:$E,Projections!$E36,Achievement_forecast_ongoing!$F:$F,Projections!$F36,Achievement_forecast_ongoing!$C:$C,Projections!$C36) -> 0 | R36: =SUMIFS(Achievement_forecasts_future!I:I,Achievement_forecasts_future!$B:$B,Projections!$C36,Achievement_forecasts_future!$D:$D,Projections!$E36,Achievement_forecasts_future!$E:$E,Projections!$F36) -> 0 | S36: =SUMIFS(Achievement_forecasts_future!J:J,Achievement_forecasts_future!$B:$B,Projections!$C36,Achievement_forecasts_future!$D:$D,Projections!$E36,Achievement_forecasts_future!$E:$E,Projections!$F36) -> 0
C37: 7 | D37: All | E37: 2S64 | F37: All | G37: 200 | H37: =J37/$G37*100 -> 0 | I37: =K37/$G37*100 -> 0 | J37: =N37+P37+R37 -> 0 | K37: =O37+Q37+S37 -> 0 | L37: =SUMIFS(Achievement_finalised!G:G,Achievement_finalised!$D:$D,Projections!$E37,Achievement_finalised!$E:$E,Projections!$F37,Achievement_finalised!$B:$B,Projections!$C37) -> 0 | M37: 0 | N37: =$L37 -> 0 | O37: =$L37 -> 0 | P37: =SUMIFS(Achievement_forecast_ongoing!I:I,Achievement_forecast_ongoing!$E:$E,Projections!$E37,Achievement_forecast_ongoing!$F:$F,Projections!$F37,Achievement_forecast_ongoing!$C:$C,Projections!$C37) -> 0 | Q37: =SUMIFS(Achievement_forecast_ongoing!J:J,Achievement_forecast_ongoing!$E:$E,Projections!$E37,Achievement_forecast_ongoing!$F:$F,Projections!$F37,Achievement_forecast_ongoing!$C:$C,Projections!$C37) -> 0 | R37: =SUMIFS(Achievement_forecasts_future!I:I,Achievement_forecasts_future!$B:$B,Projections!$C37,Achievement_forecasts_future!$D:$D,Projections!$E37,Achievement_forecasts_future!$E:$E,Projections!$F37) -> 0 | S37: =SUMIFS(Achievement_forecasts_future!J:J,Achievement_forecasts_future!$B:$B,Projections!$C37,Achievement_forecasts_future!$D:$D,Projections!$E37,Achievement_forecasts_future!$E:$E,Projections!$F37) -> 0
C38: 8 | D38: All | E38: F | F38: Less developed | G38: =192876470*G48 -> 949472998.9 | H38: =J38/$G38*100 -> 29.72956979 | I38: =K38/$G38*100 -> 29.72956979 | J38: =N38+P38+R38 -> 282274237.8 | K38: =O38+Q38+S38 -> 282274237.8 | L38: =SUMIFS(Achievement_finalised!G:G,Achievement_finalised!$D:$D,Projections!$E38,Achievement_finalised!$E:$E,Projections!$F38,Achievement_finalised!$B:$B,Projections!$C38) -> 0 | M38: 0 | N38: =$L38 -> 0 | O38: =$L38 -> 0 | P38: =SUMIFS(Achievement_forecast_ongoing!I:I,Achievement_forecast_ongoing!$E:$E,Projections!$E38,Achievement_forecast_ongoing!$F:$F,Projections!$F38,Achievement_forecast_ongoing!$C:$C,Projections!$C38) -> 282274237.8 | Q38: =SUMIFS(Achievement_forecast_ongoing!J:J,Achievement_forecast_ongoing!$E:$E,Projections!$E38,Achievement_forecast_ongoing!$F:$F,Projections!$F38,Achievement_forecast_ongoing!$C:$C,Projections!$C38) -> 282274237.8 | R38: =SUMIFS(Achievement_forecasts_future!I:I,Achievement_forecasts_future!$B:$B,Projections!$C38,Achievement_forecasts_future!$D:$D,Projections!$E38,Achievement_forecasts_future!$E:$E,Projections!$F38) -> 0 | S38: =SUMIFS(Achievement_forecasts_future!J:J,Achievement_forecasts_future!$B:$B,Projections!$C38,Achievement_forecasts_future!$D:$D,Projections!$E38,Achievement_forecasts_future!$E:$E,Projections!$F38) -> 0
C39: 8 | D39: All | E39: 2S68 | F39: Less developed | G39: 160 | H39: =J39/$G39*100 -> 98.77573321 | I39: =K39/$G39*100 -> 98.77573321 | J39: =N39+P39+R39 -> 158.0411731 | K39: =O39+Q39+S39 -> 158.0411731 | L39: =SUMIFS(Achievement_finalised!G:G,Achievement_finalised!$D:$D,Projections!$E39,Achievement_finalised!$E:$E,Projections!$F39,Achievement_finalised!$B:$B,Projections!$C39) -> 0 | M39: 0 | N39: =$L39 -> 0 | O39: =$L39 -> 0 | P39: =SUMIFS(Achievement_forecast_ongoing!I:I,Achievement_forecast_ongoing!$E:$E,Projections!$E39,Achievement_forecast_ongoing!$F:$F,Projections!$F39,Achievement_forecast_ongoing!$C:$C,Projections!$C39) -> 158.0411731 | Q39: =SUMIFS(Achievement_forecast_ongoing!J:J,Achievement_forecast_ongoing!$E:$E,Projections!$E39,Achievement_forecast_ongoing!$F:$F,Projections!$F39,Achievement_forecast_ongoing!$C:$C,Projections!$C39) -> 158.0411731 | R39: =SUMIFS(Achievement_forecasts_future!I:I,Achievement_forecasts_future!$B:$B,Projections!$C39,Achievement_forecasts_future!$D:$D,Projections!$E39,Achievement_forecasts_future!$E:$E,Projections!$F39) -> 0 | S39: =SUMIFS(Achievement_forecasts_future!J:J,Achievement_forecasts_future!$B:$B,Projections!$C39,Achievement_forecasts_future!$D:$D,Projections!$E39,Achievement_forecasts_future!$E:$E,Projections!$F39) -> 0
C40: 8 | D40: All | E40: 2S69 | F40: Less developed | G40: 160 | H40: =J40/$G40*100 -> 0 | I40: =K40/$G40*100 -> 0 | J40: =N40+P40+R40 -> 0 | K40: =O40+Q40+S40 -> 0 | L40: =SUMIFS(Achievement_finalised!G:G,Achievement_finalised!$D:$D,Projections!$E40,Achievement_finalised!$E:$E,Projections!$F40,Achievement_finalised!$B:$B,Projections!$C40) -> 0 | M40: 0 | N40: =$L40 -> 0 | O40: =$L40 -> 0 | P40: =SUMIFS(Achievement_forecast_ongoing!I:I,Achievement_forecast_ongoing!$E:$E,Projections!$E40,Achievement_forecast_ongoing!$F:$F,Projections!$F40,Achievement_forecast_ongoing!$C:$C,Projections!$C40) -> 0 | Q40: =SUMIFS(Achievement_forecast_ongoing!J:J,Achievement_forecast_ongoing!$E:$E,Projections!$E40,Achievement_forecast_ongoing!$F:$F,Projections!$F40,Achievement_forecast_ongoing!$C:$C,Projections!$C40) -> 0 | R40: =SUMIFS(Achievement_forecasts_future!I:I,Achievement_forecasts_future!$B:$B,Projections!$C40,Achievement_forecasts_future!$D:$D,Projections!$E40,Achievement_forecasts_future!$E:$E,Projections!$F40) -> 0 | S40: =SUMIFS(Achievement_forecasts_future!J:J,Achievement_forecasts_future!$B:$B,Projections!$C40,Achievement_forecasts_future!$D:$D,Projections!$E40,Achievement_forecasts_future!$E:$E,Projections!$F40) -> 0
C41: 9 | D41: All | E41: 2S136 | F41: Less developed | G41: 100 | H41: =J41/$G41*100 -> 0 | I41: =K41/$G41*100 -> 0 | J41: =N41+P41+R41 -> 0 | K41: =O41+Q41+S41 -> 0 | L41: =SUMIFS(Achievement_finalised!G:G,Achievement_finalised!$D:$D,Projections!$E41,Achievement_finalised!$E:$E,Projections!$F41,Achievement_finalised!$B:$B,Projections!$C41) -> 0 | M41: 0 | N41: =$L41 -> 0 | O41: =$L41 -> 0 | P41: =SUMIFS(Achievement_forecast_ongoing!I:I,Achievement_forecast_ongoing!$E:$E,Projections!$E41,Achievement_forecast_ongoing!$F:$F,Projections!$F41,Achievement_forecast_ongoing!$C:$C,Projections!$C41) -> 0 | Q41: =SUMIFS(Achievement_forecast_ongoing!J:J,Achievement_forecast_ongoing!$E:$E,Projections!$E41,Achievement_forecast_ongoing!$F:$F,Projections!$F41,Achievement_forecast_ongoing!$C:$C,Projections!$C41) -> 0 | R41: =SUMIFS(Achievement_forecasts_future!I:I,Achievement_forecasts_future!$B:$B,Projections!$C41,Achievement_forecasts_future!$D:$D,Projections!$E41,Achievement_forecasts_future!$E:$E,Projections!$F41) -> 0 | S41: =SUMIFS(Achievement_forecasts_future!J:J,Achievement_forecasts_future!$B:$B,Projections!$C41,Achievement_forecasts_future!$D:$D,Projections!$E41,Achievement_forecasts_future!$E:$E,Projections!$F41) -> 0
C42: 9 | D42: All | E42: 2S136 | F42: More developed | G42: 100 | H42: =J42/$G42*100 -> 0 | I42: =K42/$G42*100 -> 0 | J42: =N42+P42+R42 -> 0 | K42: =O42+Q42+S42 -> 0 | L42: =SUMIFS(Achievement_finalised!G:G,Achievement_finalised!$D:$D,Projections!$E42,Achievement_finalised!$E:$E,Projections!$F42,Achievement_finalised!$B:$B,Projections!$C42) -> 0 | M42: =$L42 -> 0 | N42: =$L42 -> 0 | O42: =$L42 -> 0 | P42: =SUMIFS(Achievement_forecast_ongoing!I:I,Achievement_forecast_ongoing!$E:$E,Projections!$E42,Achievement_forecast_ongoing!$F:$F,Projections!$F42,Achievement_forecast_ongoing!$C:$C,Projections!$C42) -> 0 | Q42: =SUMIFS(Achievement_forecast_ongoing!J:J,Achievement_forecast_ongoing!$E:$E,Projections!$E42,Achievement_forecast_ongoing!$F:$F,Projections!$F42,Achievement_forecast_ongoing!$C:$C,Projections!$C42) -> 0 | R42: =SUMIFS(Achievement_forecasts_future!I:I,Achievement_forecasts_future!$B:$B,Projections!$C42,Achievement_forecasts_future!$D:$D,Projections!$E42,Achievement_forecasts_future!$E:$E,Projections!$F42) -> 0 | S42: =SUMIFS(Achievement_forecasts_future!J:J,Achievement_forecasts_future!$B:$B,Projections!$C42,Achievement_forecasts_future!$D:$D,Projections!$E42,Achievement_forecasts_future!$E:$E,Projections!$F42) -> 0
C43: 9 | D43: All | E43: 2S137 | F43: Less developed | G43: 100 | J43: =N43+P43+R43 -> 0 | K43: =O43+Q43+S43 -> 0 | L43: =SUMIFS(Achievement_finalised!G:G,Achievement_finalised!$D:$D,Projections!$E43,Achievement_finalised!$E:$E,Projections!$F43,Achievement_finalised!$B:$B,Projections!$C43) -> 0 | M43: 0 | N43: =$L43 -> 0 | O43: =$L43 -> 0 | P43: =SUMIFS(Achievement_forecast_ongoing!I:I,Achievement_forecast_ongoing!$E:$E,Projections!$E43,Achievement_forecast_ongoing!$F:$F,Projections!$F43,Achievement_forecast_ongoing!$C:$C,Projections!$C43) -> 0 | Q43: =SUMIFS(Achievement_forecast_ongoing!J:J,Achievement_forecast_ongoing!$E:$E,Projections!$E43,Achievement_forecast_ongoing!$F:$F,Projections!$F43,Achievement_forecast_ongoing!$C:$C,Projections!$C43) -> 0 | R43: =SUMIFS(Achievement_forecasts_future!I:I,Achievement_forecasts_future!$B:$B,Projections!$C43,Achievement_forecasts_future!$D:$D,Projections!$E43,Achievement_forecasts_future!$E:$E,Projections!$F43) -> 0 | S43: =SUMIFS(Achievement_forecasts_future!J:J,Achievement_forecasts_future!$B:$B,Projections!$C43,Achievement_forecasts_future!$D:$D,Projections!$E43,Achievement_forecasts_future!$E:$E,Projections!$F43) -> 0
C44: 9 | D44: All | E44: 2S137 | F44: More developed | G44: 100 | J44: =N44+P44+R44 -> 0 | K44: =O44+Q44+S44 -> 0 | L44: =SUMIFS(Achievement_finalised!G:G,Achievement_finalised!$D:$D,Projections!$E44,Achievement_finalised!$E:$E,Projections!$F44,Achievement_finalised!$B:$B,Projections!$C44) -> 0 | M44: 0 | N44: =$L44 -> 0 | O44: =$L44 -> 0 | P44: =SUMIFS(Achievement_forecast_ongoing!I:I,Achievement_forecast_ongoing!$E:$E,Projections!$E44,Achievement_forecast_ongoing!$F:$F,Projections!$F44,Achievement_forecast_ongoing!$C:$C,Projections!$C44) -> 0 | Q44: =SUMIFS(Achievement_forecast_ongoing!J:J,Achievement_forecast_ongoing!$E:$E,Projections!$E44,Achievement_forecast_ongoing!$F:$F,Projections!$F44,Achievement_forecast_ongoing!$C:$C,Projections!$C44) -> 0 | R44: =SUMIFS(Achievement_forecasts_future!I:I,Achievement_forecasts_future!$B:$B,Projections!$C44,Achievement_forecasts_future!$D:$D,Projections!$E44,Achievement_forecasts_future!$E:$E,Projections!$F44) -> 0 | S44: =SUMIFS(Achievement_forecasts_future!J:J,Achievement_forecasts_future!$B:$B,Projections!$C44,Achievement_forecasts_future!$D:$D,Projections!$E44,Achievement_forecasts_future!$E:$E,Projections!$F44) -> 0
G47: Curs EUR-LEI
G48: 4.9227

Sheet Achievement_finalised
B1: Date of extraction | D1: 2021-02-16
B2: Characteristics
B3: PA | C3: PI | D3: Indicator | E3: Region | F3: Type | G3: Cumulative achievement
B4: 1 | C4: (i) | D4: CO12a | E4: All | F4: Physical | G4: No finalised projects
B5: 1 | C5: (ii) | D5: CO12a | E5: All | F5: Physical | G5: No finalised projects
B6: 1 | C6: (i) | D6: CO13a | E6: All | F6: Physical | G6: 37.728
B7: 1 | C7: (ii) | D7: CO13a | E7: All | F7: Physical | G7: No finalised projects
B8: 1 | C8: (i) | D8: F | E8: All | F8: Financial | G8: 662719515
B9: 1 | C9: (ii) | D9: F | E9: All | F9: Financial | G9: 116919780.6
B10: 1 | C10: (i) | D10: 2S10 | E10: All | F10: Physical | G10: No finalised projects
B11: 1 | C11: (ii) | D11: 2S10 | E11: All | F11: Physical | G11: No finalised projects
B12: 1 | C12: (i) | D12: 2S9 | E12: All | F12: Physical | G12: No finalised projects
B13: 1 | C13: (ii) | D13: 2S9 | E13: All | F13: Physical | G13: No finalised projects
B14: 2 | C14: (a) | D14: CO13a | E14: Less developed | F14: Physical | G14: 13.632
B15: 2 | C15: (b) | D15: CO13a | E15: Less developed | F15: Physical | G15: No finalised projects
B16: 2 | C16: (c) | D16: CO13a | E16: Less developed | F16: Physical | G16: No finalised projects
B17: 2 | C17: (d) | D17: CO13a | E17: Less developed | F17: Physical | G17: No finalised projects
B18: 2 | C18: (a) | D18: F | E18: Less developed | F18: Financial | G18: 61986475.41
B19: 2 | C19: (b) | D19: F | E19: Less developed | F19: Financial | G19: 4528.93345
B20: 2 | C20: (c) | D20: F | E20: Less developed | F20: Financial | G20: 190831977.7
B21: 2 | C21: (d) | D21: F | E21: Less developed | F21: Financial | G21: 52226551.56
B22: 2 | C22: (a) | D22: 2S9 | E22: Less developed | F22: Physical | G22: No finalised projects
B23: 2 | C23: (b) | D23: 2S9 | E23: Less developed | F23: Physical | G23: No finalised projects
B24: 2 | C24: (c) | D24: 2S9 | E24: Less developed | F24: Physical | G24: No finalised projects
B25: 2 | C25: (d) | D25: 2S9 | E25: Less developed | F25: Physical | G25: No finalised projects
B26: 3 | C26: (i) | D26: CO17 | E26: All | F26: Physical | G26: 934132
B27: 3 | C27: (i) | D27: CO18 | E27: All | F27: Physical | G27: No finalised projects
B28: 3 | C28: (i) | D28: CO19 | E28: All | F28: Physical | G28: No finalised projects
B29: 3 | C29: (i) | D29: F | E29: All | F29: Financial | G29: 415851768.1
B30: 3 | C30: (i) | D30: 2S34 | E30: All | F30: Physical | G30: No finalised projects
B31: 3 | C31: (i) | D31: 2S35 | E31: All | F31: Physical | G31: No finalised projects
B32: 3 | C32: (ii) | D32: CO17 | E32: All | F32: Physical | G32: No finalised projects
B33: 3 | C33: (ii) | D33: CO18 | E33: All | F33: Physical | G33: 332539
B34: 3 | C34: (ii) | D34: CO19 | E34: All | F34: Physical | G34: 351400
B35: 3 | C35: (ii) | D35: F | E35: All | F35: Financial | G35: 944317898.6
B36: 3 | C36: (ii) | D36: 2S34 | E36: All | F36: Physical | G36: No finalised projects
B37: 3 | C37: (ii) | D37: 2S35 | E37: All | F37: Physical | G37: No finalised projects
B38: 4 | C38: 0 | D38: CO23 | E38: Less developed | F38: Physical | G38: 46
B39: 4 | C39: 0 | D39: F | E39: Less developed | F39: Financial | G39: 169252418.5
B40: 4 | C40: 0 | D40: 2S45 | E40: Less developed | F40: Physical | G40: No finalised projects
B41: 4 | C41: 0 | D41: 2S46 | E41: Less developed | F41: Physical | G41: No finalised projects
B42: 4 | C42: 0 | D42: 2S38 | E42: Less developed | F42: Physical | G42: 6
B43: 5 | C43: (a) | D43: CO20 | E43: All | F43: Physical | G43: No finalised projects
B44: 5 | C44: (a) | D44: F | E44: All | F44: Financial | G44: 3102434.8
B45: 5 | C45: (a) | D45: 2S51 | E45: All | F45: Physical | G45: No finalised projects
B46: 5 | C46: (a) | D46: 2S52 | E46: All | F46: Physical | G46: No finalised projects
B47: 5 | C47: (a) | D47: 2S48 | E47: All | F47: Physical | G47: No finalised projects
B48: 5 | C48: (b) | D48: CO20 | E48: All | F48: Physical | G48: No finalised projects
B49: 5 | C49: (b) | D49: F | E49: All | F49: Financial | G49: 182650729.4
B50: 5 | C50: (b) | D50: 2S51 | E50: All | F50: Physical | G50: No finalised projects
B51: 5 | C51: (b) | D51: 2S52 | E51: All | F51: Physical | G51: No finalised projects
B52: 5 | C52: (b) | D52: 2S48 | E52: All | F52: Physical | G52: No finalised projects
B53: 6 | C53: 0 | D53: CO30 | E53: Less developed | F53: Physical | G53: No finalised projects
B54: 6 | C54: 0 | D54: F | E54: Less developed | F54: Financial | G54: 28882327.49
B55: 6 | C55: 0 | D55: S58 | E55: Less developed | F55: Physical | G55: No finalised projects
B56: 6 | C56: 0 | D56: 2S59 | E56: Less developed | F56: Physical | G56: No finalised projects
B57: 6 | C57: 0 | D57: 2S60 | E57: Less developed | F57: Physical | G57: No finalised projects
B58: 7 | C58: 0 | D58: F | E58: Less developed | F58: Financial | G58: 147386220.6
B59: 7 | C59: 0 | D59: F | E59: More developed | F59: Financial | G59: 0
B60: 7 | C60: 0 | D60: 2S62 | E60: Less developed | F60: Physical | G60: 41.312
B61: 7 | C61: 0 | D61: 2S62 | E61: More developed | F61: Physical | G61: 0
B62: 7 | C62: 0 | D62: 2S64 | E62: All | F62: Physical | G62: No finalised projects
B63: 8 | C63: 0 | D63: F | E63: Less developed | F63: Financial | G63: 0
B64: 8 | C64: 0 | D64: 2S68 | E64: Less developed | F64: Physical | G64: No finalised projects
B65: 8 | C65: 0 | D65: 2S69 | E65: Less developed | F65: Physical | G65: No finalised projects
B66: 9 | C66: 0 | D66: 2S136 | E66: More developed | F66: Physical | G66: No finalised projects
B67: 9 | C67: 0 | D67: 2S136 | E67: Less developed | F67: Physical | G67: No finalised projects
B68: 9 | C68: 0 | D68: 2S137 | E68: Less developed | F68: Physical | G68: No finalised projects
B69: 9 | C69: 0 | D69: 2S138 | E69: More developed | F69: Physical | G69: No finalised projects

Sheet Achievement_to_date_ongoing
C2: Characteristics | K2: Expected achievement | M2: % complete by the end of year
B3: SMIS CODE | C3: PA | D3: PI | E3: Indicator | F3: Region | G3: Type | H3: Value | I3: Start date | J3: End date | K3: Expected | M3: 2020 | N3: 2021 | O3: 2022 | P3: 2023
B4: 117677 | C4: 1 | D4: (i) | E4: CO12a | F4: All | G4: Physical | H4: 0 | I4: 2013-12-13 | J4: 2023-03-01 | K4: 67.17744758 | M4: =IF($J4<DATE(M$3,12,31),1, IF($G4="Physical",0, OFFSET(Project_characteristics!$C$1, SUMIFS(Positions_disbursement!$C$1:$C$14,Positions_disbursement!$B$1:$B$14,Achievement_to_date_ongoing!$D4,Positions_disbursement!$A$1:$A$14,Achievement_to_date_ongoing!$C4), MAX(0,M$3-YEAR($I4)))/100)) -> 0 | N4: =IF($J4<DATE(N$3,12,31),1, IF($G4="Physical",0, OFFSET(Project_characteristics!$C$1, SUMIFS(Positions_disbursement!$C$1:$C$14,Positions_disbursement!$B$1:$B$14,Achievement_to_date_ongoing!$D4,Positions_disbursement!$A$1:$A$14,Achievement_to_date_ongoing!$C4), MAX(0,N$3-YEAR($I4)))/100)) -> 0 | O4: =IF($J4<DATE(O$3,12,31),1, IF($G4="Physical",0, OFFSET(Project_characteristics!$C$1, SUMIFS(Positions_disbursement!$C$1:$C$14,Positions_disbursement!$B$1:$B$14,Achievement_to_date_ongoing!$D4,Positions_disbursement!$A$1:$A$14,Achievement_to_date_ongoing!$C4), MAX(0,O$3-YEAR($I4)))/100)) -> 0 | P4: =IF($J4<DATE(P$3,12,31),1, IF($G4="Physical",0, OFFSET(Project_characteristics!$C$1, SUMIFS(Positions_disbursement!$C$1:$C$14,Positions_disbursement!$B$1:$B$14,Achievement_to_date_ongoing!$D4,Positions_disbursement!$A$1:$A$14,Achievement_to_date_ongoing!$C4), MAX(0,P$3-YEAR($I4)))/100)) -> 1
B5: 110923 | C5: 1 | D5: (i) | E5: CO12a | F5: All | G5: Physical | H5: 5.108 | I5: 2008-05-18 | J5: 2022-05-17 | K5: 5.457073354 | M5: =IF($J5<DATE(M$3,12,31),1, IF($G5="Physical",0, OFFSET(Project_characteristics!$C$1, SUMIFS(Positions_disbursement!$C$1:$C$14,Positions_disbursement!$B$1:$B$14,Achievement_to_date_ongoing!$D5,Positions_disbursement!$A$1:$A$14,Achievement_to_date_ongoing!$C5), MAX(0,M$3-YEAR($I5)))/100)) -> 0 | N5: =IF($J5<DATE(N$3,12,31),1, IF($G5="Physical",0, OFFSET(Project_characteristics!$C$1, SUMIFS(Positions_disbursement!$C$1:$C$14,Positions_disbursement!$B$1:$B$14,Achievement_to_date_ongoing!$D5,Positions_disbursement!$A$1:$A$14,Achievement_to_date_ongoing!$C5), MAX(0,N$3-YEAR($I5)))/100)) -> 0 | O5: =IF($J5<DATE(O$3,12,31),1, IF($G5="Physical",0, OFFSET(Project_characteristics!$C$1, SUMIFS(Positions_disbursement!$C$1:$C$14,Positions_disbursement!$B$1:$B$14,Achievement_to_date_ongoing!$D5,Positions_disbursement!$A$1:$A$14,Achievement_to_date_ongoing!$C5), MAX(0,O$3-YEAR($I5)))/100)) -> 1 | P5: =IF($J5<DATE(P$3,12,31),1, IF($G5="Physical",0, OFFSET(Project_characteristics!$C$1, SUMIFS(Positions_disbursement!$C$1:$C$14,Positions_disbursement!$B$1:$B$14,Achievement_to_date_ongoing!$D5,Positions_disbursement!$A$1:$A$14,Achievement_to_date_ongoing!$C5), MAX(0,P$3-YEAR($I5)))/100)) -> 1
B6: 111298 | C6: 1 | D6: (i) | E6: CO12a | F6: All | G6: Physical | H6: 42.26 | I6: 2011-12-20 | J6: 2022-12-31 | K6: 49.01138169 | M6: =IF($J6<DATE(M$3,12,31),1, IF($G6="Physical",0, OFFSET(Project_characteristics!$C$1, SUMIFS(Positions_disbursement!$C$1:$C$14,Positions_disbursement!$B$1:$B$14,Achievement_to_date_ongoing!$D6,Positions_disbursement!$A$1:$A$14,Achievement_to_date_ongoing!$C6), MAX(0,M$3-YEAR($I6)))/100)) -> 0 | N6: =IF($J6<DATE(N$3,12,31),1, IF($G6="Physical",0, OFFSET(Project_characteristics!$C$1, SUMIFS(Positions_disbursement!$C$1:$C$14,Positions_disbursement!$B$1:$B$14,Achievement_to_date_ongoing!$D6,Positions_disbursement!$A$1:$A$14,Achievement_to_date_ongoing!$C6), MAX(0,N$3-YEAR($I6)))/100)) -> 0 | O6: =IF($J6<DATE(O$3,12,31),1, IF($G6="Physical",0, OFFSET(Project_characteristics!$C$1, SUMIFS(Positions_disbursement!$C$1:$C$14,Positions_disbursement!$B$1:$B$14,Achievement_to_date_ongoing!$D6,Positions_disbursement!$A$1:$A$14,Achievement_to_date_ongoing!$C6), MAX(0,O$3-YEAR($I6)))/100)) -> 0 | P6: =IF($J6<DATE(P$3,12,31),1, IF($G6="Physical",0, OFFSET(Project_characteristics!$C$1, SUMIFS(Positions_disbursement!$C$1:$C$14,Positions_disbursement!$B$1:$B$14,Achievement_to_date_ongoing!$D6,Positions_disbursement!$A$1:$A$14,Achievement_to_date_ongoing!$C6), MAX(0,P$3-YEAR($I6)))/100)) -> 1
B7: 110706 | C7: 1 | D7: (i) | E7: CO12a | F7: All | G7: Physical | H7: 153.542 | I7: 2012-03-14 | J7: 2022-10-23 | K7: 175.5607111 | M7: =IF($J7<DATE(M$3,12,31),1, IF($G7="Physical",0, OFFSET(Project_characteristics!$C$1, SUMIFS(Positions_disbursement!$C$1:$C$14,Positions_disbursement!$B$1:$B$14,Achievement_to_date_ongoing!$D7,Positions_disbursement!$A$1:$A$14,Achievement_to_date_ongoing!$C7), MAX(0,M$3-YEAR($I7)))/100)) -> 0 | N7: =IF($J7<DATE(N$3,12,31),1, IF($G7="Physical",0, OFFSET(Project_characteristics!$C$1, SUMIFS(Positions_disbursement!$C$1:$C$14,Positions_disbursement!$B$1:$B$14,Achievement_to_date_ongoing!$D7,Positions_disbursement!$A$1:$A$14,Achievement_to_date_ongoing!$C7), MAX(0,N$3-YEAR($I7)))/100)) -> 0 | O7: =IF($J7<DATE(O$3,12,31),1, IF($G7="Physical",0, OFFSET(Project_characteristics!$C$1, SUMIFS(Positions_disbursement!$C$1:$C$14,Positions_disbursement!$B$1:$B$14,Achievement_to_date_ongoing!$D7,Positions_disbursement!$A$1:$A$14,Achievement_to_date_ongoing!$C7), MAX(0,O$3-YEAR($I7)))/100)) -> 1 | P7: =IF($J7<DATE(P$3,12,31),1, IF($G7="Physical",0, OFFSET(Project_characteristics!$C$1, SUMIFS(Positions_disbursement!$C$1:$C$14,Positions_disbursement!$B$1:$B$14,Achievement_to_date_ongoing!$D7,Positions_disbursement!$A$1:$A$14,Achievement_to_date_ongoing!$C7), MAX(0,P$3-YEAR($I7)))/100)) -> 1
B8: 120234 | C8: 1 | D8: (i) | E8: CO13a | F8: All | G8: Physical | H8: 0 | I8: 2014-01-01 | J8: 2023-12-31 | K8: 43.87687842 | M8: =IF($J8<DATE(M$3,12,31),1, IF($G8="Physical",0, OFFSET(Project_characteristics!$C$1, SUMIFS(Positions_disbursement!$C$1:$C$14,Positions_disbursement!$B$1:$B$14,Achievement_to_date_ongoing!$D8,Positions_disbursement!$A$1:$A$14,Achievement_to_date_ongoing!$C8), MAX(0,M$3-YEAR($I8)))/100)) -> 0 | N8: =IF($J8<DATE(N$3,12,31),1, IF($G8="Physical",0, OFFSET(Project_characteristics!$C$1, SUMIFS(Positions_disbursement!$C$1:$C$14,Positions_disbursement!$B$1:$B$14,Achievement_to_date_ongoing!$D8,Positions_disbursement!$A$1:$A$14,Achievement_to_date_ongoing!$C8), MAX(0,N$3-YEAR($I8)))/100)) -> 0 | O8: =IF($J8<DATE(O$3,12,31),1, IF($G8="Physical",0, OFFSET(Project_characteristics!$C$1, SUMIFS(Positions_disbursement!$C$1:$C$14,Positions_disbursement!$B$1:$B$14,Achievement_to_date_ongoing!$D8,Positions_disbursement!$A$1:$A$14,Achievement_to_date_ongoing!$C8), MAX(0,O$3-YEAR($I8)))/100)) -> 0 | P8: =IF($J8<DATE(P$3,12,31),1, IF($G8="Physical",0, OFFSET(Project_characteristics!$C$1, SUMIFS(Positions_disbursement!$C$1:$C$14,Positions_disbursement!$B$1:$B$14,Achievement_to_date_ongoing!$D8,Positions_disbursement!$A$1:$A$14,Achievement_to_date_ongoing!$C8), MAX(0,P$3-YEAR($I8)))/100)) -> 0
B9: 118545 | C9: 1 | D9: (i) | E9: CO13a | F9: All | G9: Physical | H9: 3.325 | I9: 2014-01-01 | J9: 2022-01-04 | K9: 3.561195533 | M9: =IF($J9<DATE(M$3,12,31),1, IF($G9="Physical",0, OFFSET(Project_characteristics!$C$1, SUMIFS(Positions_disbursement!$C$1:$C$14,Positions_disbursement!$B$1:$B$14,Achievement_to_date_ongoing!$D9,Positions_disbursement!$A$1:$A$14,Achievement_to_date_ongoing!$C9), MAX(0,M$3-YEAR($I9)))/100)) -> 0 | N9: =IF($J9<DATE(N$3,12,31),1, IF($G9="Physical",0, OFFSET(Project_characteristics!$C$1, SUMIFS(Positions_disbursement!$C$1:$C$14,Positions_disbursement!$B$1:$B$14,Achievement_to_date_ongoing!$D9,Positions_disbursement!$A$1:$A$14,Achievement_to_date_ongoing!$C9), MAX(0,N$3-YEAR($I9)))/100)) -> 0 | O9: =IF($J9<DATE(O$3,12,31),1, IF($G9="Physical",0, OFFSET(Project_characteristics!$C$1, SUMIFS(Positions_disbursement!$C$1:$C$14,Positions_disbursement!$B$1:$B$14,Achievement_to_date_ongoing!$D9,Positions_disbursement!$A$1:$A$14,Achievement_to_date_ongoing!$C9), MAX(0,O$3-YEAR($I9)))/100)) -> 1 | P9: =IF($J9<DATE(P$3,12,31),1, IF($G9="Physical",0, OFFSET(Project_characteristics!$C$1, SUMIFS(Positions_disbursement!$C$1:$C$14,Positions_disbursement!$B$1:$B$14,Achievement_to_date_ongoing!$D9,Positions_disbursement!$A$1:$A$14,Achievement_to_date_ongoing!$C9), MAX(0,P$3-YEAR($I9)))/100)) -> 1
B10: 119142 | C10: 1 | D10: (i) | E10: CO13a | F10: All | G10: Physical | H10: 0 | I10: 2019-08-01 | J10: 2022-03-31 | K10: 12.23963566 | M10: =IF($J10<DATE(M$3,12,31),1, IF($G10="Physical",0, OFFSET(Project_characteristics!$C$1, SUMIFS(Positions_disbursement!$C$1:$C$14,Positions_disbursement!$B$1:$B$14,Achievement_to_date_ongoing!$D10,Positions_disbursement!$A$1:$A$14,Achievement_to_date_ongoing!$C10), MAX(0,M$3-YEAR($I10)))/100)) -> 0 | N10: =IF($J10<DATE(N$3,12,31),1, IF($G10="Physical",0, OFFSET(Project_characteristics!$C$1, SUMIFS(Positions_disbursement!$C$1:$C$14,Positions_disbursement!$B$1:$B$14,Achievement_to_date_ongoing!$D10,Positions_disbursement!$A$1:$A$14,Achievement_to_date_ongoing!$C10), MAX(0,N$3-YEAR($I10)))/100)) -> 0 | O10: =IF($J10<DATE(O$3,12,31),1, IF($G10="Physical",0, OFFSET(Project_characteristics!$C$1, SUMIFS(Positions_disbursement!$C$1:$C$14,Positions_disbursement!$B$1:$B$14,Achievement_to_date_ongoing!$D10,Positions_disbursement!$A$1:$A$14,Achievement_to_date_ongoing!$C10), MAX(0,O$3-YEAR($I10)))/100)) -> 1 | P10: =IF($J10<DATE(P$3,12,31),1, IF($G10="Physical",0, OFFSET(Project_characteristics!$C$1, SUMIFS(Positions_disbursement!$C$1:$C$14,Positions_disbursement!$B$1:$B$14,Achievement_to_date_ongoing!$D10,Positions_disbursement!$A$1:$A$14,Achievement_to_date_ongoing!$C10), MAX(0,P$3-YEAR($I10)))/100)) -> 1
B11: 116393 | C11: 1 | D11: (i) | E11: CO13a | F11: All | G11: Physical | H11: 0 | I11: 2014-01-01 | J11: 2023-12-31 | K11: 5.545712694 | M11: =IF($J11<DATE(M$3,12,31),1, IF($G11="Physical",0, OFFSET(Project_characteristics!$C$1, SUMIFS(Positions_disbursement!$C$1:$C$14,Positions_disbursement!$B$1:$B$14,Achievement_to_date_ongoing!$D11,Positions_disbursement!$A$1:$A$14,Achievement_to_date_ongoing!$C11), MAX(0,M$3-YEAR($I11)))/100)) -> 0 | N11: =IF($J11<DATE(N$3,12,31),1, IF($G11="Physical",0, OFFSET(Project_characteristics!$C$1, SUMIFS(Positions_disbursement!$C$1:$C$14,Positions_disbursement!$B$1:$B$14,Achievement_to_date_ongoing!$D11,Positions_disbursement!$A$1:$A$14,Achievement_to_date_ongoing!$C11), MAX(0,N$3-YEAR($I11)))/100)) -> 0 | O11: =IF($J11<DATE(O$3,12,31),1, IF($G11="Physical",0, OFFSET(Project_characteristics!$C$1, SUMIFS(Positions_disbursement!$C$1:$C$14,Positions_disbursement!$B$1:$B$14,Achievement_to_date_ongoing!$D11,Positions_disbursement!$A$1:$A$14,Achievement_to_date_ongoing!$C11), MAX(0,O$3-YEAR($I11)))/100)) -> 0 | P11: =IF($J11<DATE(P$3,12,31),1, IF($G11="Physical",0, OFFSET(Project_characteristics!$C$1, SUMIFS(Positions_disbursement!$C$1:$C$14,Positions_disbursement!$B$1:$B$14,Achievement_to_date_ongoing!$D11,Positions_disbursement!$A$1:$A$14,Achievement_to_date_ongoing!$C11), MAX(0,P$3-YEAR($I11)))/100)) -> 0
B12: 120235 | C12: 1 | D12: (i) | E12: CO13a | F12: All | G12: Physical | H12: 0 | I12: 2012-01-09 | J12: 2023-12-31 | K12: 14.6942329 | M12: =IF($J12<DATE(M$3,12,31),1, IF($G12="Physical",0, OFFSET(Project_characteristics!$C$1, SUMIFS(Positions_disbursement!$C$1:$C$14,Positions_disbursement!$B$1:$B$14,Achievement_to_date_ongoing!$D12,Positions_disbursement!$A$1:$A$14,Achievement_to_date_ongoing!$C12), MAX(0,M$3-YEAR($I12)))/100)) -> 0 | N12: =IF($J12<DATE(N$3,12,31),1, IF($G12="Physical",0, OFFSET(Project_characteristics!$C$1, SUMIFS(Positions_disbursement!$C$1:$C$14,Positions_disbursement!$B$1:$B$14,Achievement_to_date_ongoing!$D12,Positions_disbursement!$A$1:$A$14,Achievement_to_date_ongoing!$C12), MAX(0,N$3-YEAR($I12)))/100)) -> 0 | O12: =IF($J12<DATE(O$3,12,31),1, IF($G12="Physical",0, OFFSET(Project_characteristics!$C$1, SUMIFS(Positions_disbursement!$C$1:$C$14,Positions_disbursement!$B$1:$B$14,Achievement_to_date_ongoing!$D12,Positions_disbursement!$A$1:$A$14,Achievement_to_date_ongoing!$C12), MAX(0,O$3-YEAR($I12)))/100)) -> 0 | P12: =IF($J12<DATE(P$3,12,31),1, IF($G12="Physical",0, OFFSET(Project_characteristics!$C$1, SUMIFS(Positions_disbursement!$C$1:$C$14,Positions_disbursement!$B$1:$B$14,Achievement_to_date_ongoing!$D12,Positions_disbursement!$A$1:$A$14,Achievement_to_date_ongoing!$C12), MAX(0,P$3-YEAR($I12)))/100)) -> 0
B13: 115748 | C13: 1 | D13: (i) | E13: CO13a | F13: All | G13: Physical | H13: 45.31 | I13: 2014-01-01 | J13: 2023-12-30 | K13: 60.55712193 | M13: =IF($J13<DATE(M$3,12,31),1, IF($G13="Physical",0, OFFSET(Project_characteristics!$C$1, SUMIFS(Positions_disbursement!$C$1:$C$14,Positions_disbursement!$B$1:$B$14,Achievement_to_date_ongoing!$D13,Positions_disbursement!$A$1:$A$14,Achievement_to_date_ongoing!$C13), MAX(0,M$3-YEAR($I13)))/100)) -> 0 | N13: =IF($J13<DATE(N$3,12,31),1, IF($G13="Physical",0, OFFSET(Project_characteristics!$C$1, SUMIFS(Positions_disbursement!$C$1:$C$14,Positions_disbursement!$B$1:$B$14,Achievement_to_date_ongoing!$D13,Positions_disbursement!$A$1:$A$14,Achievement_to_date_ongoing!$C13), MAX(0,N$3-YEAR($I13)))/100)) -> 0 | O13: =IF($J13<DATE(O$3,12,31),1, IF($G13="Physical",0, OFFSET(Project_characteristics!$C$1, SUMIFS(Positions_disbursement!$C$1:$C$14,Positions_disbursement!$B$1:$B$14,Achievement_to_date_ongoing!$D13,Positions_disbursement!$A$1:$A$14,Achievement_to_date_ongoing!$C13), MAX(0,O$3-YEAR($I13)))/100)) -> 0 | P13: =IF($J13<DATE(P$3,12,31),1, IF($G13="Physical",0, OFFSET(Project_characteristics!$C$1, SUMIFS(Positions_disbursement!$C$1:$C$14,Positions_disbursement!$B$1:$B$14,Achievement_to_date_ongoing!$D13,Positions_disbursement!$A$1:$A$14,Achievement_to_date_ongoing!$C13), MAX(0,P$3-YEAR($I13)))/100)) -> 1
B14: 128749 | C14: 1 | D14: (i) | E14: CO13a | F14: All | G14: Physical | H14: 0 | I14: 2014-01-01 | J14: 2023-12-31 | K14: 25.43214292 | M14: =IF($J14<DATE(M$3,12,31),1, IF($G14="Physical",0, OFFSET(Project_characteristics!$C$1, SUMIFS(Positions_disbursement!$C$1:$C$14,Positions_disbursement!$B$1:$B$14,Achievement_to_date_ongoing!$D14,Positions_disbursement!$A$1:$A$14,Achievement_to_date_ongoing!$C14), MAX(0,M$3-YEAR($I14)))/100)) -> 0 | N14: =IF($J14<DATE(N$3,12,31),1, IF($G14="Physical",0, OFFSET(Project_characteristics!$C$1, SUMIFS(Positions_disbursement!$C$1:$C$14,Positions_disbursement!$B$1:$B$14,Achievement_to_date_ongoing!$D14,Positions_disbursement!$A$1:$A$14,Achievement_to_date_ongoing!$C14), MAX(0,N$3-YEAR($I14)))/100)) -> 0 | O14: =IF($J14<DATE(O$3,12,31),1, IF($G14="Physical",0, OFFSET(Project_characteristics!$C$1, SUMIFS(Positions_disbursement!$C$1:$C$14,Positions_disbursement!$B$1:$B$14,Achievement_to_date_ongoing!$D14,Positions_disbursement!$A$1:$A$14,Achievement_to_date_ongoing!$C14), MAX(0,O$3-YEAR($I14)))/100)) -> 0 | P14: =IF($J14<DATE(P$3,12,31),1, IF($G14="Physical",0, OFFSET(Project_characteristics!$C$1, SUMIFS(Positions_disbursement!$C$1:$C$14,Positions_disbursement!$B$1:$B$14,Achievement_to_date_ongoing!$D14,Positions_disbursement!$A$1:$A$14,Achievement_to_date_ongoing!$C14), MAX(0,P$3-YEAR($I14)))/100)) -> 0
B15: 120234 | C15: 1 | D15: (i) | E15: F | F15: All | G15: Financial | H15: 555847739.7 | I15: 2014-01-01 | J15: 2023-12-31 | K15: 2425826725 | M15: =IF($J15<DATE(M$3,12,31),1, IF($G15="Physical",0, OFFSET(Project_characteristics!$C$1, SUMIFS(Positions_disbursement!$C$1:$C$14,Positions_disbursement!$B$1:$B$14,Achievement_to_date_ongoing!$D15,Positions_disbursement!$A$1:$A$14,Achievement_to_date_ongoing!$C15), MAX(0,M$3-YEAR($I15)))/100)) -> 0 | N15: =IF($J15<DATE(N$3,12,31),1, IF($G15="Physical",0, OFFSET(Project_characteristics!$C$1, SUMIFS(Positions_disbursement!$C$1:$C$14,Positions_disbursement!$B$1:$B$14,Achievement_to_date_ongoing!$D15,Positions_disbursement!$A$1:$A$14,Achievement_to_date_ongoing!$C15), MAX(0,N$3-YEAR($I15)))/100)) -> 0 | O15: =IF($J15<DATE(O$3,12,31),1, IF($G15="Physical",0, OFFSET(Project_characteristics!$C$1, SUMIFS(Positions_disbursement!$C$1:$C$14,Positions_disbursement!$B$1:$B$14,Achievement_to_date_ongoing!$D15,Positions_disbursement!$A$1:$A$14,Achievement_to_date_ongoing!$C15), MAX(0,O$3-YEAR($I15)))/100)) -> 0 | P15: =IF($J15<DATE(P$3,12,31),1, IF($G15="Physical",0, OFFSET(Project_characteristics!$C$1, SUMIFS(Positions_disbursement!$C$1:$C$14,Positions_disbursement!$B$1:$B$14,Achievement_to_date_ongoing!$D15,Positions_disbursement!$A$1:$A$14,Achievement_to_date_ongoing!$C15), MAX(0,P$3-YEAR($I15)))/100)) -> 0
B16: 118545 | C16: 1 | D16: (i) | E16: F | F16: All | G16: Financial | H16: 90869203.44 | I16: 2014-01-01 | J16: 2022-01-04 | K16: 90869203.44 | M16: =IF($J16<DATE(M$3,12,31),1, IF($G16="Physical",0, OFFSET(Project_characteristics!$C$1, SUMIFS(Positions_disbursement!$C$1:$C$14,Positions_disbursement!$B$1:$B$14,Achievement_to_date_ongoing!$D16,Positions_disbursement!$A$1:$A$14,Achievement_to_date_ongoing!$C16), MAX(0,M$3-YEAR($I16)))/100)) -> 0 | N16: =IF($J16<DATE(N$3,12,31),1, IF($G16="Physical",0, OFFSET(Project_characteristics!$C$1, SUMIFS(Positions_disbursement!$C$1:$C$14,Positions_disbursement!$B$1:$B$14,Achievement_to_date_ongoing!$D16,Positions_disbursement!$A$1:$A$14,Achievement_to_date_ongoing!$C16), MAX(0,N$3-YEAR($I16)))/100)) -> 0 | O16: =IF($J16<DATE(O$3,12,31),1, IF($G16="Physical",0, OFFSET(Project_characteristics!$C$1, SUMIFS(Positions_disbursement!$C$1:$C$14,Positions_disbursement!$B$1:$B$14,Achievement_to_date_ongoing!$D16,Positions_disbursement!$A$1:$A$14,Achievement_to_date_ongoing!$C16), MAX(0,O$3-YEAR($I16)))/100)) -> 1 | P16: =IF($J16<DATE(P$3,12,31),1, IF($G16="Physical",0, OFFSET(Project_characteristics!$C$1, SUMIFS(Positions_disbursement!$C$1:$C$14,Positions_disbursement!$B$1:$B$14,Achievement_to_date_ongoing!$D16,Positions_disbursement!$A$1:$A$14,Achievement_to_date_ongoing!$C16), MAX(0,P$3-YEAR($I16)))/100)) -> 1
B17: 110647 | C17: 1 | D17: (i) | E17: F | F17: All | G17: Financial | H17: 0 | I17: 2017-07-01 | J17: 2023-12-31 | K17: 23507826.97 | M17: =IF($J17<DATE(M$3,12,31),1, IF($G17="Physical",0, OFFSET(Project_characteristics!$C$1, SUMIFS(Positions_disbursement!$C$1:$C$14,Positions_disbursement!$B$1:$B$14,Achievement_to_date_ongoing!$D17,Positions_disbursement!$A$1:$A$14,Achievement_to_date_ongoing!$C17), MAX(0,M$3-YEAR($I17)))/100)) -> 0 | N17: =IF($J17<DATE(N$3,12,31),1, IF($G17="Physical",0, OFFSET(Project_characteristics!$C$1, SUMIFS(Positions_disbursement!$C$1:$C$14,Positions_disbursement!$B$1:$B$14,Achievement_to_date_ongoing!$D17,Positions_disbursement!$A$1:$A$14,Achievement_to_date_ongoing!$C17), MAX(0,N$3-YEAR($I17)))/100)) -> 0 | O17: =IF($J17<DATE(O$3,12,31),1, IF($G17="Physical",0, OFFSET(Project_characteristics!$C$1, SUMIFS(Positions_disbursement!$C$1:$C$14,Positions_disbursement!$B$1:$B$14,Achievement_to_date_ongoing!$D17,Positions_disbursement!$A$1:$A$14,Achievement_to_date_ongoing!$C17), MAX(0,O$3-YEAR($I17)))/100)) -> 0 | P17: =IF($J17<DATE(P$3,12,31),1, IF($G17="Physical",0, OFFSET(Project_characteristics!$C$1, SUMIFS(Positions_disbursement!$C$1:$C$14,Positions_disbursement!$B$1:$B$14,Achievement_to_date_ongoing!$D17,Positions_disbursement!$A$1:$A$14,Achievement_to_date_ongoing!$C17), MAX(0,P$3-YEAR($I17)))/100)) -> 0
B18: 122606 | C18: 1 | D18: (i) | E18: F | F18: All | G18: Financial | H18: 249460.27 | I18: 2015-05-01 | J18: 2023-12-31 | K18: 351695.7291 | M18: =IF($J18<DATE(M$3,12,31),1, IF($G18="Physical",0, OFFSET(Project_characteristics!$C$1, SUMIFS(Positions_disbursement!$C$1:$C$14,Positions_disbursement!$B$1:$B$14,Achievement_to_date_ongoing!$D18,Positions_disbursement!$A$1:$A$14,Achievement_to_date_ongoing!$C18), MAX(0,M$3-YEAR($I18)))/100)) -> 0 | N18: =IF($J18<DATE(N$3,12,31),1, IF($G18="Physical",0, OFFSET(Project_characteristics!$C$1, SUMIFS(Positions_disbursement!$C$1:$C$14,Positions_disbursement!$B$1:$B$14,Achievement_to_date_ongoing!$D18,Positions_disbursement!$A$1:$A$14,Achievement_to_date_ongoing!$C18), MAX(0,N$3-YEAR($I18)))/100)) -> 0 | O18: =IF($J18<DATE(O$3,12,31),1, IF($G18="Physical",0, OFFSET(Project_characteristics!$C$1, SUMIFS(Positions_disbursement!$C$1:$C$14,Positions_disbursement!$B$1:$B$14,Achievement_to_date_ongoing!$D18,Positions_disbursement!$A$1:$A$14,Achievement_to_date_ongoing!$C18), MAX(0,O$3-YEAR($I18)))/100)) -> 0 | P18: =IF($J18<DATE(P$3,12,31),1, IF($G18="Physical",0, OFFSET(Project_characteristics!$C$1, SUMIFS(Positions_disbursement!$C$1:$C$14,Positions_disbursement!$B$1:$B$14,Achievement_to_date_ongoing!$D18,Positions_disbursement!$A$1:$A$14,Achievement_to_date_ongoing!$C18), MAX(0,P$3-YEAR($I18)))/100)) -> 0
B19: 117677 | C19: 1 | D19: (i) | E19: F | F19: All | G19: Financial | H19: 3135141506 | I19: 2013-12-13 | J19: 2023-03-01 | K19: 3688912056 | M19: =IF($J19<DATE(M$3,12,31),1, IF($G19="Physical",0, OFFSET(Project_characteristics!$C$1, SUMIFS(Positions_disbursement!$C$1:$C$14,Positions_disbursement!$B$1:$B$14,Achievement_to_date_ongoing!$D19,Positions_disbursement!$A$1:$A$14,Achievement_to_date_ongoing!$C19), MAX(0,M$3-YEAR($I19)))/100)) -> 0 | N19: =IF($J19<DATE(N$3,12,31),1, IF($G19="Physical",0, OFFSET(Project_characteristics!$C$1, SUMIFS(Positions_disbursement!$C$1:$C$14,Positions_disbursement!$B$1:$B$14,Achievement_to_date_ongoing!$D19,Positions_disbursement!$A$1:$A$14,Achievement_to_date_ongoing!$C19), MAX(0,N$3-YEAR($I19)))/100)) -> 0 | O19: =IF($J19<DATE(O$3,12,31),1, IF($G19="Physical",0, OFFSET(Project_characteristics!$C$1, SUMIFS(Positions_disbursement!$C$1:$C$14,Positions_disbursement!$B$1:$B$14,Achievement_to_date_ongoing!$D19,Positions_disbursement!$A$1:$A$14,Achievement_to_date_ongoing!$C19), MAX(0,O$3-YEAR($I19)))/100)) -> 0 | P19: =IF($J19<DATE(P$3,12,31),1, IF($G19="Physical",0, OFFSET(Project_characteristics!$C$1, SUMIFS(Positions_disbursement!$C$1:$C$14,Positions_disbursement!$B$1:$B$14,Achievement_to_date_ongoing!$D19,Positions_disbursement!$A$1:$A$14,Achievement_to_date_ongoing!$C19), MAX(0,P$3-YEAR($I19)))/100)) -> 1
B20: 119142 | C20: 1 | D20: (i) | E20: F | F20: All | G20: Financial | H20: 100253146.4 | I20: 2019-08-01 | J20: 2022-03-31 | K20: 157806820.1 | M20: =IF($J20<DATE(M$3,12,31),1, IF($G20="Physical",0, OFFSET(Project_characteristics!$C$1, SUMIFS(Positions_disbursement!$C$1:$C$14,Positions_disbursement!$B$1:$B$14,Achievement_to_date_ongoing!$D20,Positions_disbursement!$A$1:$A$14,Achievement_to_date_ongoing!$C20), MAX(0,M$3-YEAR($I20)))/100)) -> 0 | N20: =IF($J20<DATE(N$3,12,31),1, IF($G20="Physical",0, OFFSET(Project_characteristics!$C$1, SUMIFS(Positions_disbursement!$C$1:$C$14,Positions_disbursement!$B$1:$B$14,Achievement_to_date_ongoing!$D20,Positions_disbursement!$A$1:$A$14,Achievement_to_date_ongoing!$C20), MAX(0,N$3-YEAR($I20)))/100)) -> 0 | O20: =IF($J20<DATE(O$3,12,31),1, IF($G20="Physical",0, OFFSET(Project_characteristics!$C$1, SUMIFS(Positions_disbursement!$C$1:$C$14,Positions_disbursement!$B$1:$B$14,Achievement_to_date_ongoing!$D20,Positions_disbursement!$A$1:$A$14,Achievement_to_date_ongoing!$C20), MAX(0,O$3-YEAR($I20)))/100)) -> 1 | P20: =IF($J20<DATE(P$3,12,31),1, IF($G20="Physical",0, OFFSET(Project_characteristics!$C$1, SUMIFS(Positions_disbursement!$C$1:$C$14,Positions_disbursement!$B$1:$B$14,Achievement_to_date_ongoing!$D20,Positions_disbursement!$A$1:$A$14,Achievement_to_date_ongoing!$C20), MAX(0,P$3-YEAR($I20)))/100)) -> 1
B21: 110923 | C21: 1 | D21: (i) | E21: F | F21: All | G21: Financial | H21: 40676346.59 | I21: 2008-05-18 | J21: 2022-05-17 | K21: 40676346.59 | M21: =IF($J21<DATE(M$3,12,31),1, IF($G21="Physical",0, OFFSET(Project_characteristics!$C$1, SUMIFS(Positions_disbursement!$C$1:$C$14,Positions_disbursement!$B$1:$B$14,Achievement_to_date_ongoing!$D21,Positions_disbursement!$A$1:$A$14,Achievement_to_date_ongoing!$C21), MAX(0,M$3-YEAR($I21)))/100)) -> 0 | N21: =IF($J21<DATE(N$3,12,31),1, IF($G21="Physical",0, OFFSET(Project_characteristics!$C$1, SUMIFS(Positions_disbursement!$C$1:$C$14,Positions_disbursement!$B$1:$B$14,Achievement_to_date_ongoing!$D21,Positions_disbursement!$A$1:$A$14,Achievement_to_date_ongoing!$C21), MAX(0,N$3-YEAR($I21)))/100)) -> 0 | O21: =IF($J21<DATE(O$3,12,31),1, IF($G21="Physical",0, OFFSET(Project_characteristics!$C$1, SUMIFS(Positions_disbursement!$C$1:$C$14,Positions_disbursement!$B$1:$B$14,Achievement_to_date_ongoing!$D21,Positions_disbursement!$A$1:$A$14,Achievement_to_date_ongoing!$C21), MAX(0,O$3-YEAR($I21)))/100)) -> 1 | P21: =IF($J21<DATE(P$3,12,31),1, IF($G21="Physical",0, OFFSET(Project_characteristics!$C$1, SUMIFS(Positions_disbursement!$C$1:$C$14,Positions_disbursement!$B$1:$B$14,Achievement_to_date_ongoing!$D21,Positions_disbursement!$A$1:$A$14,Achievement_to_date_ongoing!$C21), MAX(0,P$3-YEAR($I21)))/100)) -> 1
B22: 116393 | C22: 1 | D22: (i) | E22: F | F22: All | G22: Financial | H22: 28354878.09 | I22: 2014-01-01 | J22: 2023-12-31 | K22: 143016189.6 | M22: =IF($J22<DATE(M$3,12,31),1, IF($G22="Physical",0, OFFSET(Project_characteristics!$C$1, SUMIFS(Positions_disbursement!$C$1:$C$14,Positions_disbursement!$B$1:$B$14,Achievement_to_date_ongoing!$D22,Positions_disbursement!$A$1:$A$14,Achievement_to_date_ongoing!$C22), MAX(0,M$3-YEAR($I22)))/100)) -> 0 | N22: =IF($J22<DATE(N$3,12,31),1, IF($G22="Physical",0, OFFSET(Project_characteristics!$C$1, SUMIFS(Positions_disbursement!$C$1:$C$14,Positions_disbursement!$B$1:$B$14,Achievement_to_date_ongoing!$D22,Positions_disbursement!$A$1:$A$14,Achievement_to_date_ongoing!$C22), MAX(0,N$3-YEAR($I22)))/100)) -> 0 | O22: =IF($J22<DATE(O$3,12,31),1, IF($G22="Physical",0, OFFSET(Project_characteristics!$C$1, SUMIFS(Positions_disbursement!$C$1:$C$14,Positions_disbursement!$B$1:$B$14,Achievement_to_date_ongoing!$D22,Positions_disbursement!$A$1:$A$14,Achievement_to_date_ongoing!$C22), MAX(0,O$3-YEAR($I22)))/100)) -> 0 | P22: =IF($J22<DATE(P$3,12,31),1, IF($G22="Physical",0, OFFSET(Project_characteristics!$C$1, SUMIFS(Positions_disbursement!$C$1:$C$14,Positions_disbursement!$B$1:$B$14,Achievement_to_date_ongoing!$D22,Positions_disbursement!$A$1:$A$14,Achievement_to_date_ongoing!$C22), MAX(0,P$3-YEAR($I22)))/100)) -> 0
B23: 140285 | C23: 1 | D23: (i) | E23: F | F23: All | G23: Financial | H23: 666911792.3 | I23: 2018-12-21 | J23: 2023-12-29 | K23: 1916423334 | M23: =IF($J23<DATE(M$3,12,31),1, IF($G23="Physical",0, OFFSET(Project_characteristics!$C$1, SUMIFS(Positions_disbursement!$C$1:$C$14,Positions_disbursement!$B$1:$B$14,Achievement_to_date_ongoing!$D23,Positions_disbursement!$A$1:$A$14,Achievement_to_date_ongoing!$C23), MAX(0,M$3-YEAR($I23)))/100)) -> 0 | N23: =IF($J23<DATE(N$3,12,31),1, IF($G23="Physical",0, OFFSET(Project_characteristics!$C$1, SUMIFS(Positions_disbursement!$C$1:$C$14,Positions_disbursement!$B$1:$B$14,Achievement_to_date_ongoing!$D23,Positions_disbursement!$A$1:$A$14,Achievement_to_date_ongoing!$C23), MAX(0,N$3-YEAR($I23)))/100)) -> 0 | O23: =IF($J23<DATE(O$3,12,31),1, IF($G23="Physical",0, OFFSET(Project_characteristics!$C$1, SUMIFS(Positions_disbursement!$C$1:$C$14,Positions_disbursement!$B$1:$B$14,Achievement_to_date_ongoing!$D23,Positions_disbursement!$A$1:$A$14,Achievement_to_date_ongoing!$C23), MAX(0,O$3-YEAR($I23)))/100)) -> 0 | P23: =IF($J23<DATE(P$3,12,31),1, IF($G23="Physical",0, OFFSET(Project_characteristics!$C$1, SUMIFS(Positions_disbursement!$C$1:$C$14,Positions_disbursement!$B$1:$B$14,Achievement_to_date_ongoing!$D23,Positions_disbursement!$A$1:$A$14,Achievement_to_date_ongoing!$C23), MAX(0,P$3-YEAR($I23)))/100)) -> 1
B24: 119750 | C24: 1 | D24: (i) | E24: F | F24: All | G24: Financial | H24: 799895.2649 | I24: 2018-05-14 | J24: 2023-12-31 | K24: 799895.2649 | M24: =IF($J24<DATE(M$3,12,31),1, IF($G24="Physical",0, OFFSET(Project_characteristics!$C$1, SUMIFS(Positions_disbursement!$C$1:$C$14,Positions_disbursement!$B$1:$B$14,Achievement_to_date_ongoing!$D24,Positions_disbursement!$A$1:$A$14,Achievement_to_date_ongoing!$C24), MAX(0,M$3-YEAR($I24)))/100)) -> 0 | N24: =IF($J24<DATE(N$3,12,31),1, IF($G24="Physical",0, OFFSET(Project_characteristics!$C$1, SUMIFS(Positions_disbursement!$C$1:$C$14,Positions_disbursement!$B$1:$B$14,Achievement_to_date_ongoing!$D24,Positions_disbursement!$A$1:$A$14,Achievement_to_date_ongoing!$C24), MAX(0,N$3-YEAR($I24)))/100)) -> 0 | O24: =IF($J24<DATE(O$3,12,31),1, IF($G24="Physical",0, OFFSET(Project_characteristics!$C$1, SUMIFS(Positions_disbursement!$C$1:$C$14,Positions_disbursement!$B$1:$B$14,Achievement_to_date_ongoing!$D24,Positions_disbursement!$A$1:$A$14,Achievement_to_date_ongoing!$C24), MAX(0,O$3-YEAR($I24)))/100)) -> 0 | P24: =IF($J24<DATE(P$3,12,31),1, IF($G24="Physical",0, OFFSET(Project_characteristics!$C$1, SUMIFS(Positions_disbursement!$C$1:$C$14,Positions_disbursement!$B$1:$B$14,Achievement_to_date_ongoing!$D24,Positions_disbursement!$A$1:$A$14,Achievement_to_date_ongoing!$C24), MAX(0,P$3-YEAR($I24)))/100)) -> 0
B25: 111298 | C25: 1 | D25: (i) | E25: F | F25: All | G25: Financial | H25: 698730226.3 | I25: 2011-12-20 | J25: 2022-12-31 | K25: 698730226.3 | M25: =IF($J25<DATE(M$3,12,31),1, IF($G25="Physical",0, OFFSET(Project_characteristics!$C$1, SUMIFS(Positions_disbursement!$C$1:$C$14,Positions_disbursement!$B$1:$B$14,Achievement_to_date_ongoing!$D25,Positions_disbursement!$A$1:$A$14,Achievement_to_date_ongoing!$C25), MAX(0,M$3-YEAR($I25)))/100)) -> 0 | N25: =IF($J25<DATE(N$3,12,31),1, IF($G25="Physical",0, OFFSET(Project_characteristics!$C$1, SUMIFS(Positions_disbursement!$C$1:$C$14,Positions_disbursement!$B$1:$B$14,Achievement_to_date_ongoing!$D25,Positions_disbursement!$A$1:$A$14,Achievement_to_date_ongoing!$C25), MAX(0,N$3-YEAR($I25)))/100)) -> 0 | O25: =IF($J25<DATE(O$3,12,31),1, IF($G25="Physical",0, OFFSET(Project_characteristics!$C$1, SUMIFS(Positions_disbursement!$C$1:$C$14,Positions_disbursement!$B$1:$B$14,Achievement_to_date_ongoing!$D25,Positions_disbursement!$A$1:$A$14,Achievement_to_date_ongoing!$C25), MAX(0,O$3-YEAR($I25)))/100)) -> 0 | P25: =IF($J25<DATE(P$3,12,31),1, IF($G25="Physical",0, OFFSET(Project_characteristics!$C$1, SUMIFS(Positions_disbursement!$C$1:$C$14,Positions_disbursement!$B$1:$B$14,Achievement_to_date_ongoing!$D25,Positions_disbursement!$A$1:$A$14,Achievement_to_date_ongoing!$C25), MAX(0,P$3-YEAR($I25)))/100)) -> 1
B26: 120235 | C26: 1 | D26: (i) | E26: F | F26: All | G26: Financial | H26: 575168360.5 | I26: 2012-01-09 | J26: 2023-12-31 | K26: 575168360.5 | M26: =IF($J26<DATE(M$3,12,31),1, IF($G26="Physical",0, OFFSET(Project_characteristics!$C$1, SUMIFS(Positions_disbursement!$C$1:$C$14,Positions_disbursement!$B$1:$B$14,Achievement_to_date_ongoing!$D26,Positions_disbursement!$A$1:$A$14,Achievement_to_date_ongoing!$C26), MAX(0,M$3-YEAR($I26)))/100)) -> 0 | N26: =IF($J26<DATE(N$3,12,31),1, IF($G26="Physical",0, OFFSET(Project_characteristics!$C$1, SUMIFS(Positions_disbursement!$C$1:$C$14,Positions_disbursement!$B$1:$B$14,Achievement_to_date_ongoing!$D26,Positions_disbursement!$A$1:$A$14,Achievement_to_date_ongoing!$C26), MAX(0,N$3-YEAR($I26)))/100)) -> 0 | O26: =IF($J26<DATE(O$3,12,31),1, IF($G26="Physical",0, OFFSET(Project_characteristics!$C$1, SUMIFS(Positions_disbursement!$C$1:$C$14,Positions_disbursement!$B$1:$B$14,Achievement_to_date_ongoing!$D26,Positions_disbursement!$A$1:$A$14,Achievement_to_date_ongoing!$C26), MAX(0,O$3-YEAR($I26)))/100)) -> 0 | P26: =IF($J26<DATE(P$3,12,31),1, IF($G26="Physical",0, OFFSET(Project_characteristics!$C$1, SUMIFS(Positions_disbursement!$C$1:$C$14,Positions_disbursement!$B$1:$B$14,Achievement_to_date_ongoing!$D26,Positions_disbursement!$A$1:$A$14,Achievement_to_date_ongoing!$C26), MAX(0,P$3-YEAR($I26)))/100)) -> 0
B27: 121499 | C27: 1 | D27: (i) | E27: F | F27: All | G27: Financial | H27: 102806731.3 | I27: 2018-09-01 | J27: 2023-09-30 | K27: 102806731.3 | M27: =IF($J27<DATE(M$3,12,31),1, IF($G27="Physical",0, OFFSET(Project_characteristics!$C$1, SUMIFS(Positions_disbursement!$C$1:$C$14,Positions_disbursement!$B$1:$B$14,Achievement_to_date_ongoing!$D27,Positions_disbursement!$A$1:$A$14,Achievement_to_date_ongoing!$C27), MAX(0,M$3-YEAR($I27)))/100)) -> 0 | N27: =IF($J27<DATE(N$3,12,31),1, IF($G27="Physical",0, OFFSET(Project_characteristics!$C$1, SUMIFS(Positions_disbursement!$C$1:$C$14,Positions_disbursement!$B$1:$B$14,Achievement_to_date_ongoing!$D27,Positions_disbursement!$A$1:$A$14,Achievement_to_date_ongoing!$C27), MAX(0,N$3-YEAR($I27)))/100)) -> 0 | O27: =IF($J27<DATE(O$3,12,31),1, IF($G27="Physical",0, OFFSET(Project_characteristics!$C$1, SUMIFS(Positions_disbursement!$C$1:$C$14,Positions_disbursement!$B$1:$B$14,Achievement_to_date_ongoing!$D27,Positions_disbursement!$A$1:$A$14,Achievement_to_date_ongoing!$C27), MAX(0,O$3-YEAR($I27)))/100)) -> 0 | P27: =IF($J27<DATE(P$3,12,31),1, IF($G27="Physical",0, OFFSET(Project_characteristics!$C$1, SUMIFS(Positions_disbursement!$C$1:$C$14,Positions_disbursement!$B$1:$B$14,Achievement_to_date_ongoing!$D27,Positions_disbursement!$A$1:$A$14,Achievement_to_date_ongoing!$C27), MAX(0,P$3-YEAR($I27)))/100)) -> 1
B28: 131354 | C28: 1 | D28: (i) | E28: F | F28: All | G28: Financial | H28: 122783.0015 | I28: 2017-02-23 | J28: 2023-01-31 | K28: 9799474.151 | M28: =IF($J28<DATE(M$3,12,31),1, IF($G28="Physical",0, OFFSET(Project_characteristics!$C$1, SUMIFS(Positions_disbursement!$C$1:$C$14,Positions_disbursement!$B$1:$B$14,Achievement_to_date_ongoing!$D28,Positions_disbursement!$A$1:$A$14,Achievement_to_date_ongoing!$C28), MAX(0,M$3-YEAR($I28)))/100)) -> 0 | N28: =IF($J28<DATE(N$3,12,31),1, IF($G28="Physical",0, OFFSET(Project_characteristics!$C$1, SUMIFS(Positions_disbursement!$C$1:$C$14,Positions_disbursement!$B$1:$B$14,Achievement_to_date_ongoing!$D28,Positions_disbursement!$A$1:$A$14,Achievement_to_date_ongoing!$C28), MAX(0,N$3-YEAR($I28)))/100)) -> 0 | O28: =IF($J28<DATE(O$3,12,31),1, IF($G28="Physical",0, OFFSET(Project_characteristics!$C$1, SUMIFS(Positions_disbursement!$C$1:$C$14,Positions_disbursement!$B$1:$B$14,Achievement_to_date_ongoing!$D28,Positions_disbursement!$A$1:$A$14,Achievement_to_date_ongoing!$C28), MAX(0,O$3-YEAR($I28)))/100)) -> 0 | P28: =IF($J28<DATE(P$3,12,31),1, IF($G28="Physical",0, OFFSET(Project_characteristics!$C$1, SUMIFS(Positions_disbursement!$C$1:$C$14,Positions_disbursement!$B$1:$B$14,Achievement_to_date_ongoing!$D28,Positions_disbursement!$A$1:$A$14,Achievement_to_date_ongoing!$C28), MAX(0,P$3-YEAR($I28)))/100)) -> 1
B29: 118697 | C29: 1 | D29: (i) | E29: F | F29: All | G29: Financial | H29: 2838536.4 | I29: 2019-03-01 | J29: 2021-12-31 | K29: 8350099.801 | M29: =IF($J29<DATE(M$3,12,31),1, IF($G29="Physical",0, OFFSET(Project_characteristics!$C$1, SUMIFS(Positions_disbursement!$C$1:$C$14,Positions_disbursement!$B$1:$B$14,Achievement_to_date_ongoing!$D29,Positions_disbursement!$A$1:$A$14,Achievement_to_date_ongoing!$C29), MAX(0,M$3-YEAR($I29)))/100)) -> 0 | N29: =IF($J29<DATE(N$3,12,31),1, IF($G29="Physical",0, OFFSET(Project_characteristics!$C$1, SUMIFS(Positions_disbursement!$C$1:$C$14,Positions_disbursement!$B$1:$B$14,Achievement_to_date_ongoing!$D29,Positions_disbursement!$A$1:$A$14,Achievement_to_date_ongoing!$C29), MAX(0,N$3-YEAR($I29)))/100)) -> 0 | O29: =IF($J29<DATE(O$3,12,31),1, IF($G29="Physical",0, OFFSET(Project_characteristics!$C$1, SUMIFS(Positions_disbursement!$C$1:$C$14,Positions_disbursement!$B$1:$B$14,Achievement_to_date_ongoing!$D29,Positions_disbursement!$A$1:$A$14,Achievement_to_date_ongoing!$C29), MAX(0,O$3-YEAR($I29)))/100)) -> 1 | P29: =IF($J29<DATE(P$3,12,31),1, IF($G29="Physical",0, OFFSET(Project_characteristics!$C$1, SUMIFS(Positions_disbursement!$C$1:$C$14,Positions_disbursement!$B$1:$B$14,Achievement_to_date_ongoing!$D29,Positions_disbursement!$A$1:$A$14,Achievement_to_date_ongoing!$C29), MAX(0,P$3-YEAR($I29)))/100)) -> 1
B30: 134340 | C30: 1 | D30: (i) | E30: F | F30: All | G30: Financial | H30: 676570.726 | I30: 2019-11-01 | J30: 2021-07-31 | K30: 4882068.036 | M30: =IF($J30<DATE(M$3,12,31),1, IF($G30="Physical",0, OFFSET(Project_characteristics!$C$1, SUMIFS(Positions_disbursement!$C$1:$C$14,Positions_disbursement!$B$1:$B$14,Achievement_to_date_ongoing!$D30,Positions_disbursement!$A$1:$A$14,Achievement_to_date_ongoing!$C30), MAX(0,M$3-YEAR($I30)))/100)) -> 0 | N30: =IF($J30<DATE(N$3,12,31),1, IF($G30="Physical",0, OFFSET(Project_characteristics!$C$1, SUMIFS(Positions_disbursement!$C$1:$C$14,Positions_disbursement!$B$1:$B$14,Achievement_to_date_ongoing!$D30,Positions_disbursement!$A$1:$A$14,Achievement_to_date_ongoing!$C30), MAX(0,N$3-YEAR($I30)))/100)) -> 1 | O30: =IF($J30<DATE(O$3,12,31),1, IF($G30="Physical",0, OFFSET(Project_characteristics!$C$1, SUMIFS(Positions_disbursement!$C$1:$C$14,Positions_disbursement!$B$1:$B$14,Achievement_to_date_ongoing!$D30,Positions_disbursement!$A$1:$A$14,Achievement_to_date_ongoing!$C30), MAX(0,O$3-YEAR($I30)))/100)) -> 1 | P30: =IF($J30<DATE(P$3,12,31),1, IF($G30="Physical",0, OFFSET(Project_characteristics!$C$1, SUMIFS(Positions_disbursement!$C$1:$C$14,Positions_disbursement!$B$1:$B$14,Achievement_to_date_ongoing!$D30,Positions_disbursement!$A$1:$A$14,Achievement_to_date_ongoing!$C30), MAX(0,P$3-YEAR($I30)))/100)) -> 1
B31: 121779 | C31: 1 | D31: (i) | E31: F | F31: All | G31: Financial | H31: 636262.73 | I31: 2017-08-01 | J31: 2023-12-31 | K31: 144710325.5 | M31: =IF($J31<DATE(M$3,12,31),1, IF($G31="Physical",0, OFFSET(Project_characteristics!$C$1, SUMIFS(Positions_disbursement!$C$1:$C$14,Positions_disbursement!$B$1:$B$14,Achievement_to_date_ongoing!$D31,Positions_disbursement!$A$1:$A$14,Achievement_to_date_ongoing!$C31), MAX(0,M$3-YEAR($I31)))/100)) -> 0 | N31: =IF($J31<DATE(N$3,12,31),1, IF($G31="Physical",0, OFFSET(Project_characteristics!$C$1, SUMIFS(Positions_disbursement!$C$1:$C$14,Positions_disbursement!$B$1:$B$14,Achievement_to_date_ongoing!$D31,Positions_disbursement!$A$1:$A$14,Achievement_to_date_ongoing!$C31), MAX(0,N$3-YEAR($I31)))/100)) -> 0 | O31: =IF($J31<DATE(O$3,12,31),1, IF($G31="Physical",0, OFFSET(Project_characteristics!$C$1, SUMIFS(Positions_disbursement!$C$1:$C$14,Positions_disbursement!$B$1:$B$14,Achievement_to_date_ongoing!$D31,Positions_disbursement!$A$1:$A$14,Achievement_to_date_ongoing!$C31), MAX(0,O$3-YEAR($I31)))/100)) -> 0 | P31: =IF($J31<DATE(P$3,12,31),1, IF($G31="Physical",0, OFFSET(Project_characteristics!$C$1, SUMIFS(Positions_disbursement!$C$1:$C$14,Positions_disbursement!$B$1:$B$14,Achievement_to_date_ongoing!$D31,Positions_disbursement!$A$1:$A$14,Achievement_to_date_ongoing!$C31), MAX(0,P$3-YEAR($I31)))/100)) -> 0
B32: 135147 | C32: 1 | D32: (i) | E32: F | F32: All | G32: Financial | H32: 30705988.12 | I32: 2016-04-04 | J32: 2022-09-30 | K32: 59881096.64 | M32: =IF($J32<DATE(M$3,12,31),1, IF($G32="Physical",0, OFFSET(Project_characteristics!$C$1, SUMIFS(Positions_disbursement!$C$1:$C$14,Positions_disbursement!$B$1:$B$14,Achievement_to_date_ongoing!$D32,Positions_disbursement!$A$1:$A$14,Achievement_to_date_ongoing!$C32), MAX(0,M$3-YEAR($I32)))/100)) -> 0 | N32: =IF($J32<DATE(N$3,12,31),1, IF($G32="Physical",0, OFFSET(Project_characteristics!$C$1, SUMIFS(Positions_disbursement!$C$1:$C$14,Positions_disbursement!$B$1:$B$14,Achievement_to_date_ongoing!$D32,Positions_disbursement!$A$1:$A$14,Achievement_to_date_ongoing!$C32), MAX(0,N$3-YEAR($I32)))/100)) -> 0 | O32: =IF($J32<DATE(O$3,12,31),1, IF($G32="Physical",0, OFFSET(Project_characteristics!$C$1, SUMIFS(Positions_disbursement!$C$1:$C$14,Positions_disbursement!$B$1:$B$14,Achievement_to_date_ongoing!$D32,Positions_disbursement!$A$1:$A$14,Achievement_to_date_ongoing!$C32), MAX(0,O$3-YEAR($I32)))/100)) -> 1 | P32: =IF($J32<DATE(P$3,12,31),1, IF($G32="Physical",0, OFFSET(Project_characteristics!$C$1, SUMIFS(Positions_disbursement!$C$1:$C$14,Positions_disbursement!$B$1:$B$14,Achievement_to_date_ongoing!$D32,Positions_disbursement!$A$1:$A$14,Achievement_to_date_ongoing!$C32), MAX(0,P$3-YEAR($I32)))/100)) -> 1
B33: 115748 | C33: 1 | D33: (i) | E33: F | F33: All | G33: Financial | H33: 838181006.9 | I33: 2014-01-01 | J33: 2023-12-30 | K33: 838181006.9 | M33: =IF($J33<DATE(M$3,12,31),1, IF($G33="Physical",0, OFFSET(Project_characteristics!$C$1, SUMIFS(Positions_disbursement!$C$1:$C$14,Positions_disbursement!$B$1:$B$14,Achievement_to_date_ongoing!$D33,Positions_disbursement!$A$1:$A$14,Achievement_to_date_ongoing!$C33), MAX(0,M$3-YEAR($I33)))/100)) -> 0 | N33: =IF($J33<DATE(N$3,12,31),1, IF($G33="Physical",0, OFFSET(Project_characteristics!$C$1, SUMIFS(Positions_disbursement!$C$1:$C$14,Positions_disbursement!$B$1:$B$14,Achievement_to_date_ongoing!$D33,Positions_disbursement!$A$1:$A$14,Achievement_to_date_ongoing!$C33), MAX(0,N$3-YEAR($I33)))/100)) -> 0 | O33: =IF($J33<DATE(O$3,12,31),1, IF($G33="Physical",0, OFFSET(Project_characteristics!$C$1, SUMIFS(Positions_disbursement!$C$1:$C$14,Positions_disbursement!$B$1:$B$14,Achievement_to_date_ongoing!$D33,Positions_disbursement!$A$1:$A$14,Achievement_to_date_ongoing!$C33), MAX(0,O$3-YEAR($I33)))/100)) -> 0 | P33: =IF($J33<DATE(P$3,12,31),1, IF($G33="Physical",0, OFFSET(Project_characteristics!$C$1, SUMIFS(Positions_disbursement!$C$1:$C$14,Positions_disbursement!$B$1:$B$14,Achievement_to_date_ongoing!$D33,Positions_disbursement!$A$1:$A$14,Achievement_to_date_ongoing!$C33), MAX(0,P$3-YEAR($I33)))/100)) -> 1
B34: 120919 | C34: 1 | D34: (i) | E34: F | F34: All | G34: Financial | H34: 25616.32 | I34: 2018-09-01 | J34: 2022-12-31 | K34: 25616.32 | M34: =IF($J34<DATE(M$3,12,31),1, IF($G34="Physical",0, OFFSET(Project_characteristics!$C$1, SUMIFS(Positions_disbursement!$C$1:$C$14,Positions_disbursement!$B$1:$B$14,Achievement_to_date_ongoing!$D34,Positions_disbursement!$A$1:$A$14,Achievement_to_date_ongoing!$C34), MAX(0,M$3-YEAR($I34)))/100)) -> 0 | N34: =IF($J34<DATE(N$3,12,31),1, IF($G34="Physical",0, OFFSET(Project_characteristics!$C$1, SUMIFS(Positions_disbursement!$C$1:$C$14,Positions_disbursement!$B$1:$B$14,Achievement_to_date_ongoing!$D34,Positions_disbursement!$A$1:$A$14,Achievement_to_date_ongoing!$C34), MAX(0,N$3-YEAR($I34)))/100)) -> 0 | O34: =IF($J34<DATE(O$3,12,31),1, IF($G34="Physical",0, OFFSET(Project_characteristics!$C$1, SUMIFS(Positions_disbursement!$C$1:$C$14,Positions_disbursement!$B$1:$B$14,Achievement_to_date_ongoing!$D34,Positions_disbursement!$A$1:$A$14,Achievement_to_date_ongoing!$C34), MAX(0,O$3-YEAR($I34)))/100)) -> 0 | P34: =IF($J34<DATE(P$3,12,31),1, IF($G34="Physical",0, OFFSET(Project_characteristics!$C$1, SUMIFS(Positions_disbursement!$C$1:$C$14,Positions_disbursement!$B$1:$B$14,Achievement_to_date_ongoing!$D34,Positions_disbursement!$A$1:$A$14,Achievement_to_date_ongoing!$C34), MAX(0,P$3-YEAR($I34)))/100)) -> 1
B35: 121106 | C35: 1 | D35: (i) | E35: F | F35: All | G35: Financial | H35: 250626901.3 | I35: 2016-07-01 | J35: 2021-06-30 | K35: 250626901.3 | M35: =IF($J35<DATE(M$3,12,31),1, IF($G35="Physical",0, OFFSET(Project_characteristics!$C$1, SUMIFS(Positions_disbursement!$C$1:$C$14,Positions_disbursement!$B$1:$B$14,Achievement_to_date_ongoing!$D35,Positions_disbursement!$A$1:$A$14,Achievement_to_date_ongoing!$C35), MAX(0,M$3-YEAR($I35)))/100)) -> 0 | N35: =IF($J35<DATE(N$3,12,31),1, IF($G35="Physical",0, OFFSET(Project_characteristics!$C$1, SUMIFS(Positions_disbursement!$C$1:$C$14,Positions_disbursement!$B$1:$B$14,Achievement_to_date_ongoing!$D35,Positions_disbursement!$A$1:$A$14,Achievement_to_date_ongoing!$C35), MAX(0,N$3-YEAR($I35)))/100)) -> 1 | O35: =IF($J35<DATE(O$3,12,31),1, IF($G35="Physical",0, OFFSET(Project_characteristics!$C$1, SUMIFS(Positions_disbursement!$C$1:$C$14,Positions_disbursement!$B$1:$B$14,Achievement_to_date_ongoing!$D35,Positions_disbursement!$A$1:$A$14,Achievement_to_date_ongoing!$C35), MAX(0,O$3-YEAR($I35)))/100)) -> 1 | P35: =IF($J35<DATE(P$3,12,31),1, IF($G35="Physical",0, OFFSET(Project_characteristics!$C$1, SUMIFS(Positions_disbursement!$C$1:$C$14,Positions_disbursement!$B$1:$B$14,Achievement_to_date_ongoing!$D35,Positions_disbursement!$A$1:$A$14,Achievement_to_date_ongoing!$C35), MAX(0,P$3-YEAR($I35)))/100)) -> 1
B36: 120940 | C36: 1 | D36: (i) | E36: F | F36: All | G36: Financial | H36: 39480.46989 | I36: 2017-04-01 | J36: 2022-05-31 | K36: 21754379.67 | M36: =IF($J36<DATE(M$3,12,31),1, IF($G36="Physical",0, OFFSET(Project_characteristics!$C$1, SUMIFS(Positions_disbursement!$C$1:$C$14,Positions_disbursement!$B$1:$B$14,Achievement_to_date_ongoing!$D36,Positions_disbursement!$A$1:$A$14,Achievement_to_date_ongoing!$C36), MAX(0,M$3-YEAR($I36)))/100)) -> 0 | N36: =IF($J36<DATE(N$3,12,31),1, IF($G36="Physical",0, OFFSET(Project_characteristics!$C$1, SUMIFS(Positions_disbursement!$C$1:$C$14,Positions_disbursement!$B$1:$B$14,Achievement_to_date_ongoing!$D36,Positions_disbursement!$A$1:$A$14,Achievement_to_date_ongoing!$C36), MAX(0,N$3-YEAR($I36)))/100)) -> 0 | O36: =IF($J36<DATE(O$3,12,31),1, IF($G36="Physical",0, OFFSET(Project_characteristics!$C$1, SUMIFS(Positions_disbursement!$C$1:$C$14,Positions_disbursement!$B$1:$B$14,Achievement_to_date_ongoing!$D36,Positions_disbursement!$A$1:$A$14,Achievement_to_date_ongoing!$C36), MAX(0,O$3-YEAR($I36)))/100)) -> 1 | P36: =IF($J36<DATE(P$3,12,31),1, IF($G36="Physical",0, OFFSET(Project_characteristics!$C$1, SUMIFS(Positions_disbursement!$C$1:$C$14,Positions_disbursement!$B$1:$B$14,Achievement_to_date_ongoing!$D36,Positions_disbursement!$A$1:$A$14,Achievement_to_date_ongoing!$C36), MAX(0,P$3-YEAR($I36)))/100)) -> 1
B37: 110706 | C37: 1 | D37: (i) | E37: F | F37: All | G37: Financial | H37: 512199538.4 | I37: 2012-03-14 | J37: 2022-10-23 | K37: 548986081.3 | M37: =IF($J37<DATE(M$3,12,31),1, IF($G37="Physical",0, OFFSET(Project_characteristics!$C$1, SUMIFS(Positions_disbursement!$C$1:$C$14,Positions_disbursement!$B$1:$B$14,Achievement_to_date_ongoing!$D37,Positions_disbursement!$A$1:$A$14,Achievement_to_date_ongoing!$C37), MAX(0,M$3-YEAR($I37)))/100)) -> 0 | N37: =IF($J37<DATE(N$3,12,31),1, IF($G37="Physical",0, OFFSET(Project_characteristics!$C$1, SUMIFS(Positions_disbursement!$C$1:$C$14,Positions_disbursement!$B$1:$B$14,Achievement_to_date_ongoing!$D37,Positions_disbursement!$A$1:$A$14,Achievement_to_date_ongoing!$C37), MAX(0,N$3-YEAR($I37)))/100)) -> 0 | O37: =IF($J37<DATE(O$3,12,31),1, IF($G37="Physical",0, OFFSET(Project_characteristics!$C$1, SUMIFS(Positions_disbursement!$C$1:$C$14,Positions_disbursement!$B$1:$B$14,Achievement_to_date_ongoing!$D37,Positions_disbursement!$A$1:$A$14,Achievement_to_date_ongoing!$C37), MAX(0,O$3-YEAR($I37)))/100)) -> 1 | P37: =IF($J37<DATE(P$3,12,31),1, IF($G37="Physical",0, OFFSET(Project_characteristics!$C$1, SUMIFS(Positions_disbursement!$C$1:$C$14,Positions_disbursement!$B$1:$B$14,Achievement_to_date_ongoing!$D37,Positions_disbursement!$A$1:$A$14,Achievement_to_date_ongoing!$C37), MAX(0,P$3-YEAR($I37)))/100)) -> 1
B38: 128749 | C38: 1 | D38: (i) | E38: F | F38: All | G38: Financial | H38: 224883497 | I38: 2014-01-01 | J38: 2023-12-31 | K38: 2173690925 | M38: =IF($J38<DATE(M$3,12,31),1, IF($G38="Physical",0, OFFSET(Project_characteristics!$C$1, SUMIFS(Positions_disbursement!$C$1:$C$14,Positions_disbursement!$B$1:$B$14,Achievement_to_date_ongoing!$D38,Positions_disbursement!$A$1:$A$14,Achievement_to_date_ongoing!$C38), MAX(0,M$3-YEAR($I38)))/100)) -> 0 | N38: =IF($J38<DATE(N$3,12,31),1, IF($G38="Physical",0, OFFSET(Project_characteristics!$C$1, SUMIFS(Positions_disbursement!$C$1:$C$14,Positions_disbursement!$B$1:$B$14,Achievement_to_date_ongoing!$D38,Positions_disbursement!$A$1:$A$14,Achievement_to_date_ongoing!$C38), MAX(0,N$3-YEAR($I38)))/100)) -> 0 | O38: =IF($J38<DATE(O$3,12,31),1, IF($G38="Physical",0, OFFSET(Project_characteristics!$C$1, SUMIFS(Positions_disbursement!$C$1:$C$14,Positions_disbursement!$B$1:$B$14,Achievement_to_date_ongoing!$D38,Positions_disbursement!$A$1:$A$14,Achievement_to_date_ongoing!$C38), MAX(0,O$3-YEAR($I38)))/100)) -> 0 | P38: =IF($J38<DATE(P$3,12,31),1, IF($G38="Physical",0, OFFSET(Project_characteristics!$C$1, SUMIFS(Positions_disbursement!$C$1:$C$14,Positions_disbursement!$B$1:$B$14,Achievement_to_date_ongoing!$D38,Positions_disbursement!$A$1:$A$14,Achievement_to_date_ongoing!$C38), MAX(0,P$3-YEAR($I38)))/100)) -> 0
B39: 111687 | C39: 1 | D39: (ii) | E39: F | F39: All | G39: Financial | H39: 837653996.5 | I39: 2016-01-01 | J39: 2022-12-31 | K39: 837653996.5 | M39: =IF($J39<DATE(M$3,12,31),1, IF($G39="Physical",0, OFFSET(Project_characteristics!$C$1, SUMIFS(Positions_disbursement!$C$1:$C$14,Positions_disbursement!$B$1:$B$14,Achievement_to_date_ongoing!$D39,Positions_disbursement!$A$1:$A$14,Achievement_to_date_ongoing!$C39), MAX(0,M$3-YEAR($I39)))/100)) -> 0 | N39: =IF($J39<DATE(N$3,12,31),1, IF($G39="Physical",0, OFFSET(Project_characteristics!$C$1, SUMIFS(Positions_disbursement!$C$1:$C$14,Positions_disbursement!$B$1:$B$14,Achievement_to_date_ongoing!$D39,Positions_disbursement!$A$1:$A$14,Achievement_to_date_ongoing!$C39), MAX(0,N$3-YEAR($I39)))/100)) -> 0 | O39: =IF($J39<DATE(O$3,12,31),1, IF($G39="Physical",0, OFFSET(Project_characteristics!$C$1, SUMIFS(Positions_disbursement!$C$1:$C$14,Positions_disbursement!$B$1:$B$14,Achievement_to_date_ongoing!$D39,Positions_disbursement!$A$1:$A$14,Achievement_to_date_ongoing!$C39), MAX(0,O$3-YEAR($I39)))/100)) -> 0 | P39: =IF($J39<DATE(P$3,12,31),1, IF($G39="Physical",0, OFFSET(Project_characteristics!$C$1, SUMIFS(Positions_disbursement!$C$1:$C$14,Positions_disbursement!$B$1:$B$14,Achievement_to_date_ongoing!$D39,Positions_disbursement!$A$1:$A$14,Achievement_to_date_ongoing!$C39), MAX(0,P$3-YEAR($I39)))/100)) -> 1
B40: 111325 | C40: 1 | D40: (ii) | E40: F | F40: All | G40: Financial | H40: 99534042.88 | I40: 2016-01-01 | J40: 2023-03-07 | K40: 99534042.88 | M40: =IF($J40<DATE(M$3,12,31),1, IF($G40="Physical",0, OFFSET(Project_characteristics!$C$1, SUMIFS(Positions_disbursement!$C$1:$C$14,Positions_disbursement!$B$1:$B$14,Achievement_to_date_ongoing!$D40,Positions_disbursement!$A$1:$A$14,Achievement_to_date_ongoing!$C40), MAX(0,M$3-YEAR($I40)))/100)) -> 0 | N40: =IF($J40<DATE(N$3,12,31),1, IF($G40="Physical",0, OFFSET(Project_characteristics!$C$1, SUMIFS(Positions_disbursement!$C$1:$C$14,Positions_disbursement!$B$1:$B$14,Achievement_to_date_ongoing!$D40,Positions_disbursement!$A$1:$A$14,Achievement_to_date_ongoing!$C40), MAX(0,N$3-YEAR($I40)))/100)) -> 0 | O40: =IF($J40<DATE(O$3,12,31),1, IF($G40="Physical",0, OFFSET(Project_characteristics!$C$1, SUMIFS(Positions_disbursement!$C$1:$C$14,Positions_disbursement!$B$1:$B$14,Achievement_to_date_ongoing!$D40,Positions_disbursement!$A$1:$A$14,Achievement_to_date_ongoing!$C40), MAX(0,O$3-YEAR($I40)))/100)) -> 0 | P40: =IF($J40<DATE(P$3,12,31),1, IF($G40="Physical",0, OFFSET(Project_characteristics!$C$1, SUMIFS(Positions_disbursement!$C$1:$C$14,Positions_disbursement!$B$1:$B$14,Achievement_to_date_ongoing!$D40,Positions_disbursement!$A$1:$A$14,Achievement_to_date_ongoing!$C40), MAX(0,P$3-YEAR($I40)))/100)) -> 1
B41: 137950 | C41: 1 | D41: (ii) | E41: F | F41: All | G41: Financial | H41: 23828727.75 | I41: 2018-11-21 | J41: 2023-05-31 | K41: 82869341.89 | M41: =IF($J41<DATE(M$3,12,31),1, IF($G41="Physical",0, OFFSET(Project_characteristics!$C$1, SUMIFS(Positions_disbursement!$C$1:$C$14,Positions_disbursement!$B$1:$B$14,Achievement_to_date_ongoing!$D41,Positions_disbursement!$A$1:$A$14,Achievement_to_date_ongoing!$C41), MAX(0,M$3-YEAR($I41)))/100)) -> 0 | N41: =IF($J41<DATE(N$3,12,31),1, IF($G41="Physical",0, OFFSET(Project_characteristics!$C$1, SUMIFS(Positions_disbursement!$C$1:$C$14,Positions_disbursement!$B$1:$B$14,Achievement_to_date_ongoing!$D41,Positions_disbursement!$A$1:$A$14,Achievement_to_date_ongoing!$C41), MAX(0,N$3-YEAR($I41)))/100)) -> 0 | O41: =IF($J41<DATE(O$3,12,31),1, IF($G41="Physical",0, OFFSET(Project_characteristics!$C$1, SUMIFS(Positions_disbursement!$C$1:$C$14,Positions_disbursement!$B$1:$B$14,Achievement_to_date_ongoing!$D41,Positions_disbursement!$A$1:$A$14,Achievement_to_date_ongoing!$C41), MAX(0,O$3-YEAR($I41)))/100)) -> 0 | P41: =IF($J41<DATE(P$3,12,31),1, IF($G41="Physical",0, OFFSET(Project_characteristics!$C$1, SUMIFS(Positions_disbursement!$C$1:$C$14,Positions_disbursement!$B$1:$B$14,Achievement_to_date_ongoing!$D41,Positions_disbursement!$A$1:$A$14,Achievement_to_date_ongoing!$C41), MAX(0,P$3-YEAR($I41)))/100)) -> 1
B42: 110638 | C42: 2 | D42: (a) | E42: CO13a | F42: Less developed | G42: Physical | H42: 46.605 | I42: 2017-07-31 | J42: 2023-12-31 | K42: 76.71497191 | M42: =IF($J42<DATE(M$3,12,31),1, IF($G42="Physical",0, OFFSET(Project_characteristics!$C$1, SUMIFS(Positions_disbursement!$C$1:$C$14,Positions_disbursement!$B$1:$B$14,Achievement_to_date_ongoing!$D42,Positions_disbursement!$A$1:$A$14,Achievement_to_date_ongoing!$C42), MAX(0,M$3-YEAR($I42)))/100)) -> 0 | N42: =IF($J42<DATE(N$3,12,31),1, IF($G42="Physical",0, OFFSET(Project_characteristics!$C$1, SUMIFS(Positions_disbursement!$C$1:$C$14,Positions_disbursement!$B$1:$B$14,Achievement_to_date_ongoing!$D42,Positions_disbursement!$A$1:$A$14,Achievement_to_date_ongoing!$C42), MAX(0,N$3-YEAR($I42)))/100)) -> 0 | O42: =IF($J42<DATE(O$3,12,31),1, IF($G42="Physical",0, OFFSET(Project_characteristics!$C$1, SUMIFS(Positions_disbursement!$C$1:$C$14,Positions_disbursement!$B$1:$B$14,Achievement_to_date_ongoing!$D42,Positions_disbursement!$A$1:$A$14,Achievement_to_date_ongoing!$C42), MAX(0,O$3-YEAR($I42)))/100)) -> 0 | P42: =IF($J42<DATE(P$3,12,31),1, IF($G42="Physical",0, OFFSET(Project_characteristics!$C$1, SUMIFS(Positions_disbursement!$C$1:$C$14,Positions_disbursement!$B$1:$B$14,Achievement_to_date_ongoing!$D42,Positions_disbursement!$A$1:$A$14,Achievement_to_date_ongoing!$C42), MAX(0,P$3-YEAR($I42)))/100)) -> 0
B43: 129377 | C43: 2 | D43: (a) | E43: CO13a | F43: Less developed | G43: Physical | H43: 5.35 | I43: 2018-12-20 | J43: 2023-12-31 | K43: 10.71750273 | M43: =IF($J43<DATE(M$3,12,31),1, IF($G43="Physical",0, OFFSET(Project_characteristics!$C$1, SUMIFS(Positions_disbursement!$C$1:$C$14,Positions_disbursement!$B$1:$B$14,Achievement_to_date_ongoing!$D43,Positions_disbursement!$A$1:$A$14,Achievement_to_date_ongoing!$C43), MAX(0,M$3-YEAR($I43)))/100)) -> 0 | N43: =IF($J43<DATE(N$3,12,31),1, IF($G43="Physical",0, OFFSET(Project_characteristics!$C$1, SUMIFS(Positions_disbursement!$C$1:$C$14,Positions_disbursement!$B$1:$B$14,Achievement_to_date_ongoing!$D43,Positions_disbursement!$A$1:$A$14,Achievement_to_date_ongoing!$C43), MAX(0,N$3-YEAR($I43)))/100)) -> 0 | O43: =IF($J43<DATE(O$3,12,31),1, IF($G43="Physical",0, OFFSET(Project_characteristics!$C$1, SUMIFS(Positions_disbursement!$C$1:$C$14,Positions_disbursement!$B$1:$B$14,Achievement_to_date_ongoing!$D43,Positions_disbursement!$A$1:$A$14,Achievement_to_date_ongoing!$C43), MAX(0,O$3-YEAR($I43)))/100)) -> 0 | P43: =IF($J43<DATE(P$3,12,31),1, IF($G43="Physical",0, OFFSET(Project_characteristics!$C$1, SUMIFS(Positions_disbursement!$C$1:$C$14,Positions_disbursement!$B$1:$B$14,Achievement_to_date_ongoing!$D43,Positions_disbursement!$A$1:$A$14,Achievement_to_date_ongoing!$C43), MAX(0,P$3-YEAR($I43)))/100)) -> 0
B44: 121490 | C44: 2 | D44: (a) | E44: CO13a | F44: Less developed | G44: Physical | H44: 0 | I44: 2014-01-01 | J44: 2023-12-31 | K44: 3.30884662 | M44: =IF($J44<DATE(M$3,12,31),1, IF($G44="Physical",0, OFFSET(Project_characteristics!$C$1, SUMIFS(Positions_disbursement!$C$1:$C$14,Positions_disbursement!$B$1:$B$14,Achievement_to_date_ongoing!$D44,Positions_disbursement!$A$1:$A$14,Achievement_to_date_ongoing!$C44), MAX(0,M$3-YEAR($I44)))/100)) -> 0 | N44: =IF($J44<DATE(N$3,12,31),1, IF($G44="Physical",0, OFFSET(Project_characteristics!$C$1, SUMIFS(Positions_disbursement!$C$1:$C$14,Positions_disbursement!$B$1:$B$14,Achievement_to_date_ongoing!$D44,Positions_disbursement!$A$1:$A$14,Achievement_to_date_ongoing!$C44), MAX(0,N$3-YEAR($I44)))/100)) -> 0 | O44: =IF($J44<DATE(O$3,12,31),1, IF($G44="Physical",0, OFFSET(Project_characteristics!$C$1, SUMIFS(Positions_disbursement!$C$1:$C$14,Positions_disbursement!$B$1:$B$14,Achievement_to_date_ongoing!$D44,Positions_disbursement!$A$1:$A$14,Achievement_to_date_ongoing!$C44), MAX(0,O$3-YEAR($I44)))/100)) -> 0 | P44: =IF($J44<DATE(P$3,12,31),1, IF($G44="Physical",0, OFFSET(Project_characteristics!$C$1, SUMIFS(Positions_disbursement!$C$1:$C$14,Positions_disbursement!$B$1:$B$14,Achievement_to_date_ongoing!$D44,Positions_disbursement!$A$1:$A$14,Achievement_to_date_ongoing!$C44), MAX(0,P$3-YEAR($I44)))/100)) -> 0
B45: 123691 | C45: 2 | D45: (a) | E45: CO13a | F45: Less developed | G45: Physical | H45: 9.86 | I45: 2014-01-01 | J45: 2023-12-31 | K45: 13.18156719 | M45: =IF($J45<DATE(M$3,12,31),1, IF($G45="Physical",0, OFFSET(Project_characteristics!$C$1, SUMIFS(Positions_disbursement!$C$1:$C$14,Positions_disbursement!$B$1:$B$14,Achievement_to_date_ongoing!$D45,Positions_disbursement!$A$1:$A$14,Achievement_to_date_ongoing!$C45), MAX(0,M$3-YEAR($I45)))/100)) -> 0 | N45: =IF($J45<DATE(N$3,12,31),1, IF($G45="Physical",0, OFFSET(Project_characteristics!$C$1, SUMIFS(Positions_disbursement!$C$1:$C$14,Positions_disbursement!$B$1:$B$14,Achievement_to_date_ongoing!$D45,Positions_disbursement!$A$1:$A$14,Achievement_to_date_ongoing!$C45), MAX(0,N$3-YEAR($I45)))/100)) -> 0 | O45: =IF($J45<DATE(O$3,12,31),1, IF($G45="Physical",0, OFFSET(Project_characteristics!$C$1, SUMIFS(Positions_disbursement!$C$1:$C$14,Positions_disbursement!$B$1:$B$14,Achievement_to_date_ongoing!$D45,Positions_disbursement!$A$1:$A$14,Achievement_to_date_ongoing!$C45), MAX(0,O$3-YEAR($I45)))/100)) -> 0 | P45: =IF($J45<DATE(P$3,12,31),1, IF($G45="Physical",0, OFFSET(Project_characteristics!$C$1, SUMIFS(Positions_disbursement!$C$1:$C$14,Positions_disbursement!$B$1:$B$14,Achievement_to_date_ongoing!$D45,Positions_disbursement!$A$1:$A$14,Achievement_to_date_ongoing!$C45), MAX(0,P$3-YEAR($I45)))/100)) -> 0
B46: 111429 | C46: 2 | D46: (a) | E46: CO13a | F46: Less developed | G46: Physical | H46: 0 | I46: 2014-01-01 | J46: 2023-12-31 | K46: 9.509658537 | M46: =IF($J46<DATE(M$3,12,31),1, IF($G46="Physical",0, OFFSET(Project_characteristics!$C$1, SUMIFS(Positions_disbursement!$C$1:$C$14,Positions_disbursement!$B$1:$B$14,Achievement_to_date_ongoing!$D46,Positions_disbursement!$A$1:$A$14,Achievement_to_date_ongoing!$C46), MAX(0,M$3-YEAR($I46)))/100)) -> 0 | N46: =IF($J46<DATE(N$3,12,31),1, IF($G46="Physical",0, OFFSET(Project_characteristics!$C$1, SUMIFS(Positions_disbursement!$C$1:$C$14,Positions_disbursement!$B$1:$B$14,Achievement_to_date_ongoing!$D46,Positions_disbursement!$A$1:$A$14,Achievement_to_date_ongoing!$C46), MAX(0,N$3-YEAR($I46)))/100)) -> 0 | O46: =IF($J46<DATE(O$3,12,31),1, IF($G46="Physical",0, OFFSET(Project_characteristics!$C$1, SUMIFS(Positions_disbursement!$C$1:$C$14,Positions_disbursement!$B$1:$B$14,Achievement_to_date_ongoing!$D46,Positions_disbursement!$A$1:$A$14,Achievement_to_date_ongoing!$C46), MAX(0,O$3-YEAR($I46)))/100)) -> 0 | P46: =IF($J46<DATE(P$3,12,31),1, IF($G46="Physical",0, OFFSET(Project_characteristics!$C$1, SUMIFS(Positions_disbursement!$C$1:$C$14,Positions_disbursement!$B$1:$B$14,Achievement_to_date_ongoing!$D46,Positions_disbursement!$A$1:$A$14,Achievement_to_date_ongoing!$C46), MAX(0,P$3-YEAR($I46)))/100)) -> 0
B47: 118317 | C47: 2 | D47: (a) | E47: CO13a | F47: Less developed | G47: Physical | H47: 28.75 | I47: 2014-01-01 | J47: 2022-12-31 | K47: 34.59264006 | M47: =IF($J47<DATE(M$3,12,31),1, IF($G47="Physical",0, OFFSET(Project_characteristics!$C$1, SUMIFS(Positions_disbursement!$C$1:$C$14,Positions_disbursement!$B$1:$B$14,Achievement_to_date_ongoing!$D47,Positions_disbursement!$A$1:$A$14,Achievement_to_date_ongoing!$C47), MAX(0,M$3-YEAR($I47)))/100)) -> 0 | N47: =IF($J47<DATE(N$3,12,31),1, IF($G47="Physical",0, OFFSET(Project_characteristics!$C$1, SUMIFS(Positions_disbursement!$C$1:$C$14,Positions_disbursement!$B$1:$B$14,Achievement_to_date_ongoing!$D47,Positions_disbursement!$A$1:$A$14,Achievement_to_date_ongoing!$C47), MAX(0,N$3-YEAR($I47)))/100)) -> 0 | O47: =IF($J47<DATE(O$3,12,31),1, IF($G47="Physical",0, OFFSET(Project_characteristics!$C$1, SUMIFS(Positions_disbursement!$C$1:$C$14,Positions_disbursement!$B$1:$B$14,Achievement_to_date_ongoing!$D47,Positions_disbursement!$A$1:$A$14,Achievement_to_date_ongoing!$C47), MAX(0,O$3-YEAR($I47)))/100)) -> 0 | P47: =IF($J47<DATE(P$3,12,31),1, IF($G47="Physical",0, OFFSET(Project_characteristics!$C$1, SUMIFS(Positions_disbursement!$C$1:$C$14,Positions_disbursement!$B$1:$B$14,Achievement_to_date_ongoing!$D47,Positions_disbursement!$A$1:$A$14,Achievement_to_date_ongoing!$C47), MAX(0,P$3-YEAR($I47)))/100)) -> 1
B48: 110595 | C48: 2 | D48: (a) | E48: CO13a | F48: Less developed | G48: Physical | H48: 10.345 | I48: 2014-01-01 | J48: 2021-06-30 | K48: 10.36772794 | M48: =IF($J48<DATE(M$3,12,31),1, IF($G48="Physical",0, OFFSET(Project_characteristics!$C$1, SUMIFS(Positions_disbursement!$C$1:$C$14,Positions_disbursement!$B$1:$B$14,Achievement_to_date_ongoing!$D48,Positions_disbursement!$A$1:$A$14,Achievement_to_date_ongoing!$C48), MAX(0,M$3-YEAR($I48)))/100)) -> 0 | N48: =IF($J48<DATE(N$3,12,31),1, IF($G48="Physical",0, OFFSET(Project_characteristics!$C$1, SUMIFS(Positions_disbursement!$C$1:$C$14,Positions_disbursement!$B$1:$B$14,Achievement_to_date_ongoing!$D48,Positions_disbursement!$A$1:$A$14,Achievement_to_date_ongoing!$C48), MAX(0,N$3-YEAR($I48)))/100)) -> 1 | O48: =IF($J48<DATE(O$3,12,31),1, IF($G48="Physical",0, OFFSET(Project_characteristics!$C$1, SUMIFS(Positions_disbursement!$C$1:$C$14,Positions_disbursement!$B$1:$B$14,Achievement_to_date_ongoing!$D48,Positions_disbursement!$A$1:$A$14,Achievement_to_date_ongoing!$C48), MAX(0,O$3-YEAR($I48)))/100)) -> 1 | P48: =IF($J48<DATE(P$3,12,31),1, IF($G48="Physical",0, OFFSET(Project_characteristics!$C$1, SUMIFS(Positions_disbursement!$C$1:$C$14,Positions_disbursement!$B$1:$B$14,Achievement_to_date_ongoing!$D48,Positions_disbursement!$A$1:$A$14,Achievement_to_date_ongoing!$C48), MAX(0,P$3-YEAR($I48)))/100)) -> 1
B49: 110661 | C49: 2 | D49: (a) | E49: CO13a | F49: Less developed | G49: Physical | H49: 103.899 | I49: 2014-01-01 | J49: 2023-12-31 | K49: 138.8997616 | M49: =IF($J49<DATE(M$3,12,31),1, IF($G49="Physical",0, OFFSET(Project_characteristics!$C$1, SUMIFS(Positions_disbursement!$C$1:$C$14,Positions_disbursement!$B$1:$B$14,Achievement_to_date_ongoing!$D49,Positions_disbursement!$A$1:$A$14,Achievement_to_date_ongoing!$C49), MAX(0,M$3-YEAR($I49)))/100)) -> 0 | N49: =IF($J49<DATE(N$3,12,31),1, IF($G49="Physical",0, OFFSET(Project_characteristics!$C$1, SUMIFS(Positions_disbursement!$C$1:$C$14,Positions_disbursement!$B$1:$B$14,Achievement_to_date_ongoing!$D49,Positions_disbursement!$A$1:$A$14,Achievement_to_date_ongoing!$C49), MAX(0,N$3-YEAR($I49)))/100)) -> 0 | O49: =IF($J49<DATE(O$3,12,31),1, IF($G49="Physical",0, OFFSET(Project_characteristics!$C$1, SUMIFS(Positions_disbursement!$C$1:$C$14,Positions_disbursement!$B$1:$B$14,Achievement_to_date_ongoing!$D49,Positions_disbursement!$A$1:$A$14,Achievement_to_date_ongoing!$C49), MAX(0,O$3-YEAR($I49)))/100)) -> 0 | P49: =IF($J49<DATE(P$3,12,31),1, IF($G49="Physical",0, OFFSET(Project_characteristics!$C$1, SUMIFS(Positions_disbursement!$C$1:$C$14,Positions_disbursement!$B$1:$B$14,Achievement_to_date_ongoing!$D49,Positions_disbursement!$A$1:$A$14,Achievement_to_date_ongoing!$C49), MAX(0,P$3-YEAR($I49)))/100)) -> 0
B50: 116018 | C50: 2 | D50: (a) | E50: CO13a | F50: Less developed | G50: Physical | H50: 29.031 | I50: 2014-05-19 | J50: 2021-11-30 | K50: 30.81115002 | M50: =IF($J50<DATE(M$3,12,31),1, IF($G50="Physical",0, OFFSET(Project_characteristics!$C$1, SUMIFS(Positions_disbursement!$C$1:$C$14,Positions_disbursement!$B$1:$B$14,Achievement_to_date_ongoing!$D50,Positions_disbursement!$A$1:$A$14,Achievement_to_date_ongoing!$C50), MAX(0,M$3-YEAR($I50)))/100)) -> 0 | N50: =IF($J50<DATE(N$3,12,31),1, IF($G50="Physical",0, OFFSET(Project_characteristics!$C$1, SUMIFS(Positions_disbursement!$C$1:$C$14,Positions_disbursement!$B$1:$B$14,Achievement_to_date_ongoing!$D50,Positions_disbursement!$A$1:$A$14,Achievement_to_date_ongoing!$C50), MAX(0,N$3-YEAR($I50)))/100)) -> 1 | O50: =IF($J50<DATE(O$3,12,31),1, IF($G50="Physical",0, OFFSET(Project_characteristics!$C$1, SUMIFS(Positions_disbursement!$C$1:$C$14,Positions_disbursement!$B$1:$B$14,Achievement_to_date_ongoing!$D50,Positions_disbursement!$A$1:$A$14,Achievement_to_date_ongoing!$C50), MAX(0,O$3-YEAR($I50)))/100)) -> 1 | P50: =IF($J50<DATE(P$3,12,31),1, IF($G50="Physical",0, OFFSET(Project_characteristics!$C$1, SUMIFS(Positions_disbursement!$C$1:$C$14,Positions_disbursement!$B$1:$B$14,Achievement_to_date_ongoing!$D50,Positions_disbursement!$A$1:$A$14,Achievement_to_date_ongoing!$C50), MAX(0,P$3-YEAR($I50)))/100)) -> 1
B51: 118450 | C51: 2 | D51: (a) | E51: CO13a | F51: Less developed | G51: Physical | H51: 9.653 | I51: 2014-01-01 | J51: 2023-12-31 | K51: 12.90483449 | M51: =IF($J51<DATE(M$3,12,31),1, IF($G51="Physical",0, OFFSET(Project_characteristics!$C$1, SUMIFS(Positions_disbursement!$C$1:$C$14,Positions_disbursement!$B$1:$B$14,Achievement_to_date_ongoing!$D51,Positions_disbursement!$A$1:$A$14,Achievement_to_date_ongoing!$C51), MAX(0,M$3-YEAR($I51)))/100)) -> 0 | N51: =IF($J51<DATE(N$3,12,31),1, IF($G51="Physical",0, OFFSET(Project_characteristics!$C$1, SUMIFS(Positions_disbursement!$C$1:$C$14,Positions_disbursement!$B$1:$B$14,Achievement_to_date_ongoing!$D51,Positions_disbursement!$A$1:$A$14,Achievement_to_date_ongoing!$C51), MAX(0,N$3-YEAR($I51)))/100)) -> 0 | O51: =IF($J51<DATE(O$3,12,31),1, IF($G51="Physical",0, OFFSET(Project_characteristics!$C$1, SUMIFS(Positions_disbursement!$C$1:$C$14,Positions_disbursement!$B$1:$B$14,Achievement_to_date_ongoing!$D51,Positions_disbursement!$A$1:$A$14,Achievement_to_date_ongoing!$C51), MAX(0,O$3-YEAR($I51)))/100)) -> 0 | P51: =IF($J51<DATE(P$3,12,31),1, IF($G51="Physical",0, OFFSET(Project_characteristics!$C$1, SUMIFS(Positions_disbursement!$C$1:$C$14,Positions_disbursement!$B$1:$B$14,Achievement_to_date_ongoing!$D51,Positions_disbursement!$A$1:$A$14,Achievement_to_date_ongoing!$C51), MAX(0,P$3-YEAR($I51)))/100)) -> 0
B52: 119143 | C52: 2 | D52: (a) | E52: CO13a | F52: Less developed | G52: Physical | H52: 0 | I52: 2017-10-01 | J52: 2023-12-31 | K52: 5.374195807 | M52: =IF($J52<DATE(M$3,12,31),1, IF($G52="Physical",0, OFFSET(Project_characteristics!$C$1, SUMIFS(Positions_disbursement!$C$1:$C$14,Positions_disbursement!$B$1:$B$14,Achievement_to_date_ongoing!$D52,Positions_disbursement!$A$1:$A$14,Achievement_to_date_ongoing!$C52), MAX(0,M$3-YEAR($I52)))/100)) -> 0 | N52: =IF($J52<DATE(N$3,12,31),1, IF($G52="Physical",0, OFFSET(Project_characteristics!$C$1, SUMIFS(Positions_disbursement!$C$1:$C$14,Positions_disbursement!$B$1:$B$14,Achievement_to_date_ongoing!$D52,Positions_disbursement!$A$1:$A$14,Achievement_to_date_ongoing!$C52), MAX(0,N$3-YEAR($I52)))/100)) -> 0 | O52: =IF($J52<DATE(O$3,12,31),1, IF($G52="Physical",0, OFFSET(Project_characteristics!$C$1, SUMIFS(Positions_disbursement!$C$1:$C$14,Positions_disbursement!$B$1:$B$14,Achievement_to_date_ongoing!$D52,Positions_disbursement!$A$1:$A$14,Achievement_to_date_ongoing!$C52), MAX(0,O$3-YEAR($I52)))/100)) -> 0 | P52: =IF($J52<DATE(P$3,12,31),1, IF($G52="Physical",0, OFFSET(Project_characteristics!$C$1, SUMIFS(Positions_disbursement!$C$1:$C$14,Positions_disbursement!$B$1:$B$14,Achievement_to_date_ongoing!$D52,Positions_disbursement!$A$1:$A$14,Achievement_to_date_ongoing!$C52), MAX(0,P$3-YEAR($I52)))/100)) -> 0
B53: 117854 | C53: 2 | D53: (a) | E53: CO13a | F53: Less developed | G53: Physical | H53: 0 | I53: 2014-01-01 | J53: 2023-12-31 | K53: 9.309555502 | M53: =IF($J53<DATE(M$3,12,31),1, IF($G53="Physical",0, OFFSET(Project_characteristics!$C$1, SUMIFS(Positions_disbursement!$C$1:$C$14,Positions_disbursement!$B$1:$B$14,Achievement_to_date_ongoing!$D53,Positions_disbursement!$A$1:$A$14,Achievement_to_date_ongoing!$C53), MAX(0,M$3-YEAR($I53)))/100)) -> 0 | N53: =IF($J53<DATE(N$3,12,31),1, IF($G53="Physical",0, OFFSET(Project_characteristics!$C$1, SUMIFS(Positions_disbursement!$C$1:$C$14,Positions_disbursement!$B$1:$B$14,Achievement_to_date_ongoing!$D53,Positions_disbursement!$A$1:$A$14,Achievement_to_date_ongoing!$C53), MAX(0,N$3-YEAR($I53)))/100)) -> 0 | O53: =IF($J53<DATE(O$3,12,31),1, IF($G53="Physical",0, OFFSET(Project_characteristics!$C$1, SUMIFS(Positions_disbursement!$C$1:$C$14,Positions_disbursement!$B$1:$B$14,Achievement_to_date_ongoing!$D53,Positions_disbursement!$A$1:$A$14,Achievement_to_date_ongoing!$C53), MAX(0,O$3-YEAR($I53)))/100)) -> 0 | P53: =IF($J53<DATE(P$3,12,31),1, IF($G53="Physical",0, OFFSET(Project_characteristics!$C$1, SUMIFS(Positions_disbursement!$C$1:$C$14,Positions_disbursement!$B$1:$B$14,Achievement_to_date_ongoing!$D53,Positions_disbursement!$A$1:$A$14,Achievement_to_date_ongoing!$C53), MAX(0,P$3-YEAR($I53)))/100)) -> 0
B54: 118005 | C54: 2 | D54: (a) | E54: CO13a | F54: Less developed | G54: Physical | H54: 0 | I54: 2014-01-01 | J54: 2023-12-31 | K54: 1.515065839 | M54: =IF($J54<DATE(M$3,12,31),1, IF($G54="Physical",0, OFFSET(Project_characteristics!$C$1, SUMIFS(Positions_disbursement!$C$1:$C$14,Positions_disbursement!$B$1:$B$14,Achievement_to_date_ongoing!$D54,Positions_disbursement!$A$1:$A$14,Achievement_to_date_ongoing!$C54), MAX(0,M$3-YEAR($I54)))/100)) -> 0 | N54: =IF($J54<DATE(N$3,12,31),1, IF($G54="Physical",0, OFFSET(Project_characteristics!$C$1, SUMIFS(Positions_disbursement!$C$1:$C$14,Positions_disbursement!$B$1:$B$14,Achievement_to_date_ongoing!$D54,Positions_disbursement!$A$1:$A$14,Achievement_to_date_ongoing!$C54), MAX(0,N$3-YEAR($I54)))/100)) -> 0 | O54: =IF($J54<DATE(O$3,12,31),1, IF($G54="Physical",0, OFFSET(Project_characteristics!$C$1, SUMIFS(Positions_disbursement!$C$1:$C$14,Positions_disbursement!$B$1:$B$14,Achievement_to_date_ongoing!$D54,Positions_disbursement!$A$1:$A$14,Achievement_to_date_ongoing!$C54), MAX(0,O$3-YEAR($I54)))/100)) -> 0 | P54: =IF($J54<DATE(P$3,12,31),1, IF($G54="Physical",0, OFFSET(Project_characteristics!$C$1, SUMIFS(Positions_disbursement!$C$1:$C$14,Positions_disbursement!$B$1:$B$14,Achievement_to_date_ongoing!$D54,Positions_disbursement!$A$1:$A$14,Achievement_to_date_ongoing!$C54), MAX(0,P$3-YEAR($I54)))/100)) -> 0
B55: 117135 | C55: 2 | D55: (a) | E55: CO13a | F55: Less developed | G55: Physical | H55: 0 | I55: 2015-04-27 | J55: 2023-12-31 | K55: 11.17766027 | M55: =IF($J55<DATE(M$3,12,31),1, IF($G55="Physical",0, OFFSET(Project_characteristics!$C$1, SUMIFS(Positions_disbursement!$C$1:$C$14,Positions_disbursement!$B$1:$B$14,Achievement_to_date_ongoing!$D55,Positions_disbursement!$A$1:$A$14,Achievement_to_date_ongoing!$C55), MAX(0,M$3-YEAR($I55)))/100)) -> 0 | N55: =IF($J55<DATE(N$3,12,31),1, IF($G55="Physical",0, OFFSET(Project_characteristics!$C$1, SUMIFS(Positions_disbursement!$C$1:$C$14,Positions_disbursement!$B$1:$B$14,Achievement_to_date_ongoing!$D55,Positions_disbursement!$A$1:$A$14,Achievement_to_date_ongoing!$C55), MAX(0,N$3-YEAR($I55)))/100)) -> 0 | O55: =IF($J55<DATE(O$3,12,31),1, IF($G55="Physical",0, OFFSET(Project_characteristics!$C$1, SUMIFS(Positions_disbursement!$C$1:$C$14,Positions_disbursement!$B$1:$B$14,Achievement_to_date_ongoing!$D55,Positions_disbursement!$A$1:$A$14,Achievement_to_date_ongoing!$C55), MAX(0,O$3-YEAR($I55)))/100)) -> 0 | P55: =IF($J55<DATE(P$3,12,31),1, IF($G55="Physical",0, OFFSET(Project_characteristics!$C$1, SUMIFS(Positions_disbursement!$C$1:$C$14,Positions_disbursement!$B$1:$B$14,Achievement_to_date_ongoing!$D55,Positions_disbursement!$A$1:$A$14,Achievement_to_date_ongoing!$C55), MAX(0,P$3-YEAR($I55)))/100)) -> 0
B56: 111085 | C56: 2 | D56: (a) | E56: CO13a | F56: Less developed | G56: Physical | H56: 0 | I56: 2017-07-01 | J56: 2023-12-31 | K56: 22.87368268 | M56: =IF($J56<DATE(M$3,12,31),1, IF($G56="Physical",0, OFFSET(Project_characteristics!$C$1, SUMIFS(Positions_disbursement!$C$1:$C$14,Positions_disbursement!$B$1:$B$14,Achievement_to_date_ongoing!$D56,Positions_disbursement!$A$1:$A$14,Achievement_to_date_ongoing!$C56), MAX(0,M$3-YEAR($I56)))/100)) -> 0 | N56: =IF($J56<DATE(N$3,12,31),1, IF($G56="Physical",0, OFFSET(Project_characteristics!$C$1, SUMIFS(Positions_disbursement!$C$1:$C$14,Positions_disbursement!$B$1:$B$14,Achievement_to_date_ongoing!$D56,Positions_disbursement!$A$1:$A$14,Achievement_to_date_ongoing!$C56), MAX(0,N$3-YEAR($I56)))/100)) -> 0 | O56: =IF($J56<DATE(O$3,12,31),1, IF($G56="Physical",0, OFFSET(Project_characteristics!$C$1, SUMIFS(Positions_disbursement!$C$1:$C$14,Positions_disbursement!$B$1:$B$14,Achievement_to_date_ongoing!$D56,Positions_disbursement!$A$1:$A$14,Achievement_to_date_ongoing!$C56), MAX(0,O$3-YEAR($I56)))/100)) -> 0 | P56: =IF($J56<DATE(P$3,12,31),1, IF($G56="Physical",0, OFFSET(Project_characteristics!$C$1, SUMIFS(Positions_disbursement!$C$1:$C$14,Positions_disbursement!$B$1:$B$14,Achievement_to_date_ongoing!$D56,Positions_disbursement!$A$1:$A$14,Achievement_to_date_ongoing!$C56), MAX(0,P$3-YEAR($I56)))/100)) -> 0
B57: 111951 | C57: 2 | D57: (a) | E57: CO13a | F57: Less developed | G57: Physical | H57: 0 | I57: 2008-01-30 | J57: 2023-12-31 | K57: 5.550477052 | M57: =IF($J57<DATE(M$3,12,31),1, IF($G57="Physical",0, OFFSET(Project_characteristics!$C$1, SUMIFS(Positions_disbursement!$C$1:$C$14,Positions_disbursement!$B$1:$B$14,Achievement_to_date_ongoing!$D57,Positions_disbursement!$A$1:$A$14,Achievement_to_date_ongoing!$C57), MAX(0,M$3-YEAR($I57)))/100)) -> 0 | N57: =IF($J57<DATE(N$3,12,31),1, IF($G57="Physical",0, OFFSET(Project_characteristics!$C$1, SUMIFS(Positions_disbursement!$C$1:$C$14,Positions_disbursement!$B$1:$B$14,Achievement_to_date_ongoing!$D57,Positions_disbursement!$A$1:$A$14,Achievement_to_date_ongoing!$C57), MAX(0,N$3-YEAR($I57)))/100)) -> 0 | O57: =IF($J57<DATE(O$3,12,31),1, IF($G57="Physical",0, OFFSET(Project_characteristics!$C$1, SUMIFS(Positions_disbursement!$C$1:$C$14,Positions_disbursement!$B$1:$B$14,Achievement_to_date_ongoing!$D57,Positions_disbursement!$A$1:$A$14,Achievement_to_date_ongoing!$C57), MAX(0,O$3-YEAR($I57)))/100)) -> 0 | P57: =IF($J57<DATE(P$3,12,31),1, IF($G57="Physical",0, OFFSET(Project_characteristics!$C$1, SUMIFS(Positions_disbursement!$C$1:$C$14,Positions_disbursement!$B$1:$B$14,Achievement_to_date_ongoing!$D57,Positions_disbursement!$A$1:$A$14,Achievement_to_date_ongoing!$C57), MAX(0,P$3-YEAR($I57)))/100)) -> 0
B58: 128039 | C58: 2 | D58: (a) | E58: F | F58: Less developed | G58: Financial | H58: 2471629.85 | I58: 2015-05-11 | J58: 2022-12-31 | K58: 10272307.08 | M58: =IF($J58<DATE(M$3,12,31),1, IF($G58="Physical",0, OFFSET(Project_characteristics!$C$1, SUMIFS(Positions_disbursement!$C$1:$C$14,Positions_disbursement!$B$1:$B$14,Achievement_to_date_ongoing!$D58,Positions_disbursement!$A$1:$A$14,Achievement_to_date_ongoing!$C58), MAX(0,M$3-YEAR($I58)))/100)) -> 0 | N58: =IF($J58<DATE(N$3,12,31),1, IF($G58="Physical",0, OFFSET(Project_characteristics!$C$1, SUMIFS(Positions_disbursement!$C$1:$C$14,Positions_disbursement!$B$1:$B$14,Achievement_to_date_ongoing!$D58,Positions_disbursement!$A$1:$A$14,Achievement_to_date_ongoing!$C58), MAX(0,N$3-YEAR($I58)))/100)) -> 0 | O58: =IF($J58<DATE(O$3,12,31),1, IF($G58="Physical",0, OFFSET(Project_characteristics!$C$1, SUMIFS(Positions_disbursement!$C$1:$C$14,Positions_disbursement!$B$1:$B$14,Achievement_to_date_ongoing!$D58,Positions_disbursement!$A$1:$A$14,Achievement_to_date_ongoing!$C58), MAX(0,O$3-YEAR($I58)))/100)) -> 0 | P58: =IF($J58<DATE(P$3,12,31),1, IF($G58="Physical",0, OFFSET(Project_characteristics!$C$1, SUMIFS(Positions_disbursement!$C$1:$C$14,Positions_disbursement!$B$1:$B$14,Achievement_to_date_ongoing!$D58,Positions_disbursement!$A$1:$A$14,Achievement_to_date_ongoing!$C58), MAX(0,P$3-YEAR($I58)))/100)) -> 1
B59: 110638 | C59: 2 | D59: (a) | E59: F | F59: Less developed | G59: Financial | H59: 30300164.04 | I59: 2017-07-31 | J59: 2023-12-31 | K59: 49919784.53 | M59: =IF($J59<DATE(M$3,12,31),1, IF($G59="Physical",0, OFFSET(Project_characteristics!$C$1, SUMIFS(Positions_disbursement!$C$1:$C$14,Positions_disbursement!$B$1:$B$14,Achievement_to_date_ongoing!$D59,Positions_disbursement!$A$1:$A$14,Achievement_to_date_ongoing!$C59), MAX(0,M$3-YEAR($I59)))/100)) -> 0 | N59: =IF($J59<DATE(N$3,12,31),1, IF($G59="Physical",0, OFFSET(Project_characteristics!$C$1, SUMIFS(Positions_disbursement!$C$1:$C$14,Positions_disbursement!$B$1:$B$14,Achievement_to_date_ongoing!$D59,Positions_disbursement!$A$1:$A$14,Achievement_to_date_ongoing!$C59), MAX(0,N$3-YEAR($I59)))/100)) -> 0 | O59: =IF($J59<DATE(O$3,12,31),1, IF($G59="Physical",0, OFFSET(Project_characteristics!$C$1, SUMIFS(Positions_disbursement!$C$1:$C$14,Positions_disbursement!$B$1:$B$14,Achievement_to_date_ongoing!$D59,Positions_disbursement!$A$1:$A$14,Achievement_to_date_ongoing!$C59), MAX(0,O$3-YEAR($I59)))/100)) -> 0 | P59: =IF($J59<DATE(P$3,12,31),1, IF($G59="Physical",0, OFFSET(Project_characteristics!$C$1, SUMIFS(Positions_disbursement!$C$1:$C$14,Positions_disbursement!$B$1:$B$14,Achievement_to_date_ongoing!$D59,Positions_disbursement!$A$1:$A$14,Achievement_to_date_ongoing!$C59), MAX(0,P$3-YEAR($I59)))/100)) -> 0
B60: 115751 | C60: 2 | D60: (a) | E60: F | F60: Less developed | G60: Financial | H60: 5478815.378 | I60: 2018-11-12 | J60: 2021-12-30 | K60: 8187420.105 | M60: =IF($J60<DATE(M$3,12,31),1, IF($G60="Physical",0, OFFSET(Project_characteristics!$C$1, SUMIFS(Positions_disbursement!$C$1:$C$14,Positions_disbursement!$B$1:$B$14,Achievement_to_date_ongoing!$D60,Positions_disbursement!$A$1:$A$14,Achievement_to_date_ongoing!$C60), MAX(0,M$3-YEAR($I60)))/100)) -> 0 | N60: =IF($J60<DATE(N$3,12,31),1, IF($G60="Physical",0, OFFSET(Project_characteristics!$C$1, SUMIFS(Positions_disbursement!$C$1:$C$14,Positions_disbursement!$B$1:$B$14,Achievement_to_date_ongoing!$D60,Positions_disbursement!$A$1:$A$14,Achievement_to_date_ongoing!$C60), MAX(0,N$3-YEAR($I60)))/100)) -> 1 | O60: =IF($J60<DATE(O$3,12,31),1, IF($G60="Physical",0, OFFSET(Project_characteristics!$C$1, SUMIFS(Positions_disbursement!$C$1:$C$14,Positions_disbursement!$B$1:$B$14,Achievement_to_date_ongoing!$D60,Positions_disbursement!$A$1:$A$14,Achievement_to_date_ongoing!$C60), MAX(0,O$3-YEAR($I60)))/100)) -> 1 | P60: =IF($J60<DATE(P$3,12,31),1, IF($G60="Physical",0, OFFSET(Project_characteristics!$C$1, SUMIFS(Positions_disbursement!$C$1:$C$14,Positions_disbursement!$B$1:$B$14,Achievement_to_date_ongoing!$D60,Positions_disbursement!$A$1:$A$14,Achievement_to_date_ongoing!$C60), MAX(0,P$3-YEAR($I60)))/100)) -> 1
B61: 129377 | C61: 2 | D61: (a) | E61: F | F61: Less developed | G61: Financial | H61: 85069756.03 | I61: 2018-12-20 | J61: 2023-12-31 | K61: 99569520.96 | M61: =IF($J61<DATE(M$3,12,31),1, IF($G61="Physical",0, OFFSET(Project_characteristics!$C$1, SUMIFS(Positions_disbursement!$C$1:$C$14,Positions_disbursement!$B$1:$B$14,Achievement_to_date_ongoing!$D61,Positions_disbursement!$A$1:$A$14,Achievement_to_date_ongoing!$C61), MAX(0,M$3-YEAR($I61)))/100)) -> 0 | N61: =IF($J61<DATE(N$3,12,31),1, IF($G61="Physical",0, OFFSET(Project_characteristics!$C$1, SUMIFS(Positions_disbursement!$C$1:$C$14,Positions_disbursement!$B$1:$B$14,Achievement_to_date_ongoing!$D61,Positions_disbursement!$A$1:$A$14,Achievement_to_date_ongoing!$C61), MAX(0,N$3-YEAR($I61)))/100)) -> 0 | O61: =IF($J61<DATE(O$3,12,31),1, IF($G61="Physical",0, OFFSET(Project_characteristics!$C$1, SUMIFS(Positions_disbursement!$C$1:$C$14,Positions_disbursement!$B$1:$B$14,Achievement_to_date_ongoing!$D61,Positions_disbursement!$A$1:$A$14,Achievement_to_date_ongoing!$C61), MAX(0,O$3-YEAR($I61)))/100)) -> 0 | P61: =IF($J61<DATE(P$3,12,31),1, IF($G61="Physical",0, OFFSET(Project_characteristics!$C$1, SUMIFS(Positions_disbursement!$C$1:$C$14,Positions_disbursement!$B$1:$B$14,Achievement_to_date_ongoing!$D61,Positions_disbursement!$A$1:$A$14,Achievement_to_date_ongoing!$C61), MAX(0,P$3-YEAR($I61)))/100)) -> 0
B62: 127983 | C62: 2 | D62: (a) | E62: F | F62: Less developed | G62: Financial | H62: 1282074.95 | I62: 2020-03-03 | J62: 2022-02-28 | K62: 9136267.792 | M62: =IF($J62<DATE(M$3,12,31),1, IF($G62="Physical",0, OFFSET(Project_characteristics!$C$1, SUMIFS(Positions_disbursement!$C$1:$C$14,Positions_disbursement!$B$1:$B$14,Achievement_to_date_ongoing!$D62,Positions_disbursement!$A$1:$A$14,Achievement_to_date_ongoing!$C62), MAX(0,M$3-YEAR($I62)))/100)) -> 0 | N62: =IF($J62<DATE(N$3,12,31),1, IF($G62="Physical",0, OFFSET(Project_characteristics!$C$1, SUMIFS(Positions_disbursement!$C$1:$C$14,Positions_disbursement!$B$1:$B$14,Achievement_to_date_ongoing!$D62,Positions_disbursement!$A$1:$A$14,Achievement_to_date_ongoing!$C62), MAX(0,N$3-YEAR($I62)))/100)) -> 0 | O62: =IF($J62<DATE(O$3,12,31),1, IF($G62="Physical",0, OFFSET(Project_characteristics!$C$1, SUMIFS(Positions_disbursement!$C$1:$C$14,Positions_disbursement!$B$1:$B$14,Achievement_to_date_ongoing!$D62,Positions_disbursement!$A$1:$A$14,Achievement_to_date_ongoing!$C62), MAX(0,O$3-YEAR($I62)))/100)) -> 1 | P62: =IF($J62<DATE(P$3,12,31),1, IF($G62="Physical",0, OFFSET(Project_characteristics!$C$1, SUMIFS(Positions_disbursement!$C$1:$C$14,Positions_disbursement!$B$1:$B$14,Achievement_to_date_ongoing!$D62,Positions_disbursement!$A$1:$A$14,Achievement_to_date_ongoing!$C62), MAX(0,P$3-YEAR($I62)))/100)) -> 1
B63: 121490 | C63: 2 | D63: (a) | E63: F | F63: Less developed | G63: Financial | H63: 14911341.05 | I63: 2014-01-01 | J63: 2023-12-31 | K63: 42183797.72 | M63: =IF($J63<DATE(M$3,12,31),1, IF($G63="Physical",0, OFFSET(Project_characteristics!$C$1, SUMIFS(Positions_disbursement!$C$1:$C$14,Positions_disbursement!$B$1:$B$14,Achievement_to_date_ongoing!$D63,Positions_disbursement!$A$1:$A$14,Achievement_to_date_ongoing!$C63), MAX(0,M$3-YEAR($I63)))/100)) -> 0 | N63: =IF($J63<DATE(N$3,12,31),1, IF($G63="Physical",0, OFFSET(Project_characteristics!$C$1, SUMIFS(Positions_disbursement!$C$1:$C$14,Positions_disbursement!$B$1:$B$14,Achievement_to_date_ongoing!$D63,Positions_disbursement!$A$1:$A$14,Achievement_to_date_ongoing!$C63), MAX(0,N$3-YEAR($I63)))/100)) -> 0 | O63: =IF($J63<DATE(O$3,12,31),1, IF($G63="Physical",0, OFFSET(Project_characteristics!$C$1, SUMIFS(Positions_disbursement!$C$1:$C$14,Positions_disbursement!$B$1:$B$14,Achievement_to_date_ongoing!$D63,Positions_disbursement!$A$1:$A$14,Achievement_to_date_ongoing!$C63), MAX(0,O$3-YEAR($I63)))/100)) -> 0 | P63: =IF($J63<DATE(P$3,12,31),1, IF($G63="Physical",0, OFFSET(Project_characteristics!$C$1, SUMIFS(Positions_disbursement!$C$1:$C$14,Positions_disbursement!$B$1:$B$14,Achievement_to_date_ongoing!$D63,Positions_disbursement!$A$1:$A$14,Achievement_to_date_ongoing!$C63), MAX(0,P$3-YEAR($I63)))/100)) -> 0
B64: 115749 | C64: 2 | D64: (a) | E64: F | F64: Less developed | G64: Financial | H64: 642624.6329 | I64: 2019-01-10 | J64: 2021-12-31 | K64: 13238064.32 | M64: =IF($J64<DATE(M$3,12,31),1, IF($G64="Physical",0, OFFSET(Project_characteristics!$C$1, SUMIFS(Positions_disbursement!$C$1:$C$14,Positions_disbursement!$B$1:$B$14,Achievement_to_date_ongoing!$D64,Positions_disbursement!$A$1:$A$14,Achievement_to_date_ongoing!$C64), MAX(0,M$3-YEAR($I64)))/100)) -> 0 | N64: =IF($J64<DATE(N$3,12,31),1, IF($G64="Physical",0, OFFSET(Project_characteristics!$C$1, SUMIFS(Positions_disbursement!$C$1:$C$14,Positions_disbursement!$B$1:$B$14,Achievement_to_date_ongoing!$D64,Positions_disbursement!$A$1:$A$14,Achievement_to_date_ongoing!$C64), MAX(0,N$3-YEAR($I64)))/100)) -> 0 | O64: =IF($J64<DATE(O$3,12,31),1, IF($G64="Physical",0, OFFSET(Project_characteristics!$C$1, SUMIFS(Positions_disbursement!$C$1:$C$14,Positions_disbursement!$B$1:$B$14,Achievement_to_date_ongoing!$D64,Positions_disbursement!$A$1:$A$14,Achievement_to_date_ongoing!$C64), MAX(0,O$3-YEAR($I64)))/100)) -> 1 | P64: =IF($J64<DATE(P$3,12,31),1, IF($G64="Physical",0, OFFSET(Project_characteristics!$C$1, SUMIFS(Positions_disbursement!$C$1:$C$14,Positions_disbursement!$B$1:$B$14,Achievement_to_date_ongoing!$D64,Positions_disbursement!$A$1:$A$14,Achievement_to_date_ongoing!$C64), MAX(0,P$3-YEAR($I64)))/100)) -> 1
B65: 115750 | C65: 2 | D65: (a) | E65: F | F65: Less developed | G65: Financial | H65: 1219388.979 | I65: 2018-11-12 | J65: 2021-12-30 | K65: 9148743.648 | M65: =IF($J65<DATE(M$3,12,31),1, IF($G65="Physical",0, OFFSET(Project_characteristics!$C$1, SUMIFS(Positions_disbursement!$C$1:$C$14,Positions_disbursement!$B$1:$B$14,Achievement_to_date_ongoing!$D65,Positions_disbursement!$A$1:$A$14,Achievement_to_date_ongoing!$C65), MAX(0,M$3-YEAR($I65)))/100)) -> 0 | N65: =IF($J65<DATE(N$3,12,31),1, IF($G65="Physical",0, OFFSET(Project_characteristics!$C$1, SUMIFS(Positions_disbursement!$C$1:$C$14,Positions_disbursement!$B$1:$B$14,Achievement_to_date_ongoing!$D65,Positions_disbursement!$A$1:$A$14,Achievement_to_date_ongoing!$C65), MAX(0,N$3-YEAR($I65)))/100)) -> 1 | O65: =IF($J65<DATE(O$3,12,31),1, IF($G65="Physical",0, OFFSET(Project_characteristics!$C$1, SUMIFS(Positions_disbursement!$C$1:$C$14,Positions_disbursement!$B$1:$B$14,Achievement_to_date_ongoing!$D65,Positions_disbursement!$A$1:$A$14,Achievement_to_date_ongoing!$C65), MAX(0,O$3-YEAR($I65)))/100)) -> 1 | P65: =IF($J65<DATE(P$3,12,31),1, IF($G65="Physical",0, OFFSET(Project_characteristics!$C$1, SUMIFS(Positions_disbursement!$C$1:$C$14,Positions_disbursement!$B$1:$B$14,Achievement_to_date_ongoing!$D65,Positions_disbursement!$A$1:$A$14,Achievement_to_date_ongoing!$C65), MAX(0,P$3-YEAR($I65)))/100)) -> 1
B66: 123691 | C66: 2 | D66: (a) | E66: F | F66: Less developed | G66: Financial | H66: 103651493.3 | I66: 2014-01-01 | J66: 2023-12-31 | K66: 103651493.3 | M66: =IF($J66<DATE(M$3,12,31),1, IF($G66="Physical",0, OFFSET(Project_characteristics!$C$1, SUMIFS(Positions_disbursement!$C$1:$C$14,Positions_disbursement!$B$1:$B$14,Achievement_to_date_ongoing!$D66,Positions_disbursement!$A$1:$A$14,Achievement_to_date_ongoing!$C66), MAX(0,M$3-YEAR($I66)))/100)) -> 0 | N66: =IF($J66<DATE(N$3,12,31),1, IF($G66="Physical",0, OFFSET(Project_characteristics!$C$1, SUMIFS(Positions_disbursement!$C$1:$C$14,Positions_disbursement!$B$1:$B$14,Achievement_to_date_ongoing!$D66,Positions_disbursement!$A$1:$A$14,Achievement_to_date_ongoing!$C66), MAX(0,N$3-YEAR($I66)))/100)) -> 0 | O66: =IF($J66<DATE(O$3,12,31),1, IF($G66="Physical",0, OFFSET(Project_characteristics!$C$1, SUMIFS(Positions_disbursement!$C$1:$C$14,Positions_disbursement!$B$1:$B$14,Achievement_to_date_ongoing!$D66,Positions_disbursement!$A$1:$A$14,Achievement_to_date_ongoing!$C66), MAX(0,O$3-YEAR($I66)))/100)) -> 0 | P66: =IF($J66<DATE(P$3,12,31),1, IF($G66="Physical",0, OFFSET(Project_characteristics!$C$1, SUMIFS(Positions_disbursement!$C$1:$C$14,Positions_disbursement!$B$1:$B$14,Achievement_to_date_ongoing!$D66,Positions_disbursement!$A$1:$A$14,Achievement_to_date_ongoing!$C66), MAX(0,P$3-YEAR($I66)))/100)) -> 0
B67: 133746 | C67: 2 | D67: (a) | E67: F | F67: Less developed | G67: Financial | H67: 20759829.77 | I67: 2020-02-01 | J67: 2023-12-31 | K67: 105261766.4 | M67: =IF($J67<DATE(M$3,12,31),1, IF($G67="Physical",0, OFFSET(Project_characteristics!$C$1, SUMIFS(Positions_disbursement!$C$1:$C$14,Positions_disbursement!$B$1:$B$14,Achievement_to_date_ongoing!$D67,Positions_disbursement!$A$1:$A$14,Achievement_to_date_ongoing!$C67), MAX(0,M$3-YEAR($I67)))/100)) -> 0 | N67: =IF($J67<DATE(N$3,12,31),1, IF($G67="Physical",0, OFFSET(Project_characteristics!$C$1, SUMIFS(Positions_disbursement!$C$1:$C$14,Positions_disbursement!$B$1:$B$14,Achievement_to_date_ongoing!$D67,Positions_disbursement!$A$1:$A$14,Achievement_to_date_ongoing!$C67), MAX(0,N$3-YEAR($I67)))/100)) -> 0 | O67: =IF($J67<DATE(O$3,12,31),1, IF($G67="Physical",0, OFFSET(Project_characteristics!$C$1, SUMIFS(Positions_disbursement!$C$1:$C$14,Positions_disbursement!$B$1:$B$14,Achievement_to_date_ongoing!$D67,Positions_disbursement!$A$1:$A$14,Achievement_to_date_ongoing!$C67), MAX(0,O$3-YEAR($I67)))/100)) -> 0 | P67: =IF($J67<DATE(P$3,12,31),1, IF($G67="Physical",0, OFFSET(Project_characteristics!$C$1, SUMIFS(Positions_disbursement!$C$1:$C$14,Positions_disbursement!$B$1:$B$14,Achievement_to_date_ongoing!$D67,Positions_disbursement!$A$1:$A$14,Achievement_to_date_ongoing!$C67), MAX(0,P$3-YEAR($I67)))/100)) -> 0
B68: 111429 | C68: 2 | D68: (a) | E68: F | F68: Less developed | G68: Financial | H68: 24631857.96 | I68: 2014-01-01 | J68: 2023-12-31 | K68: 160933770.1 | M68: =IF($J68<DATE(M$3,12,31),1, IF($G68="Physical",0, OFFSET(Project_characteristics!$C$1, SUMIFS(Positions_disbursement!$C$1:$C$14,Positions_disbursement!$B$1:$B$14,Achievement_to_date_ongoing!$D68,Positions_disbursement!$A$1:$A$14,Achievement_to_date_ongoing!$C68), MAX(0,M$3-YEAR($I68)))/100)) -> 0 | N68: =IF($J68<DATE(N$3,12,31),1, IF($G68="Physical",0, OFFSET(Project_characteristics!$C$1, SUMIFS(Positions_disbursement!$C$1:$C$14,Positions_disbursement!$B$1:$B$14,Achievement_to_date_ongoing!$D68,Positions_disbursement!$A$1:$A$14,Achievement_to_date_ongoing!$C68), MAX(0,N$3-YEAR($I68)))/100)) -> 0 | O68: =IF($J68<DATE(O$3,12,31),1, IF($G68="Physical",0, OFFSET(Project_characteristics!$C$1, SUMIFS(Positions_disbursement!$C$1:$C$14,Positions_disbursement!$B$1:$B$14,Achievement_to_date_ongoing!$D68,Positions_disbursement!$A$1:$A$14,Achievement_to_date_ongoing!$C68), MAX(0,O$3-YEAR($I68)))/100)) -> 0 | P68: =IF($J68<DATE(P$3,12,31),1, IF($G68="Physical",0, OFFSET(Project_characteristics!$C$1, SUMIFS(Positions_disbursement!$C$1:$C$14,Positions_disbursement!$B$1:$B$14,Achievement_to_date_ongoing!$D68,Positions_disbursement!$A$1:$A$14,Achievement_to_date_ongoing!$C68), MAX(0,P$3-YEAR($I68)))/100)) -> 0
B69: 119822 | C69: 2 | D69: (a) | E69: F | F69: Less developed | G69: Financial | H69: 768250.02 | I69: 2018-05-21 | J69: 2021-06-30 | K69: 768250.02 | M69: =IF($J69<DATE(M$3,12,31),1, IF($G69="Physical",0, OFFSET(Project_characteristics!$C$1, SUMIFS(Positions_disbursement!$C$1:$C$14,Positions_disbursement!$B$1:$B$14,Achievement_to_date_ongoing!$D69,Positions_disbursement!$A$1:$A$14,Achievement_to_date_ongoing!$C69), MAX(0,M$3-YEAR($I69)))/100)) -> 0 | N69: =IF($J69<DATE(N$3,12,31),1, IF($G69="Physical",0, OFFSET(Project_characteristics!$C$1, SUMIFS(Positions_disbursement!$C$1:$C$14,Positions_disbursement!$B$1:$B$14,Achievement_to_date_ongoing!$D69,Positions_disbursement!$A$1:$A$14,Achievement_to_date_ongoing!$C69), MAX(0,N$3-YEAR($I69)))/100)) -> 1 | O69: =IF($J69<DATE(O$3,12,31),1, IF($G69="Physical",0, OFFSET(Project_characteristics!$C$1, SUMIFS(Positions_disbursement!$C$1:$C$14,Positions_disbursement!$B$1:$B$14,Achievement_to_date_ongoing!$D69,Positions_disbursement!$A$1:$A$14,Achievement_to_date_ongoing!$C69), MAX(0,O$3-YEAR($I69)))/100)) -> 1 | P69: =IF($J69<DATE(P$3,12,31),1, IF($G69="Physical",0, OFFSET(Project_characteristics!$C$1, SUMIFS(Positions_disbursement!$C$1:$C$14,Positions_disbursement!$B$1:$B$14,Achievement_to_date_ongoing!$D69,Positions_disbursement!$A$1:$A$14,Achievement_to_date_ongoing!$C69), MAX(0,P$3-YEAR($I69)))/100)) -> 1
B70: 118317 | C70: 2 | D70: (a) | E70: F | F70: Less developed | G70: Financial | H70: 966632598.7 | I70: 2014-01-01 | J70: 2022-12-31 | K70: 990715526.6 | M70: =IF($J70<DATE(M$3,12,31),1, IF($G70="Physical",0, OFFSET(Project_characteristics!$C$1, SUMIFS(Positions_disbursement!$C$1:$C$14,Positions_disbursement!$B$1:$B$14,Achievement_to_date_ongoing!$D70,Positions_disbursement!$A$1:$A$14,Achievement_to_date_ongoing!$C70), MAX(0,M$3-YEAR($I70)))/100)) -> 0 | N70: =IF($J70<DATE(N$3,12,31),1, IF($G70="Physical",0, OFFSET(Project_characteristics!$C$1, SUMIFS(Positions_disbursement!$C$1:$C$14,Positions_disbursement!$B$1:$B$14,Achievement_to_date_ongoing!$D70,Positions_disbursement!$A$1:$A$14,Achievement_to_date_ongoing!$C70), MAX(0,N$3-YEAR($I70)))/100)) -> 0 | O70: =IF($J70<DATE(O$3,12,31),1, IF($G70="Physical",0, OFFSET(Project_characteristics!$C$1, SUMIFS(Positions_disbursement!$C$1:$C$14,Positions_disbursement!$B$1:$B$14,Achievement_to_date_ongoing!$D70,Positions_disbursement!$A$1:$A$14,Achievement_to_date_ongoing!$C70), MAX(0,O$3-YEAR($I70)))/100)) -> 0 | P70: =IF($J70<DATE(P$3,12,31),1, IF($G70="Physical",0, OFFSET(Project_characteristics!$C$1, SUMIFS(Positions_disbursement!$C$1:$C$14,Positions_disbursement!$B$1:$B$14,Achievement_to_date_ongoing!$D70,Positions_disbursement!$A$1:$A$14,Achievement_to_date_ongoing!$C70), MAX(0,P$3-YEAR($I70)))/100)) -> 1
B71: 110595 | C71: 2 | D71: (a) | E71: F | F71: Less developed | G71: Financial | H71: 16413933.92 | I71: 2014-01-01 | J71: 2021-06-30 | K71: 16413933.92 | M71: =IF($J71<DATE(M$3,12,31),1, IF($G71="Physical",0, OFFSET(Project_characteristics!$C$1, SUMIFS(Positions_disbursement!$C$1:$C$14,Positions_disbursement!$B$1:$B$14,Achievement_to_date_ongoing!$D71,Positions_disbursement!$A$1:$A$14,Achievement_to_date_ongoing!$C71), MAX(0,M$3-YEAR($I71)))/100)) -> 0 | N71: =IF($J71<DATE(N$3,12,31),1, IF($G71="Physical",0, OFFSET(Project_characteristics!$C$1, SUMIFS(Positions_disbursement!$C$1:$C$14,Positions_disbursement!$B$1:$B$14,Achievement_to_date_ongoing!$D71,Positions_disbursement!$A$1:$A$14,Achievement_to_date_ongoing!$C71), MAX(0,N$3-YEAR($I71)))/100)) -> 1 | O71: =IF($J71<DATE(O$3,12,31),1, IF($G71="Physical",0, OFFSET(Project_characteristics!$C$1, SUMIFS(Positions_disbursement!$C$1:$C$14,Positions_disbursement!$B$1:$B$14,Achievement_to_date_ongoing!$D71,Positions_disbursement!$A$1:$A$14,Achievement_to_date_ongoing!$C71), MAX(0,O$3-YEAR($I71)))/100)) -> 1 | P71: =IF($J71<DATE(P$3,12,31),1, IF($G71="Physical",0, OFFSET(Project_characteristics!$C$1, SUMIFS(Positions_disbursement!$C$1:$C$14,Positions_disbursement!$B$1:$B$14,Achievement_to_date_ongoing!$D71,Positions_disbursement!$A$1:$A$14,Achievement_to_date_ongoing!$C71), MAX(0,P$3-YEAR($I71)))/100)) -> 1
B72: 110661 | C72: 2 | D72: (a) | E72: F | F72: Less developed | G72: Financial | H72: 36287832.12 | I72: 2014-01-01 | J72: 2023-12-31 | K72: 60259581.39 | M72: =IF($J72<DATE(M$3,12,31),1, IF($G72="Physical",0, OFFSET(Project_characteristics!$C$1, SUMIFS(Positions_disbursement!$C$1:$C$14,Positions_disbursement!$B$1:$B$14,Achievement_to_date_ongoing!$D72,Positions_disbursement!$A$1:$A$14,Achievement_to_date_ongoing!$C72), MAX(0,M$3-YEAR($I72)))/100)) -> 0 | N72: =IF($J72<DATE(N$3,12,31),1, IF($G72="Physical",0, OFFSET(Project_characteristics!$C$1, SUMIFS(Positions_disbursement!$C$1:$C$14,Positions_disbursement!$B$1:$B$14,Achievement_to_date_ongoing!$D72,Positions_disbursement!$A$1:$A$14,Achievement_to_date_ongoing!$C72), MAX(0,N$3-YEAR($I72)))/100)) -> 0 | O72: =IF($J72<DATE(O$3,12,31),1, IF($G72="Physical",0, OFFSET(Project_characteristics!$C$1, SUMIFS(Positions_disbursement!$C$1:$C$14,Positions_disbursement!$B$1:$B$14,Achievement_to_date_ongoing!$D72,Positions_disbursement!$A$1:$A$14,Achievement_to_date_ongoing!$C72), MAX(0,O$3-YEAR($I72)))/100)) -> 0 | P72: =IF($J72<DATE(P$3,12,31),1, IF($G72="Physical",0, OFFSET(Project_characteristics!$C$1, SUMIFS(Positions_disbursement!$C$1:$C$14,Positions_disbursement!$B$1:$B$14,Achievement_to_date_ongoing!$D72,Positions_disbursement!$A$1:$A$14,Achievement_to_date_ongoing!$C72), MAX(0,P$3-YEAR($I72)))/100)) -> 0
B73: 116018 | C73: 2 | D73: (a) | E73: F | F73: Less developed | G73: Financial | H73: 40999519.94 | I73: 2014-05-19 | J73: 2021-11-30 | K73: 199770580.7 | M73: =IF($J73<DATE(M$3,12,31),1, IF($G73="Physical",0, OFFSET(Project_characteristics!$C$1, SUMIFS(Positions_disbursement!$C$1:$C$14,Positions_disbursement!$B$1:$B$14,Achievement_to_date_ongoing!$D73,Positions_disbursement!$A$1:$A$14,Achievement_to_date_ongoing!$C73), MAX(0,M$3-YEAR($I73)))/100)) -> 0 | N73: =IF($J73<DATE(N$3,12,31),1, IF($G73="Physical",0, OFFSET(Project_characteristics!$C$1, SUMIFS(Positions_disbursement!$C$1:$C$14,Positions_disbursement!$B$1:$B$14,Achievement_to_date_ongoing!$D73,Positions_disbursement!$A$1:$A$14,Achievement_to_date_ongoing!$C73), MAX(0,N$3-YEAR($I73)))/100)) -> 1 | O73: =IF($J73<DATE(O$3,12,31),1, IF($G73="Physical",0, OFFSET(Project_characteristics!$C$1, SUMIFS(Positions_disbursement!$C$1:$C$14,Positions_disbursement!$B$1:$B$14,Achievement_to_date_ongoing!$D73,Positions_disbursement!$A$1:$A$14,Achievement_to_date_ongoing!$C73), MAX(0,O$3-YEAR($I73)))/100)) -> 1 | P73: =IF($J73<DATE(P$3,12,31),1, IF($G73="Physical",0, OFFSET(Project_characteristics!$C$1, SUMIFS(Positions_disbursement!$C$1:$C$14,Positions_disbursement!$B$1:$B$14,Achievement_to_date_ongoing!$D73,Positions_disbursement!$A$1:$A$14,Achievement_to_date_ongoing!$C73), MAX(0,P$3-YEAR($I73)))/100)) -> 1
B74: 129180 | C74: 2 | D74: (a) | E74: F | F74: Less developed | G74: Financial | H74: 1263284.756 | I74: 2020-06-29 | J74: 2022-09-29 | K74: 9057547.514 | M74: =IF($J74<DATE(M$3,12,31),1, IF($G74="Physical",0, OFFSET(Project_characteristics!$C$1, SUMIFS(Positions_disbursement!$C$1:$C$14,Positions_disbursement!$B$1:$B$14,Achievement_to_date_ongoing!$D74,Positions_disbursement!$A$1:$A$14,Achievement_to_date_ongoing!$C74), MAX(0,M$3-YEAR($I74)))/100)) -> 0 | N74: =IF($J74<DATE(N$3,12,31),1, IF($G74="Physical",0, OFFSET(Project_characteristics!$C$1, SUMIFS(Positions_disbursement!$C$1:$C$14,Positions_disbursement!$B$1:$B$14,Achievement_to_date_ongoing!$D74,Positions_disbursement!$A$1:$A$14,Achievement_to_date_ongoing!$C74), MAX(0,N$3-YEAR($I74)))/100)) -> 0 | O74: =IF($J74<DATE(O$3,12,31),1, IF($G74="Physical",0, OFFSET(Project_characteristics!$C$1, SUMIFS(Positions_disbursement!$C$1:$C$14,Positions_disbursement!$B$1:$B$14,Achievement_to_date_ongoing!$D74,Positions_disbursement!$A$1:$A$14,Achievement_to_date_ongoing!$C74), MAX(0,O$3-YEAR($I74)))/100)) -> 1 | P74: =IF($J74<DATE(P$3,12,31),1, IF($G74="Physical",0, OFFSET(Project_characteristics!$C$1, SUMIFS(Positions_disbursement!$C$1:$C$14,Positions_disbursement!$B$1:$B$14,Achievement_to_date_ongoing!$D74,Positions_disbursement!$A$1:$A$14,Achievement_to_date_ongoing!$C74), MAX(0,P$3-YEAR($I74)))/100)) -> 1
B75: 118450 | C75: 2 | D75: (a) | E75: F | F75: Less developed | G75: Financial | H75: 205263303.1 | I75: 2014-01-01 | J75: 2023-12-31 | K75: 205263303.1 | M75: =IF($J75<DATE(M$3,12,31),1, IF($G75="Physical",0, OFFSET(Project_characteristics!$C$1, SUMIFS(Positions_disbursement!$C$1:$C$14,Positions_disbursement!$B$1:$B$14,Achievement_to_date_ongoing!$D75,Positions_disbursement!$A$1:$A$14,Achievement_to_date_ongoing!$C75), MAX(0,M$3-YEAR($I75)))/100)) -> 0 | N75: =IF($J75<DATE(N$3,12,31),1, IF($G75="Physical",0, OFFSET(Project_characteristics!$C$1, SUMIFS(Positions_disbursement!$C$1:$C$14,Positions_disbursement!$B$1:$B$14,Achievement_to_date_ongoing!$D75,Positions_disbursement!$A$1:$A$14,Achievement_to_date_ongoing!$C75), MAX(0,N$3-YEAR($I75)))/100)) -> 0 | O75: =IF($J75<DATE(O$3,12,31),1, IF($G75="Physical",0, OFFSET(Project_characteristics!$C$1, SUMIFS(Positions_disbursement!$C$1:$C$14,Positions_disbursement!$B$1:$B$14,Achievement_to_date_ongoing!$D75,Positions_disbursement!$A$1:$A$14,Achievement_to_date_ongoing!$C75), MAX(0,O$3-YEAR($I75)))/100)) -> 0 | P75: =IF($J75<DATE(P$3,12,31),1, IF($G75="Physical",0, OFFSET(Project_characteristics!$C$1, SUMIFS(Positions_disbursement!$C$1:$C$14,Positions_disbursement!$B$1:$B$14,Achievement_to_date_ongoing!$D75,Positions_disbursement!$A$1:$A$14,Achievement_to_date_ongoing!$C75), MAX(0,P$3-YEAR($I75)))/100)) -> 0
B76: 119143 | C76: 2 | D76: (a) | E76: F | F76: Less developed | G76: Financial | H76: 13290458.23 | I76: 2017-10-01 | J76: 2023-12-31 | K76: 98200313.89 | M76: =IF($J76<DATE(M$3,12,31),1, IF($G76="Physical",0, OFFSET(Project_characteristics!$C$1, SUMIFS(Positions_disbursement!$C$1:$C$14,Positions_disbursement!$B$1:$B$14,Achievement_to_date_ongoing!$D76,Positions_disbursement!$A$1:$A$14,Achievement_to_date_ongoing!$C76), MAX(0,M$3-YEAR($I76)))/100)) -> 0 | N76: =IF($J76<DATE(N$3,12,31),1, IF($G76="Physical",0, OFFSET(Project_characteristics!$C$1, SUMIFS(Positions_disbursement!$C$1:$C$14,Positions_disbursement!$B$1:$B$14,Achievement_to_date_ongoing!$D76,Positions_disbursement!$A$1:$A$14,Achievement_to_date_ongoing!$C76), MAX(0,N$3-YEAR($I76)))/100)) -> 0 | O76: =IF($J76<DATE(O$3,12,31),1, IF($G76="Physical",0, OFFSET(Project_characteristics!$C$1, SUMIFS(Positions_disbursement!$C$1:$C$14,Positions_disbursement!$B$1:$B$14,Achievement_to_date_ongoing!$D76,Positions_disbursement!$A$1:$A$14,Achievement_to_date_ongoing!$C76), MAX(0,O$3-YEAR($I76)))/100)) -> 0 | P76: =IF($J76<DATE(P$3,12,31),1, IF($G76="Physical",0, OFFSET(Project_characteristics!$C$1, SUMIFS(Positions_disbursement!$C$1:$C$14,Positions_disbursement!$B$1:$B$14,Achievement_to_date_ongoing!$D76,Positions_disbursement!$A$1:$A$14,Achievement_to_date_ongoing!$C76), MAX(0,P$3-YEAR($I76)))/100)) -> 0
B77: 111428 | C77: 2 | D77: (a) | E77: F | F77: Less developed | G77: Financial | H77: 15281051.87 | I77: 2017-07-31 | J77: 2022-12-31 | K77: 15281051.87 | M77: =IF($J77<DATE(M$3,12,31),1, IF($G77="Physical",0, OFFSET(Project_characteristics!$C$1, SUMIFS(Positions_disbursement!$C$1:$C$14,Positions_disbursement!$B$1:$B$14,Achievement_to_date_ongoing!$D77,Positions_disbursement!$A$1:$A$14,Achievement_to_date_ongoing!$C77), MAX(0,M$3-YEAR($I77)))/100)) -> 0 | N77: =IF($J77<DATE(N$3,12,31),1, IF($G77="Physical",0, OFFSET(Project_characteristics!$C$1, SUMIFS(Positions_disbursement!$C$1:$C$14,Positions_disbursement!$B$1:$B$14,Achievement_to_date_ongoing!$D77,Positions_disbursement!$A$1:$A$14,Achievement_to_date_ongoing!$C77), MAX(0,N$3-YEAR($I77)))/100)) -> 0 | O77: =IF($J77<DATE(O$3,12,31),1, IF($G77="Physical",0, OFFSET(Project_characteristics!$C$1, SUMIFS(Positions_disbursement!$C$1:$C$14,Positions_disbursement!$B$1:$B$14,Achievement_to_date_ongoing!$D77,Positions_disbursement!$A$1:$A$14,Achievement_to_date_ongoing!$C77), MAX(0,O$3-YEAR($I77)))/100)) -> 0 | P77: =IF($J77<DATE(P$3,12,31),1, IF($G77="Physical",0, OFFSET(Project_characteristics!$C$1, SUMIFS(Positions_disbursement!$C$1:$C$14,Positions_disbursement!$B$1:$B$14,Achievement_to_date_ongoing!$D77,Positions_disbursement!$A$1:$A$14,Achievement_to_date_ongoing!$C77), MAX(0,P$3-YEAR($I77)))/100)) -> 1
B78: 117854 | C78: 2 | D78: (a) | E78: F | F78: Less developed | G78: Financial | H78: 153472193.4 | I78: 2014-01-01 | J78: 2023-12-31 | K78: 212035315.1 | M78: =IF($J78<DATE(M$3,12,31),1, IF($G78="Physical",0, OFFSET(Project_characteristics!$C$1, SUMIFS(Positions_disbursement!$C$1:$C$14,Positions_disbursement!$B$1:$B$14,Achievement_to_date_ongoing!$D78,Positions_disbursement!$A$1:$A$14,Achievement_to_date_ongoing!$C78), MAX(0,M$3-YEAR($I78)))/100)) -> 0 | N78: =IF($J78<DATE(N$3,12,31),1, IF($G78="Physical",0, OFFSET(Project_characteristics!$C$1, SUMIFS(Positions_disbursement!$C$1:$C$14,Positions_disbursement!$B$1:$B$14,Achievement_to_date_ongoing!$D78,Positions_disbursement!$A$1:$A$14,Achievement_to_date_ongoing!$C78), MAX(0,N$3-YEAR($I78)))/100)) -> 0 | O78: =IF($J78<DATE(O$3,12,31),1, IF($G78="Physical",0, OFFSET(Project_characteristics!$C$1, SUMIFS(Positions_disbursement!$C$1:$C$14,Positions_disbursement!$B$1:$B$14,Achievement_to_date_ongoing!$D78,Positions_disbursement!$A$1:$A$14,Achievement_to_date_ongoing!$C78), MAX(0,O$3-YEAR($I78)))/100)) -> 0 | P78: =IF($J78<DATE(P$3,12,31),1, IF($G78="Physical",0, OFFSET(Project_characteristics!$C$1, SUMIFS(Positions_disbursement!$C$1:$C$14,Positions_disbursement!$B$1:$B$14,Achievement_to_date_ongoing!$D78,Positions_disbursement!$A$1:$A$14,Achievement_to_date_ongoing!$C78), MAX(0,P$3-YEAR($I78)))/100)) -> 0
B79: 118005 | C79: 2 | D79: (a) | E79: F | F79: Less developed | G79: Financial | H79: 8965729.42 | I79: 2014-01-01 | J79: 2023-12-31 | K79: 33343829.78 | M79: =IF($J79<DATE(M$3,12,31),1, IF($G79="Physical",0, OFFSET(Project_characteristics!$C$1, SUMIFS(Positions_disbursement!$C$1:$C$14,Positions_disbursement!$B$1:$B$14,Achievement_to_date_ongoing!$D79,Positions_disbursement!$A$1:$A$14,Achievement_to_date_ongoing!$C79), MAX(0,M$3-YEAR($I79)))/100)) -> 0 | N79: =IF($J79<DATE(N$3,12,31),1, IF($G79="Physical",0, OFFSET(Project_characteristics!$C$1, SUMIFS(Positions_disbursement!$C$1:$C$14,Positions_disbursement!$B$1:$B$14,Achievement_to_date_ongoing!$D79,Positions_disbursement!$A$1:$A$14,Achievement_to_date_ongoing!$C79), MAX(0,N$3-YEAR($I79)))/100)) -> 0 | O79: =IF($J79<DATE(O$3,12,31),1, IF($G79="Physical",0, OFFSET(Project_characteristics!$C$1, SUMIFS(Positions_disbursement!$C$1:$C$14,Positions_disbursement!$B$1:$B$14,Achievement_to_date_ongoing!$D79,Positions_disbursement!$A$1:$A$14,Achievement_to_date_ongoing!$C79), MAX(0,O$3-YEAR($I79)))/100)) -> 0 | P79: =IF($J79<DATE(P$3,12,31),1, IF($G79="Physical",0, OFFSET(Project_characteristics!$C$1, SUMIFS(Positions_disbursement!$C$1:$C$14,Positions_disbursement!$B$1:$B$14,Achievement_to_date_ongoing!$D79,Positions_disbursement!$A$1:$A$14,Achievement_to_date_ongoing!$C79), MAX(0,P$3-YEAR($I79)))/100)) -> 0
B80: 117135 | C80: 2 | D80: (a) | E80: F | F80: Less developed | G80: Financial | H80: 673747864 | I80: 2015-04-27 | J80: 2023-12-31 | K80: 1220683691 | M80: =IF($J80<DATE(M$3,12,31),1, IF($G80="Physical",0, OFFSET(Project_characteristics!$C$1, SUMIFS(Positions_disbursement!$C$1:$C$14,Positions_disbursement!$B$1:$B$14,Achievement_to_date_ongoing!$D80,Positions_disbursement!$A$1:$A$14,Achievement_to_date_ongoing!$C80), MAX(0,M$3-YEAR($I80)))/100)) -> 0 | N80: =IF($J80<DATE(N$3,12,31),1, IF($G80="Physical",0, OFFSET(Project_characteristics!$C$1, SUMIFS(Positions_disbursement!$C$1:$C$14,Positions_disbursement!$B$1:$B$14,Achievement_to_date_ongoing!$D80,Positions_disbursement!$A$1:$A$14,Achievement_to_date_ongoing!$C80), MAX(0,N$3-YEAR($I80)))/100)) -> 0 | O80: =IF($J80<DATE(O$3,12,31),1, IF($G80="Physical",0, OFFSET(Project_characteristics!$C$1, SUMIFS(Positions_disbursement!$C$1:$C$14,Positions_disbursement!$B$1:$B$14,Achievement_to_date_ongoing!$D80,Positions_disbursement!$A$1:$A$14,Achievement_to_date_ongoing!$C80), MAX(0,O$3-YEAR($I80)))/100)) -> 0 | P80: =IF($J80<DATE(P$3,12,31),1, IF($G80="Physical",0, OFFSET(Project_characteristics!$C$1, SUMIFS(Positions_disbursement!$C$1:$C$14,Positions_disbursement!$B$1:$B$14,Achievement_to_date_ongoing!$D80,Positions_disbursement!$A$1:$A$14,Achievement_to_date_ongoing!$C80), MAX(0,P$3-YEAR($I80)))/100)) -> 0
B81: 111085 | C81: 2 | D81: (a) | E81: F | F81: Less developed | G81: Financial | H81: 277974.43 | I81: 2017-07-01 | J81: 2023-12-31 | K81: 198353585.7 | M81: =IF($J81<DATE(M$3,12,31),1, IF($G81="Physical",0, OFFSET(Project_characteristics!$C$1, SUMIFS(Positions_disbursement!$C$1:$C$14,Positions_disbursement!$B$1:$B$14,Achievement_to_date_ongoing!$D81,Positions_disbursement!$A$1:$A$14,Achievement_to_date_ongoing!$C81), MAX(0,M$3-YEAR($I81)))/100)) -> 0 | N81: =IF($J81<DATE(N$3,12,31),1, IF($G81="Physical",0, OFFSET(Project_characteristics!$C$1, SUMIFS(Positions_disbursement!$C$1:$C$14,Positions_disbursement!$B$1:$B$14,Achievement_to_date_ongoing!$D81,Positions_disbursement!$A$1:$A$14,Achievement_to_date_ongoing!$C81), MAX(0,N$3-YEAR($I81)))/100)) -> 0 | O81: =IF($J81<DATE(O$3,12,31),1, IF($G81="Physical",0, OFFSET(Project_characteristics!$C$1, SUMIFS(Positions_disbursement!$C$1:$C$14,Positions_disbursement!$B$1:$B$14,Achievement_to_date_ongoing!$D81,Positions_disbursement!$A$1:$A$14,Achievement_to_date_ongoing!$C81), MAX(0,O$3-YEAR($I81)))/100)) -> 0 | P81: =IF($J81<DATE(P$3,12,31),1, IF($G81="Physical",0, OFFSET(Project_characteristics!$C$1, SUMIFS(Positions_disbursement!$C$1:$C$14,Positions_disbursement!$B$1:$B$14,Achievement_to_date_ongoing!$D81,Positions_disbursement!$A$1:$A$14,Achievement_to_date_ongoing!$C81), MAX(0,P$3-YEAR($I81)))/100)) -> 0
B82: 111951 | C82: 2 | D82: (a) | E82: F | F82: Less developed | G82: Financial | H82: 49042115.54 | I82: 2008-01-30 | J82: 2023-12-31 | K82: 49042115.54 | M82: =IF($J82<DATE(M$3,12,31),1, IF($G82="Physical",0, OFFSET(Project_characteristics!$C$1, SUMIFS(Positions_disbursement!$C$1:$C$14,Positions_disbursement!$B$1:$B$14,Achievement_to_date_ongoing!$D82,Positions_disbursement!$A$1:$A$14,Achievement_to_date_ongoing!$C82), MAX(0,M$3-YEAR($I82)))/100)) -> 0 | N82: =IF($J82<DATE(N$3,12,31),1, IF($G82="Physical",0, OFFSET(Project_characteristics!$C$1, SUMIFS(Positions_disbursement!$C$1:$C$14,Positions_disbursement!$B$1:$B$14,Achievement_to_date_ongoing!$D82,Positions_disbursement!$A$1:$A$14,Achievement_to_date_ongoing!$C82), MAX(0,N$3-YEAR($I82)))/100)) -> 0 | O82: =IF($J82<DATE(O$3,12,31),1, IF($G82="Physical",0, OFFSET(Project_characteristics!$C$1, SUMIFS(Positions_disbursement!$C$1:$C$14,Positions_disbursement!$B$1:$B$14,Achievement_to_date_ongoing!$D82,Positions_disbursement!$A$1:$A$14,Achievement_to_date_ongoing!$C82), MAX(0,O$3-YEAR($I82)))/100)) -> 0 | P82: =IF($J82<DATE(P$3,12,31),1, IF($G82="Physical",0, OFFSET(Project_characteristics!$C$1, SUMIFS(Positions_disbursement!$C$1:$C$14,Positions_disbursement!$B$1:$B$14,Achievement_to_date_ongoing!$D82,Positions_disbursement!$A$1:$A$14,Achievement_to_date_ongoing!$C82), MAX(0,P$3-YEAR($I82)))/100)) -> 0
B83: 115371 | C83: 2 | D83: (b) | E83: F | F83: Less developed | G83: Financial | H83: 28283862.29 | I83: 2014-01-01 | J83: 2021-12-31 | K83: 29108659.11 | M83: =IF($J83<DATE(M$3,12,31),1, IF($G83="Physical",0, OFFSET(Project_characteristics!$C$1, SUMIFS(Positions_disbursement!$C$1:$C$14,Positions_disbursement!$B$1:$B$14,Achievement_to_date_ongoing!$D83,Positions_disbursement!$A$1:$A$14,Achievement_to_date_ongoing!$C83), MAX(0,M$3-YEAR($I83)))/100)) -> 0 | N83: =IF($J83<DATE(N$3,12,31),1, IF($G83="Physical",0, OFFSET(Project_characteristics!$C$1, SUMIFS(Positions_disbursement!$C$1:$C$14,Positions_disbursement!$B$1:$B$14,Achievement_to_date_ongoing!$D83,Positions_disbursement!$A$1:$A$14,Achievement_to_date_ongoing!$C83), MAX(0,N$3-YEAR($I83)))/100)) -> 0 | O83: =IF($J83<DATE(O$3,12,31),1, IF($G83="Physical",0, OFFSET(Project_characteristics!$C$1, SUMIFS(Positions_disbursement!$C$1:$C$14,Positions_disbursement!$B$1:$B$14,Achievement_to_date_ongoing!$D83,Positions_disbursement!$A$1:$A$14,Achievement_to_date_ongoing!$C83), MAX(0,O$3-YEAR($I83)))/100)) -> 1 | P83: =IF($J83<DATE(P$3,12,31),1, IF($G83="Physical",0, OFFSET(Project_characteristics!$C$1, SUMIFS(Positions_disbursement!$C$1:$C$14,Positions_disbursement!$B$1:$B$14,Achievement_to_date_ongoing!$D83,Positions_disbursement!$A$1:$A$14,Achievement_to_date_ongoing!$C83), MAX(0,P$3-YEAR($I83)))/100)) -> 1
B84: 111193 | C84: 2 | D84: (b) | E84: F | F84: Less developed | G84: Financial | H84: 14548.83 | I84: 2014-01-01 | J84: 2021-12-31 | K84: 10023883.25 | M84: =IF($J84<DATE(M$3,12,31),1, IF($G84="Physical",0, OFFSET(Project_characteristics!$C$1, SUMIFS(Positions_disbursement!$C$1:$C$14,Positions_disbursement!$B$1:$B$14,Achievement_to_date_ongoing!$D84,Positions_disbursement!$A$1:$A$14,Achievement_to_date_ongoing!$C84), MAX(0,M$3-YEAR($I84)))/100)) -> 0 | N84: =IF($J84<DATE(N$3,12,31),1, IF($G84="Physical",0, OFFSET(Project_characteristics!$C$1, SUMIFS(Positions_disbursement!$C$1:$C$14,Positions_disbursement!$B$1:$B$14,Achievement_to_date_ongoing!$D84,Positions_disbursement!$A$1:$A$14,Achievement_to_date_ongoing!$C84), MAX(0,N$3-YEAR($I84)))/100)) -> 0 | O84: =IF($J84<DATE(O$3,12,31),1, IF($G84="Physical",0, OFFSET(Project_characteristics!$C$1, SUMIFS(Positions_disbursement!$C$1:$C$14,Positions_disbursement!$B$1:$B$14,Achievement_to_date_ongoing!$D84,Positions_disbursement!$A$1:$A$14,Achievement_to_date_ongoing!$C84), MAX(0,O$3-YEAR($I84)))/100)) -> 1 | P84: =IF($J84<DATE(P$3,12,31),1, IF($G84="Physical",0, OFFSET(Project_characteristics!$C$1, SUMIFS(Positions_disbursement!$C$1:$C$14,Positions_disbursement!$B$1:$B$14,Achievement_to_date_ongoing!$D84,Positions_disbursement!$A$1:$A$14,Achievement_to_date_ongoing!$C84), MAX(0,P$3-YEAR($I84)))/100)) -> 1
B85: 117897 | C85: 2 | D85: (b) | E85: F | F85: Less developed | G85: Financial | H85: 2719743.37 | I85: 2009-09-26 | J85: 2021-06-30 | K85: 180410453.5 | M85: =IF($J85<DATE(M$3,12,31),1, IF($G85="Physical",0, OFFSET(Project_characteristics!$C$1, SUMIFS(Positions_disbursement!$C$1:$C$14,Positions_disbursement!$B$1:$B$14,Achievement_to_date_ongoing!$D85,Positions_disbursement!$A$1:$A$14,Achievement_to_date_ongoing!$C85), MAX(0,M$3-YEAR($I85)))/100)) -> 0 | N85: =IF($J85<DATE(N$3,12,31),1, IF($G85="Physical",0, OFFSET(Project_characteristics!$C$1, SUMIFS(Positions_disbursement!$C$1:$C$14,Positions_disbursement!$B$1:$B$14,Achievement_to_date_ongoing!$D85,Positions_disbursement!$A$1:$A$14,Achievement_to_date_ongoing!$C85), MAX(0,N$3-YEAR($I85)))/100)) -> 1 | O85: =IF($J85<DATE(O$3,12,31),1, IF($G85="Physical",0, OFFSET(Project_characteristics!$C$1, SUMIFS(Positions_disbursement!$C$1:$C$14,Positions_disbursement!$B$1:$B$14,Achievement_to_date_ongoing!$D85,Positions_disbursement!$A$1:$A$14,Achievement_to_date_ongoing!$C85), MAX(0,O$3-YEAR($I85)))/100)) -> 1 | P85: =IF($J85<DATE(P$3,12,31),1, IF($G85="Physical",0, OFFSET(Project_characteristics!$C$1, SUMIFS(Positions_disbursement!$C$1:$C$14,Positions_disbursement!$B$1:$B$14,Achievement_to_date_ongoing!$D85,Positions_disbursement!$A$1:$A$14,Achievement_to_date_ongoing!$C85), MAX(0,P$3-YEAR($I85)))/100)) -> 1
B86: 121316 | C86: 2 | D86: (b) | E86: F | F86: Less developed | G86: Financial | H86: 531571.45 | I86: 2015-04-01 | J86: 2021-12-31 | K86: 750822.7396 | M86: =IF($J86<DATE(M$3,12,31),1, IF($G86="Physical",0, OFFSET(Project_characteristics!$C$1, SUMIFS(Positions_disbursement!$C$1:$C$14,Positions_disbursement!$B$1:$B$14,Achievement_to_date_ongoing!$D86,Positions_disbursement!$A$1:$A$14,Achievement_to_date_ongoing!$C86), MAX(0,M$3-YEAR($I86)))/100)) -> 0 | N86: =IF($J86<DATE(N$3,12,31),1, IF($G86="Physical",0, OFFSET(Project_characteristics!$C$1, SUMIFS(Positions_disbursement!$C$1:$C$14,Positions_disbursement!$B$1:$B$14,Achievement_to_date_ongoing!$D86,Positions_disbursement!$A$1:$A$14,Achievement_to_date_ongoing!$C86), MAX(0,N$3-YEAR($I86)))/100)) -> 0 | O86: =IF($J86<DATE(O$3,12,31),1, IF($G86="Physical",0, OFFSET(Project_characteristics!$C$1, SUMIFS(Positions_disbursement!$C$1:$C$14,Positions_disbursement!$B$1:$B$14,Achievement_to_date_ongoing!$D86,Positions_disbursement!$A$1:$A$14,Achievement_to_date_ongoing!$C86), MAX(0,O$3-YEAR($I86)))/100)) -> 1 | P86: =IF($J86<DATE(P$3,12,31),1, IF($G86="Physical",0, OFFSET(Project_characteristics!$C$1, SUMIFS(Positions_disbursement!$C$1:$C$14,Positions_disbursement!$B$1:$B$14,Achievement_to_date_ongoing!$D86,Positions_disbursement!$A$1:$A$14,Achievement_to_date_ongoing!$C86), MAX(0,P$3-YEAR($I86)))/100)) -> 1
B87: 112112 | C87: 2 | D87: (b) | E87: F | F87: Less developed | G87: Financial | H87: 249701075.5 | I87: 2014-01-01 | J87: 2023-10-31 | K87: 279785991.3 | M87: =IF($J87<DATE(M$3,12,31),1, IF($G87="Physical",0, OFFSET(Project_characteristics!$C$1, SUMIFS(Positions_disbursement!$C$1:$C$14,Positions_disbursement!$B$1:$B$14,Achievement_to_date_ongoing!$D87,Positions_disbursement!$A$1:$A$14,Achievement_to_date_ongoing!$C87), MAX(0,M$3-YEAR($I87)))/100)) -> 0 | N87: =IF($J87<DATE(N$3,12,31),1, IF($G87="Physical",0, OFFSET(Project_characteristics!$C$1, SUMIFS(Positions_disbursement!$C$1:$C$14,Positions_disbursement!$B$1:$B$14,Achievement_to_date_ongoing!$D87,Positions_disbursement!$A$1:$A$14,Achievement_to_date_ongoing!$C87), MAX(0,N$3-YEAR($I87)))/100)) -> 0 | O87: =IF($J87<DATE(O$3,12,31),1, IF($G87="Physical",0, OFFSET(Project_characteristics!$C$1, SUMIFS(Positions_disbursement!$C$1:$C$14,Positions_disbursement!$B$1:$B$14,Achievement_to_date_ongoing!$D87,Positions_disbursement!$A$1:$A$14,Achievement_to_date_ongoing!$C87), MAX(0,O$3-YEAR($I87)))/100)) -> 0 | P87: =IF($J87<DATE(P$3,12,31),1, IF($G87="Physical",0, OFFSET(Project_characteristics!$C$1, SUMIFS(Positions_disbursement!$C$1:$C$14,Positions_disbursement!$B$1:$B$14,Achievement_to_date_ongoing!$D87,Positions_disbursement!$A$1:$A$14,Achievement_to_date_ongoing!$C87), MAX(0,P$3-YEAR($I87)))/100)) -> 1
B88: 130081 | C88: 2 | D88: (b) | E88: F | F88: Less developed | G88: Financial | H88: 67824431.51 | I88: 2014-01-01 | J88: 2023-12-31 | K88: 79793448.83 | M88: =IF($J88<DATE(M$3,12,31),1, IF($G88="Physical",0, OFFSET(Project_characteristics!$C$1, SUMIFS(Positions_disbursement!$C$1:$C$14,Positions_disbursement!$B$1:$B$14,Achievement_to_date_ongoing!$D88,Positions_disbursement!$A$1:$A$14,Achievement_to_date_ongoing!$C88), MAX(0,M$3-YEAR($I88)))/100)) -> 0 | N88: =IF($J88<DATE(N$3,12,31),1, IF($G88="Physical",0, OFFSET(Project_characteristics!$C$1, SUMIFS(Positions_disbursement!$C$1:$C$14,Positions_disbursement!$B$1:$B$14,Achievement_to_date_ongoing!$D88,Positions_disbursement!$A$1:$A$14,Achievement_to_date_ongoing!$C88), MAX(0,N$3-YEAR($I88)))/100)) -> 0 | O88: =IF($J88<DATE(O$3,12,31),1, IF($G88="Physical",0, OFFSET(Project_characteristics!$C$1, SUMIFS(Positions_disbursement!$C$1:$C$14,Positions_disbursement!$B$1:$B$14,Achievement_to_date_ongoing!$D88,Positions_disbursement!$A$1:$A$14,Achievement_to_date_ongoing!$C88), MAX(0,O$3-YEAR($I88)))/100)) -> 0 | P88: =IF($J88<DATE(P$3,12,31),1, IF($G88="Physical",0, OFFSET(Project_characteristics!$C$1, SUMIFS(Positions_disbursement!$C$1:$C$14,Positions_disbursement!$B$1:$B$14,Achievement_to_date_ongoing!$D88,Positions_disbursement!$A$1:$A$14,Achievement_to_date_ongoing!$C88), MAX(0,P$3-YEAR($I88)))/100)) -> 0
B89: 129033 | C89: 2 | D89: (b) | E89: F | F89: Less developed | G89: Financial | H89: 1690438.344 | I89: 2020-05-29 | J89: 2022-11-30 | K89: 8209475.057 | M89: =IF($J89<DATE(M$3,12,31),1, IF($G89="Physical",0, OFFSET(Project_characteristics!$C$1, SUMIFS(Positions_disbursement!$C$1:$C$14,Positions_disbursement!$B$1:$B$14,Achievement_to_date_ongoing!$D89,Positions_disbursement!$A$1:$A$14,Achievement_to_date_ongoing!$C89), MAX(0,M$3-YEAR($I89)))/100)) -> 0 | N89: =IF($J89<DATE(N$3,12,31),1, IF($G89="Physical",0, OFFSET(Project_characteristics!$C$1, SUMIFS(Positions_disbursement!$C$1:$C$14,Positions_disbursement!$B$1:$B$14,Achievement_to_date_ongoing!$D89,Positions_disbursement!$A$1:$A$14,Achievement_to_date_ongoing!$C89), MAX(0,N$3-YEAR($I89)))/100)) -> 0 | O89: =IF($J89<DATE(O$3,12,31),1, IF($G89="Physical",0, OFFSET(Project_characteristics!$C$1, SUMIFS(Positions_disbursement!$C$1:$C$14,Positions_disbursement!$B$1:$B$14,Achievement_to_date_ongoing!$D89,Positions_disbursement!$A$1:$A$14,Achievement_to_date_ongoing!$C89), MAX(0,O$3-YEAR($I89)))/100)) -> 1 | P89: =IF($J89<DATE(P$3,12,31),1, IF($G89="Physical",0, OFFSET(Project_characteristics!$C$1, SUMIFS(Positions_disbursement!$C$1:$C$14,Positions_disbursement!$B$1:$B$14,Achievement_to_date_ongoing!$D89,Positions_disbursement!$A$1:$A$14,Achievement_to_date_ongoing!$C89), MAX(0,P$3-YEAR($I89)))/100)) -> 1
B90: 131461 | C90: 2 | D90: (b) | E90: F | F90: Less developed | G90: Financial | H90: 71908.48157 | I90: 2020-08-31 | J90: 2022-06-30 | K90: 1993089.764 | M90: =IF($J90<DATE(M$3,12,31),1, IF($G90="Physical",0, OFFSET(Project_characteristics!$C$1, SUMIFS(Positions_disbursement!$C$1:$C$14,Positions_disbursement!$B$1:$B$14,Achievement_to_date_ongoing!$D90,Positions_disbursement!$A$1:$A$14,Achievement_to_date_ongoing!$C90), MAX(0,M$3-YEAR($I90)))/100)) -> 0 | N90: =IF($J90<DATE(N$3,12,31),1, IF($G90="Physical",0, OFFSET(Project_characteristics!$C$1, SUMIFS(Positions_disbursement!$C$1:$C$14,Positions_disbursement!$B$1:$B$14,Achievement_to_date_ongoing!$D90,Positions_disbursement!$A$1:$A$14,Achievement_to_date_ongoing!$C90), MAX(0,N$3-YEAR($I90)))/100)) -> 0 | O90: =IF($J90<DATE(O$3,12,31),1, IF($G90="Physical",0, OFFSET(Project_characteristics!$C$1, SUMIFS(Positions_disbursement!$C$1:$C$14,Positions_disbursement!$B$1:$B$14,Achievement_to_date_ongoing!$D90,Positions_disbursement!$A$1:$A$14,Achievement_to_date_ongoing!$C90), MAX(0,O$3-YEAR($I90)))/100)) -> 1 | P90: =IF($J90<DATE(P$3,12,31),1, IF($G90="Physical",0, OFFSET(Project_characteristics!$C$1, SUMIFS(Positions_disbursement!$C$1:$C$14,Positions_disbursement!$B$1:$B$14,Achievement_to_date_ongoing!$D90,Positions_disbursement!$A$1:$A$14,Achievement_to_date_ongoing!$C90), MAX(0,P$3-YEAR($I90)))/100)) -> 1
B91: 127704 | C91: 2 | D91: (c) | E91: F | F91: Less developed | G91: Financial | H91: 55406.09366 | I91: 2018-05-24 | J91: 2023-11-30 | K91: 5124729.914 | M91: =IF($J91<DATE(M$3,12,31),1, IF($G91="Physical",0, OFFSET(Project_characteristics!$C$1, SUMIFS(Positions_disbursement!$C$1:$C$14,Positions_disbursement!$B$1:$B$14,Achievement_to_date_ongoing!$D91,Positions_disbursement!$A$1:$A$14,Achievement_to_date_ongoing!$C91), MAX(0,M$3-YEAR($I91)))/100)) -> 0 | N91: =IF($J91<DATE(N$3,12,31),1, IF($G91="Physical",0, OFFSET(Project_characteristics!$C$1, SUMIFS(Positions_disbursement!$C$1:$C$14,Positions_disbursement!$B$1:$B$14,Achievement_to_date_ongoing!$D91,Positions_disbursement!$A$1:$A$14,Achievement_to_date_ongoing!$C91), MAX(0,N$3-YEAR($I91)))/100)) -> 0 | O91: =IF($J91<DATE(O$3,12,31),1, IF($G91="Physical",0, OFFSET(Project_characteristics!$C$1, SUMIFS(Positions_disbursement!$C$1:$C$14,Positions_disbursement!$B$1:$B$14,Achievement_to_date_ongoing!$D91,Positions_disbursement!$A$1:$A$14,Achievement_to_date_ongoing!$C91), MAX(0,O$3-YEAR($I91)))/100)) -> 0 | P91: =IF($J91<DATE(P$3,12,31),1, IF($G91="Physical",0, OFFSET(Project_characteristics!$C$1, SUMIFS(Positions_disbursement!$C$1:$C$14,Positions_disbursement!$B$1:$B$14,Achievement_to_date_ongoing!$D91,Positions_disbursement!$A$1:$A$14,Achievement_to_date_ongoing!$C91), MAX(0,P$3-YEAR($I91)))/100)) -> 1
B92: 115216 | C92: 2 | D92: (c) | E92: F | F92: Less developed | G92: Financial | H92: 24217597.37 | I92: 2014-04-01 | J92: 2022-12-30 | K92: 24217597.37 | M92: =IF($J92<DATE(M$3,12,31),1, IF($G92="Physical",0, OFFSET(Project_characteristics!$C$1, SUMIFS(Positions_disbursement!$C$1:$C$14,Positions_disbursement!$B$1:$B$14,Achievement_to_date_ongoing!$D92,Positions_disbursement!$A$1:$A$14,Achievement_to_date_ongoing!$C92), MAX(0,M$3-YEAR($I92)))/100)) -> 0 | N92: =IF($J92<DATE(N$3,12,31),1, IF($G92="Physical",0, OFFSET(Project_characteristics!$C$1, SUMIFS(Positions_disbursement!$C$1:$C$14,Positions_disbursement!$B$1:$B$14,Achievement_to_date_ongoing!$D92,Positions_disbursement!$A$1:$A$14,Achievement_to_date_ongoing!$C92), MAX(0,N$3-YEAR($I92)))/100)) -> 0 | O92: =IF($J92<DATE(O$3,12,31),1, IF($G92="Physical",0, OFFSET(Project_characteristics!$C$1, SUMIFS(Positions_disbursement!$C$1:$C$14,Positions_disbursement!$B$1:$B$14,Achievement_to_date_ongoing!$D92,Positions_disbursement!$A$1:$A$14,Achievement_to_date_ongoing!$C92), MAX(0,O$3-YEAR($I92)))/100)) -> 1 | P92: =IF($J92<DATE(P$3,12,31),1, IF($G92="Physical",0, OFFSET(Project_characteristics!$C$1, SUMIFS(Positions_disbursement!$C$1:$C$14,Positions_disbursement!$B$1:$B$14,Achievement_to_date_ongoing!$D92,Positions_disbursement!$A$1:$A$14,Achievement_to_date_ongoing!$C92), MAX(0,P$3-YEAR($I92)))/100)) -> 1
B93: 116006 | C93: 2 | D93: (c) | E93: F | F93: Less developed | G93: Financial | H93: 22266004.99 | I93: 2019-09-01 | J93: 2023-12-31 | K93: 26195299.98 | M93: =IF($J93<DATE(M$3,12,31),1, IF($G93="Physical",0, OFFSET(Project_characteristics!$C$1, SUMIFS(Positions_disbursement!$C$1:$C$14,Positions_disbursement!$B$1:$B$14,Achievement_to_date_ongoing!$D93,Positions_disbursement!$A$1:$A$14,Achievement_to_date_ongoing!$C93), MAX(0,M$3-YEAR($I93)))/100)) -> 0 | N93: =IF($J93<DATE(N$3,12,31),1, IF($G93="Physical",0, OFFSET(Project_characteristics!$C$1, SUMIFS(Positions_disbursement!$C$1:$C$14,Positions_disbursement!$B$1:$B$14,Achievement_to_date_ongoing!$D93,Positions_disbursement!$A$1:$A$14,Achievement_to_date_ongoing!$C93), MAX(0,N$3-YEAR($I93)))/100)) -> 0 | O93: =IF($J93<DATE(O$3,12,31),1, IF($G93="Physical",0, OFFSET(Project_characteristics!$C$1, SUMIFS(Positions_disbursement!$C$1:$C$14,Positions_disbursement!$B$1:$B$14,Achievement_to_date_ongoing!$D93,Positions_disbursement!$A$1:$A$14,Achievement_to_date_ongoing!$C93), MAX(0,O$3-YEAR($I93)))/100)) -> 0 | P93: =IF($J93<DATE(P$3,12,31),1, IF($G93="Physical",0, OFFSET(Project_characteristics!$C$1, SUMIFS(Positions_disbursement!$C$1:$C$14,Positions_disbursement!$B$1:$B$14,Achievement_to_date_ongoing!$D93,Positions_disbursement!$A$1:$A$14,Achievement_to_date_ongoing!$C93), MAX(0,P$3-YEAR($I93)))/100)) -> 0
B94: 126309 | C94: 2 | D94: (c) | E94: F | F94: Less developed | G94: Financial | H94: 13646213.42 | I94: 2020-01-31 | J94: 2026-03-16 | K94: 16054368.73 | M94: =IF($J94<DATE(M$3,12,31),1, IF($G94="Physical",0, OFFSET(Project_characteristics!$C$1, SUMIFS(Positions_disbursement!$C$1:$C$14,Positions_disbursement!$B$1:$B$14,Achievement_to_date_ongoing!$D94,Positions_disbursement!$A$1:$A$14,Achievement_to_date_ongoing!$C94), MAX(0,M$3-YEAR($I94)))/100)) -> 0 | N94: =IF($J94<DATE(N$3,12,31),1, IF($G94="Physical",0, OFFSET(Project_characteristics!$C$1, SUMIFS(Positions_disbursement!$C$1:$C$14,Positions_disbursement!$B$1:$B$14,Achievement_to_date_ongoing!$D94,Positions_disbursement!$A$1:$A$14,Achievement_to_date_ongoing!$C94), MAX(0,N$3-YEAR($I94)))/100)) -> 0 | O94: =IF($J94<DATE(O$3,12,31),1, IF($G94="Physical",0, OFFSET(Project_characteristics!$C$1, SUMIFS(Positions_disbursement!$C$1:$C$14,Positions_disbursement!$B$1:$B$14,Achievement_to_date_ongoing!$D94,Positions_disbursement!$A$1:$A$14,Achievement_to_date_ongoing!$C94), MAX(0,O$3-YEAR($I94)))/100)) -> 0 | P94: =IF($J94<DATE(P$3,12,31),1, IF($G94="Physical",0, OFFSET(Project_characteristics!$C$1, SUMIFS(Positions_disbursement!$C$1:$C$14,Positions_disbursement!$B$1:$B$14,Achievement_to_date_ongoing!$D94,Positions_disbursement!$A$1:$A$14,Achievement_to_date_ongoing!$C94), MAX(0,P$3-YEAR($I94)))/100)) -> 0
B95: 130497 | C95: 2 | D95: (c) | E95: F | F95: Less developed | G95: Financial | H95: 843462.2675 | I95: 2018-03-01 | J95: 2023-09-29 | K95: 35362651.91 | M95: =IF($J95<DATE(M$3,12,31),1, IF($G95="Physical",0, OFFSET(Project_characteristics!$C$1, SUMIFS(Positions_disbursement!$C$1:$C$14,Positions_disbursement!$B$1:$B$14,Achievement_to_date_ongoing!$D95,Positions_disbursement!$A$1:$A$14,Achievement_to_date_ongoing!$C95), MAX(0,M$3-YEAR($I95)))/100)) -> 0 | N95: =IF($J95<DATE(N$3,12,31),1, IF($G95="Physical",0, OFFSET(Project_characteristics!$C$1, SUMIFS(Positions_disbursement!$C$1:$C$14,Positions_disbursement!$B$1:$B$14,Achievement_to_date_ongoing!$D95,Positions_disbursement!$A$1:$A$14,Achievement_to_date_ongoing!$C95), MAX(0,N$3-YEAR($I95)))/100)) -> 0 | O95: =IF($J95<DATE(O$3,12,31),1, IF($G95="Physical",0, OFFSET(Project_characteristics!$C$1, SUMIFS(Positions_disbursement!$C$1:$C$14,Positions_disbursement!$B$1:$B$14,Achievement_to_date_ongoing!$D95,Positions_disbursement!$A$1:$A$14,Achievement_to_date_ongoing!$C95), MAX(0,O$3-YEAR($I95)))/100)) -> 0 | P95: =IF($J95<DATE(P$3,12,31),1, IF($G95="Physical",0, OFFSET(Project_characteristics!$C$1, SUMIFS(Positions_disbursement!$C$1:$C$14,Positions_disbursement!$B$1:$B$14,Achievement_to_date_ongoing!$D95,Positions_disbursement!$A$1:$A$14,Achievement_to_date_ongoing!$C95), MAX(0,P$3-YEAR($I95)))/100)) -> 1
B96: 125198 | C96: 2 | D96: (c) | E96: F | F96: Less developed | G96: Financial | H96: 104213.754 | I96: 2017-11-01 | J96: 2021-12-31 | K96: 12295421.54 | M96: =IF($J96<DATE(M$3,12,31),1, IF($G96="Physical",0, OFFSET(Project_characteristics!$C$1, SUMIFS(Positions_disbursement!$C$1:$C$14,Positions_disbursement!$B$1:$B$14,Achievement_to_date_ongoing!$D96,Positions_disbursement!$A$1:$A$14,Achievement_to_date_ongoing!$C96), MAX(0,M$3-YEAR($I96)))/100)) -> 0 | N96: =IF($J96<DATE(N$3,12,31),1, IF($G96="Physical",0, OFFSET(Project_characteristics!$C$1, SUMIFS(Positions_disbursement!$C$1:$C$14,Positions_disbursement!$B$1:$B$14,Achievement_to_date_ongoing!$D96,Positions_disbursement!$A$1:$A$14,Achievement_to_date_ongoing!$C96), MAX(0,N$3-YEAR($I96)))/100)) -> 0 | O96: =IF($J96<DATE(O$3,12,31),1, IF($G96="Physical",0, OFFSET(Project_characteristics!$C$1, SUMIFS(Positions_disbursement!$C$1:$C$14,Positions_disbursement!$B$1:$B$14,Achievement_to_date_ongoing!$D96,Positions_disbursement!$A$1:$A$14,Achievement_to_date_ongoing!$C96), MAX(0,O$3-YEAR($I96)))/100)) -> 1 | P96: =IF($J96<DATE(P$3,12,31),1, IF($G96="Physical",0, OFFSET(Project_characteristics!$C$1, SUMIFS(Positions_disbursement!$C$1:$C$14,Positions_disbursement!$B$1:$B$14,Achievement_to_date_ongoing!$D96,Positions_disbursement!$A$1:$A$14,Achievement_to_date_ongoing!$C96), MAX(0,P$3-YEAR($I96)))/100)) -> 1
B97: 123542 | C97: 2 | D97: (c) | E97: F | F97: Less developed | G97: Financial | H97: 42301603.05 | I97: 2017-11-29 | J97: 2023-12-31 | K97: 42301603.05 | M97: =IF($J97<DATE(M$3,12,31),1, IF($G97="Physical",0, OFFSET(Project_characteristics!$C$1, SUMIFS(Positions_disbursement!$C$1:$C$14,Positions_disbursement!$B$1:$B$14,Achievement_to_date_ongoing!$D97,Positions_disbursement!$A$1:$A$14,Achievement_to_date_ongoing!$C97), MAX(0,M$3-YEAR($I97)))/100)) -> 0 | N97: =IF($J97<DATE(N$3,12,31),1, IF($G97="Physical",0, OFFSET(Project_characteristics!$C$1, SUMIFS(Positions_disbursement!$C$1:$C$14,Positions_disbursement!$B$1:$B$14,Achievement_to_date_ongoing!$D97,Positions_disbursement!$A$1:$A$14,Achievement_to_date_ongoing!$C97), MAX(0,N$3-YEAR($I97)))/100)) -> 0 | O97: =IF($J97<DATE(O$3,12,31),1, IF($G97="Physical",0, OFFSET(Project_characteristics!$C$1, SUMIFS(Positions_disbursement!$C$1:$C$14,Positions_disbursement!$B$1:$B$14,Achievement_to_date_ongoing!$D97,Positions_disbursement!$A$1:$A$14,Achievement_to_date_ongoing!$C97), MAX(0,O$3-YEAR($I97)))/100)) -> 0 | P97: =IF($J97<DATE(P$3,12,31),1, IF($G97="Physical",0, OFFSET(Project_characteristics!$C$1, SUMIFS(Positions_disbursement!$C$1:$C$14,Positions_disbursement!$B$1:$B$14,Achievement_to_date_ongoing!$D97,Positions_disbursement!$A$1:$A$14,Achievement_to_date_ongoing!$C97), MAX(0,P$3-YEAR($I97)))/100)) -> 0
B98: 118184 | C98: 2 | D98: (c) | E98: F | F98: Less developed | G98: Financial | H98: 54138032.03 | I98: 2014-01-01 | J98: 2021-10-30 | K98: 54138032.03 | M98: =IF($J98<DATE(M$3,12,31),1, IF($G98="Physical",0, OFFSET(Project_characteristics!$C$1, SUMIFS(Positions_disbursement!$C$1:$C$14,Positions_disbursement!$B$1:$B$14,Achievement_to_date_ongoing!$D98,Positions_disbursement!$A$1:$A$14,Achievement_to_date_ongoing!$C98), MAX(0,M$3-YEAR($I98)))/100)) -> 0 | N98: =IF($J98<DATE(N$3,12,31),1, IF($G98="Physical",0, OFFSET(Project_characteristics!$C$1, SUMIFS(Positions_disbursement!$C$1:$C$14,Positions_disbursement!$B$1:$B$14,Achievement_to_date_ongoing!$D98,Positions_disbursement!$A$1:$A$14,Achievement_to_date_ongoing!$C98), MAX(0,N$3-YEAR($I98)))/100)) -> 1 | O98: =IF($J98<DATE(O$3,12,31),1, IF($G98="Physical",0, OFFSET(Project_characteristics!$C$1, SUMIFS(Positions_disbursement!$C$1:$C$14,Positions_disbursement!$B$1:$B$14,Achievement_to_date_ongoing!$D98,Positions_disbursement!$A$1:$A$14,Achievement_to_date_ongoing!$C98), MAX(0,O$3-YEAR($I98)))/100)) -> 1 | P98: =IF($J98<DATE(P$3,12,31),1, IF($G98="Physical",0, OFFSET(Project_characteristics!$C$1, SUMIFS(Positions_disbursement!$C$1:$C$14,Positions_disbursement!$B$1:$B$14,Achievement_to_date_ongoing!$D98,Positions_disbursement!$A$1:$A$14,Achievement_to_date_ongoing!$C98), MAX(0,P$3-YEAR($I98)))/100)) -> 1
B99: 125945 | C99: 2 | D99: (c) | E99: F | F99: Less developed | G99: Financial | H99: 131960170.4 | I99: 2014-01-01 | J99: 2021-07-06 | K99: 131960170.4 | M99: =IF($J99<DATE(M$3,12,31),1, IF($G99="Physical",0, OFFSET(Project_characteristics!$C$1, SUMIFS(Positions_disbursement!$C$1:$C$14,Positions_disbursement!$B$1:$B$14,Achievement_to_date_ongoing!$D99,Positions_disbursement!$A$1:$A$14,Achievement_to_date_ongoing!$C99), MAX(0,M$3-YEAR($I99)))/100)) -> 0 | N99: =IF($J99<DATE(N$3,12,31),1, IF($G99="Physical",0, OFFSET(Project_characteristics!$C$1, SUMIFS(Positions_disbursement!$C$1:$C$14,Positions_disbursement!$B$1:$B$14,Achievement_to_date_ongoing!$D99,Positions_disbursement!$A$1:$A$14,Achievement_to_date_ongoing!$C99), MAX(0,N$3-YEAR($I99)))/100)) -> 1 | O99: =IF($J99<DATE(O$3,12,31),1, IF($G99="Physical",0, OFFSET(Project_characteristics!$C$1, SUMIFS(Positions_disbursement!$C$1:$C$14,Positions_disbursement!$B$1:$B$14,Achievement_to_date_ongoing!$D99,Positions_disbursement!$A$1:$A$14,Achievement_to_date_ongoing!$C99), MAX(0,O$3-YEAR($I99)))/100)) -> 1 | P99: =IF($J99<DATE(P$3,12,31),1, IF($G99="Physical",0, OFFSET(Project_characteristics!$C$1, SUMIFS(Positions_disbursement!$C$1:$C$14,Positions_disbursement!$B$1:$B$14,Achievement_to_date_ongoing!$D99,Positions_disbursement!$A$1:$A$14,Achievement_to_date_ongoing!$C99), MAX(0,P$3-YEAR($I99)))/100)) -> 1
B100: 129636 | C100: 2 | D100: (c) | E100: F | F100: Less developed | G100: Financial | H100: 40415486.07 | I100: 2017-09-01 | J100: 2022-12-31 | K100: 97811859.59 | M100: =IF($J100<DATE(M$3,12,31),1, IF($G100="Physical",0, OFFSET(Project_characteristics!$C$1, SUMIFS(Positions_disbursement!$C$1:$C$14,Positions_disbursement!$B$1:$B$14,Achievement_to_date_ongoing!$D100,Positions_disbursement!$A$1:$A$14,Achievement_to_date_ongoing!$C100), MAX(0,M$3-YEAR($I100)))/100)) -> 0 | N100: =IF($J100<DATE(N$3,12,31),1, IF($G100="Physical",0, OFFSET(Project_characteristics!$C$1, SUMIFS(Positions_disbursement!$C$1:$C$14,Positions_disbursement!$B$1:$B$14,Achievement_to_date_ongoing!$D100,Positions_disbursement!$A$1:$A$14,Achievement_to_date_ongoing!$C100), MAX(0,N$3-YEAR($I100)))/100)) -> 0 | O100: =IF($J100<DATE(O$3,12,31),1, IF($G100="Physical",0, OFFSET(Project_characteristics!$C$1, SUMIFS(Positions_disbursement!$C$1:$C$14,Positions_disbursement!$B$1:$B$14,Achievement_to_date_ongoing!$D100,Positions_disbursement!$A$1:$A$14,Achievement_to_date_ongoing!$C100), MAX(0,O$3-YEAR($I100)))/100)) -> 0 | P100: =IF($J100<DATE(P$3,12,31),1, IF($G100="Physical",0, OFFSET(Project_characteristics!$C$1, SUMIFS(Positions_disbursement!$C$1:$C$14,Positions_disbursement!$B$1:$B$14,Achievement_to_date_ongoing!$D100,Positions_disbursement!$A$1:$A$14,Achievement_to_date_ongoing!$C100), MAX(0,P$3-YEAR($I100)))/100)) -> 1
B101: 129406 | C101: 2 | D101: (c) | E101: F | F101: Less developed | G101: Financial | H101: 673847.5509 | I101: 2018-03-26 | J101: 2023-12-31 | K101: 7940672.832 | M101: =IF($J101<DATE(M$3,12,31),1, IF($G101="Physical",0, OFFSET(Project_characteristics!$C$1, SUMIFS(Positions_disbursement!$C$1:$C$14,Positions_disbursement!$B$1:$B$14,Achievement_to_date_ongoing!$D101,Positions_disbursement!$A$1:$A$14,Achievement_to_date_ongoing!$C101), MAX(0,M$3-YEAR($I101)))/100)) -> 0 | N101: =IF($J101<DATE(N$3,12,31),1, IF($G101="Physical",0, OFFSET(Project_characteristics!$C$1, SUMIFS(Positions_disbursement!$C$1:$C$14,Positions_disbursement!$B$1:$B$14,Achievement_to_date_ongoing!$D101,Positions_disbursement!$A$1:$A$14,Achievement_to_date_ongoing!$C101), MAX(0,N$3-YEAR($I101)))/100)) -> 0 | O101: =IF($J101<DATE(O$3,12,31),1, IF($G101="Physical",0, OFFSET(Project_characteristics!$C$1, SUMIFS(Positions_disbursement!$C$1:$C$14,Positions_disbursement!$B$1:$B$14,Achievement_to_date_ongoing!$D101,Positions_disbursement!$A$1:$A$14,Achievement_to_date_ongoing!$C101), MAX(0,O$3-YEAR($I101)))/100)) -> 0 | P101: =IF($J101<DATE(P$3,12,31),1, IF($G101="Physical",0, OFFSET(Project_characteristics!$C$1, SUMIFS(Positions_disbursement!$C$1:$C$14,Positions_disbursement!$B$1:$B$14,Achievement_to_date_ongoing!$D101,Positions_disbursement!$A$1:$A$14,Achievement_to_date_ongoing!$C101), MAX(0,P$3-YEAR($I101)))/100)) -> 0
B102: 125179 | C102: 2 | D102: (c) | E102: F | F102: Less developed | G102: Financial | H102: 15592.90107 | I102: 2020-07-01 | J102: 2023-06-30 | K102: 12267527.77 | M102: =IF($J102<DATE(M$3,12,31),1, IF($G102="Physical",0, OFFSET(Project_characteristics!$C$1, SUMIFS(Positions_disbursement!$C$1:$C$14,Positions_disbursement!$B$1:$B$14,Achievement_to_date_ongoing!$D102,Positions_disbursement!$A$1:$A$14,Achievement_to_date_ongoing!$C102), MAX(0,M$3-YEAR($I102)))/100)) -> 0 | N102: =IF($J102<DATE(N$3,12,31),1, IF($G102="Physical",0, OFFSET(Project_characteristics!$C$1, SUMIFS(Positions_disbursement!$C$1:$C$14,Positions_disbursement!$B$1:$B$14,Achievement_to_date_ongoing!$D102,Positions_disbursement!$A$1:$A$14,Achievement_to_date_ongoing!$C102), MAX(0,N$3-YEAR($I102)))/100)) -> 0 | O102: =IF($J102<DATE(O$3,12,31),1, IF($G102="Physical",0, OFFSET(Project_characteristics!$C$1, SUMIFS(Positions_disbursement!$C$1:$C$14,Positions_disbursement!$B$1:$B$14,Achievement_to_date_ongoing!$D102,Positions_disbursement!$A$1:$A$14,Achievement_to_date_ongoing!$C102), MAX(0,O$3-YEAR($I102)))/100)) -> 0 | P102: =IF($J102<DATE(P$3,12,31),1, IF($G102="Physical",0, OFFSET(Project_characteristics!$C$1, SUMIFS(Positions_disbursement!$C$1:$C$14,Positions_disbursement!$B$1:$B$14,Achievement_to_date_ongoing!$D102,Positions_disbursement!$A$1:$A$14,Achievement_to_date_ongoing!$C102), MAX(0,P$3-YEAR($I102)))/100)) -> 1
B103: 135066 | C103: 2 | D103: (c) | E103: F | F103: Less developed | G103: Financial | H103: 433802.243 | I103: 2018-05-01 | J103: 2022-09-30 | K103: 33233387.68 | M103: =IF($J103<DATE(M$3,12,31),1, IF($G103="Physical",0, OFFSET(Project_characteristics!$C$1, SUMIFS(Positions_disbursement!$C$1:$C$14,Positions_disbursement!$B$1:$B$14,Achievement_to_date_ongoing!$D103,Positions_disbursement!$A$1:$A$14,Achievement_to_date_ongoing!$C103), MAX(0,M$3-YEAR($I103)))/100)) -> 0 | N103: =IF($J103<DATE(N$3,12,31),1, IF($G103="Physical",0, OFFSET(Project_characteristics!$C$1, SUMIFS(Positions_disbursement!$C$1:$C$14,Positions_disbursement!$B$1:$B$14,Achievement_to_date_ongoing!$D103,Positions_disbursement!$A$1:$A$14,Achievement_to_date_ongoing!$C103), MAX(0,N$3-YEAR($I103)))/100)) -> 0 | O103: =IF($J103<DATE(O$3,12,31),1, IF($G103="Physical",0, OFFSET(Project_characteristics!$C$1, SUMIFS(Positions_disbursement!$C$1:$C$14,Positions_disbursement!$B$1:$B$14,Achievement_to_date_ongoing!$D103,Positions_disbursement!$A$1:$A$14,Achievement_to_date_ongoing!$C103), MAX(0,O$3-YEAR($I103)))/100)) -> 1 | P103: =IF($J103<DATE(P$3,12,31),1, IF($G103="Physical",0, OFFSET(Project_characteristics!$C$1, SUMIFS(Positions_disbursement!$C$1:$C$14,Positions_disbursement!$B$1:$B$14,Achievement_to_date_ongoing!$D103,Positions_disbursement!$A$1:$A$14,Achievement_to_date_ongoing!$C103), MAX(0,P$3-YEAR($I103)))/100)) -> 1
B104: 131430 | C104: 2 | D104: (c) | E104: F | F104: Less developed | G104: Financial | H104: 154648.4929 | I104: 2018-08-03 | J104: 2023-03-31 | K104: 27972964.12 | M104: =IF($J104<DATE(M$3,12,31),1, IF($G104="Physical",0, OFFSET(Project_characteristics!$C$1, SUMIFS(Positions_disbursement!$C$1:$C$14,Positions_disbursement!$B$1:$B$14,Achievement_to_date_ongoing!$D104,Positions_disbursement!$A$1:$A$14,Achievement_to_date_ongoing!$C104), MAX(0,M$3-YEAR($I104)))/100)) -> 0 | N104: =IF($J104<DATE(N$3,12,31),1, IF($G104="Physical",0, OFFSET(Project_characteristics!$C$1, SUMIFS(Positions_disbursement!$C$1:$C$14,Positions_disbursement!$B$1:$B$14,Achievement_to_date_ongoing!$D104,Positions_disbursement!$A$1:$A$14,Achievement_to_date_ongoing!$C104), MAX(0,N$3-YEAR($I104)))/100)) -> 0 | O104: =IF($J104<DATE(O$3,12,31),1, IF($G104="Physical",0, OFFSET(Project_characteristics!$C$1, SUMIFS(Positions_disbursement!$C$1:$C$14,Positions_disbursement!$B$1:$B$14,Achievement_to_date_ongoing!$D104,Positions_disbursement!$A$1:$A$14,Achievement_to_date_ongoing!$C104), MAX(0,O$3-YEAR($I104)))/100)) -> 0 | P104: =IF($J104<DATE(P$3,12,31),1, IF($G104="Physical",0, OFFSET(Project_characteristics!$C$1, SUMIFS(Positions_disbursement!$C$1:$C$14,Positions_disbursement!$B$1:$B$14,Achievement_to_date_ongoing!$D104,Positions_disbursement!$A$1:$A$14,Achievement_to_date_ongoing!$C104), MAX(0,P$3-YEAR($I104)))/100)) -> 1
B105: 135336 | C105: 2 | D105: (c) | E105: F | F105: Less developed | G105: Financial | H105: 247817.5 | I105: 2019-05-05 | J105: 2023-12-31 | K105: 38359546.92 | M105: =IF($J105<DATE(M$3,12,31),1, IF($G105="Physical",0, OFFSET(Project_characteristics!$C$1, SUMIFS(Positions_disbursement!$C$1:$C$14,Positions_disbursement!$B$1:$B$14,Achievement_to_date_ongoing!$D105,Positions_disbursement!$A$1:$A$14,Achievement_to_date_ongoing!$C105), MAX(0,M$3-YEAR($I105)))/100)) -> 0 | N105: =IF($J105<DATE(N$3,12,31),1, IF($G105="Physical",0, OFFSET(Project_characteristics!$C$1, SUMIFS(Positions_disbursement!$C$1:$C$14,Positions_disbursement!$B$1:$B$14,Achievement_to_date_ongoing!$D105,Positions_disbursement!$A$1:$A$14,Achievement_to_date_ongoing!$C105), MAX(0,N$3-YEAR($I105)))/100)) -> 0 | O105: =IF($J105<DATE(O$3,12,31),1, IF($G105="Physical",0, OFFSET(Project_characteristics!$C$1, SUMIFS(Positions_disbursement!$C$1:$C$14,Positions_disbursement!$B$1:$B$14,Achievement_to_date_ongoing!$D105,Positions_disbursement!$A$1:$A$14,Achievement_to_date_ongoing!$C105), MAX(0,O$3-YEAR($I105)))/100)) -> 0 | P105: =IF($J105<DATE(P$3,12,31),1, IF($G105="Physical",0, OFFSET(Project_characteristics!$C$1, SUMIFS(Positions_disbursement!$C$1:$C$14,Positions_disbursement!$B$1:$B$14,Achievement_to_date_ongoing!$D105,Positions_disbursement!$A$1:$A$14,Achievement_to_date_ongoing!$C105), MAX(0,P$3-YEAR($I105)))/100)) -> 0
B106: 111698 | C106: 2 | D106: (d) | E106: F | F106: Less developed | G106: Financial | H106: 6740723.32 | I106: 2008-05-18 | J106: 2021-06-28 | K106: 7095764.704 | M106: =IF($J106<DATE(M$3,12,31),1, IF($G106="Physical",0, OFFSET(Project_characteristics!$C$1, SUMIFS(Positions_disbursement!$C$1:$C$14,Positions_disbursement!$B$1:$B$14,Achievement_to_date_ongoing!$D106,Positions_disbursement!$A$1:$A$14,Achievement_to_date_ongoing!$C106), MAX(0,M$3-YEAR($I106)))/100)) -> 0 | N106: =IF($J106<DATE(N$3,12,31),1, IF($G106="Physical",0, OFFSET(Project_characteristics!$C$1, SUMIFS(Positions_disbursement!$C$1:$C$14,Positions_disbursement!$B$1:$B$14,Achievement_to_date_ongoing!$D106,Positions_disbursement!$A$1:$A$14,Achievement_to_date_ongoing!$C106), MAX(0,N$3-YEAR($I106)))/100)) -> 1 | O106: =IF($J106<DATE(O$3,12,31),1, IF($G106="Physical",0, OFFSET(Project_characteristics!$C$1, SUMIFS(Positions_disbursement!$C$1:$C$14,Positions_disbursement!$B$1:$B$14,Achievement_to_date_ongoing!$D106,Positions_disbursement!$A$1:$A$14,Achievement_to_date_ongoing!$C106), MAX(0,O$3-YEAR($I106)))/100)) -> 1 | P106: =IF($J106<DATE(P$3,12,31),1, IF($G106="Physical",0, OFFSET(Project_characteristics!$C$1, SUMIFS(Positions_disbursement!$C$1:$C$14,Positions_disbursement!$B$1:$B$14,Achievement_to_date_ongoing!$D106,Positions_disbursement!$A$1:$A$14,Achievement_to_date_ongoing!$C106), MAX(0,P$3-YEAR($I106)))/100)) -> 1
B107: 139895 | C107: 2 | D107: (d) | E107: F | F107: Less developed | G107: Financial | H107: 11367.09273 | I107: 2021-03-05 | J107: 2021-10-29 | K107: 1144889.634 | M107: =IF($J107<DATE(M$3,12,31),1, IF($G107="Physical",0, OFFSET(Project_characteristics!$C$1, SUMIFS(Positions_disbursement!$C$1:$C$14,Positions_disbursement!$B$1:$B$14,Achievement_to_date_ongoing!$D107,Positions_disbursement!$A$1:$A$14,Achievement_to_date_ongoing!$C107), MAX(0,M$3-YEAR($I107)))/100)) -> 0 | N107: =IF($J107<DATE(N$3,12,31),1, IF($G107="Physical",0, OFFSET(Project_characteristics!$C$1, SUMIFS(Positions_disbursement!$C$1:$C$14,Positions_disbursement!$B$1:$B$14,Achievement_to_date_ongoing!$D107,Positions_disbursement!$A$1:$A$14,Achievement_to_date_ongoing!$C107), MAX(0,N$3-YEAR($I107)))/100)) -> 1 | O107: =IF($J107<DATE(O$3,12,31),1, IF($G107="Physical",0, OFFSET(Project_characteristics!$C$1, SUMIFS(Positions_disbursement!$C$1:$C$14,Positions_disbursement!$B$1:$B$14,Achievement_to_date_ongoing!$D107,Positions_disbursement!$A$1:$A$14,Achievement_to_date_ongoing!$C107), MAX(0,O$3-YEAR($I107)))/100)) -> 1 | P107: =IF($J107<DATE(P$3,12,31),1, IF($G107="Physical",0, OFFSET(Project_characteristics!$C$1, SUMIFS(Positions_disbursement!$C$1:$C$14,Positions_disbursement!$B$1:$B$14,Achievement_to_date_ongoing!$D107,Positions_disbursement!$A$1:$A$14,Achievement_to_date_ongoing!$C107), MAX(0,P$3-YEAR($I107)))/100)) -> 1
B108: 132564 | C108: 2 | D108: (d) | E108: F | F108: Less developed | G108: Financial | H108: 30449730.81 | I108: 2008-05-18 | J108: 2021-09-30 | K108: 30449730.81 | M108: =IF($J108<DATE(M$3,12,31),1, IF($G108="Physical",0, OFFSET(Project_characteristics!$C$1, SUMIFS(Positions_disbursement!$C$1:$C$14,Positions_disbursement!$B$1:$B$14,Achievement_to_date_ongoing!$D108,Positions_disbursement!$A$1:$A$14,Achievement_to_date_ongoing!$C108), MAX(0,M$3-YEAR($I108)))/100)) -> 0 | N108: =IF($J108<DATE(N$3,12,31),1, IF($G108="Physical",0, OFFSET(Project_characteristics!$C$1, SUMIFS(Positions_disbursement!$C$1:$C$14,Positions_disbursement!$B$1:$B$14,Achievement_to_date_ongoing!$D108,Positions_disbursement!$A$1:$A$14,Achievement_to_date_ongoing!$C108), MAX(0,N$3-YEAR($I108)))/100)) -> 1 | O108: =IF($J108<DATE(O$3,12,31),1, IF($G108="Physical",0, OFFSET(Project_characteristics!$C$1, SUMIFS(Positions_disbursement!$C$1:$C$14,Positions_disbursement!$B$1:$B$14,Achievement_to_date_ongoing!$D108,Positions_disbursement!$A$1:$A$14,Achievement_to_date_ongoing!$C108), MAX(0,O$3-YEAR($I108)))/100)) -> 1 | P108: =IF($J108<DATE(P$3,12,31),1, IF($G108="Physical",0, OFFSET(Project_characteristics!$C$1, SUMIFS(Positions_disbursement!$C$1:$C$14,Positions_disbursement!$B$1:$B$14,Achievement_to_date_ongoing!$D108,Positions_disbursement!$A$1:$A$14,Achievement_to_date_ongoing!$C108), MAX(0,P$3-YEAR($I108)))/100)) -> 1
B109: 106647 | C109: 3 | D109: (i) | E109: CO17 | F109: All | G109: Physical | H109: 97600 | I109: 2016-08-01 | J109: 2021-09-30 | K109: 102949.4407 | M109: =IF($J109<DATE(M$3,12,31),1, IF($G109="Physical",0, OFFSET(Project_characteristics!$C$1, SUMIFS(Positions_disbursement!$C$1:$C$14,Positions_disbursement!$B$1:$B$14,Achievement_to_date_ongoing!$D109,Positions_disbursement!$A$1:$A$14,Achievement_to_date_ongoing!$C109), MAX(0,M$3-YEAR($I109)))/100)) -> 0 | N109: =IF($J109<DATE(N$3,12,31),1, IF($G109="Physical",0, OFFSET(Project_characteristics!$C$1, SUMIFS(Positions_disbursement!$C$1:$C$14,Positions_disbursement!$B$1:$B$14,Achievement_to_date_ongoing!$D109,Positions_disbursement!$A$1:$A$14,Achievement_to_date_ongoing!$C109), MAX(0,N$3-YEAR($I109)))/100)) -> 1 | O109: =IF($J109<DATE(O$3,12,31),1, IF($G109="Physical",0, OFFSET(Project_characteristics!$C$1, SUMIFS(Positions_disbursement!$C$1:$C$14,Positions_disbursement!$B$1:$B$14,Achievement_to_date_ongoing!$D109,Positions_disbursement!$A$1:$A$14,Achievement_to_date_ongoing!$C109), MAX(0,O$3-YEAR($I109)))/100)) -> 1 | P109: =IF($J109<DATE(P$3,12,31),1, IF($G109="Physical",0, OFFSET(Project_characteristics!$C$1, SUMIFS(Positions_disbursement!$C$1:$C$14,Positions_disbursement!$B$1:$B$14,Achievement_to_date_ongoing!$D109,Positions_disbursement!$A$1:$A$14,Achievement_to_date_ongoing!$C109), MAX(0,P$3-YEAR($I109)))/100)) -> 1
B110: 106394 | C110: 3 | D110: (i) | E110: CO17 | F110: All | G110: Physical | H110: 204600 | I110: 2015-07-01 | J110: 2023-12-31 | K110: 290747.3684 | M110: =IF($J110<DATE(M$3,12,31),1, IF($G110="Physical",0, OFFSET(Project_characteristics!$C$1, SUMIFS(Positions_disbursement!$C$1:$C$14,Positions_disbursement!$B$1:$B$14,Achievement_to_date_ongoing!$D110,Positions_disbursement!$A$1:$A$14,Achievement_to_date_ongoing!$C110), MAX(0,M$3-YEAR($I110)))/100)) -> 0 | N110: =IF($J110<DATE(N$3,12,31),1, IF($G110="Physical",0, OFFSET(Project_characteristics!$C$1, SUMIFS(Positions_disbursement!$C$1:$C$14,Positions_disbursement!$B$1:$B$14,Achievement_to_date_ongoing!$D110,Positions_disbursement!$A$1:$A$14,Achievement_to_date_ongoing!$C110), MAX(0,N$3-YEAR($I110)))/100)) -> 0 | O110: =IF($J110<DATE(O$3,12,31),1, IF($G110="Physical",0, OFFSET(Project_characteristics!$C$1, SUMIFS(Positions_disbursement!$C$1:$C$14,Positions_disbursement!$B$1:$B$14,Achievement_to_date_ongoing!$D110,Positions_disbursement!$A$1:$A$14,Achievement_to_date_ongoing!$C110), MAX(0,O$3-YEAR($I110)))/100)) -> 0 | P110: =IF($J110<DATE(P$3,12,31),1, IF($G110="Physical",0, OFFSET(Project_characteristics!$C$1, SUMIFS(Positions_disbursement!$C$1:$C$14,Positions_disbursement!$B$1:$B$14,Achievement_to_date_ongoing!$D110,Positions_disbursement!$A$1:$A$14,Achievement_to_date_ongoing!$C110), MAX(0,P$3-YEAR($I110)))/100)) -> 0
B111: 101692 | C111: 3 | D111: (i) | E111: CO17 | F111: All | G111: Physical | H111: 0 | I111: 2016-01-01 | J111: 2022-12-31 | K111: 142025.5115 | M111: =IF($J111<DATE(M$3,12,31),1, IF($G111="Physical",0, OFFSET(Project_characteristics!$C$1, SUMIFS(Positions_disbursement!$C$1:$C$14,Positions_disbursement!$B$1:$B$14,Achievement_to_date_ongoing!$D111,Positions_disbursement!$A$1:$A$14,Achievement_to_date_ongoing!$C111), MAX(0,M$3-YEAR($I111)))/100)) -> 0 | N111: =IF($J111<DATE(N$3,12,31),1, IF($G111="Physical",0, OFFSET(Project_characteristics!$C$1, SUMIFS(Positions_disbursement!$C$1:$C$14,Positions_disbursement!$B$1:$B$14,Achievement_to_date_ongoing!$D111,Positions_disbursement!$A$1:$A$14,Achievement_to_date_ongoing!$C111), MAX(0,N$3-YEAR($I111)))/100)) -> 0 | O111: =IF($J111<DATE(O$3,12,31),1, IF($G111="Physical",0, OFFSET(Project_characteristics!$C$1, SUMIFS(Positions_disbursement!$C$1:$C$14,Positions_disbursement!$B$1:$B$14,Achievement_to_date_ongoing!$D111,Positions_disbursement!$A$1:$A$14,Achievement_to_date_ongoing!$C111), MAX(0,O$3-YEAR($I111)))/100)) -> 0 | P111: =IF($J111<DATE(P$3,12,31),1, IF($G111="Physical",0, OFFSET(Project_characteristics!$C$1, SUMIFS(Positions_disbursement!$C$1:$C$14,Positions_disbursement!$B$1:$B$14,Achievement_to_date_ongoing!$D111,Positions_disbursement!$A$1:$A$14,Achievement_to_date_ongoing!$C111), MAX(0,P$3-YEAR($I111)))/100)) -> 1
B112: 108911 | C112: 3 | D112: (i) | E112: F | F112: All | G112: Financial | H112: 7813013.2 | I112: 2014-01-01 | J112: 2023-07-01 | K112: 10015751.25 | M112: =IF($J112<DATE(M$3,12,31),1, IF($G112="Physical",0, OFFSET(Project_characteristics!$C$1, SUMIFS(Positions_disbursement!$C$1:$C$14,Positions_disbursement!$B$1:$B$14,Achievement_to_date_ongoing!$D112,Positions_disbursement!$A$1:$A$14,Achievement_to_date_ongoing!$C112), MAX(0,M$3-YEAR($I112)))/100)) -> 0 | N112: =IF($J112<DATE(N$3,12,31),1, IF($G112="Physical",0, OFFSET(Project_characteristics!$C$1, SUMIFS(Positions_disbursement!$C$1:$C$14,Positions_disbursement!$B$1:$B$14,Achievement_to_date_ongoing!$D112,Positions_disbursement!$A$1:$A$14,Achievement_to_date_ongoing!$C112), MAX(0,N$3-YEAR($I112)))/100)) -> 0 | O112: =IF($J112<DATE(O$3,12,31),1, IF($G112="Physical",0, OFFSET(Project_characteristics!$C$1, SUMIFS(Positions_disbursement!$C$1:$C$14,Positions_disbursement!$B$1:$B$14,Achievement_to_date_ongoing!$D112,Positions_disbursement!$A$1:$A$14,Achievement_to_date_ongoing!$C112), MAX(0,O$3-YEAR($I112)))/100)) -> 0 | P112: =IF($J112<DATE(P$3,12,31),1, IF($G112="Physical",0, OFFSET(Project_characteristics!$C$1, SUMIFS(Positions_disbursement!$C$1:$C$14,Positions_disbursement!$B$1:$B$14,Achievement_to_date_ongoing!$D112,Positions_disbursement!$A$1:$A$14,Achievement_to_date_ongoing!$C112), MAX(0,P$3-YEAR($I112)))/100)) -> 1
B113: 134998 | C113: 3 | D113: (i) | E113: F | F113: All | G113: Financial | H113: 27328368.24 | I113: 2014-01-01 | J113: 2023-07-31 | K113: 268438947.3 | M113: =IF($J113<DATE(M$3,12,31),1, IF($G113="Physical",0, OFFSET(Project_characteristics!$C$1, SUMIFS(Positions_disbursement!$C$1:$C$14,Positions_disbursement!$B$1:$B$14,Achievement_to_date_ongoing!$D113,Positions_disbursement!$A$1:$A$14,Achievement_to_date_ongoing!$C113), MAX(0,M$3-YEAR($I113)))/100)) -> 0 | N113: =IF($J113<DATE(N$3,12,31),1, IF($G113="Physical",0, OFFSET(Project_characteristics!$C$1, SUMIFS(Positions_disbursement!$C$1:$C$14,Positions_disbursement!$B$1:$B$14,Achievement_to_date_ongoing!$D113,Positions_disbursement!$A$1:$A$14,Achievement_to_date_ongoing!$C113), MAX(0,N$3-YEAR($I113)))/100)) -> 0 | O113: =IF($J113<DATE(O$3,12,31),1, IF($G113="Physical",0, OFFSET(Project_characteristics!$C$1, SUMIFS(Positions_disbursement!$C$1:$C$14,Positions_disbursement!$B$1:$B$14,Achievement_to_date_ongoing!$D113,Positions_disbursement!$A$1:$A$14,Achievement_to_date_ongoing!$C113), MAX(0,O$3-YEAR($I113)))/100)) -> 0 | P113: =IF($J113<DATE(P$3,12,31),1, IF($G113="Physical",0, OFFSET(Project_characteristics!$C$1, SUMIFS(Positions_disbursement!$C$1:$C$14,Positions_disbursement!$B$1:$B$14,Achievement_to_date_ongoing!$D113,Positions_disbursement!$A$1:$A$14,Achievement_to_date_ongoing!$C113), MAX(0,P$3-YEAR($I113)))/100)) -> 1
B114: 106400 | C114: 3 | D114: (i) | E114: F | F114: All | G114: Financial | H114: 5886482.99 | I114: 2014-01-01 | J114: 2021-12-31 | K114: 11348560.65 | M114: =IF($J114<DATE(M$3,12,31),1, IF($G114="Physical",0, OFFSET(Project_characteristics!$C$1, SUMIFS(Positions_disbursement!$C$1:$C$14,Positions_disbursement!$B$1:$B$14,Achievement_to_date_ongoing!$D114,Positions_disbursement!$A$1:$A$14,Achievement_to_date_ongoing!$C114), MAX(0,M$3-YEAR($I114)))/100)) -> 0 | N114: =IF($J114<DATE(N$3,12,31),1, IF($G114="Physical",0, OFFSET(Project_characteristics!$C$1, SUMIFS(Positions_disbursement!$C$1:$C$14,Positions_disbursement!$B$1:$B$14,Achievement_to_date_ongoing!$D114,Positions_disbursement!$A$1:$A$14,Achievement_to_date_ongoing!$C114), MAX(0,N$3-YEAR($I114)))/100)) -> 0 | O114: =IF($J114<DATE(O$3,12,31),1, IF($G114="Physical",0, OFFSET(Project_characteristics!$C$1, SUMIFS(Positions_disbursement!$C$1:$C$14,Positions_disbursement!$B$1:$B$14,Achievement_to_date_ongoing!$D114,Positions_disbursement!$A$1:$A$14,Achievement_to_date_ongoing!$C114), MAX(0,O$3-YEAR($I114)))/100)) -> 1 | P114: =IF($J114<DATE(P$3,12,31),1, IF($G114="Physical",0, OFFSET(Project_characteristics!$C$1, SUMIFS(Positions_disbursement!$C$1:$C$14,Positions_disbursement!$B$1:$B$14,Achievement_to_date_ongoing!$D114,Positions_disbursement!$A$1:$A$14,Achievement_to_date_ongoing!$C114), MAX(0,P$3-YEAR($I114)))/100)) -> 1
B115: 106647 | C115: 3 | D115: (i) | E115: F | F115: All | G115: Financial | H115: 17985116 | I115: 2016-08-01 | J115: 2021-09-30 | K115: 17985116 | M115: =IF($J115<DATE(M$3,12,31),1, IF($G115="Physical",0, OFFSET(Project_characteristics!$C$1, SUMIFS(Positions_disbursement!$C$1:$C$14,Positions_disbursement!$B$1:$B$14,Achievement_to_date_ongoing!$D115,Positions_disbursement!$A$1:$A$14,Achievement_to_date_ongoing!$C115), MAX(0,M$3-YEAR($I115)))/100)) -> 0 | N115: =IF($J115<DATE(N$3,12,31),1, IF($G115="Physical",0, OFFSET(Project_characteristics!$C$1, SUMIFS(Positions_disbursement!$C$1:$C$14,Positions_disbursement!$B$1:$B$14,Achievement_to_date_ongoing!$D115,Positions_disbursement!$A$1:$A$14,Achievement_to_date_ongoing!$C115), MAX(0,N$3-YEAR($I115)))/100)) -> 1 | O115: =IF($J115<DATE(O$3,12,31),1, IF($G115="Physical",0, OFFSET(Project_characteristics!$C$1, SUMIFS(Positions_disbursement!$C$1:$C$14,Positions_disbursement!$B$1:$B$14,Achievement_to_date_ongoing!$D115,Positions_disbursement!$A$1:$A$14,Achievement_to_date_ongoing!$C115), MAX(0,O$3-YEAR($I115)))/100)) -> 1 | P115: =IF($J115<DATE(P$3,12,31),1, IF($G115="Physical",0, OFFSET(Project_characteristics!$C$1, SUMIFS(Positions_disbursement!$C$1:$C$14,Positions_disbursement!$B$1:$B$14,Achievement_to_date_ongoing!$D115,Positions_disbursement!$A$1:$A$14,Achievement_to_date_ongoing!$C115), MAX(0,P$3-YEAR($I115)))/100)) -> 1
B116: 106394 | C116: 3 | D116: (i) | E116: F | F116: All | G116: Financial | H116: 79248135.91 | I116: 2015-07-01 | J116: 2023-12-31 | K116: 79248135.91 | M116: =IF($J116<DATE(M$3,12,31),1, IF($G116="Physical",0, OFFSET(Project_characteristics!$C$1, SUMIFS(Positions_disbursement!$C$1:$C$14,Positions_disbursement!$B$1:$B$14,Achievement_to_date_ongoing!$D116,Positions_disbursement!$A$1:$A$14,Achievement_to_date_ongoing!$C116), MAX(0,M$3-YEAR($I116)))/100)) -> 0 | N116: =IF($J116<DATE(N$3,12,31),1, IF($G116="Physical",0, OFFSET(Project_characteristics!$C$1, SUMIFS(Positions_disbursement!$C$1:$C$14,Positions_disbursement!$B$1:$B$14,Achievement_to_date_ongoing!$D116,Positions_disbursement!$A$1:$A$14,Achievement_to_date_ongoing!$C116), MAX(0,N$3-YEAR($I116)))/100)) -> 0 | O116: =IF($J116<DATE(O$3,12,31),1, IF($G116="Physical",0, OFFSET(Project_characteristics!$C$1, SUMIFS(Positions_disbursement!$C$1:$C$14,Positions_disbursement!$B$1:$B$14,Achievement_to_date_ongoing!$D116,Positions_disbursement!$A$1:$A$14,Achievement_to_date_ongoing!$C116), MAX(0,O$3-YEAR($I116)))/100)) -> 0 | P116: =IF($J116<DATE(P$3,12,31),1, IF($G116="Physical",0, OFFSET(Project_characteristics!$C$1, SUMIFS(Positions_disbursement!$C$1:$C$14,Positions_disbursement!$B$1:$B$14,Achievement_to_date_ongoing!$D116,Positions_disbursement!$A$1:$A$14,Achievement_to_date_ongoing!$C116), MAX(0,P$3-YEAR($I116)))/100)) -> 0
B117: 137931 | C117: 3 | D117: (i) | E117: F | F117: All | G117: Financial | H117: 256564 | I117: 2019-06-27 | J117: 2023-09-29 | K117: 3334024.789 | M117: =IF($J117<DATE(M$3,12,31),1, IF($G117="Physical",0, OFFSET(Project_characteristics!$C$1, SUMIFS(Positions_disbursement!$C$1:$C$14,Positions_disbursement!$B$1:$B$14,Achievement_to_date_ongoing!$D117,Positions_disbursement!$A$1:$A$14,Achievement_to_date_ongoing!$C117), MAX(0,M$3-YEAR($I117)))/100)) -> 0 | N117: =IF($J117<DATE(N$3,12,31),1, IF($G117="Physical",0, OFFSET(Project_characteristics!$C$1, SUMIFS(Positions_disbursement!$C$1:$C$14,Positions_disbursement!$B$1:$B$14,Achievement_to_date_ongoing!$D117,Positions_disbursement!$A$1:$A$14,Achievement_to_date_ongoing!$C117), MAX(0,N$3-YEAR($I117)))/100)) -> 0 | O117: =IF($J117<DATE(O$3,12,31),1, IF($G117="Physical",0, OFFSET(Project_characteristics!$C$1, SUMIFS(Positions_disbursement!$C$1:$C$14,Positions_disbursement!$B$1:$B$14,Achievement_to_date_ongoing!$D117,Positions_disbursement!$A$1:$A$14,Achievement_to_date_ongoing!$C117), MAX(0,O$3-YEAR($I117)))/100)) -> 0 | P117: =IF($J117<DATE(P$3,12,31),1, IF($G117="Physical",0, OFFSET(Project_characteristics!$C$1, SUMIFS(Positions_disbursement!$C$1:$C$14,Positions_disbursement!$B$1:$B$14,Achievement_to_date_ongoing!$D117,Positions_disbursement!$A$1:$A$14,Achievement_to_date_ongoing!$C117), MAX(0,P$3-YEAR($I117)))/100)) -> 1
B118: 102122 | C118: 3 | D118: (i) | E118: F | F118: All | G118: Financial | H118: 92254792.46 | I118: 2014-01-20 | J118: 2021-12-31 | K118: 92254792.46 | M118: =IF($J118<DATE(M$3,12,31),1, IF($G118="Physical",0, OFFSET(Project_characteristics!$C$1, SUMIFS(Positions_disbursement!$C$1:$C$14,Positions_disbursement!$B$1:$B$14,Achievement_to_date_ongoing!$D118,Positions_disbursement!$A$1:$A$14,Achievement_to_date_ongoing!$C118), MAX(0,M$3-YEAR($I118)))/100)) -> 0 | N118: =IF($J118<DATE(N$3,12,31),1, IF($G118="Physical",0, OFFSET(Project_characteristics!$C$1, SUMIFS(Positions_disbursement!$C$1:$C$14,Positions_disbursement!$B$1:$B$14,Achievement_to_date_ongoing!$D118,Positions_disbursement!$A$1:$A$14,Achievement_to_date_ongoing!$C118), MAX(0,N$3-YEAR($I118)))/100)) -> 0 | O118: =IF($J118<DATE(O$3,12,31),1, IF($G118="Physical",0, OFFSET(Project_characteristics!$C$1, SUMIFS(Positions_disbursement!$C$1:$C$14,Positions_disbursement!$B$1:$B$14,Achievement_to_date_ongoing!$D118,Positions_disbursement!$A$1:$A$14,Achievement_to_date_ongoing!$C118), MAX(0,O$3-YEAR($I118)))/100)) -> 1 | P118: =IF($J118<DATE(P$3,12,31),1, IF($G118="Physical",0, OFFSET(Project_characteristics!$C$1, SUMIFS(Positions_disbursement!$C$1:$C$14,Positions_disbursement!$B$1:$B$14,Achievement_to_date_ongoing!$D118,Positions_disbursement!$A$1:$A$14,Achievement_to_date_ongoing!$C118), MAX(0,P$3-YEAR($I118)))/100)) -> 1
B119: 101692 | C119: 3 | D119: (i) | E119: F | F119: All | G119: Financial | H119: 96954977.29 | I119: 2016-01-01 | J119: 2022-12-31 | K119: 96954977.29 | M119: =IF($J119<DATE(M$3,12,31),1, IF($G119="Physical",0, OFFSET(Project_characteristics!$C$1, SUMIFS(Positions_disbursement!$C$1:$C$14,Positions_disbursement!$B$1:$B$14,Achievement_to_date_ongoing!$D119,Positions_disbursement!$A$1:$A$14,Achievement_to_date_ongoing!$C119), MAX(0,M$3-YEAR($I119)))/100)) -> 0 | N119: =IF($J119<DATE(N$3,12,31),1, IF($G119="Physical",0, OFFSET(Project_characteristics!$C$1, SUMIFS(Positions_disbursement!$C$1:$C$14,Positions_disbursement!$B$1:$B$14,Achievement_to_date_ongoing!$D119,Positions_disbursement!$A$1:$A$14,Achievement_to_date_ongoing!$C119), MAX(0,N$3-YEAR($I119)))/100)) -> 0 | O119: =IF($J119<DATE(O$3,12,31),1, IF($G119="Physical",0, OFFSET(Project_characteristics!$C$1, SUMIFS(Positions_disbursement!$C$1:$C$14,Positions_disbursement!$B$1:$B$14,Achievement_to_date_ongoing!$D119,Positions_disbursement!$A$1:$A$14,Achievement_to_date_ongoing!$C119), MAX(0,O$3-YEAR($I119)))/100)) -> 0 | P119: =IF($J119<DATE(P$3,12,31),1, IF($G119="Physical",0, OFFSET(Project_characteristics!$C$1, SUMIFS(Positions_disbursement!$C$1:$C$14,Positions_disbursement!$B$1:$B$14,Achievement_to_date_ongoing!$D119,Positions_disbursement!$A$1:$A$14,Achievement_to_date_ongoing!$C119), MAX(0,P$3-YEAR($I119)))/100)) -> 1
B120: 107453 | C120: 3 | D120: (ii) | E120: CO18 | F120: All | G120: Physical | H120: 0 | I120: 2016-02-01 | J120: 2021-12-31 | K120: 53573.29979 | M120: =IF($J120<DATE(M$3,12,31),1, IF($G120="Physical",0, OFFSET(Project_characteristics!$C$1, SUMIFS(Positions_disbursement!$C$1:$C$14,Positions_disbursement!$B$1:$B$14,Achievement_to_date_ongoing!$D120,Positions_disbursement!$A$1:$A$14,Achievement_to_date_ongoing!$C120), MAX(0,M$3-YEAR($I120)))/100)) -> 0 | N120: =IF($J120<DATE(N$3,12,31),1, IF($G120="Physical",0, OFFSET(Project_characteristics!$C$1, SUMIFS(Positions_disbursement!$C$1:$C$14,Positions_disbursement!$B$1:$B$14,Achievement_to_date_ongoing!$D120,Positions_disbursement!$A$1:$A$14,Achievement_to_date_ongoing!$C120), MAX(0,N$3-YEAR($I120)))/100)) -> 0 | O120: =IF($J120<DATE(O$3,12,31),1, IF($G120="Physical",0, OFFSET(Project_characteristics!$C$1, SUMIFS(Positions_disbursement!$C$1:$C$14,Positions_disbursement!$B$1:$B$14,Achievement_to_date_ongoing!$D120,Positions_disbursement!$A$1:$A$14,Achievement_to_date_ongoing!$C120), MAX(0,O$3-YEAR($I120)))/100)) -> 1 | P120: =IF($J120<DATE(P$3,12,31),1, IF($G120="Physical",0, OFFSET(Project_characteristics!$C$1, SUMIFS(Positions_disbursement!$C$1:$C$14,Positions_disbursement!$B$1:$B$14,Achievement_to_date_ongoing!$D120,Positions_disbursement!$A$1:$A$14,Achievement_to_date_ongoing!$C120), MAX(0,P$3-YEAR($I120)))/100)) -> 1
B121: 103967 | C121: 3 | D121: (ii) | E121: CO18 | F121: All | G121: Physical | H121: 0 | I121: 2015-04-01 | J121: 2023-12-31 | K121: 16811.99002 | M121: =IF($J121<DATE(M$3,12,31),1, IF($G121="Physical",0, OFFSET(Project_characteristics!$C$1, SUMIFS(Positions_disbursement!$C$1:$C$14,Positions_disbursement!$B$1:$B$14,Achievement_to_date_ongoing!$D121,Positions_disbursement!$A$1:$A$14,Achievement_to_date_ongoing!$C121), MAX(0,M$3-YEAR($I121)))/100)) -> 0 | N121: =IF($J121<DATE(N$3,12,31),1, IF($G121="Physical",0, OFFSET(Project_characteristics!$C$1, SUMIFS(Positions_disbursement!$C$1:$C$14,Positions_disbursement!$B$1:$B$14,Achievement_to_date_ongoing!$D121,Positions_disbursement!$A$1:$A$14,Achievement_to_date_ongoing!$C121), MAX(0,N$3-YEAR($I121)))/100)) -> 0 | O121: =IF($J121<DATE(O$3,12,31),1, IF($G121="Physical",0, OFFSET(Project_characteristics!$C$1, SUMIFS(Positions_disbursement!$C$1:$C$14,Positions_disbursement!$B$1:$B$14,Achievement_to_date_ongoing!$D121,Positions_disbursement!$A$1:$A$14,Achievement_to_date_ongoing!$C121), MAX(0,O$3-YEAR($I121)))/100)) -> 0 | P121: =IF($J121<DATE(P$3,12,31),1, IF($G121="Physical",0, OFFSET(Project_characteristics!$C$1, SUMIFS(Positions_disbursement!$C$1:$C$14,Positions_disbursement!$B$1:$B$14,Achievement_to_date_ongoing!$D121,Positions_disbursement!$A$1:$A$14,Achievement_to_date_ongoing!$C121), MAX(0,P$3-YEAR($I121)))/100)) -> 0
B122: 108100 | C122: 3 | D122: (ii) | E122: CO18 | F122: All | G122: Physical | H122: 0 | I122: 2014-09-01 | J122: 2023-12-31 | K122: 52182.5837 | M122: =IF($J122<DATE(M$3,12,31),1, IF($G122="Physical",0, OFFSET(Project_characteristics!$C$1, SUMIFS(Positions_disbursement!$C$1:$C$14,Positions_disbursement!$B$1:$B$14,Achievement_to_date_ongoing!$D122,Positions_disbursement!$A$1:$A$14,Achievement_to_date_ongoing!$C122), MAX(0,M$3-YEAR($I122)))/100)) -> 0 | N122: =IF($J122<DATE(N$3,12,31),1, IF($G122="Physical",0, OFFSET(Project_characteristics!$C$1, SUMIFS(Positions_disbursement!$C$1:$C$14,Positions_disbursement!$B$1:$B$14,Achievement_to_date_ongoing!$D122,Positions_disbursement!$A$1:$A$14,Achievement_to_date_ongoing!$C122), MAX(0,N$3-YEAR($I122)))/100)) -> 0 | O122: =IF($J122<DATE(O$3,12,31),1, IF($G122="Physical",0, OFFSET(Project_characteristics!$C$1, SUMIFS(Positions_disbursement!$C$1:$C$14,Positions_disbursement!$B$1:$B$14,Achievement_to_date_ongoing!$D122,Positions_disbursement!$A$1:$A$14,Achievement_to_date_ongoing!$C122), MAX(0,O$3-YEAR($I122)))/100)) -> 0 | P122: =IF($J122<DATE(P$3,12,31),1, IF($G122="Physical",0, OFFSET(Project_characteristics!$C$1, SUMIFS(Positions_disbursement!$C$1:$C$14,Positions_disbursement!$B$1:$B$14,Achievement_to_date_ongoing!$D122,Positions_disbursement!$A$1:$A$14,Achievement_to_date_ongoing!$C122), MAX(0,P$3-YEAR($I122)))/100)) -> 0
B123: 135092 | C123: 3 | D123: (ii) | E123: CO18 | F123: All | G123: Physical | H123: 0 | I123: 2018-05-01 | J123: 2022-03-31 | K123: 9043.227891 | M123: =IF($J123<DATE(M$3,12,31),1, IF($G123="Physical",0, OFFSET(Project_characteristics!$C$1, SUMIFS(Positions_disbursement!$C$1:$C$14,Positions_disbursement!$B$1:$B$14,Achievement_to_date_ongoing!$D123,Positions_disbursement!$A$1:$A$14,Achievement_to_date_ongoing!$C123), MAX(0,M$3-YEAR($I123)))/100)) -> 0 | N123: =IF($J123<DATE(N$3,12,31),1, IF($G123="Physical",0, OFFSET(Project_characteristics!$C$1, SUMIFS(Positions_disbursement!$C$1:$C$14,Positions_disbursement!$B$1:$B$14,Achievement_to_date_ongoing!$D123,Positions_disbursement!$A$1:$A$14,Achievement_to_date_ongoing!$C123), MAX(0,N$3-YEAR($I123)))/100)) -> 0 | O123: =IF($J123<DATE(O$3,12,31),1, IF($G123="Physical",0, OFFSET(Project_characteristics!$C$1, SUMIFS(Positions_disbursement!$C$1:$C$14,Positions_disbursement!$B$1:$B$14,Achievement_to_date_ongoing!$D123,Positions_disbursement!$A$1:$A$14,Achievement_to_date_ongoing!$C123), MAX(0,O$3-YEAR($I123)))/100)) -> 1 | P123: =IF($J123<DATE(P$3,12,31),1, IF($G123="Physical",0, OFFSET(Project_characteristics!$C$1, SUMIFS(Positions_disbursement!$C$1:$C$14,Positions_disbursement!$B$1:$B$14,Achievement_to_date_ongoing!$D123,Positions_disbursement!$A$1:$A$14,Achievement_to_date_ongoing!$C123), MAX(0,P$3-YEAR($I123)))/100)) -> 1
B124: 106130 | C124: 3 | D124: (ii) | E124: CO18 | F124: All | G124: Physical | H124: 767 | I124: 2015-02-01 | J124: 2021-06-30 | K124: 768.9708779 | M124: =IF($J124<DATE(M$3,12,31),1, IF($G124="Physical",0, OFFSET(Project_characteristics!$C$1, SUMIFS(Positions_disbursement!$C$1:$C$14,Positions_disbursement!$B$1:$B$14,Achievement_to_date_ongoing!$D124,Positions_disbursement!$A$1:$A$14,Achievement_to_date_ongoing!$C124), MAX(0,M$3-YEAR($I124)))/100)) -> 0 | N124: =IF($J124<DATE(N$3,12,31),1, IF($G124="Physical",0, OFFSET(Project_characteristics!$C$1, SUMIFS(Positions_disbursement!$C$1:$C$14,Positions_disbursement!$B$1:$B$14,Achievement_to_date_ongoing!$D124,Positions_disbursement!$A$1:$A$14,Achievement_to_date_ongoing!$C124), MAX(0,N$3-YEAR($I124)))/100)) -> 1 | O124: =IF($J124<DATE(O$3,12,31),1, IF($G124="Physical",0, OFFSET(Project_characteristics!$C$1, SUMIFS(Positions_disbursement!$C$1:$C$14,Positions_disbursement!$B$1:$B$14,Achievement_to_date_ongoing!$D124,Positions_disbursement!$A$1:$A$14,Achievement_to_date_ongoing!$C124), MAX(0,O$3-YEAR($I124)))/100)) -> 1 | P124: =IF($J124<DATE(P$3,12,31),1, IF($G124="Physical",0, OFFSET(Project_characteristics!$C$1, SUMIFS(Positions_disbursement!$C$1:$C$14,Positions_disbursement!$B$1:$B$14,Achievement_to_date_ongoing!$D124,Positions_disbursement!$A$1:$A$14,Achievement_to_date_ongoing!$C124), MAX(0,P$3-YEAR($I124)))/100)) -> 1
B125: 104855 | C125: 3 | D125: (ii) | E125: CO18 | F125: All | G125: Physical | H125: 0 | I125: 2016-10-15 | J125: 2021-10-28 | K125: 63890.51701 | M125: =IF($J125<DATE(M$3,12,31),1, IF($G125="Physical",0, OFFSET(Project_characteristics!$C$1, SUMIFS(Positions_disbursement!$C$1:$C$14,Positions_disbursement!$B$1:$B$14,Achievement_to_date_ongoing!$D125,Positions_disbursement!$A$1:$A$14,Achievement_to_date_ongoing!$C125), MAX(0,M$3-YEAR($I125)))/100)) -> 0 | N125: =IF($J125<DATE(N$3,12,31),1, IF($G125="Physical",0, OFFSET(Project_characteristics!$C$1, SUMIFS(Positions_disbursement!$C$1:$C$14,Positions_disbursement!$B$1:$B$14,Achievement_to_date_ongoing!$D125,Positions_disbursement!$A$1:$A$14,Achievement_to_date_ongoing!$C125), MAX(0,N$3-YEAR($I125)))/100)) -> 1 | O125: =IF($J125<DATE(O$3,12,31),1, IF($G125="Physical",0, OFFSET(Project_characteristics!$C$1, SUMIFS(Positions_disbursement!$C$1:$C$14,Positions_disbursement!$B$1:$B$14,Achievement_to_date_ongoing!$D125,Positions_disbursement!$A$1:$A$14,Achievement_to_date_ongoing!$C125), MAX(0,O$3-YEAR($I125)))/100)) -> 1 | P125: =IF($J125<DATE(P$3,12,31),1, IF($G125="Physical",0, OFFSET(Project_characteristics!$C$1, SUMIFS(Positions_disbursement!$C$1:$C$14,Positions_disbursement!$B$1:$B$14,Achievement_to_date_ongoing!$D125,Positions_disbursement!$A$1:$A$14,Achievement_to_date_ongoing!$C125), MAX(0,P$3-YEAR($I125)))/100)) -> 1
B126: 106974 | C126: 3 | D126: (ii) | E126: CO18 | F126: All | G126: Physical | H126: 0 | I126: 2015-09-01 | J126: 2022-12-31 | K126: 24095.74051 | M126: =IF($J126<DATE(M$3,12,31),1, IF($G126="Physical",0, OFFSET(Project_characteristics!$C$1, SUMIFS(Positions_disbursement!$C$1:$C$14,Positions_disbursement!$B$1:$B$14,Achievement_to_date_ongoing!$D126,Positions_disbursement!$A$1:$A$14,Achievement_to_date_ongoing!$C126), MAX(0,M$3-YEAR($I126)))/100)) -> 0 | N126: =IF($J126<DATE(N$3,12,31),1, IF($G126="Physical",0, OFFSET(Project_characteristics!$C$1, SUMIFS(Positions_disbursement!$C$1:$C$14,Positions_disbursement!$B$1:$B$14,Achievement_to_date_ongoing!$D126,Positions_disbursement!$A$1:$A$14,Achievement_to_date_ongoing!$C126), MAX(0,N$3-YEAR($I126)))/100)) -> 0 | O126: =IF($J126<DATE(O$3,12,31),1, IF($G126="Physical",0, OFFSET(Project_characteristics!$C$1, SUMIFS(Positions_disbursement!$C$1:$C$14,Positions_disbursement!$B$1:$B$14,Achievement_to_date_ongoing!$D126,Positions_disbursement!$A$1:$A$14,Achievement_to_date_ongoing!$C126), MAX(0,O$3-YEAR($I126)))/100)) -> 0 | P126: =IF($J126<DATE(P$3,12,31),1, IF($G126="Physical",0, OFFSET(Project_characteristics!$C$1, SUMIFS(Positions_disbursement!$C$1:$C$14,Positions_disbursement!$B$1:$B$14,Achievement_to_date_ongoing!$D126,Positions_disbursement!$A$1:$A$14,Achievement_to_date_ongoing!$C126), MAX(0,P$3-YEAR($I126)))/100)) -> 1
B127: 115525 | C127: 3 | D127: (ii) | E127: CO18 | F127: All | G127: Physical | H127: 0 | I127: 2015-03-01 | J127: 2023-12-31 | K127: 145408.2057 | M127: =IF($J127<DATE(M$3,12,31),1, IF($G127="Physical",0, OFFSET(Project_characteristics!$C$1, SUMIFS(Positions_disbursement!$C$1:$C$14,Positions_disbursement!$B$1:$B$14,Achievement_to_date_ongoing!$D127,Positions_disbursement!$A$1:$A$14,Achievement_to_date_ongoing!$C127), MAX(0,M$3-YEAR($I127)))/100)) -> 0 | N127: =IF($J127<DATE(N$3,12,31),1, IF($G127="Physical",0, OFFSET(Project_characteristics!$C$1, SUMIFS(Positions_disbursement!$C$1:$C$14,Positions_disbursement!$B$1:$B$14,Achievement_to_date_ongoing!$D127,Positions_disbursement!$A$1:$A$14,Achievement_to_date_ongoing!$C127), MAX(0,N$3-YEAR($I127)))/100)) -> 0 | O127: =IF($J127<DATE(O$3,12,31),1, IF($G127="Physical",0, OFFSET(Project_characteristics!$C$1, SUMIFS(Positions_disbursement!$C$1:$C$14,Positions_disbursement!$B$1:$B$14,Achievement_to_date_ongoing!$D127,Positions_disbursement!$A$1:$A$14,Achievement_to_date_ongoing!$C127), MAX(0,O$3-YEAR($I127)))/100)) -> 0 | P127: =IF($J127<DATE(P$3,12,31),1, IF($G127="Physical",0, OFFSET(Project_characteristics!$C$1, SUMIFS(Positions_disbursement!$C$1:$C$14,Positions_disbursement!$B$1:$B$14,Achievement_to_date_ongoing!$D127,Positions_disbursement!$A$1:$A$14,Achievement_to_date_ongoing!$C127), MAX(0,P$3-YEAR($I127)))/100)) -> 0
B128: 106373 | C128: 3 | D128: (ii) | E128: CO18 | F128: All | G128: Physical | H128: 0 | I128: 2008-08-10 | J128: 2023-06-30 | K128: 40733.83146 | M128: =IF($J128<DATE(M$3,12,31),1, IF($G128="Physical",0, OFFSET(Project_characteristics!$C$1, SUMIFS(Positions_disbursement!$C$1:$C$14,Positions_disbursement!$B$1:$B$14,Achievement_to_date_ongoing!$D128,Positions_disbursement!$A$1:$A$14,Achievement_to_date_ongoing!$C128), MAX(0,M$3-YEAR($I128)))/100)) -> 0 | N128: =IF($J128<DATE(N$3,12,31),1, IF($G128="Physical",0, OFFSET(Project_characteristics!$C$1, SUMIFS(Positions_disbursement!$C$1:$C$14,Positions_disbursement!$B$1:$B$14,Achievement_to_date_ongoing!$D128,Positions_disbursement!$A$1:$A$14,Achievement_to_date_ongoing!$C128), MAX(0,N$3-YEAR($I128)))/100)) -> 0 | O128: =IF($J128<DATE(O$3,12,31),1, IF($G128="Physical",0, OFFSET(Project_characteristics!$C$1, SUMIFS(Positions_disbursement!$C$1:$C$14,Positions_disbursement!$B$1:$B$14,Achievement_to_date_ongoing!$D128,Positions_disbursement!$A$1:$A$14,Achievement_to_date_ongoing!$C128), MAX(0,O$3-YEAR($I128)))/100)) -> 0 | P128: =IF($J128<DATE(P$3,12,31),1, IF($G128="Physical",0, OFFSET(Project_characteristics!$C$1, SUMIFS(Positions_disbursement!$C$1:$C$14,Positions_disbursement!$B$1:$B$14,Achievement_to_date_ongoing!$D128,Positions_disbursement!$A$1:$A$14,Achievement_to_date_ongoing!$C128), MAX(0,P$3-YEAR($I128)))/100)) -> 1
B129: 110847 | C129: 3 | D129: (ii) | E129: CO18 | F129: All | G129: Physical | H129: 0 | I129: 2015-08-01 | J129: 2023-12-31 | K129: 50737.55392 | M129: =IF($J129<DATE(M$3,12,31),1, IF($G129="Physical",0, OFFSET(Project_characteristics!$C$1, SUMIFS(Positions_disbursement!$C$1:$C$14,Positions_disbursement!$B$1:$B$14,Achievement_to_date_ongoing!$D129,Positions_disbursement!$A$1:$A$14,Achievement_to_date_ongoing!$C129), MAX(0,M$3-YEAR($I129)))/100)) -> 0 | N129: =IF($J129<DATE(N$3,12,31),1, IF($G129="Physical",0, OFFSET(Project_characteristics!$C$1, SUMIFS(Positions_disbursement!$C$1:$C$14,Positions_disbursement!$B$1:$B$14,Achievement_to_date_ongoing!$D129,Positions_disbursement!$A$1:$A$14,Achievement_to_date_ongoing!$C129), MAX(0,N$3-YEAR($I129)))/100)) -> 0 | O129: =IF($J129<DATE(O$3,12,31),1, IF($G129="Physical",0, OFFSET(Project_characteristics!$C$1, SUMIFS(Positions_disbursement!$C$1:$C$14,Positions_disbursement!$B$1:$B$14,Achievement_to_date_ongoing!$D129,Positions_disbursement!$A$1:$A$14,Achievement_to_date_ongoing!$C129), MAX(0,O$3-YEAR($I129)))/100)) -> 0 | P129: =IF($J129<DATE(P$3,12,31),1, IF($G129="Physical",0, OFFSET(Project_characteristics!$C$1, SUMIFS(Positions_disbursement!$C$1:$C$14,Positions_disbursement!$B$1:$B$14,Achievement_to_date_ongoing!$D129,Positions_disbursement!$A$1:$A$14,Achievement_to_date_ongoing!$C129), MAX(0,P$3-YEAR($I129)))/100)) -> 0
B130: 106204 | C130: 3 | D130: (ii) | E130: CO18 | F130: All | G130: Physical | H130: 0 | I130: 2016-07-01 | J130: 2021-12-31 | K130: 700.3606237 | M130: =IF($J130<DATE(M$3,12,31),1, IF($G130="Physical",0, OFFSET(Project_characteristics!$C$1, SUMIFS(Positions_disbursement!$C$1:$C$14,Positions_disbursement!$B$1:$B$14,Achievement_to_date_ongoing!$D130,Positions_disbursement!$A$1:$A$14,Achievement_to_date_ongoing!$C130), MAX(0,M$3-YEAR($I130)))/100)) -> 0 | N130: =IF($J130<DATE(N$3,12,31),1, IF($G130="Physical",0, OFFSET(Project_characteristics!$C$1, SUMIFS(Positions_disbursement!$C$1:$C$14,Positions_disbursement!$B$1:$B$14,Achievement_to_date_ongoing!$D130,Positions_disbursement!$A$1:$A$14,Achievement_to_date_ongoing!$C130), MAX(0,N$3-YEAR($I130)))/100)) -> 0 | O130: =IF($J130<DATE(O$3,12,31),1, IF($G130="Physical",0, OFFSET(Project_characteristics!$C$1, SUMIFS(Positions_disbursement!$C$1:$C$14,Positions_disbursement!$B$1:$B$14,Achievement_to_date_ongoing!$D130,Positions_disbursement!$A$1:$A$14,Achievement_to_date_ongoing!$C130), MAX(0,O$3-YEAR($I130)))/100)) -> 1 | P130: =IF($J130<DATE(P$3,12,31),1, IF($G130="Physical",0, OFFSET(Project_characteristics!$C$1, SUMIFS(Positions_disbursement!$C$1:$C$14,Positions_disbursement!$B$1:$B$14,Achievement_to_date_ongoing!$D130,Positions_disbursement!$A$1:$A$14,Achievement_to_date_ongoing!$C130), MAX(0,P$3-YEAR($I130)))/100)) -> 1
B131: 135145 | C131: 3 | D131: (ii) | E131: CO18 | F131: All | G131: Physical | H131: 0 | I131: 2019-12-31 | J131: 2023-12-31 | K131: 31341.37613 | M131: =IF($J131<DATE(M$3,12,31),1, IF($G131="Physical",0, OFFSET(Project_characteristics!$C$1, SUMIFS(Positions_disbursement!$C$1:$C$14,Positions_disbursement!$B$1:$B$14,Achievement_to_date_ongoing!$D131,Positions_disbursement!$A$1:$A$14,Achievement_to_date_ongoing!$C131), MAX(0,M$3-YEAR($I131)))/100)) -> 0 | N131: =IF($J131<DATE(N$3,12,31),1, IF($G131="Physical",0, OFFSET(Project_characteristics!$C$1, SUMIFS(Positions_disbursement!$C$1:$C$14,Positions_disbursement!$B$1:$B$14,Achievement_to_date_ongoing!$D131,Positions_disbursement!$A$1:$A$14,Achievement_to_date_ongoing!$C131), MAX(0,N$3-YEAR($I131)))/100)) -> 0 | O131: =IF($J131<DATE(O$3,12,31),1, IF($G131="Physical",0, OFFSET(Project_characteristics!$C$1, SUMIFS(Positions_disbursement!$C$1:$C$14,Positions_disbursement!$B$1:$B$14,Achievement_to_date_ongoing!$D131,Positions_disbursement!$A$1:$A$14,Achievement_to_date_ongoing!$C131), MAX(0,O$3-YEAR($I131)))/100)) -> 0 | P131: =IF($J131<DATE(P$3,12,31),1, IF($G131="Physical",0, OFFSET(Project_characteristics!$C$1, SUMIFS(Positions_disbursement!$C$1:$C$14,Positions_disbursement!$B$1:$B$14,Achievement_to_date_ongoing!$D131,Positions_disbursement!$A$1:$A$14,Achievement_to_date_ongoing!$C131), MAX(0,P$3-YEAR($I131)))/100)) -> 0
B132: 105422 | C132: 3 | D132: (ii) | E132: CO18 | F132: All | G132: Physical | H132: 3250 | I132: 2014-01-01 | J132: 2022-05-30 | K132: 3654.613695 | M132: =IF($J132<DATE(M$3,12,31),1, IF($G132="Physical",0, OFFSET(Project_characteristics!$C$1, SUMIFS(Positions_disbursement!$C$1:$C$14,Positions_disbursement!$B$1:$B$14,Achievement_to_date_ongoing!$D132,Positions_disbursement!$A$1:$A$14,Achievement_to_date_ongoing!$C132), MAX(0,M$3-YEAR($I132)))/100)) -> 0 | N132: =IF($J132<DATE(N$3,12,31),1, IF($G132="Physical",0, OFFSET(Project_characteristics!$C$1, SUMIFS(Positions_disbursement!$C$1:$C$14,Positions_disbursement!$B$1:$B$14,Achievement_to_date_ongoing!$D132,Positions_disbursement!$A$1:$A$14,Achievement_to_date_ongoing!$C132), MAX(0,N$3-YEAR($I132)))/100)) -> 0 | O132: =IF($J132<DATE(O$3,12,31),1, IF($G132="Physical",0, OFFSET(Project_characteristics!$C$1, SUMIFS(Positions_disbursement!$C$1:$C$14,Positions_disbursement!$B$1:$B$14,Achievement_to_date_ongoing!$D132,Positions_disbursement!$A$1:$A$14,Achievement_to_date_ongoing!$C132), MAX(0,O$3-YEAR($I132)))/100)) -> 1 | P132: =IF($J132<DATE(P$3,12,31),1, IF($G132="Physical",0, OFFSET(Project_characteristics!$C$1, SUMIFS(Positions_disbursement!$C$1:$C$14,Positions_disbursement!$B$1:$B$14,Achievement_to_date_ongoing!$D132,Positions_disbursement!$A$1:$A$14,Achievement_to_date_ongoing!$C132), MAX(0,P$3-YEAR($I132)))/100)) -> 1
B133: 108495 | C133: 3 | D133: (ii) | E133: CO18 | F133: All | G133: Physical | H133: 0 | I133: 2015-04-01 | J133: 2023-12-31 | K133: 61779.90642 | M133: =IF($J133<DATE(M$3,12,31),1, IF($G133="Physical",0, OFFSET(Project_characteristics!$C$1, SUMIFS(Positions_disbursement!$C$1:$C$14,Positions_disbursement!$B$1:$B$14,Achievement_to_date_ongoing!$D133,Positions_disbursement!$A$1:$A$14,Achievement_to_date_ongoing!$C133), MAX(0,M$3-YEAR($I133)))/100)) -> 0 | N133: =IF($J133<DATE(N$3,12,31),1, IF($G133="Physical",0, OFFSET(Project_characteristics!$C$1, SUMIFS(Positions_disbursement!$C$1:$C$14,Positions_disbursement!$B$1:$B$14,Achievement_to_date_ongoing!$D133,Positions_disbursement!$A$1:$A$14,Achievement_to_date_ongoing!$C133), MAX(0,N$3-YEAR($I133)))/100)) -> 0 | O133: =IF($J133<DATE(O$3,12,31),1, IF($G133="Physical",0, OFFSET(Project_characteristics!$C$1, SUMIFS(Positions_disbursement!$C$1:$C$14,Positions_disbursement!$B$1:$B$14,Achievement_to_date_ongoing!$D133,Positions_disbursement!$A$1:$A$14,Achievement_to_date_ongoing!$C133), MAX(0,O$3-YEAR($I133)))/100)) -> 0 | P133: =IF($J133<DATE(P$3,12,31),1, IF($G133="Physical",0, OFFSET(Project_characteristics!$C$1, SUMIFS(Positions_disbursement!$C$1:$C$14,Positions_disbursement!$B$1:$B$14,Achievement_to_date_ongoing!$D133,Positions_disbursement!$A$1:$A$14,Achievement_to_date_ongoing!$C133), MAX(0,P$3-YEAR($I133)))/100)) -> 0
B134: 108858 | C134: 3 | D134: (ii) | E134: CO18 | F134: All | G134: Physical | H134: 0 | I134: 2015-04-03 | J134: 2023-12-31 | K134: 114053.4894 | M134: =IF($J134<DATE(M$3,12,31),1, IF($G134="Physical",0, OFFSET(Project_characteristics!$C$1, SUMIFS(Positions_disbursement!$C$1:$C$14,Positions_disbursement!$B$1:$B$14,Achievement_to_date_ongoing!$D134,Positions_disbursement!$A$1:$A$14,Achievement_to_date_ongoing!$C134), MAX(0,M$3-YEAR($I134)))/100)) -> 0 | N134: =IF($J134<DATE(N$3,12,31),1, IF($G134="Physical",0, OFFSET(Project_characteristics!$C$1, SUMIFS(Positions_disbursement!$C$1:$C$14,Positions_disbursement!$B$1:$B$14,Achievement_to_date_ongoing!$D134,Positions_disbursement!$A$1:$A$14,Achievement_to_date_ongoing!$C134), MAX(0,N$3-YEAR($I134)))/100)) -> 0 | O134: =IF($J134<DATE(O$3,12,31),1, IF($G134="Physical",0, OFFSET(Project_characteristics!$C$1, SUMIFS(Positions_disbursement!$C$1:$C$14,Positions_disbursement!$B$1:$B$14,Achievement_to_date_ongoing!$D134,Positions_disbursement!$A$1:$A$14,Achievement_to_date_ongoing!$C134), MAX(0,O$3-YEAR($I134)))/100)) -> 0 | P134: =IF($J134<DATE(P$3,12,31),1, IF($G134="Physical",0, OFFSET(Project_characteristics!$C$1, SUMIFS(Positions_disbursement!$C$1:$C$14,Positions_disbursement!$B$1:$B$14,Achievement_to_date_ongoing!$D134,Positions_disbursement!$A$1:$A$14,Achievement_to_date_ongoing!$C134), MAX(0,P$3-YEAR($I134)))/100)) -> 0
B135: 126408 | C135: 3 | D135: (ii) | E135: CO18 | F135: All | G135: Physical | H135: 0 | I135: 2019-02-27 | J135: 2023-12-31 | K135: 129676.2956 | M135: =IF($J135<DATE(M$3,12,31),1, IF($G135="Physical",0, OFFSET(Project_characteristics!$C$1, SUMIFS(Positions_disbursement!$C$1:$C$14,Positions_disbursement!$B$1:$B$14,Achievement_to_date_ongoing!$D135,Positions_disbursement!$A$1:$A$14,Achievement_to_date_ongoing!$C135), MAX(0,M$3-YEAR($I135)))/100)) -> 0 | N135: =IF($J135<DATE(N$3,12,31),1, IF($G135="Physical",0, OFFSET(Project_characteristics!$C$1, SUMIFS(Positions_disbursement!$C$1:$C$14,Positions_disbursement!$B$1:$B$14,Achievement_to_date_ongoing!$D135,Positions_disbursement!$A$1:$A$14,Achievement_to_date_ongoing!$C135), MAX(0,N$3-YEAR($I135)))/100)) -> 0 | O135: =IF($J135<DATE(O$3,12,31),1, IF($G135="Physical",0, OFFSET(Project_characteristics!$C$1, SUMIFS(Positions_disbursement!$C$1:$C$14,Positions_disbursement!$B$1:$B$14,Achievement_to_date_ongoing!$D135,Positions_disbursement!$A$1:$A$14,Achievement_to_date_ongoing!$C135), MAX(0,O$3-YEAR($I135)))/100)) -> 0 | P135: =IF($J135<DATE(P$3,12,31),1, IF($G135="Physical",0, OFFSET(Project_characteristics!$C$1, SUMIFS(Positions_disbursement!$C$1:$C$14,Positions_disbursement!$B$1:$B$14,Achievement_to_date_ongoing!$D135,Positions_disbursement!$A$1:$A$14,Achievement_to_date_ongoing!$C135), MAX(0,P$3-YEAR($I135)))/100)) -> 0
B136: 110838 | C136: 3 | D136: (ii) | E136: CO18 | F136: All | G136: Physical | H136: 0 | I136: 2018-01-01 | J136: 2022-12-31 | K136: 31662.97029 | M136: =IF($J136<DATE(M$3,12,31),1, IF($G136="Physical",0, OFFSET(Project_characteristics!$C$1, SUMIFS(Positions_disbursement!$C$1:$C$14,Positions_disbursement!$B$1:$B$14,Achievement_to_date_ongoing!$D136,Positions_disbursement!$A$1:$A$14,Achievement_to_date_ongoing!$C136), MAX(0,M$3-YEAR($I136)))/100)) -> 0 | N136: =IF($J136<DATE(N$3,12,31),1, IF($G136="Physical",0, OFFSET(Project_characteristics!$C$1, SUMIFS(Positions_disbursement!$C$1:$C$14,Positions_disbursement!$B$1:$B$14,Achievement_to_date_ongoing!$D136,Positions_disbursement!$A$1:$A$14,Achievement_to_date_ongoing!$C136), MAX(0,N$3-YEAR($I136)))/100)) -> 0 | O136: =IF($J136<DATE(O$3,12,31),1, IF($G136="Physical",0, OFFSET(Project_characteristics!$C$1, SUMIFS(Positions_disbursement!$C$1:$C$14,Positions_disbursement!$B$1:$B$14,Achievement_to_date_ongoing!$D136,Positions_disbursement!$A$1:$A$14,Achievement_to_date_ongoing!$C136), MAX(0,O$3-YEAR($I136)))/100)) -> 0 | P136: =IF($J136<DATE(P$3,12,31),1, IF($G136="Physical",0, OFFSET(Project_characteristics!$C$1, SUMIFS(Positions_disbursement!$C$1:$C$14,Positions_disbursement!$B$1:$B$14,Achievement_to_date_ongoing!$D136,Positions_disbursement!$A$1:$A$14,Achievement_to_date_ongoing!$C136), MAX(0,P$3-YEAR($I136)))/100)) -> 1
B137: 107453 | C137: 3 | D137: (ii) | E137: CO19 | F137: All | G137: Physical | H137: 0 | I137: 2016-02-01 | J137: 2021-12-31 | K137: 61936.6538 | M137: =IF($J137<DATE(M$3,12,31),1, IF($G137="Physical",0, OFFSET(Project_characteristics!$C$1, SUMIFS(Positions_disbursement!$C$1:$C$14,Positions_disbursement!$B$1:$B$14,Achievement_to_date_ongoing!$D137,Positions_disbursement!$A$1:$A$14,Achievement_to_date_ongoing!$C137), MAX(0,M$3-YEAR($I137)))/100)) -> 0 | N137: =IF($J137<DATE(N$3,12,31),1, IF($G137="Physical",0, OFFSET(Project_characteristics!$C$1, SUMIFS(Positions_disbursement!$C$1:$C$14,Positions_disbursement!$B$1:$B$14,Achievement_to_date_ongoing!$D137,Positions_disbursement!$A$1:$A$14,Achievement_to_date_ongoing!$C137), MAX(0,N$3-YEAR($I137)))/100)) -> 0 | O137: =IF($J137<DATE(O$3,12,31),1, IF($G137="Physical",0, OFFSET(Project_characteristics!$C$1, SUMIFS(Positions_disbursement!$C$1:$C$14,Positions_disbursement!$B$1:$B$14,Achievement_to_date_ongoing!$D137,Positions_disbursement!$A$1:$A$14,Achievement_to_date_ongoing!$C137), MAX(0,O$3-YEAR($I137)))/100)) -> 1 | P137: =IF($J137<DATE(P$3,12,31),1, IF($G137="Physical",0, OFFSET(Project_characteristics!$C$1, SUMIFS(Positions_disbursement!$C$1:$C$14,Positions_disbursement!$B$1:$B$14,Achievement_to_date_ongoing!$D137,Positions_disbursement!$A$1:$A$14,Achievement_to_date_ongoing!$C137), MAX(0,P$3-YEAR($I137)))/100)) -> 1
B138: 103967 | C138: 3 | D138: (ii) | E138: CO19 | F138: All | G138: Physical | H138: 0 | I138: 2015-04-01 | J138: 2023-12-31 | K138: 25736.10896 | M138: =IF($J138<DATE(M$3,12,31),1, IF($G138="Physical",0, OFFSET(Project_characteristics!$C$1, SUMIFS(Positions_disbursement!$C$1:$C$14,Positions_disbursement!$B$1:$B$14,Achievement_to_date_ongoing!$D138,Positions_disbursement!$A$1:$A$14,Achievement_to_date_ongoing!$C138), MAX(0,M$3-YEAR($I138)))/100)) -> 0 | N138: =IF($J138<DATE(N$3,12,31),1, IF($G138="Physical",0, OFFSET(Project_characteristics!$C$1, SUMIFS(Positions_disbursement!$C$1:$C$14,Positions_disbursement!$B$1:$B$14,Achievement_to_date_ongoing!$D138,Positions_disbursement!$A$1:$A$14,Achievement_to_date_ongoing!$C138), MAX(0,N$3-YEAR($I138)))/100)) -> 0 | O138: =IF($J138<DATE(O$3,12,31),1, IF($G138="Physical",0, OFFSET(Project_characteristics!$C$1, SUMIFS(Positions_disbursement!$C$1:$C$14,Positions_disbursement!$B$1:$B$14,Achievement_to_date_ongoing!$D138,Positions_disbursement!$A$1:$A$14,Achievement_to_date_ongoing!$C138), MAX(0,O$3-YEAR($I138)))/100)) -> 0 | P138: =IF($J138<DATE(P$3,12,31),1, IF($G138="Physical",0, OFFSET(Project_characteristics!$C$1, SUMIFS(Positions_disbursement!$C$1:$C$14,Positions_disbursement!$B$1:$B$14,Achievement_to_date_ongoing!$D138,Positions_disbursement!$A$1:$A$14,Achievement_to_date_ongoing!$C138), MAX(0,P$3-YEAR($I138)))/100)) -> 0
B139: 108100 | C139: 3 | D139: (ii) | E139: CO19 | F139: All | G139: Physical | H139: 0 | I139: 2014-09-01 | J139: 2023-12-31 | K139: 55916.88749 | M139: =IF($J139<DATE(M$3,12,31),1, IF($G139="Physical",0, OFFSET(Project_characteristics!$C$1, SUMIFS(Positions_disbursement!$C$1:$C$14,Positions_disbursement!$B$1:$B$14,Achievement_to_date_ongoing!$D139,Positions_disbursement!$A$1:$A$14,Achievement_to_date_ongoing!$C139), MAX(0,M$3-YEAR($I139)))/100)) -> 0 | N139: =IF($J139<DATE(N$3,12,31),1, IF($G139="Physical",0, OFFSET(Project_characteristics!$C$1, SUMIFS(Positions_disbursement!$C$1:$C$14,Positions_disbursement!$B$1:$B$14,Achievement_to_date_ongoing!$D139,Positions_disbursement!$A$1:$A$14,Achievement_to_date_ongoing!$C139), MAX(0,N$3-YEAR($I139)))/100)) -> 0 | O139: =IF($J139<DATE(O$3,12,31),1, IF($G139="Physical",0, OFFSET(Project_characteristics!$C$1, SUMIFS(Positions_disbursement!$C$1:$C$14,Positions_disbursement!$B$1:$B$14,Achievement_to_date_ongoing!$D139,Positions_disbursement!$A$1:$A$14,Achievement_to_date_ongoing!$C139), MAX(0,O$3-YEAR($I139)))/100)) -> 0 | P139: =IF($J139<DATE(P$3,12,31),1, IF($G139="Physical",0, OFFSET(Project_characteristics!$C$1, SUMIFS(Positions_disbursement!$C$1:$C$14,Positions_disbursement!$B$1:$B$14,Achievement_to_date_ongoing!$D139,Positions_disbursement!$A$1:$A$14,Achievement_to_date_ongoing!$C139), MAX(0,P$3-YEAR($I139)))/100)) -> 0
B140: 135092 | C140: 3 | D140: (ii) | E140: CO19 | F140: All | G140: Physical | H140: 0 | I140: 2018-05-01 | J140: 2022-03-31 | K140: 19772.08564 | M140: =IF($J140<DATE(M$3,12,31),1, IF($G140="Physical",0, OFFSET(Project_characteristics!$C$1, SUMIFS(Positions_disbursement!$C$1:$C$14,Positions_disbursement!$B$1:$B$14,Achievement_to_date_ongoing!$D140,Positions_disbursement!$A$1:$A$14,Achievement_to_date_ongoing!$C140), MAX(0,M$3-YEAR($I140)))/100)) -> 0 | N140: =IF($J140<DATE(N$3,12,31),1, IF($G140="Physical",0, OFFSET(Project_characteristics!$C$1, SUMIFS(Positions_disbursement!$C$1:$C$14,Positions_disbursement!$B$1:$B$14,Achievement_to_date_ongoing!$D140,Positions_disbursement!$A$1:$A$14,Achievement_to_date_ongoing!$C140), MAX(0,N$3-YEAR($I140)))/100)) -> 0 | O140: =IF($J140<DATE(O$3,12,31),1, IF($G140="Physical",0, OFFSET(Project_characteristics!$C$1, SUMIFS(Positions_disbursement!$C$1:$C$14,Positions_disbursement!$B$1:$B$14,Achievement_to_date_ongoing!$D140,Positions_disbursement!$A$1:$A$14,Achievement_to_date_ongoing!$C140), MAX(0,O$3-YEAR($I140)))/100)) -> 1 | P140: =IF($J140<DATE(P$3,12,31),1, IF($G140="Physical",0, OFFSET(Project_characteristics!$C$1, SUMIFS(Positions_disbursement!$C$1:$C$14,Positions_disbursement!$B$1:$B$14,Achievement_to_date_ongoing!$D140,Positions_disbursement!$A$1:$A$14,Achievement_to_date_ongoing!$C140), MAX(0,P$3-YEAR($I140)))/100)) -> 1
B141: 106130 | C141: 3 | D141: (ii) | E141: CO19 | F141: All | G141: Physical | H141: 31720 | I141: 2015-02-01 | J141: 2021-06-30 | K141: 31801.50749 | M141: =IF($J141<DATE(M$3,12,31),1, IF($G141="Physical",0, OFFSET(Project_characteristics!$C$1, SUMIFS(Positions_disbursement!$C$1:$C$14,Positions_disbursement!$B$1:$B$14,Achievement_to_date_ongoing!$D141,Positions_disbursement!$A$1:$A$14,Achievement_to_date_ongoing!$C141), MAX(0,M$3-YEAR($I141)))/100)) -> 0 | N141: =IF($J141<DATE(N$3,12,31),1, IF($G141="Physical",0, OFFSET(Project_characteristics!$C$1, SUMIFS(Positions_disbursement!$C$1:$C$14,Positions_disbursement!$B$1:$B$14,Achievement_to_date_ongoing!$D141,Positions_disbursement!$A$1:$A$14,Achievement_to_date_ongoing!$C141), MAX(0,N$3-YEAR($I141)))/100)) -> 1 | O141: =IF($J141<DATE(O$3,12,31),1, IF($G141="Physical",0, OFFSET(Project_characteristics!$C$1, SUMIFS(Positions_disbursement!$C$1:$C$14,Positions_disbursement!$B$1:$B$14,Achievement_to_date_ongoing!$D141,Positions_disbursement!$A$1:$A$14,Achievement_to_date_ongoing!$C141), MAX(0,O$3-YEAR($I141)))/100)) -> 1 | P141: =IF($J141<DATE(P$3,12,31),1, IF($G141="Physical",0, OFFSET(Project_characteristics!$C$1, SUMIFS(Positions_disbursement!$C$1:$C$14,Positions_disbursement!$B$1:$B$14,Achievement_to_date_ongoing!$D141,Positions_disbursement!$A$1:$A$14,Achievement_to_date_ongoing!$C141), MAX(0,P$3-YEAR($I141)))/100)) -> 1
B142: 104855 | C142: 3 | D142: (ii) | E142: CO19 | F142: All | G142: Physical | H142: 0 | I142: 2016-10-15 | J142: 2021-10-28 | K142: 79847.78121 | M142: =IF($J142<DATE(M$3,12,31),1, IF($G142="Physical",0, OFFSET(Project_characteristics!$C$1, SUMIFS(Positions_disbursement!$C$1:$C$14,Positions_disbursement!$B$1:$B$14,Achievement_to_date_ongoing!$D142,Positions_disbursement!$A$1:$A$14,Achievement_to_date_ongoing!$C142), MAX(0,M$3-YEAR($I142)))/100)) -> 0 | N142: =IF($J142<DATE(N$3,12,31),1, IF($G142="Physical",0, OFFSET(Project_characteristics!$C$1, SUMIFS(Positions_disbursement!$C$1:$C$14,Positions_disbursement!$B$1:$B$14,Achievement_to_date_ongoing!$D142,Positions_disbursement!$A$1:$A$14,Achievement_to_date_ongoing!$C142), MAX(0,N$3-YEAR($I142)))/100)) -> 1 | O142: =IF($J142<DATE(O$3,12,31),1, IF($G142="Physical",0, OFFSET(Project_characteristics!$C$1, SUMIFS(Positions_disbursement!$C$1:$C$14,Positions_disbursement!$B$1:$B$14,Achievement_to_date_ongoing!$D142,Positions_disbursement!$A$1:$A$14,Achievement_to_date_ongoing!$C142), MAX(0,O$3-YEAR($I142)))/100)) -> 1 | P142: =IF($J142<DATE(P$3,12,31),1, IF($G142="Physical",0, OFFSET(Project_characteristics!$C$1, SUMIFS(Positions_disbursement!$C$1:$C$14,Positions_disbursement!$B$1:$B$14,Achievement_to_date_ongoing!$D142,Positions_disbursement!$A$1:$A$14,Achievement_to_date_ongoing!$C142), MAX(0,P$3-YEAR($I142)))/100)) -> 1
B143: 106974 | C143: 3 | D143: (ii) | E143: CO19 | F143: All | G143: Physical | H143: 0 | I143: 2015-09-01 | J143: 2022-12-31 | K143: 65042.53877 | M143: =IF($J143<DATE(M$3,12,31),1, IF($G143="Physical",0, OFFSET(Project_characteristics!$C$1, SUMIFS(Positions_disbursement!$C$1:$C$14,Positions_disbursement!$B$1:$B$14,Achievement_to_date_ongoing!$D143,Positions_disbursement!$A$1:$A$14,Achievement_to_date_ongoing!$C143), MAX(0,M$3-YEAR($I143)))/100)) -> 0 | N143: =IF($J143<DATE(N$3,12,31),1, IF($G143="Physical",0, OFFSET(Project_characteristics!$C$1, SUMIFS(Positions_disbursement!$C$1:$C$14,Positions_disbursement!$B$1:$B$14,Achievement_to_date_ongoing!$D143,Positions_disbursement!$A$1:$A$14,Achievement_to_date_ongoing!$C143), MAX(0,N$3-YEAR($I143)))/100)) -> 0 | O143: =IF($J143<DATE(O$3,12,31),1, IF($G143="Physical",0, OFFSET(Project_characteristics!$C$1, SUMIFS(Positions_disbursement!$C$1:$C$14,Positions_disbursement!$B$1:$B$14,Achievement_to_date_ongoing!$D143,Positions_disbursement!$A$1:$A$14,Achievement_to_date_ongoing!$C143), MAX(0,O$3-YEAR($I143)))/100)) -> 0 | P143: =IF($J143<DATE(P$3,12,31),1, IF($G143="Physical",0, OFFSET(Project_characteristics!$C$1, SUMIFS(Positions_disbursement!$C$1:$C$14,Positions_disbursement!$B$1:$B$14,Achievement_to_date_ongoing!$D143,Positions_disbursement!$A$1:$A$14,Achievement_to_date_ongoing!$C143), MAX(0,P$3-YEAR($I143)))/100)) -> 1
B144: 115525 | C144: 3 | D144: (ii) | E144: CO19 | F144: All | G144: Physical | H144: 0 | I144: 2015-03-01 | J144: 2023-12-31 | K144: 102194.5259 | M144: =IF($J144<DATE(M$3,12,31),1, IF($G144="Physical",0, OFFSET(Project_characteristics!$C$1, SUMIFS(Positions_disbursement!$C$1:$C$14,Positions_disbursement!$B$1:$B$14,Achievement_to_date_ongoing!$D144,Positions_disbursement!$A$1:$A$14,Achievement_to_date_ongoing!$C144), MAX(0,M$3-YEAR($I144)))/100)) -> 0 | N144: =IF($J144<DATE(N$3,12,31),1, IF($G144="Physical",0, OFFSET(Project_characteristics!$C$1, SUMIFS(Positions_disbursement!$C$1:$C$14,Positions_disbursement!$B$1:$B$14,Achievement_to_date_ongoing!$D144,Positions_disbursement!$A$1:$A$14,Achievement_to_date_ongoing!$C144), MAX(0,N$3-YEAR($I144)))/100)) -> 0 | O144: =IF($J144<DATE(O$3,12,31),1, IF($G144="Physical",0, OFFSET(Project_characteristics!$C$1, SUMIFS(Positions_disbursement!$C$1:$C$14,Positions_disbursement!$B$1:$B$14,Achievement_to_date_ongoing!$D144,Positions_disbursement!$A$1:$A$14,Achievement_to_date_ongoing!$C144), MAX(0,O$3-YEAR($I144)))/100)) -> 0 | P144: =IF($J144<DATE(P$3,12,31),1, IF($G144="Physical",0, OFFSET(Project_characteristics!$C$1, SUMIFS(Positions_disbursement!$C$1:$C$14,Positions_disbursement!$B$1:$B$14,Achievement_to_date_ongoing!$D144,Positions_disbursement!$A$1:$A$14,Achievement_to_date_ongoing!$C144), MAX(0,P$3-YEAR($I144)))/100)) -> 0
B145: 106373 | C145: 3 | D145: (ii) | E145: CO19 | F145: All | G145: Physical | H145: 0 | I145: 2008-08-10 | J145: 2023-06-30 | K145: 44100.32681 | M145: =IF($J145<DATE(M$3,12,31),1, IF($G145="Physical",0, OFFSET(Project_characteristics!$C$1, SUMIFS(Positions_disbursement!$C$1:$C$14,Positions_disbursement!$B$1:$B$14,Achievement_to_date_ongoing!$D145,Positions_disbursement!$A$1:$A$14,Achievement_to_date_ongoing!$C145), MAX(0,M$3-YEAR($I145)))/100)) -> 0 | N145: =IF($J145<DATE(N$3,12,31),1, IF($G145="Physical",0, OFFSET(Project_characteristics!$C$1, SUMIFS(Positions_disbursement!$C$1:$C$14,Positions_disbursement!$B$1:$B$14,Achievement_to_date_ongoing!$D145,Positions_disbursement!$A$1:$A$14,Achievement_to_date_ongoing!$C145), MAX(0,N$3-YEAR($I145)))/100)) -> 0 | O145: =IF($J145<DATE(O$3,12,31),1, IF($G145="Physical",0, OFFSET(Project_characteristics!$C$1, SUMIFS(Positions_disbursement!$C$1:$C$14,Positions_disbursement!$B$1:$B$14,Achievement_to_date_ongoing!$D145,Positions_disbursement!$A$1:$A$14,Achievement_to_date_ongoing!$C145), MAX(0,O$3-YEAR($I145)))/100)) -> 0 | P145: =IF($J145<DATE(P$3,12,31),1, IF($G145="Physical",0, OFFSET(Project_characteristics!$C$1, SUMIFS(Positions_disbursement!$C$1:$C$14,Positions_disbursement!$B$1:$B$14,Achievement_to_date_ongoing!$D145,Positions_disbursement!$A$1:$A$14,Achievement_to_date_ongoing!$C145), MAX(0,P$3-YEAR($I145)))/100)) -> 1
B146: 110847 | C146: 3 | D146: (ii) | E146: CO19 | F146: All | G146: Physical | H146: 0 | I146: 2015-08-01 | J146: 2023-12-31 | K146: 11076.17944 | M146: =IF($J146<DATE(M$3,12,31),1, IF($G146="Physical",0, OFFSET(Project_characteristics!$C$1, SUMIFS(Positions_disbursement!$C$1:$C$14,Positions_disbursement!$B$1:$B$14,Achievement_to_date_ongoing!$D146,Positions_disbursement!$A$1:$A$14,Achievement_to_date_ongoing!$C146), MAX(0,M$3-YEAR($I146)))/100)) -> 0 | N146: =IF($J146<DATE(N$3,12,31),1, IF($G146="Physical",0, OFFSET(Project_characteristics!$C$1, SUMIFS(Positions_disbursement!$C$1:$C$14,Positions_disbursement!$B$1:$B$14,Achievement_to_date_ongoing!$D146,Positions_disbursement!$A$1:$A$14,Achievement_to_date_ongoing!$C146), MAX(0,N$3-YEAR($I146)))/100)) -> 0 | O146: =IF($J146<DATE(O$3,12,31),1, IF($G146="Physical",0, OFFSET(Project_characteristics!$C$1, SUMIFS(Positions_disbursement!$C$1:$C$14,Positions_disbursement!$B$1:$B$14,Achievement_to_date_ongoing!$D146,Positions_disbursement!$A$1:$A$14,Achievement_to_date_ongoing!$C146), MAX(0,O$3-YEAR($I146)))/100)) -> 0 | P146: =IF($J146<DATE(P$3,12,31),1, IF($G146="Physical",0, OFFSET(Project_characteristics!$C$1, SUMIFS(Positions_disbursement!$C$1:$C$14,Positions_disbursement!$B$1:$B$14,Achievement_to_date_ongoing!$D146,Positions_disbursement!$A$1:$A$14,Achievement_to_date_ongoing!$C146), MAX(0,P$3-YEAR($I146)))/100)) -> 0
B147: 106204 | C147: 3 | D147: (ii) | E147: CO19 | F147: All | G147: Physical | H147: 27000 | I147: 2016-07-01 | J147: 2021-12-31 | K147: 29820.2309 | M147: =IF($J147<DATE(M$3,12,31),1, IF($G147="Physical",0, OFFSET(Project_characteristics!$C$1, SUMIFS(Positions_disbursement!$C$1:$C$14,Positions_disbursement!$B$1:$B$14,Achievement_to_date_ongoing!$D147,Positions_disbursement!$A$1:$A$14,Achievement_to_date_ongoing!$C147), MAX(0,M$3-YEAR($I147)))/100)) -> 0 | N147: =IF($J147<DATE(N$3,12,31),1, IF($G147="Physical",0, OFFSET(Project_characteristics!$C$1, SUMIFS(Positions_disbursement!$C$1:$C$14,Positions_disbursement!$B$1:$B$14,Achievement_to_date_ongoing!$D147,Positions_disbursement!$A$1:$A$14,Achievement_to_date_ongoing!$C147), MAX(0,N$3-YEAR($I147)))/100)) -> 0 | O147: =IF($J147<DATE(O$3,12,31),1, IF($G147="Physical",0, OFFSET(Project_characteristics!$C$1, SUMIFS(Positions_disbursement!$C$1:$C$14,Positions_disbursement!$B$1:$B$14,Achievement_to_date_ongoing!$D147,Positions_disbursement!$A$1:$A$14,Achievement_to_date_ongoing!$C147), MAX(0,O$3-YEAR($I147)))/100)) -> 1 | P147: =IF($J147<DATE(P$3,12,31),1, IF($G147="Physical",0, OFFSET(Project_characteristics!$C$1, SUMIFS(Positions_disbursement!$C$1:$C$14,Positions_disbursement!$B$1:$B$14,Achievement_to_date_ongoing!$D147,Positions_disbursement!$A$1:$A$14,Achievement_to_date_ongoing!$C147), MAX(0,P$3-YEAR($I147)))/100)) -> 1
B148: 135145 | C148: 3 | D148: (ii) | E148: CO19 | F148: All | G148: Physical | H148: 0 | I148: 2019-12-31 | J148: 2023-12-31 | K148: 51030.0855 | M148: =IF($J148<DATE(M$3,12,31),1, IF($G148="Physical",0, OFFSET(Project_characteristics!$C$1, SUMIFS(Positions_disbursement!$C$1:$C$14,Positions_disbursement!$B$1:$B$14,Achievement_to_date_ongoing!$D148,Positions_disbursement!$A$1:$A$14,Achievement_to_date_ongoing!$C148), MAX(0,M$3-YEAR($I148)))/100)) -> 0 | N148: =IF($J148<DATE(N$3,12,31),1, IF($G148="Physical",0, OFFSET(Project_characteristics!$C$1, SUMIFS(Positions_disbursement!$C$1:$C$14,Positions_disbursement!$B$1:$B$14,Achievement_to_date_ongoing!$D148,Positions_disbursement!$A$1:$A$14,Achievement_to_date_ongoing!$C148), MAX(0,N$3-YEAR($I148)))/100)) -> 0 | O148: =IF($J148<DATE(O$3,12,31),1, IF($G148="Physical",0, OFFSET(Project_characteristics!$C$1, SUMIFS(Positions_disbursement!$C$1:$C$14,Positions_disbursement!$B$1:$B$14,Achievement_to_date_ongoing!$D148,Positions_disbursement!$A$1:$A$14,Achievement_to_date_ongoing!$C148), MAX(0,O$3-YEAR($I148)))/100)) -> 0 | P148: =IF($J148<DATE(P$3,12,31),1, IF($G148="Physical",0, OFFSET(Project_characteristics!$C$1, SUMIFS(Positions_disbursement!$C$1:$C$14,Positions_disbursement!$B$1:$B$14,Achievement_to_date_ongoing!$D148,Positions_disbursement!$A$1:$A$14,Achievement_to_date_ongoing!$C148), MAX(0,P$3-YEAR($I148)))/100)) -> 0
B149: 105422 | C149: 3 | D149: (ii) | E149: CO19 | F149: All | G149: Physical | H149: 3668 | I149: 2014-01-01 | J149: 2022-05-30 | K149: 4124.653241 | M149: =IF($J149<DATE(M$3,12,31),1, IF($G149="Physical",0, OFFSET(Project_characteristics!$C$1, SUMIFS(Positions_disbursement!$C$1:$C$14,Positions_disbursement!$B$1:$B$14,Achievement_to_date_ongoing!$D149,Positions_disbursement!$A$1:$A$14,Achievement_to_date_ongoing!$C149), MAX(0,M$3-YEAR($I149)))/100)) -> 0 | N149: =IF($J149<DATE(N$3,12,31),1, IF($G149="Physical",0, OFFSET(Project_characteristics!$C$1, SUMIFS(Positions_disbursement!$C$1:$C$14,Positions_disbursement!$B$1:$B$14,Achievement_to_date_ongoing!$D149,Positions_disbursement!$A$1:$A$14,Achievement_to_date_ongoing!$C149), MAX(0,N$3-YEAR($I149)))/100)) -> 0 | O149: =IF($J149<DATE(O$3,12,31),1, IF($G149="Physical",0, OFFSET(Project_characteristics!$C$1, SUMIFS(Positions_disbursement!$C$1:$C$14,Positions_disbursement!$B$1:$B$14,Achievement_to_date_ongoing!$D149,Positions_disbursement!$A$1:$A$14,Achievement_to_date_ongoing!$C149), MAX(0,O$3-YEAR($I149)))/100)) -> 1 | P149: =IF($J149<DATE(P$3,12,31),1, IF($G149="Physical",0, OFFSET(Project_characteristics!$C$1, SUMIFS(Positions_disbursement!$C$1:$C$14,Positions_disbursement!$B$1:$B$14,Achievement_to_date_ongoing!$D149,Positions_disbursement!$A$1:$A$14,Achievement_to_date_ongoing!$C149), MAX(0,P$3-YEAR($I149)))/100)) -> 1
B150: 108495 | C150: 3 | D150: (ii) | E150: CO19 | F150: All | G150: Physical | H150: 0 | I150: 2015-04-01 | J150: 2023-12-31 | K150: 21078.4726 | M150: =IF($J150<DATE(M$3,12,31),1, IF($G150="Physical",0, OFFSET(Project_characteristics!$C$1, SUMIFS(Positions_disbursement!$C$1:$C$14,Positions_disbursement!$B$1:$B$14,Achievement_to_date_ongoing!$D150,Positions_disbursement!$A$1:$A$14,Achievement_to_date_ongoing!$C150), MAX(0,M$3-YEAR($I150)))/100)) -> 0 | N150: =IF($J150<DATE(N$3,12,31),1, IF($G150="Physical",0, OFFSET(Project_characteristics!$C$1, SUMIFS(Positions_disbursement!$C$1:$C$14,Positions_disbursement!$B$1:$B$14,Achievement_to_date_ongoing!$D150,Positions_disbursement!$A$1:$A$14,Achievement_to_date_ongoing!$C150), MAX(0,N$3-YEAR($I150)))/100)) -> 0 | O150: =IF($J150<DATE(O$3,12,31),1, IF($G150="Physical",0, OFFSET(Project_characteristics!$C$1, SUMIFS(Positions_disbursement!$C$1:$C$14,Positions_disbursement!$B$1:$B$14,Achievement_to_date_ongoing!$D150,Positions_disbursement!$A$1:$A$14,Achievement_to_date_ongoing!$C150), MAX(0,O$3-YEAR($I150)))/100)) -> 0 | P150: =IF($J150<DATE(P$3,12,31),1, IF($G150="Physical",0, OFFSET(Project_characteristics!$C$1, SUMIFS(Positions_disbursement!$C$1:$C$14,Positions_disbursement!$B$1:$B$14,Achievement_to_date_ongoing!$D150,Positions_disbursement!$A$1:$A$14,Achievement_to_date_ongoing!$C150), MAX(0,P$3-YEAR($I150)))/100)) -> 0
B151: 108858 | C151: 3 | D151: (ii) | E151: CO19 | F151: All | G151: Physical | H151: 0 | I151: 2015-04-03 | J151: 2023-12-31 | K151: 34046.57859 | M151: =IF($J151<DATE(M$3,12,31),1, IF($G151="Physical",0, OFFSET(Project_characteristics!$C$1, SUMIFS(Positions_disbursement!$C$1:$C$14,Positions_disbursement!$B$1:$B$14,Achievement_to_date_ongoing!$D151,Positions_disbursement!$A$1:$A$14,Achievement_to_date_ongoing!$C151), MAX(0,M$3-YEAR($I151)))/100)) -> 0 | N151: =IF($J151<DATE(N$3,12,31),1, IF($G151="Physical",0, OFFSET(Project_characteristics!$C$1, SUMIFS(Positions_disbursement!$C$1:$C$14,Positions_disbursement!$B$1:$B$14,Achievement_to_date_ongoing!$D151,Positions_disbursement!$A$1:$A$14,Achievement_to_date_ongoing!$C151), MAX(0,N$3-YEAR($I151)))/100)) -> 0 | O151: =IF($J151<DATE(O$3,12,31),1, IF($G151="Physical",0, OFFSET(Project_characteristics!$C$1, SUMIFS(Positions_disbursement!$C$1:$C$14,Positions_disbursement!$B$1:$B$14,Achievement_to_date_ongoing!$D151,Positions_disbursement!$A$1:$A$14,Achievement_to_date_ongoing!$C151), MAX(0,O$3-YEAR($I151)))/100)) -> 0 | P151: =IF($J151<DATE(P$3,12,31),1, IF($G151="Physical",0, OFFSET(Project_characteristics!$C$1, SUMIFS(Positions_disbursement!$C$1:$C$14,Positions_disbursement!$B$1:$B$14,Achievement_to_date_ongoing!$D151,Positions_disbursement!$A$1:$A$14,Achievement_to_date_ongoing!$C151), MAX(0,P$3-YEAR($I151)))/100)) -> 0
B152: 126408 | C152: 3 | D152: (ii) | E152: CO19 | F152: All | G152: Physical | H152: 0 | I152: 2019-02-27 | J152: 2023-12-31 | K152: 52955.839 | M152: =IF($J152<DATE(M$3,12,31),1, IF($G152="Physical",0, OFFSET(Project_characteristics!$C$1, SUMIFS(Positions_disbursement!$C$1:$C$14,Positions_disbursement!$B$1:$B$14,Achievement_to_date_ongoing!$D152,Positions_disbursement!$A$1:$A$14,Achievement_to_date_ongoing!$C152), MAX(0,M$3-YEAR($I152)))/100)) -> 0 | N152: =IF($J152<DATE(N$3,12,31),1, IF($G152="Physical",0, OFFSET(Project_characteristics!$C$1, SUMIFS(Positions_disbursement!$C$1:$C$14,Positions_disbursement!$B$1:$B$14,Achievement_to_date_ongoing!$D152,Positions_disbursement!$A$1:$A$14,Achievement_to_date_ongoing!$C152), MAX(0,N$3-YEAR($I152)))/100)) -> 0 | O152: =IF($J152<DATE(O$3,12,31),1, IF($G152="Physical",0, OFFSET(Project_characteristics!$C$1, SUMIFS(Positions_disbursement!$C$1:$C$14,Positions_disbursement!$B$1:$B$14,Achievement_to_date_ongoing!$D152,Positions_disbursement!$A$1:$A$14,Achievement_to_date_ongoing!$C152), MAX(0,O$3-YEAR($I152)))/100)) -> 0 | P152: =IF($J152<DATE(P$3,12,31),1, IF($G152="Physical",0, OFFSET(Project_characteristics!$C$1, SUMIFS(Positions_disbursement!$C$1:$C$14,Positions_disbursement!$B$1:$B$14,Achievement_to_date_ongoing!$D152,Positions_disbursement!$A$1:$A$14,Achievement_to_date_ongoing!$C152), MAX(0,P$3-YEAR($I152)))/100)) -> 0
B153: 110838 | C153: 3 | D153: (ii) | E153: CO19 | F153: All | G153: Physical | H153: 0 | I153: 2018-01-01 | J153: 2022-12-31 | K153: 27365.51939 | M153: =IF($J153<DATE(M$3,12,31),1, IF($G153="Physical",0, OFFSET(Project_characteristics!$C$1, SUMIFS(Positions_disbursement!$C$1:$C$14,Positions_disbursement!$B$1:$B$14,Achievement_to_date_ongoing!$D153,Positions_disbursement!$A$1:$A$14,Achievement_to_date_ongoing!$C153), MAX(0,M$3-YEAR($I153)))/100)) -> 0 | N153: =IF($J153<DATE(N$3,12,31),1, IF($G153="Physical",0, OFFSET(Project_characteristics!$C$1, SUMIFS(Positions_disbursement!$C$1:$C$14,Positions_disbursement!$B$1:$B$14,Achievement_to_date_ongoing!$D153,Positions_disbursement!$A$1:$A$14,Achievement_to_date_ongoing!$C153), MAX(0,N$3-YEAR($I153)))/100)) -> 0 | O153: =IF($J153<DATE(O$3,12,31),1, IF($G153="Physical",0, OFFSET(Project_characteristics!$C$1, SUMIFS(Positions_disbursement!$C$1:$C$14,Positions_disbursement!$B$1:$B$14,Achievement_to_date_ongoing!$D153,Positions_disbursement!$A$1:$A$14,Achievement_to_date_ongoing!$C153), MAX(0,O$3-YEAR($I153)))/100)) -> 0 | P153: =IF($J153<DATE(P$3,12,31),1, IF($G153="Physical",0, OFFSET(Project_characteristics!$C$1, SUMIFS(Positions_disbursement!$C$1:$C$14,Positions_disbursement!$B$1:$B$14,Achievement_to_date_ongoing!$D153,Positions_disbursement!$A$1:$A$14,Achievement_to_date_ongoing!$C153), MAX(0,P$3-YEAR($I153)))/100)) -> 1
B154: 102541 | C154: 3 | D154: (ii) | E154: F | F154: All | G154: Financial | H154: 5899153.65 | I154: 2019-06-21 | J154: 2021-09-30 | K154: 6281521.457 | M154: =IF($J154<DATE(M$3,12,31),1, IF($G154="Physical",0, OFFSET(Project_characteristics!$C$1, SUMIFS(Positions_disbursement!$C$1:$C$14,Positions_disbursement!$B$1:$B$14,Achievement_to_date_ongoing!$D154,Positions_disbursement!$A$1:$A$14,Achievement_to_date_ongoing!$C154), MAX(0,M$3-YEAR($I154)))/100)) -> 0 | N154: =IF($J154<DATE(N$3,12,31),1, IF($G154="Physical",0, OFFSET(Project_characteristics!$C$1, SUMIFS(Positions_disbursement!$C$1:$C$14,Positions_disbursement!$B$1:$B$14,Achievement_to_date_ongoing!$D154,Positions_disbursement!$A$1:$A$14,Achievement_to_date_ongoing!$C154), MAX(0,N$3-YEAR($I154)))/100)) -> 1 | O154: =IF($J154<DATE(O$3,12,31),1, IF($G154="Physical",0, OFFSET(Project_characteristics!$C$1, SUMIFS(Positions_disbursement!$C$1:$C$14,Positions_disbursement!$B$1:$B$14,Achievement_to_date_ongoing!$D154,Positions_disbursement!$A$1:$A$14,Achievement_to_date_ongoing!$C154), MAX(0,O$3-YEAR($I154)))/100)) -> 1 | P154: =IF($J154<DATE(P$3,12,31),1, IF($G154="Physical",0, OFFSET(Project_characteristics!$C$1, SUMIFS(Positions_disbursement!$C$1:$C$14,Positions_disbursement!$B$1:$B$14,Achievement_to_date_ongoing!$D154,Positions_disbursement!$A$1:$A$14,Achievement_to_date_ongoing!$C154), MAX(0,P$3-YEAR($I154)))/100)) -> 1
B155: 106161 | C155: 3 | D155: (ii) | E155: F | F155: All | G155: Financial | H155: 15373043.06 | I155: 2016-04-15 | J155: 2022-03-31 | K155: 15373043.06 | M155: =IF($J155<DATE(M$3,12,31),1, IF($G155="Physical",0, OFFSET(Project_characteristics!$C$1, SUMIFS(Positions_disbursement!$C$1:$C$14,Positions_disbursement!$B$1:$B$14,Achievement_to_date_ongoing!$D155,Positions_disbursement!$A$1:$A$14,Achievement_to_date_ongoing!$C155), MAX(0,M$3-YEAR($I155)))/100)) -> 0 | N155: =IF($J155<DATE(N$3,12,31),1, IF($G155="Physical",0, OFFSET(Project_characteristics!$C$1, SUMIFS(Positions_disbursement!$C$1:$C$14,Positions_disbursement!$B$1:$B$14,Achievement_to_date_ongoing!$D155,Positions_disbursement!$A$1:$A$14,Achievement_to_date_ongoing!$C155), MAX(0,N$3-YEAR($I155)))/100)) -> 0 | O155: =IF($J155<DATE(O$3,12,31),1, IF($G155="Physical",0, OFFSET(Project_characteristics!$C$1, SUMIFS(Positions_disbursement!$C$1:$C$14,Positions_disbursement!$B$1:$B$14,Achievement_to_date_ongoing!$D155,Positions_disbursement!$A$1:$A$14,Achievement_to_date_ongoing!$C155), MAX(0,O$3-YEAR($I155)))/100)) -> 1 | P155: =IF($J155<DATE(P$3,12,31),1, IF($G155="Physical",0, OFFSET(Project_characteristics!$C$1, SUMIFS(Positions_disbursement!$C$1:$C$14,Positions_disbursement!$B$1:$B$14,Achievement_to_date_ongoing!$D155,Positions_disbursement!$A$1:$A$14,Achievement_to_date_ongoing!$C155), MAX(0,P$3-YEAR($I155)))/100)) -> 1
B156: 107537 | C156: 3 | D156: (ii) | E156: F | F156: All | G156: Financial | H156: 3368628.51 | I156: 2017-09-18 | J156: 2021-07-18 | K156: 5352713.475 | M156: =IF($J156<DATE(M$3,12,31),1, IF($G156="Physical",0, OFFSET(Project_characteristics!$C$1, SUMIFS(Positions_disbursement!$C$1:$C$14,Positions_disbursement!$B$1:$B$14,Achievement_to_date_ongoing!$D156,Positions_disbursement!$A$1:$A$14,Achievement_to_date_ongoing!$C156), MAX(0,M$3-YEAR($I156)))/100)) -> 0 | N156: =IF($J156<DATE(N$3,12,31),1, IF($G156="Physical",0, OFFSET(Project_characteristics!$C$1, SUMIFS(Positions_disbursement!$C$1:$C$14,Positions_disbursement!$B$1:$B$14,Achievement_to_date_ongoing!$D156,Positions_disbursement!$A$1:$A$14,Achievement_to_date_ongoing!$C156), MAX(0,N$3-YEAR($I156)))/100)) -> 1 | O156: =IF($J156<DATE(O$3,12,31),1, IF($G156="Physical",0, OFFSET(Project_characteristics!$C$1, SUMIFS(Positions_disbursement!$C$1:$C$14,Positions_disbursement!$B$1:$B$14,Achievement_to_date_ongoing!$D156,Positions_disbursement!$A$1:$A$14,Achievement_to_date_ongoing!$C156), MAX(0,O$3-YEAR($I156)))/100)) -> 1 | P156: =IF($J156<DATE(P$3,12,31),1, IF($G156="Physical",0, OFFSET(Project_characteristics!$C$1, SUMIFS(Positions_disbursement!$C$1:$C$14,Positions_disbursement!$B$1:$B$14,Achievement_to_date_ongoing!$D156,Positions_disbursement!$A$1:$A$14,Achievement_to_date_ongoing!$C156), MAX(0,P$3-YEAR($I156)))/100)) -> 1
B157: 107453 | C157: 3 | D157: (ii) | E157: F | F157: All | G157: Financial | H157: 4637875.39 | I157: 2016-02-01 | J157: 2021-12-31 | K157: 28811130.07 | M157: =IF($J157<DATE(M$3,12,31),1, IF($G157="Physical",0, OFFSET(Project_characteristics!$C$1, SUMIFS(Positions_disbursement!$C$1:$C$14,Positions_disbursement!$B$1:$B$14,Achievement_to_date_ongoing!$D157,Positions_disbursement!$A$1:$A$14,Achievement_to_date_ongoing!$C157), MAX(0,M$3-YEAR($I157)))/100)) -> 0 | N157: =IF($J157<DATE(N$3,12,31),1, IF($G157="Physical",0, OFFSET(Project_characteristics!$C$1, SUMIFS(Positions_disbursement!$C$1:$C$14,Positions_disbursement!$B$1:$B$14,Achievement_to_date_ongoing!$D157,Positions_disbursement!$A$1:$A$14,Achievement_to_date_ongoing!$C157), MAX(0,N$3-YEAR($I157)))/100)) -> 0 | O157: =IF($J157<DATE(O$3,12,31),1, IF($G157="Physical",0, OFFSET(Project_characteristics!$C$1, SUMIFS(Positions_disbursement!$C$1:$C$14,Positions_disbursement!$B$1:$B$14,Achievement_to_date_ongoing!$D157,Positions_disbursement!$A$1:$A$14,Achievement_to_date_ongoing!$C157), MAX(0,O$3-YEAR($I157)))/100)) -> 1 | P157: =IF($J157<DATE(P$3,12,31),1, IF($G157="Physical",0, OFFSET(Project_characteristics!$C$1, SUMIFS(Positions_disbursement!$C$1:$C$14,Positions_disbursement!$B$1:$B$14,Achievement_to_date_ongoing!$D157,Positions_disbursement!$A$1:$A$14,Achievement_to_date_ongoing!$C157), MAX(0,P$3-YEAR($I157)))/100)) -> 1
B158: 106938 | C158: 3 | D158: (ii) | E158: F | F158: All | G158: Financial | H158: 4047862.49 | I158: 2017-06-15 | J158: 2021-09-30 | K158: 12870765.69 | M158: =IF($J158<DATE(M$3,12,31),1, IF($G158="Physical",0, OFFSET(Project_characteristics!$C$1, SUMIFS(Positions_disbursement!$C$1:$C$14,Positions_disbursement!$B$1:$B$14,Achievement_to_date_ongoing!$D158,Positions_disbursement!$A$1:$A$14,Achievement_to_date_ongoing!$C158), MAX(0,M$3-YEAR($I158)))/100)) -> 0 | N158: =IF($J158<DATE(N$3,12,31),1, IF($G158="Physical",0, OFFSET(Project_characteristics!$C$1, SUMIFS(Positions_disbursement!$C$1:$C$14,Positions_disbursement!$B$1:$B$14,Achievement_to_date_ongoing!$D158,Positions_disbursement!$A$1:$A$14,Achievement_to_date_ongoing!$C158), MAX(0,N$3-YEAR($I158)))/100)) -> 1 | O158: =IF($J158<DATE(O$3,12,31),1, IF($G158="Physical",0, OFFSET(Project_characteristics!$C$1, SUMIFS(Positions_disbursement!$C$1:$C$14,Positions_disbursement!$B$1:$B$14,Achievement_to_date_ongoing!$D158,Positions_disbursement!$A$1:$A$14,Achievement_to_date_ongoing!$C158), MAX(0,O$3-YEAR($I158)))/100)) -> 1 | P158: =IF($J158<DATE(P$3,12,31),1, IF($G158="Physical",0, OFFSET(Project_characteristics!$C$1, SUMIFS(Positions_disbursement!$C$1:$C$14,Positions_disbursement!$B$1:$B$14,Achievement_to_date_ongoing!$D158,Positions_disbursement!$A$1:$A$14,Achievement_to_date_ongoing!$C158), MAX(0,P$3-YEAR($I158)))/100)) -> 1
B159: 109456 | C159: 3 | D159: (ii) | E159: F | F159: All | G159: Financial | H159: 5328831.95 | I159: 2017-04-01 | J159: 2021-07-31 | K159: 5328831.95 | M159: =IF($J159<DATE(M$3,12,31),1, IF($G159="Physical",0, OFFSET(Project_characteristics!$C$1, SUMIFS(Positions_disbursement!$C$1:$C$14,Positions_disbursement!$B$1:$B$14,Achievement_to_date_ongoing!$D159,Positions_disbursement!$A$1:$A$14,Achievement_to_date_ongoing!$C159), MAX(0,M$3-YEAR($I159)))/100)) -> 0 | N159: =IF($J159<DATE(N$3,12,31),1, IF($G159="Physical",0, OFFSET(Project_characteristics!$C$1, SUMIFS(Positions_disbursement!$C$1:$C$14,Positions_disbursement!$B$1:$B$14,Achievement_to_date_ongoing!$D159,Positions_disbursement!$A$1:$A$14,Achievement_to_date_ongoing!$C159), MAX(0,N$3-YEAR($I159)))/100)) -> 1 | O159: =IF($J159<DATE(O$3,12,31),1, IF($G159="Physical",0, OFFSET(Project_characteristics!$C$1, SUMIFS(Positions_disbursement!$C$1:$C$14,Positions_disbursement!$B$1:$B$14,Achievement_to_date_ongoing!$D159,Positions_disbursement!$A$1:$A$14,Achievement_to_date_ongoing!$C159), MAX(0,O$3-YEAR($I159)))/100)) -> 1 | P159: =IF($J159<DATE(P$3,12,31),1, IF($G159="Physical",0, OFFSET(Project_characteristics!$C$1, SUMIFS(Positions_disbursement!$C$1:$C$14,Positions_disbursement!$B$1:$B$14,Achievement_to_date_ongoing!$D159,Positions_disbursement!$A$1:$A$14,Achievement_to_date_ongoing!$C159), MAX(0,P$3-YEAR($I159)))/100)) -> 1
B160: 108929 | C160: 3 | D160: (ii) | E160: F | F160: All | G160: Financial | H160: 1589416.29 | I160: 2018-05-15 | J160: 2023-01-15 | K160: 11853352.51 | M160: =IF($J160<DATE(M$3,12,31),1, IF($G160="Physical",0, OFFSET(Project_characteristics!$C$1, SUMIFS(Positions_disbursement!$C$1:$C$14,Positions_disbursement!$B$1:$B$14,Achievement_to_date_ongoing!$D160,Positions_disbursement!$A$1:$A$14,Achievement_to_date_ongoing!$C160), MAX(0,M$3-YEAR($I160)))/100)) -> 0 | N160: =IF($J160<DATE(N$3,12,31),1, IF($G160="Physical",0, OFFSET(Project_characteristics!$C$1, SUMIFS(Positions_disbursement!$C$1:$C$14,Positions_disbursement!$B$1:$B$14,Achievement_to_date_ongoing!$D160,Positions_disbursement!$A$1:$A$14,Achievement_to_date_ongoing!$C160), MAX(0,N$3-YEAR($I160)))/100)) -> 0 | O160: =IF($J160<DATE(O$3,12,31),1, IF($G160="Physical",0, OFFSET(Project_characteristics!$C$1, SUMIFS(Positions_disbursement!$C$1:$C$14,Positions_disbursement!$B$1:$B$14,Achievement_to_date_ongoing!$D160,Positions_disbursement!$A$1:$A$14,Achievement_to_date_ongoing!$C160), MAX(0,O$3-YEAR($I160)))/100)) -> 0 | P160: =IF($J160<DATE(P$3,12,31),1, IF($G160="Physical",0, OFFSET(Project_characteristics!$C$1, SUMIFS(Positions_disbursement!$C$1:$C$14,Positions_disbursement!$B$1:$B$14,Achievement_to_date_ongoing!$D160,Positions_disbursement!$A$1:$A$14,Achievement_to_date_ongoing!$C160), MAX(0,P$3-YEAR($I160)))/100)) -> 1
B161: 106707 | C161: 3 | D161: (ii) | E161: F | F161: All | G161: Financial | H161: 5369385.29 | I161: 2016-04-14 | J161: 2022-01-15 | K161: 5369385.29 | M161: =IF($J161<DATE(M$3,12,31),1, IF($G161="Physical",0, OFFSET(Project_characteristics!$C$1, SUMIFS(Positions_disbursement!$C$1:$C$14,Positions_disbursement!$B$1:$B$14,Achievement_to_date_ongoing!$D161,Positions_disbursement!$A$1:$A$14,Achievement_to_date_ongoing!$C161), MAX(0,M$3-YEAR($I161)))/100)) -> 0 | N161: =IF($J161<DATE(N$3,12,31),1, IF($G161="Physical",0, OFFSET(Project_characteristics!$C$1, SUMIFS(Positions_disbursement!$C$1:$C$14,Positions_disbursement!$B$1:$B$14,Achievement_to_date_ongoing!$D161,Positions_disbursement!$A$1:$A$14,Achievement_to_date_ongoing!$C161), MAX(0,N$3-YEAR($I161)))/100)) -> 0 | O161: =IF($J161<DATE(O$3,12,31),1, IF($G161="Physical",0, OFFSET(Project_characteristics!$C$1, SUMIFS(Positions_disbursement!$C$1:$C$14,Positions_disbursement!$B$1:$B$14,Achievement_to_date_ongoing!$D161,Positions_disbursement!$A$1:$A$14,Achievement_to_date_ongoing!$C161), MAX(0,O$3-YEAR($I161)))/100)) -> 1 | P161: =IF($J161<DATE(P$3,12,31),1, IF($G161="Physical",0, OFFSET(Project_characteristics!$C$1, SUMIFS(Positions_disbursement!$C$1:$C$14,Positions_disbursement!$B$1:$B$14,Achievement_to_date_ongoing!$D161,Positions_disbursement!$A$1:$A$14,Achievement_to_date_ongoing!$C161), MAX(0,P$3-YEAR($I161)))/100)) -> 1
B162: 107600 | C162: 3 | D162: (ii) | E162: F | F162: All | G162: Financial | H162: 6296288 | I162: 2017-01-01 | J162: 2021-12-31 | K162: 6594522.89 | M162: =IF($J162<DATE(M$3,12,31),1, IF($G162="Physical",0, OFFSET(Project_characteristics!$C$1, SUMIFS(Positions_disbursement!$C$1:$C$14,Positions_disbursement!$B$1:$B$14,Achievement_to_date_ongoing!$D162,Positions_disbursement!$A$1:$A$14,Achievement_to_date_ongoing!$C162), MAX(0,M$3-YEAR($I162)))/100)) -> 0 | N162: =IF($J162<DATE(N$3,12,31),1, IF($G162="Physical",0, OFFSET(Project_characteristics!$C$1, SUMIFS(Positions_disbursement!$C$1:$C$14,Positions_disbursement!$B$1:$B$14,Achievement_to_date_ongoing!$D162,Positions_disbursement!$A$1:$A$14,Achievement_to_date_ongoing!$C162), MAX(0,N$3-YEAR($I162)))/100)) -> 0 | O162: =IF($J162<DATE(O$3,12,31),1, IF($G162="Physical",0, OFFSET(Project_characteristics!$C$1, SUMIFS(Positions_disbursement!$C$1:$C$14,Positions_disbursement!$B$1:$B$14,Achievement_to_date_ongoing!$D162,Positions_disbursement!$A$1:$A$14,Achievement_to_date_ongoing!$C162), MAX(0,O$3-YEAR($I162)))/100)) -> 1 | P162: =IF($J162<DATE(P$3,12,31),1, IF($G162="Physical",0, OFFSET(Project_characteristics!$C$1, SUMIFS(Positions_disbursement!$C$1:$C$14,Positions_disbursement!$B$1:$B$14,Achievement_to_date_ongoing!$D162,Positions_disbursement!$A$1:$A$14,Achievement_to_date_ongoing!$C162), MAX(0,P$3-YEAR($I162)))/100)) -> 1
B163: 101584 | C163: 3 | D163: (ii) | E163: F | F163: All | G163: Financial | H163: 7616939.88 | I163: 2015-06-23 | J163: 2021-12-22 | K163: 7616939.88 | M163: =IF($J163<DATE(M$3,12,31),1, IF($G163="Physical",0, OFFSET(Project_characteristics!$C$1, SUMIFS(Positions_disbursement!$C$1:$C$14,Positions_disbursement!$B$1:$B$14,Achievement_to_date_ongoing!$D163,Positions_disbursement!$A$1:$A$14,Achievement_to_date_ongoing!$C163), MAX(0,M$3-YEAR($I163)))/100)) -> 0 | N163: =IF($J163<DATE(N$3,12,31),1, IF($G163="Physical",0, OFFSET(Project_characteristics!$C$1, SUMIFS(Positions_disbursement!$C$1:$C$14,Positions_disbursement!$B$1:$B$14,Achievement_to_date_ongoing!$D163,Positions_disbursement!$A$1:$A$14,Achievement_to_date_ongoing!$C163), MAX(0,N$3-YEAR($I163)))/100)) -> 1 | O163: =IF($J163<DATE(O$3,12,31),1, IF($G163="Physical",0, OFFSET(Project_characteristics!$C$1, SUMIFS(Positions_disbursement!$C$1:$C$14,Positions_disbursement!$B$1:$B$14,Achievement_to_date_ongoing!$D163,Positions_disbursement!$A$1:$A$14,Achievement_to_date_ongoing!$C163), MAX(0,O$3-YEAR($I163)))/100)) -> 1 | P163: =IF($J163<DATE(P$3,12,31),1, IF($G163="Physical",0, OFFSET(Project_characteristics!$C$1, SUMIFS(Positions_disbursement!$C$1:$C$14,Positions_disbursement!$B$1:$B$14,Achievement_to_date_ongoing!$D163,Positions_disbursement!$A$1:$A$14,Achievement_to_date_ongoing!$C163), MAX(0,P$3-YEAR($I163)))/100)) -> 1
B164: 112718 | C164: 3 | D164: (ii) | E164: F | F164: All | G164: Financial | H164: 1802394.09 | I164: 2014-10-14 | J164: 2023-12-30 | K164: 1802394.09 | M164: =IF($J164<DATE(M$3,12,31),1, IF($G164="Physical",0, OFFSET(Project_characteristics!$C$1, SUMIFS(Positions_disbursement!$C$1:$C$14,Positions_disbursement!$B$1:$B$14,Achievement_to_date_ongoing!$D164,Positions_disbursement!$A$1:$A$14,Achievement_to_date_ongoing!$C164), MAX(0,M$3-YEAR($I164)))/100)) -> 0 | N164: =IF($J164<DATE(N$3,12,31),1, IF($G164="Physical",0, OFFSET(Project_characteristics!$C$1, SUMIFS(Positions_disbursement!$C$1:$C$14,Positions_disbursement!$B$1:$B$14,Achievement_to_date_ongoing!$D164,Positions_disbursement!$A$1:$A$14,Achievement_to_date_ongoing!$C164), MAX(0,N$3-YEAR($I164)))/100)) -> 0 | O164: =IF($J164<DATE(O$3,12,31),1, IF($G164="Physical",0, OFFSET(Project_characteristics!$C$1, SUMIFS(Positions_disbursement!$C$1:$C$14,Positions_disbursement!$B$1:$B$14,Achievement_to_date_ongoing!$D164,Positions_disbursement!$A$1:$A$14,Achievement_to_date_ongoing!$C164), MAX(0,O$3-YEAR($I164)))/100)) -> 0 | P164: =IF($J164<DATE(P$3,12,31),1, IF($G164="Physical",0, OFFSET(Project_characteristics!$C$1, SUMIFS(Positions_disbursement!$C$1:$C$14,Positions_disbursement!$B$1:$B$14,Achievement_to_date_ongoing!$D164,Positions_disbursement!$A$1:$A$14,Achievement_to_date_ongoing!$C164), MAX(0,P$3-YEAR($I164)))/100)) -> 1
B165: 105504 | C165: 3 | D165: (ii) | E165: F | F165: All | G165: Financial | H165: 3887924.05 | I165: 2016-01-01 | J165: 2021-06-30 | K165: 3887924.05 | M165: =IF($J165<DATE(M$3,12,31),1, IF($G165="Physical",0, OFFSET(Project_characteristics!$C$1, SUMIFS(Positions_disbursement!$C$1:$C$14,Positions_disbursement!$B$1:$B$14,Achievement_to_date_ongoing!$D165,Positions_disbursement!$A$1:$A$14,Achievement_to_date_ongoing!$C165), MAX(0,M$3-YEAR($I165)))/100)) -> 0 | N165: =IF($J165<DATE(N$3,12,31),1, IF($G165="Physical",0, OFFSET(Project_characteristics!$C$1, SUMIFS(Positions_disbursement!$C$1:$C$14,Positions_disbursement!$B$1:$B$14,Achievement_to_date_ongoing!$D165,Positions_disbursement!$A$1:$A$14,Achievement_to_date_ongoing!$C165), MAX(0,N$3-YEAR($I165)))/100)) -> 1 | O165: =IF($J165<DATE(O$3,12,31),1, IF($G165="Physical",0, OFFSET(Project_characteristics!$C$1, SUMIFS(Positions_disbursement!$C$1:$C$14,Positions_disbursement!$B$1:$B$14,Achievement_to_date_ongoing!$D165,Positions_disbursement!$A$1:$A$14,Achievement_to_date_ongoing!$C165), MAX(0,O$3-YEAR($I165)))/100)) -> 1 | P165: =IF($J165<DATE(P$3,12,31),1, IF($G165="Physical",0, OFFSET(Project_characteristics!$C$1, SUMIFS(Positions_disbursement!$C$1:$C$14,Positions_disbursement!$B$1:$B$14,Achievement_to_date_ongoing!$D165,Positions_disbursement!$A$1:$A$14,Achievement_to_date_ongoing!$C165), MAX(0,P$3-YEAR($I165)))/100)) -> 1
B166: 102415 | C166: 3 | D166: (ii) | E166: F | F166: All | G166: Financial | H166: 5166604.75 | I166: 2016-08-29 | J166: 2023-12-31 | K166: 5166604.75 | M166: =IF($J166<DATE(M$3,12,31),1, IF($G166="Physical",0, OFFSET(Project_characteristics!$C$1, SUMIFS(Positions_disbursement!$C$1:$C$14,Positions_disbursement!$B$1:$B$14,Achievement_to_date_ongoing!$D166,Positions_disbursement!$A$1:$A$14,Achievement_to_date_ongoing!$C166), MAX(0,M$3-YEAR($I166)))/100)) -> 0 | N166: =IF($J166<DATE(N$3,12,31),1, IF($G166="Physical",0, OFFSET(Project_characteristics!$C$1, SUMIFS(Positions_disbursement!$C$1:$C$14,Positions_disbursement!$B$1:$B$14,Achievement_to_date_ongoing!$D166,Positions_disbursement!$A$1:$A$14,Achievement_to_date_ongoing!$C166), MAX(0,N$3-YEAR($I166)))/100)) -> 0 | O166: =IF($J166<DATE(O$3,12,31),1, IF($G166="Physical",0, OFFSET(Project_characteristics!$C$1, SUMIFS(Positions_disbursement!$C$1:$C$14,Positions_disbursement!$B$1:$B$14,Achievement_to_date_ongoing!$D166,Positions_disbursement!$A$1:$A$14,Achievement_to_date_ongoing!$C166), MAX(0,O$3-YEAR($I166)))/100)) -> 0 | P166: =IF($J166<DATE(P$3,12,31),1, IF($G166="Physical",0, OFFSET(Project_characteristics!$C$1, SUMIFS(Positions_disbursement!$C$1:$C$14,Positions_disbursement!$B$1:$B$14,Achievement_to_date_ongoing!$D166,Positions_disbursement!$A$1:$A$14,Achievement_to_date_ongoing!$C166), MAX(0,P$3-YEAR($I166)))/100)) -> 0
B167: 104740 | C167: 3 | D167: (ii) | E167: F | F167: All | G167: Financial | H167: 34712277.91 | I167: 2015-01-01 | J167: 2022-12-31 | K167: 34752525.4 | M167: =IF($J167<DATE(M$3,12,31),1, IF($G167="Physical",0, OFFSET(Project_characteristics!$C$1, SUMIFS(Positions_disbursement!$C$1:$C$14,Positions_disbursement!$B$1:$B$14,Achievement_to_date_ongoing!$D167,Positions_disbursement!$A$1:$A$14,Achievement_to_date_ongoing!$C167), MAX(0,M$3-YEAR($I167)))/100)) -> 0 | N167: =IF($J167<DATE(N$3,12,31),1, IF($G167="Physical",0, OFFSET(Project_characteristics!$C$1, SUMIFS(Positions_disbursement!$C$1:$C$14,Positions_disbursement!$B$1:$B$14,Achievement_to_date_ongoing!$D167,Positions_disbursement!$A$1:$A$14,Achievement_to_date_ongoing!$C167), MAX(0,N$3-YEAR($I167)))/100)) -> 0 | O167: =IF($J167<DATE(O$3,12,31),1, IF($G167="Physical",0, OFFSET(Project_characteristics!$C$1, SUMIFS(Positions_disbursement!$C$1:$C$14,Positions_disbursement!$B$1:$B$14,Achievement_to_date_ongoing!$D167,Positions_disbursement!$A$1:$A$14,Achievement_to_date_ongoing!$C167), MAX(0,O$3-YEAR($I167)))/100)) -> 0 | P167: =IF($J167<DATE(P$3,12,31),1, IF($G167="Physical",0, OFFSET(Project_characteristics!$C$1, SUMIFS(Positions_disbursement!$C$1:$C$14,Positions_disbursement!$B$1:$B$14,Achievement_to_date_ongoing!$D167,Positions_disbursement!$A$1:$A$14,Achievement_to_date_ongoing!$C167), MAX(0,P$3-YEAR($I167)))/100)) -> 1
B168: 125325 | C168: 3 | D168: (ii) | E168: F | F168: All | G168: Financial | H168: 7666279.583 | I168: 2018-06-30 | J168: 2022-12-31 | K168: 774361234.8 | M168: =IF($J168<DATE(M$3,12,31),1, IF($G168="Physical",0, OFFSET(Project_characteristics!$C$1, SUMIFS(Positions_disbursement!$C$1:$C$14,Positions_disbursement!$B$1:$B$14,Achievement_to_date_ongoing!$D168,Positions_disbursement!$A$1:$A$14,Achievement_to_date_ongoing!$C168), MAX(0,M$3-YEAR($I168)))/100)) -> 0 | N168: =IF($J168<DATE(N$3,12,31),1, IF($G168="Physical",0, OFFSET(Project_characteristics!$C$1, SUMIFS(Positions_disbursement!$C$1:$C$14,Positions_disbursement!$B$1:$B$14,Achievement_to_date_ongoing!$D168,Positions_disbursement!$A$1:$A$14,Achievement_to_date_ongoing!$C168), MAX(0,N$3-YEAR($I168)))/100)) -> 0 | O168: =IF($J168<DATE(O$3,12,31),1, IF($G168="Physical",0, OFFSET(Project_characteristics!$C$1, SUMIFS(Positions_disbursement!$C$1:$C$14,Positions_disbursement!$B$1:$B$14,Achievement_to_date_ongoing!$D168,Positions_disbursement!$A$1:$A$14,Achievement_to_date_ongoing!$C168), MAX(0,O$3-YEAR($I168)))/100)) -> 0 | P168: =IF($J168<DATE(P$3,12,31),1, IF($G168="Physical",0, OFFSET(Project_characteristics!$C$1, SUMIFS(Positions_disbursement!$C$1:$C$14,Positions_disbursement!$B$1:$B$14,Achievement_to_date_ongoing!$D168,Positions_disbursement!$A$1:$A$14,Achievement_to_date_ongoing!$C168), MAX(0,P$3-YEAR($I168)))/100)) -> 1
B169: 114394 | C169: 3 | D169: (ii) | E169: F | F169: All | G169: Financial | H169: 16241370.95 | I169: 2017-05-31 | J169: 2021-09-30 | K169: 16241370.95 | M169: =IF($J169<DATE(M$3,12,31),1, IF($G169="Physical",0, OFFSET(Project_characteristics!$C$1, SUMIFS(Positions_disbursement!$C$1:$C$14,Positions_disbursement!$B$1:$B$14,Achievement_to_date_ongoing!$D169,Positions_disbursement!$A$1:$A$14,Achievement_to_date_ongoing!$C169), MAX(0,M$3-YEAR($I169)))/100)) -> 0 | N169: =IF($J169<DATE(N$3,12,31),1, IF($G169="Physical",0, OFFSET(Project_characteristics!$C$1, SUMIFS(Positions_disbursement!$C$1:$C$14,Positions_disbursement!$B$1:$B$14,Achievement_to_date_ongoing!$D169,Positions_disbursement!$A$1:$A$14,Achievement_to_date_ongoing!$C169), MAX(0,N$3-YEAR($I169)))/100)) -> 1 | O169: =IF($J169<DATE(O$3,12,31),1, IF($G169="Physical",0, OFFSET(Project_characteristics!$C$1, SUMIFS(Positions_disbursement!$C$1:$C$14,Positions_disbursement!$B$1:$B$14,Achievement_to_date_ongoing!$D169,Positions_disbursement!$A$1:$A$14,Achievement_to_date_ongoing!$C169), MAX(0,O$3-YEAR($I169)))/100)) -> 1 | P169: =IF($J169<DATE(P$3,12,31),1, IF($G169="Physical",0, OFFSET(Project_characteristics!$C$1, SUMIFS(Positions_disbursement!$C$1:$C$14,Positions_disbursement!$B$1:$B$14,Achievement_to_date_ongoing!$D169,Positions_disbursement!$A$1:$A$14,Achievement_to_date_ongoing!$C169), MAX(0,P$3-YEAR($I169)))/100)) -> 1
B170: 120139 | C170: 3 | D170: (ii) | E170: F | F170: All | G170: Financial | H170: 2537338.71 | I170: 2019-09-02 | J170: 2021-08-30 | K170: 6231940.728 | M170: =IF($J170<DATE(M$3,12,31),1, IF($G170="Physical",0, OFFSET(Project_characteristics!$C$1, SUMIFS(Positions_disbursement!$C$1:$C$14,Positions_disbursement!$B$1:$B$14,Achievement_to_date_ongoing!$D170,Positions_disbursement!$A$1:$A$14,Achievement_to_date_ongoing!$C170), MAX(0,M$3-YEAR($I170)))/100)) -> 0 | N170: =IF($J170<DATE(N$3,12,31),1, IF($G170="Physical",0, OFFSET(Project_characteristics!$C$1, SUMIFS(Positions_disbursement!$C$1:$C$14,Positions_disbursement!$B$1:$B$14,Achievement_to_date_ongoing!$D170,Positions_disbursement!$A$1:$A$14,Achievement_to_date_ongoing!$C170), MAX(0,N$3-YEAR($I170)))/100)) -> 1 | O170: =IF($J170<DATE(O$3,12,31),1, IF($G170="Physical",0, OFFSET(Project_characteristics!$C$1, SUMIFS(Positions_disbursement!$C$1:$C$14,Positions_disbursement!$B$1:$B$14,Achievement_to_date_ongoing!$D170,Positions_disbursement!$A$1:$A$14,Achievement_to_date_ongoing!$C170), MAX(0,O$3-YEAR($I170)))/100)) -> 1 | P170: =IF($J170<DATE(P$3,12,31),1, IF($G170="Physical",0, OFFSET(Project_characteristics!$C$1, SUMIFS(Positions_disbursement!$C$1:$C$14,Positions_disbursement!$B$1:$B$14,Achievement_to_date_ongoing!$D170,Positions_disbursement!$A$1:$A$14,Achievement_to_date_ongoing!$C170), MAX(0,P$3-YEAR($I170)))/100)) -> 1
B171: 103967 | C171: 3 | D171: (ii) | E171: F | F171: All | G171: Financial | H171: 139562398.6 | I171: 2015-04-01 | J171: 2023-12-31 | K171: 172160728.8 | M171: =IF($J171<DATE(M$3,12,31),1, IF($G171="Physical",0, OFFSET(Project_characteristics!$C$1, SUMIFS(Positions_disbursement!$C$1:$C$14,Positions_disbursement!$B$1:$B$14,Achievement_to_date_ongoing!$D171,Positions_disbursement!$A$1:$A$14,Achievement_to_date_ongoing!$C171), MAX(0,M$3-YEAR($I171)))/100)) -> 0 | N171: =IF($J171<DATE(N$3,12,31),1, IF($G171="Physical",0, OFFSET(Project_characteristics!$C$1, SUMIFS(Positions_disbursement!$C$1:$C$14,Positions_disbursement!$B$1:$B$14,Achievement_to_date_ongoing!$D171,Positions_disbursement!$A$1:$A$14,Achievement_to_date_ongoing!$C171), MAX(0,N$3-YEAR($I171)))/100)) -> 0 | O171: =IF($J171<DATE(O$3,12,31),1, IF($G171="Physical",0, OFFSET(Project_characteristics!$C$1, SUMIFS(Positions_disbursement!$C$1:$C$14,Positions_disbursement!$B$1:$B$14,Achievement_to_date_ongoing!$D171,Positions_disbursement!$A$1:$A$14,Achievement_to_date_ongoing!$C171), MAX(0,O$3-YEAR($I171)))/100)) -> 0 | P171: =IF($J171<DATE(P$3,12,31),1, IF($G171="Physical",0, OFFSET(Project_characteristics!$C$1, SUMIFS(Positions_disbursement!$C$1:$C$14,Positions_disbursement!$B$1:$B$14,Achievement_to_date_ongoing!$D171,Positions_disbursement!$A$1:$A$14,Achievement_to_date_ongoing!$C171), MAX(0,P$3-YEAR($I171)))/100)) -> 0
B172: 125651 | C172: 3 | D172: (ii) | E172: F | F172: All | G172: Financial | H172: 10973499.12 | I172: 2019-01-01 | J172: 2023-12-31 | K172: 471857725 | M172: =IF($J172<DATE(M$3,12,31),1, IF($G172="Physical",0, OFFSET(Project_characteristics!$C$1, SUMIFS(Positions_disbursement!$C$1:$C$14,Positions_disbursement!$B$1:$B$14,Achievement_to_date_ongoing!$D172,Positions_disbursement!$A$1:$A$14,Achievement_to_date_ongoing!$C172), MAX(0,M$3-YEAR($I172)))/100)) -> 0 | N172: =IF($J172<DATE(N$3,12,31),1, IF($G172="Physical",0, OFFSET(Project_characteristics!$C$1, SUMIFS(Positions_disbursement!$C$1:$C$14,Positions_disbursement!$B$1:$B$14,Achievement_to_date_ongoing!$D172,Positions_disbursement!$A$1:$A$14,Achievement_to_date_ongoing!$C172), MAX(0,N$3-YEAR($I172)))/100)) -> 0 | O172: =IF($J172<DATE(O$3,12,31),1, IF($G172="Physical",0, OFFSET(Project_characteristics!$C$1, SUMIFS(Positions_disbursement!$C$1:$C$14,Positions_disbursement!$B$1:$B$14,Achievement_to_date_ongoing!$D172,Positions_disbursement!$A$1:$A$14,Achievement_to_date_ongoing!$C172), MAX(0,O$3-YEAR($I172)))/100)) -> 0 | P172: =IF($J172<DATE(P$3,12,31),1, IF($G172="Physical",0, OFFSET(Project_characteristics!$C$1, SUMIFS(Positions_disbursement!$C$1:$C$14,Positions_disbursement!$B$1:$B$14,Achievement_to_date_ongoing!$D172,Positions_disbursement!$A$1:$A$14,Achievement_to_date_ongoing!$C172), MAX(0,P$3-YEAR($I172)))/100)) -> 0
B173: 106397 | C173: 3 | D173: (ii) | E173: F | F173: All | G173: Financial | H173: 720926.31 | I173: 2017-09-04 | J173: 2022-03-04 | K173: 4615888.184 | M173: =IF($J173<DATE(M$3,12,31),1, IF($G173="Physical",0, OFFSET(Project_characteristics!$C$1, SUMIFS(Positions_disbursement!$C$1:$C$14,Positions_disbursement!$B$1:$B$14,Achievement_to_date_ongoing!$D173,Positions_disbursement!$A$1:$A$14,Achievement_to_date_ongoing!$C173), MAX(0,M$3-YEAR($I173)))/100)) -> 0 | N173: =IF($J173<DATE(N$3,12,31),1, IF($G173="Physical",0, OFFSET(Project_characteristics!$C$1, SUMIFS(Positions_disbursement!$C$1:$C$14,Positions_disbursement!$B$1:$B$14,Achievement_to_date_ongoing!$D173,Positions_disbursement!$A$1:$A$14,Achievement_to_date_ongoing!$C173), MAX(0,N$3-YEAR($I173)))/100)) -> 0 | O173: =IF($J173<DATE(O$3,12,31),1, IF($G173="Physical",0, OFFSET(Project_characteristics!$C$1, SUMIFS(Positions_disbursement!$C$1:$C$14,Positions_disbursement!$B$1:$B$14,Achievement_to_date_ongoing!$D173,Positions_disbursement!$A$1:$A$14,Achievement_to_date_ongoing!$C173), MAX(0,O$3-YEAR($I173)))/100)) -> 1 | P173: =IF($J173<DATE(P$3,12,31),1, IF($G173="Physical",0, OFFSET(Project_characteristics!$C$1, SUMIFS(Positions_disbursement!$C$1:$C$14,Positions_disbursement!$B$1:$B$14,Achievement_to_date_ongoing!$D173,Positions_disbursement!$A$1:$A$14,Achievement_to_date_ongoing!$C173), MAX(0,P$3-YEAR($I173)))/100)) -> 1
B174: 103033 | C174: 3 | D174: (ii) | E174: F | F174: All | G174: Financial | H174: 66388151.66 | I174: 2015-12-01 | J174: 2022-12-31 | K174: 126368897.8 | M174: =IF($J174<DATE(M$3,12,31),1, IF($G174="Physical",0, OFFSET(Project_characteristics!$C$1, SUMIFS(Positions_disbursement!$C$1:$C$14,Positions_disbursement!$B$1:$B$14,Achievement_to_date_ongoing!$D174,Positions_disbursement!$A$1:$A$14,Achievement_to_date_ongoing!$C174), MAX(0,M$3-YEAR($I174)))/100)) -> 0 | N174: =IF($J174<DATE(N$3,12,31),1, IF($G174="Physical",0, OFFSET(Project_characteristics!$C$1, SUMIFS(Positions_disbursement!$C$1:$C$14,Positions_disbursement!$B$1:$B$14,Achievement_to_date_ongoing!$D174,Positions_disbursement!$A$1:$A$14,Achievement_to_date_ongoing!$C174), MAX(0,N$3-YEAR($I174)))/100)) -> 0 | O174: =IF($J174<DATE(O$3,12,31),1, IF($G174="Physical",0, OFFSET(Project_characteristics!$C$1, SUMIFS(Positions_disbursement!$C$1:$C$14,Positions_disbursement!$B$1:$B$14,Achievement_to_date_ongoing!$D174,Positions_disbursement!$A$1:$A$14,Achievement_to_date_ongoing!$C174), MAX(0,O$3-YEAR($I174)))/100)) -> 0 | P174: =IF($J174<DATE(P$3,12,31),1, IF($G174="Physical",0, OFFSET(Project_characteristics!$C$1, SUMIFS(Positions_disbursement!$C$1:$C$14,Positions_disbursement!$B$1:$B$14,Achievement_to_date_ongoing!$D174,Positions_disbursement!$A$1:$A$14,Achievement_to_date_ongoing!$C174), MAX(0,P$3-YEAR($I174)))/100)) -> 1
B175: 108100 | C175: 3 | D175: (ii) | E175: F | F175: All | G175: Financial | H175: 97699468.37 | I175: 2014-09-01 | J175: 2023-12-31 | K175: 205214338.4 | M175: =IF($J175<DATE(M$3,12,31),1, IF($G175="Physical",0, OFFSET(Project_characteristics!$C$1, SUMIFS(Positions_disbursement!$C$1:$C$14,Positions_disbursement!$B$1:$B$14,Achievement_to_date_ongoing!$D175,Positions_disbursement!$A$1:$A$14,Achievement_to_date_ongoing!$C175), MAX(0,M$3-YEAR($I175)))/100)) -> 0 | N175: =IF($J175<DATE(N$3,12,31),1, IF($G175="Physical",0, OFFSET(Project_characteristics!$C$1, SUMIFS(Positions_disbursement!$C$1:$C$14,Positions_disbursement!$B$1:$B$14,Achievement_to_date_ongoing!$D175,Positions_disbursement!$A$1:$A$14,Achievement_to_date_ongoing!$C175), MAX(0,N$3-YEAR($I175)))/100)) -> 0 | O175: =IF($J175<DATE(O$3,12,31),1, IF($G175="Physical",0, OFFSET(Project_characteristics!$C$1, SUMIFS(Positions_disbursement!$C$1:$C$14,Positions_disbursement!$B$1:$B$14,Achievement_to_date_ongoing!$D175,Positions_disbursement!$A$1:$A$14,Achievement_to_date_ongoing!$C175), MAX(0,O$3-YEAR($I175)))/100)) -> 0 | P175: =IF($J175<DATE(P$3,12,31),1, IF($G175="Physical",0, OFFSET(Project_characteristics!$C$1, SUMIFS(Positions_disbursement!$C$1:$C$14,Positions_disbursement!$B$1:$B$14,Achievement_to_date_ongoing!$D175,Positions_disbursement!$A$1:$A$14,Achievement_to_date_ongoing!$C175), MAX(0,P$3-YEAR($I175)))/100)) -> 0
B176: 135092 | C176: 3 | D176: (ii) | E176: F | F176: All | G176: Financial | H176: 27696779.75 | I176: 2018-05-01 | J176: 2022-03-31 | K176: 138339292 | M176: =IF($J176<DATE(M$3,12,31),1, IF($G176="Physical",0, OFFSET(Project_characteristics!$C$1, SUMIFS(Positions_disbursement!$C$1:$C$14,Positions_disbursement!$B$1:$B$14,Achievement_to_date_ongoing!$D176,Positions_disbursement!$A$1:$A$14,Achievement_to_date_ongoing!$C176), MAX(0,M$3-YEAR($I176)))/100)) -> 0 | N176: =IF($J176<DATE(N$3,12,31),1, IF($G176="Physical",0, OFFSET(Project_characteristics!$C$1, SUMIFS(Positions_disbursement!$C$1:$C$14,Positions_disbursement!$B$1:$B$14,Achievement_to_date_ongoing!$D176,Positions_disbursement!$A$1:$A$14,Achievement_to_date_ongoing!$C176), MAX(0,N$3-YEAR($I176)))/100)) -> 0 | O176: =IF($J176<DATE(O$3,12,31),1, IF($G176="Physical",0, OFFSET(Project_characteristics!$C$1, SUMIFS(Positions_disbursement!$C$1:$C$14,Positions_disbursement!$B$1:$B$14,Achievement_to_date_ongoing!$D176,Positions_disbursement!$A$1:$A$14,Achievement_to_date_ongoing!$C176), MAX(0,O$3-YEAR($I176)))/100)) -> 1 | P176: =IF($J176<DATE(P$3,12,31),1, IF($G176="Physical",0, OFFSET(Project_characteristics!$C$1, SUMIFS(Positions_disbursement!$C$1:$C$14,Positions_disbursement!$B$1:$B$14,Achievement_to_date_ongoing!$D176,Positions_disbursement!$A$1:$A$14,Achievement_to_date_ongoing!$C176), MAX(0,P$3-YEAR($I176)))/100)) -> 1
B177: 122381 | C177: 3 | D177: (ii) | E177: F | F177: All | G177: Financial | H177: 4434502.35 | I177: 2015-05-06 | J177: 2023-12-31 | K177: 4731426.836 | M177: =IF($J177<DATE(M$3,12,31),1, IF($G177="Physical",0, OFFSET(Project_characteristics!$C$1, SUMIFS(Positions_disbursement!$C$1:$C$14,Positions_disbursement!$B$1:$B$14,Achievement_to_date_ongoing!$D177,Positions_disbursement!$A$1:$A$14,Achievement_to_date_ongoing!$C177), MAX(0,M$3-YEAR($I177)))/100)) -> 0 | N177: =IF($J177<DATE(N$3,12,31),1, IF($G177="Physical",0, OFFSET(Project_characteristics!$C$1, SUMIFS(Positions_disbursement!$C$1:$C$14,Positions_disbursement!$B$1:$B$14,Achievement_to_date_ongoing!$D177,Positions_disbursement!$A$1:$A$14,Achievement_to_date_ongoing!$C177), MAX(0,N$3-YEAR($I177)))/100)) -> 0 | O177: =IF($J177<DATE(O$3,12,31),1, IF($G177="Physical",0, OFFSET(Project_characteristics!$C$1, SUMIFS(Positions_disbursement!$C$1:$C$14,Positions_disbursement!$B$1:$B$14,Achievement_to_date_ongoing!$D177,Positions_disbursement!$A$1:$A$14,Achievement_to_date_ongoing!$C177), MAX(0,O$3-YEAR($I177)))/100)) -> 0 | P177: =IF($J177<DATE(P$3,12,31),1, IF($G177="Physical",0, OFFSET(Project_characteristics!$C$1, SUMIFS(Positions_disbursement!$C$1:$C$14,Positions_disbursement!$B$1:$B$14,Achievement_to_date_ongoing!$D177,Positions_disbursement!$A$1:$A$14,Achievement_to_date_ongoing!$C177), MAX(0,P$3-YEAR($I177)))/100)) -> 0
